Workbook

Sheet Choose
N1: Sheet | O1: No. of Errors | Q1: BEYA Check Only | R1: No. of Errors
B2: =HYPERLINK("#Home!h10",N2) -> Home | D2: =Home!M12 -> Barnet School Funding Allocation April 2018-March 2019 - May Adjustments | N2: Home | O2: =INDIRECT("'"&N2&"'!$B$4") ->  | Q2: Home - BEYA | R2: =IF(Target.Address="Barnet Early Years Alliance (BEYA)",INDIRECT("'"&Q2&"'!$B$4"),0) -> 0
B3: =HYPERLINK("#"&N3&"!h10",N3) -> News | D3: Last Updated: | E3: =Home!M14 -> 2018-06-01 | I3: =Home!M16 -> Version 3.0 | N3: News | Q3: Home - Brookhill Nursery | R3: 0
B4: BudgetShare | D4: Please select the school you want to know about from the drop-down box below, then click the Home button. For details of funding changes click on News below. | N4: BudgetShare | O4: =INDIRECT("'"&N4&"'!$B$4") ->  | Q4: Home - Hampden Way Nursery | R4: 0
D5: Note: Order of schools is Nurseries, Primaries, PRUs, Secondaries, All through, Specials, alphabetical by school name. | N5: Payments | Q5: Home-St Margarets Nursery | R5: 0
B6: CFR | D6: Please choose a school | L6: =IF(Target.Address="Barnet Early Years Alliance (BEYA)",IF($R$13=0,"",$R$13),IF(ISERROR(IF(DFENO=0,"",IF($O$19=0,"",O19&" ERRORS"))),"",IF(DFENO=0,"",IF($O$19=0,"",O19&" ERRORS")))) ->  | N6: CFR | O6: 0 | Q6: Payments - BEYA | R6: 0
B7: Pupils | N7: Pupils | Q7: Pupils | R7: 0
B8: HighNeeds | N8: HighNeeds | Q8: BEYA Early Years Summary | R8: 0
B9: TopUps | N9: TopUps | O9: 0 | Q9: Early Years - Brookhill Nursery | R9: 0
B10: HNRates | N10: HNRates | O10: 0 | Q10: Early Years-Hampden Way Nursery | R10: 0
B11: Click on a link | N11: PupilPremium | O11: 0 | Q11: Early Years - St Margarets | R11: 0
D12: Current funding allocation | I12: Comparison with 2017/18 End of Year allocation | N12: EarlyYears | Q12: TopUps | R12: =INDIRECT("'"&Q12&"'!$B$4") -> 0
B13: =HYPERLINK("#"&N11&"!h10",N11) -> PupilPremium | D13: =Home!AC21 -> 0 | I13: =IF(Home!L33=0,0,D13-Home!L33) -> 0 | N13: Grants | Q13: Total | R13: =SUM(R2:R12) -> 0
B14: EarlyYears | N14: SixthForm
B15: Grants | D15: Adjustments: Original | E15: April | F15: May | G15: June | I15: July | J15: Aug | K15: Sept | N15: Growth | O15: 0
B16: SixthForm | D16: =Home!Q33 -> 0 | E16: =Home!R33 -> 0 | F16: =Home!S33 -> 0 | G16: =Home!T33 -> 0 | I16: =Home!U33 -> 0 | J16: =Home!V33 -> 0 | K16: =Home!W33 -> 0 | N16: MFG
B17: Growth | D17: Oct | E17: Nov | F17: Dec | G17: Jan | I17: Feb | J17: Mar | K17: Final 2018/19 | N17: NotionalSEN | O17: 0
B18: MFG | D18: =Home!X33 -> 0 | E18: =Home!Y33 -> 0 | F18: =Home!Z33 -> 0 | G18: =Home!AA33 -> 0 | I18: =Home!AB33 -> 0 | J18: =Home!AC33 -> 0 | N18: Compare | O18: 0
N19: Total | O19: =SUM(O2:O18) -> 
B20: Compare
B32: =Home!B165 -> Please choose a school | C32: =Home!C165 -> Phase | D32: =Home!D165 -> Academy Type | F32: =Home!E165 -> Blank | G32: =Home!F165 -> 0 | H32: =Home!G165 -> X | I32: =Home!H165 -> OldDfe | J32: =Home!I165 -> 0
B33: =Home!B166 -> Barnet Early Years Alliance (BEYA) | C33: =Home!C166 -> Nursery | D33: =Home!D166 -> 0 | F33: =Home!E166 -> 0 | G33: =Home!F166 -> 3020135 | H33: =Home!G166 -> 0 | I33: =Home!H166 -> 3020135 | J33: =Home!I166 -> 0
B34: =Home!B167 -> Moss Hall Nursery | C34: =Home!C167 -> Nursery | D34: =Home!D167 -> 0 | F34: =Home!E167 -> 0 | G34: =Home!F167 -> 3021002 | H34: =Home!G167 -> X | I34: =Home!H167 -> 3021002 | J34: =Home!I167 -> 0
B35: =Home!B168 -> - | C35: =Home!C168 -> Phase | D35: =Home!D168 -> Academy Type | F35: =Home!E168 -> Blank | G35: =Home!F168 -> 0 | H35: =Home!G168 -> X | I35: =Home!H168 -> OldDfe | J35: =Home!I168 -> 0
B36: =Home!B169 -> Akiva School | C36: =Home!C169 -> Primary | D36: =Home!D169 -> 0 | F36: =Home!E169 -> 0 | G36: =Home!F169 -> 3023520 | H36: =Home!G169 -> Pri | I36: =Home!H169 -> 3023520 | J36: =Home!I169 -> 0
B37: =Home!B170 -> All Saints' CE Primary School NW2 | C37: =Home!C170 -> Primary | D37: =Home!D170 -> 0 | F37: =Home!E170 -> 0 | G37: =Home!F170 -> 3023300 | H37: =Home!G170 -> Pri | I37: =Home!H170 -> 3023300 | J37: =Home!I170 -> 0
B38: =Home!B171 -> All Saints' CE Primary School, N20 | C38: =Home!C171 -> Primary | D38: =Home!D171 -> 0 | F38: =Home!E171 -> 0 | G38: =Home!F171 -> 3023317 | H38: =Home!G171 -> Pri | I38: =Home!H171 -> 3023317 | J38: =Home!I171 -> 0
B39: =Home!B172 -> Alma Primary | C39: =Home!C172 -> Primary | D39: =Home!D172 -> Recoupment Academy | F39: =Home!E172 -> 0 | G39: =Home!F172 -> 3022020 | H39: =Home!G172 -> Pri | I39: =Home!H172 -> 3022020 | J39: =Home!I172 -> 0
B40: =Home!B173 -> Annunciation Catholic Infant School | C40: =Home!C173 -> Primary | D40: =Home!D173 -> 0 | F40: =Home!E173 -> 0 | G40: =Home!F173 -> 3023500 | H40: =Home!G173 -> Pri | I40: =Home!H173 -> 3023500 | J40: =Home!I173 -> 0
B41: =Home!B174 -> Annunciation Catholic Junior School | C41: =Home!C174 -> Primary | D41: =Home!D174 -> 0 | F41: =Home!E174 -> 0 | G41: =Home!F174 -> 3023514 | H41: =Home!G174 -> Pri | I41: =Home!H174 -> 3023514 | J41: =Home!I174 -> 0
B42: =Home!B175 -> Ashmole Primary School | C42: =Home!C175 -> Primary | D42: =Home!D175 -> Recoupment Academy | F42: =Home!E175 -> 0 | G42: =Home!F175 -> 3022050 | H42: =Home!G175 -> Pri | I42: =Home!H175 -> 3022050 | J42: =Home!I175 -> 0
B43: =Home!B176 -> Barnfield School | C43: =Home!C176 -> Primary | D43: =Home!D176 -> 0 | F43: =Home!E176 -> 0 | G43: =Home!F176 -> 3022002 | H43: =Home!G176 -> Pri | I43: =Home!H176 -> 3022002 | J43: =Home!I176 -> 0
B44: =Home!B177 -> Beis Yaakov | C44: =Home!C177 -> Primary | D44: =Home!D177 -> 0 | F44: =Home!E177 -> 0 | G44: =Home!F177 -> 3022079 | H44: =Home!G177 -> Pri | I44: =Home!H177 -> 3022079 | J44: =Home!I177 -> 0
B45: =Home!B178 -> Beit Shvidler Primary School | C45: =Home!C178 -> Primary | D45: =Home!D178 -> 0 | F45: =Home!E178 -> 0 | G45: =Home!F178 -> 3023524 | H45: =Home!G178 -> Pri | I45: =Home!H178 -> 3023524 | J45: =Home!I178 -> 0
B46: =Home!B179 -> Bell Lane Primary School | C46: =Home!C179 -> Primary | D46: =Home!D179 -> 0 | F46: =Home!E179 -> 0 | G46: =Home!F179 -> 3022003 | H46: =Home!G179 -> Pri | I46: =Home!H179 -> 3022003 | J46: =Home!I179 -> 0
B47: =Home!B180 -> Blessed Dominic School | C47: =Home!C180 -> Primary | D47: =Home!D180 -> 0 | F47: =Home!E180 -> 0 | G47: =Home!F180 -> 3023511 | H47: =Home!G180 -> Pri | I47: =Home!H180 -> 3023511 | J47: =Home!I180 -> 0
B48: =Home!B181 -> Broadfields Primary School | C48: =Home!C181 -> Primary | D48: =Home!D181 -> Recoupment Academy | F48: =Home!E181 -> 0 | G48: =Home!F181 -> 3023519 | H48: =Home!G181 -> Pri | I48: =Home!H181 -> 3023519 | J48: =Home!I181 -> 0
B49: =Home!B182 -> Brookland Infant & Nursery School | C49: =Home!C182 -> Primary | D49: =Home!D182 -> 0 | F49: =Home!E182 -> 0 | G49: =Home!F182 -> 3022008 | H49: =Home!G182 -> Pri | I49: =Home!H182 -> 3022008 | J49: =Home!I182 -> 0
B50: =Home!B183 -> Brookland Junior School | C50: =Home!C183 -> Primary | D50: =Home!D183 -> 0 | F50: =Home!E183 -> 0 | G50: =Home!F183 -> 3022007 | H50: =Home!G183 -> Pri | I50: =Home!H183 -> 3022007 | J50: =Home!I183 -> 0
B51: =Home!B184 -> Brunswick Park Primary & Nursery School | C51: =Home!C184 -> Primary | D51: =Home!D184 -> 0 | F51: =Home!E184 -> 0 | G51: =Home!F184 -> 3022009 | H51: =Home!G184 -> Pri | I51: =Home!H184 -> 3022009 | J51: =Home!I184 -> 0
B52: =Home!B185 -> Chalgrove Primary School | C52: =Home!C185 -> Primary | D52: =Home!D185 -> 0 | F52: =Home!E185 -> 0 | G52: =Home!F185 -> 3022067 | H52: =Home!G185 -> Pri | I52: =Home!H185 -> 3022067 | J52: =Home!I185 -> 0
B53: =Home!B186 -> Child's Hill School | C53: =Home!C186 -> Primary | D53: =Home!D186 -> 0 | F53: =Home!E186 -> 0 | G53: =Home!F186 -> 3022010 | H53: =Home!G186 -> Pri | I53: =Home!H186 -> 3022010 | J53: =Home!I186 -> 0
B54: =Home!B187 -> Christ Church CE Primary School | C54: =Home!C187 -> Primary | D54: =Home!D187 -> 0 | F54: =Home!E187 -> 0 | G54: =Home!F187 -> 3023302 | H54: =Home!G187 -> Pri | I54: =Home!H187 -> 3023302 | J54: =Home!I187 -> 0
B55: =Home!B188 -> Church Hill Primary School | C55: =Home!C188 -> Primary | D55: =Home!D188 -> 0 | F55: =Home!E188 -> 0 | G55: =Home!F188 -> 3022011 | H55: =Home!G188 -> Pri | I55: =Home!H188 -> 3022011 | J55: =Home!I188 -> 0
B56: =Home!B189 -> Claremont Academy | C56: =Home!C189 -> Primary | D56: =Home!D189 -> Recoupment Academy | F56: =Home!E189 -> 0 | G56: =Home!F189 -> 3023522 | H56: =Home!G189 -> Pri | I56: =Home!H189 -> 3023522 | J56: =Home!I189 -> 0
B57: =Home!B190 -> Colindale School | C57: =Home!C190 -> Primary | D57: =Home!D190 -> 0 | F57: =Home!E190 -> 0 | G57: =Home!F190 -> 3022014 | H57: =Home!G190 -> Pri | I57: =Home!H190 -> 3022014 | J57: =Home!I190 -> 0
B58: =Home!B191 -> Coppetts Wood | C58: =Home!C191 -> Primary | D58: =Home!D191 -> 0 | F58: =Home!E191 -> 0 | G58: =Home!F191 -> 3022015 | H58: =Home!G191 -> Pri | I58: =Home!H191 -> 3022015 | J58: =Home!I191 -> 0
B59: =Home!B192 -> Courtland School | C59: =Home!C192 -> Primary | D59: =Home!D192 -> 0 | F59: =Home!E192 -> 0 | G59: =Home!F192 -> 3022016 | H59: =Home!G192 -> Pri | I59: =Home!H192 -> 3022016 | J59: =Home!I192 -> 0
B60: =Home!B193 -> Cromer Road Primary School | C60: =Home!C193 -> Primary | D60: =Home!D193 -> 0 | F60: =Home!E193 -> 0 | G60: =Home!F193 -> 3022017 | H60: =Home!G193 -> Pri | I60: =Home!H193 -> 3022017 | J60: =Home!I193 -> 0
B61: =Home!B194 -> Danegrove JMI School | C61: =Home!C194 -> Primary | D61: =Home!D194 -> 0 | F61: =Home!E194 -> 0 | G61: =Home!F194 -> 3022073 | H61: =Home!G194 -> Pri | I61: =Home!H194 -> 3022073 | J61: =Home!I194 -> 0
B62: =Home!B195 -> Deansbrook Infant School | C62: =Home!C195 -> Primary | D62: =Home!D195 -> 0 | F62: =Home!E195 -> 0 | G62: =Home!F195 -> 3022019 | H62: =Home!G195 -> Pri | I62: =Home!H195 -> 3022019 | J62: =Home!I195 -> 0
B63: =Home!B196 -> Deansbrook Junior School | C63: =Home!C196 -> Primary | D63: =Home!D196 -> Recoupment Academy | F63: =Home!E196 -> 0 | G63: =Home!F196 -> 3022018 | H63: =Home!G196 -> Pri | I63: =Home!H196 -> 3022018 | J63: =Home!I196 -> 0
B64: =Home!B197 -> Dollis Infant School | C64: =Home!C197 -> Primary | D64: =Home!D197 -> 0 | F64: =Home!E197 -> 0 | G64: =Home!F197 -> 3022021 | H64: =Home!G197 -> Pri | I64: =Home!H197 -> 3022021 | J64: =Home!I197 -> 0
B65: =Home!B198 -> Dollis Junior School | C65: =Home!C198 -> Primary | D65: =Home!D198 -> 0 | F65: =Home!E198 -> 0 | G65: =Home!F198 -> 3025200 | H65: =Home!G198 -> Pri | I65: =Home!H198 -> 3025200 | J65: =Home!I198 -> 0
B66: =Home!B199 -> Edgware Primary School | C66: =Home!C199 -> Primary | D66: =Home!D199 -> 0 | F66: =Home!E199 -> 0 | G66: =Home!F199 -> 3022023 | H66: =Home!G199 -> Pri | I66: =Home!H199 -> 3022023 | J66: =Home!I199 -> 0
B67: =Home!B200 -> Etz Chaim Jewish Primary School | C67: =Home!C200 -> Primary | D67: =Home!D200 -> Recoupment Academy | F67: =Home!E200 -> 0 | G67: =Home!F200 -> 3022001 | H67: =Home!G200 -> Pri | I67: =Home!H200 -> 3022001 | J67: =Home!I200 -> 0
B68: =Home!B201 -> Fairway Primary School | C68: =Home!C201 -> Primary | D68: =Home!D201 -> 0 | F68: =Home!E201 -> 0 | G68: =Home!F201 -> 3022024 | H68: =Home!G201 -> Pri | I68: =Home!H201 -> 3022024 | J68: =Home!I201 -> 0
B69: =Home!B202 -> Foulds | C69: =Home!C202 -> Primary | D69: =Home!D202 -> 0 | F69: =Home!E202 -> 0 | G69: =Home!F202 -> 3022025 | H69: =Home!G202 -> Pri | I69: =Home!H202 -> 3022025 | J69: =Home!I202 -> 0
B70: =Home!B203 -> Frith Manor School | C70: =Home!C203 -> Primary | D70: =Home!D203 -> 0 | F70: =Home!E203 -> 0 | G70: =Home!F203 -> 3022026 | H70: =Home!G203 -> Pri | I70: =Home!H203 -> 3022026 | J70: =Home!I203 -> 0
B71: =Home!B204 -> Garden Suburb Infant School | C71: =Home!C204 -> Primary | D71: =Home!D204 -> 0 | F71: =Home!E204 -> 0 | G71: =Home!F204 -> 3022028 | H71: =Home!G204 -> Pri | I71: =Home!H204 -> 3022028 | J71: =Home!I204 -> 0
B72: =Home!B205 -> Garden Suburb Junior | C72: =Home!C205 -> Primary | D72: =Home!D205 -> 0 | F72: =Home!E205 -> 0 | G72: =Home!F205 -> 3022027 | H72: =Home!G205 -> Pri | I72: =Home!H205 -> 3022027 | J72: =Home!I205 -> 0
B73: =Home!B206 -> Goldbeaters Primary School | C73: =Home!C206 -> Primary | D73: =Home!D206 -> 0 | F73: =Home!E206 -> 0 | G73: =Home!F206 -> 3022029 | H73: =Home!G206 -> Pri | I73: =Home!H206 -> 3022029 | J73: =Home!I206 -> 0
B74: =Home!B207 -> Grasvenor Avenue Infants | C74: =Home!C207 -> Primary | D74: =Home!D207 -> Recoupment Academy | F74: =Home!E207 -> 0 | G74: =Home!F207 -> 3022030 | H74: =Home!G207 -> Pri | I74: =Home!H207 -> 3022030 | J74: =Home!I207 -> 0
B75: =Home!B208 -> Hasmonean Primary School | C75: =Home!C208 -> Primary | D75: =Home!D208 -> 0 | F75: =Home!E208 -> 0 | G75: =Home!F208 -> 3023516 | H75: =Home!G208 -> Pri | I75: =Home!H208 -> 3023516 | J75: =Home!I208 -> 0
B76: =Home!B209 -> Hollickwood JMI School | C76: =Home!C209 -> Primary | D76: =Home!D209 -> 0 | F76: =Home!E209 -> 0 | G76: =Home!F209 -> 3022031 | H76: =Home!G209 -> Pri | I76: =Home!H209 -> 3022031 | J76: =Home!I209 -> 0
B77: =Home!B210 -> Holly Park School | C77: =Home!C210 -> Primary | D77: =Home!D210 -> 0 | F77: =Home!E210 -> 0 | G77: =Home!F210 -> 3022032 | H77: =Home!G210 -> Pri | I77: =Home!H210 -> 3022032 | J77: =Home!I210 -> 0
B78: =Home!B211 -> Holy Trinity School | C78: =Home!C211 -> Primary | D78: =Home!D211 -> 0 | F78: =Home!E211 -> 0 | G78: =Home!F211 -> 3023304 | H78: =Home!G211 -> Pri | I78: =Home!H211 -> 3023304 | J78: =Home!I211 -> 0
B79: =Home!B212 -> Hyde School | C79: =Home!C212 -> Primary | D79: =Home!D212 -> Recoupment Academy | F79: =Home!E212 -> 0 | G79: =Home!F212 -> 3022047 | H79: =Home!G212 -> Pri | I79: =Home!H212 -> 3022047 | J79: =Home!I212 -> 0
B80: =Home!B213 -> Independent Jewish Day School | C80: =Home!C213 -> Primary | D80: =Home!D213 -> Recoupment Academy | F80: =Home!E213 -> 0 | G80: =Home!F213 -> 3023515 | H80: =Home!G213 -> Pri | I80: =Home!H213 -> 3023515 | J80: =Home!I213 -> 0
B81: =Home!B214 -> Livingstone School | C81: =Home!C214 -> Primary | D81: =Home!D214 -> 0 | F81: =Home!E214 -> 0 | G81: =Home!F214 -> 3022036 | H81: =Home!G214 -> Pri | I81: =Home!H214 -> 3022036 | J81: =Home!I214 -> 0
B82: =Home!B215 -> Manorside Primary School | C82: =Home!C215 -> Primary | D82: =Home!D215 -> 0 | F82: =Home!E215 -> 0 | G82: =Home!F215 -> 3022037 | H82: =Home!G215 -> Pri | I82: =Home!H215 -> 3022037 | J82: =Home!I215 -> 0
B83: =Home!B216 -> Martin Primary School | C83: =Home!C216 -> Primary | D83: =Home!D216 -> 0 | F83: =Home!E216 -> 0 | G83: =Home!F216 -> 3023523 | H83: =Home!G216 -> Pri | I83: =Home!H216 -> 3023523 | J83: =Home!I216 -> 0
B84: =Home!B217 -> Mathilda Marks-Kennedy School | C84: =Home!C217 -> Primary | D84: =Home!D217 -> 0 | F84: =Home!E217 -> 0 | G84: =Home!F217 -> 3025948 | H84: =Home!G217 -> Pri | I84: =Home!H217 -> 3025948 | J84: =Home!I217 -> 0
B85: =Home!B218 -> Menorah Foundation School | C85: =Home!C218 -> Primary | D85: =Home!D218 -> 0 | F85: =Home!E218 -> 0 | G85: =Home!F218 -> 3025949 | H85: =Home!G218 -> Pri | I85: =Home!H218 -> 3025949 | J85: =Home!I218 -> 0
B86: =Home!B219 -> Menorah Primary School | C86: =Home!C219 -> Primary | D86: =Home!D219 -> 0 | F86: =Home!E219 -> 0 | G86: =Home!F219 -> 3023513 | H86: =Home!G219 -> Pri | I86: =Home!H219 -> 3023513 | J86: =Home!I219 -> 0
B87: =Home!B220 -> Millbrook Park CE Primary School | C87: =Home!C220 -> Primary | D87: =Home!D220 -> Recoupment Academy | F87: =Home!E220 -> 0 | G87: =Home!F220 -> 3022048 | H87: =Home!G220 -> Pri | I87: =Home!H220 -> 3022048 | J87: =Home!I220 -> 0
B88: =Home!B221 -> Monken Hadley C E Primary School | C88: =Home!C221 -> Primary | D88: =Home!D221 -> 0 | F88: =Home!E221 -> 0 | G88: =Home!F221 -> 3023305 | H88: =Home!G221 -> Pri | I88: =Home!H221 -> 3023305 | J88: =Home!I221 -> 0
B89: =Home!B222 -> Monkfrith School | C89: =Home!C222 -> Primary | D89: =Home!D222 -> 0 | F89: =Home!E222 -> 0 | G89: =Home!F222 -> 3022042 | H89: =Home!G222 -> Pri | I89: =Home!H222 -> 3022042 | J89: =Home!I222 -> 0
B90: =Home!B223 -> Moss Hall Infant School | C90: =Home!C223 -> Primary | D90: =Home!D223 -> 0 | F90: =Home!E223 -> 0 | G90: =Home!F223 -> 3022044 | H90: =Home!G223 -> Pri | I90: =Home!H223 -> 3022044 | J90: =Home!I223 -> 0
B91: =Home!B224 -> Moss Hall Junior School | C91: =Home!C224 -> Primary | D91: =Home!D224 -> 0 | F91: =Home!E224 -> 0 | G91: =Home!F224 -> 3022043 | H91: =Home!G224 -> Pri | I91: =Home!H224 -> 3022043 | J91: =Home!I224 -> 0
B92: =Home!B225 -> Noam Jewish Primary School | C92: =Home!C225 -> Primary | D92: =Home!D225 -> 0 | F92: =Home!E225 -> 0 | G92: =Home!F225 -> 3026112 | H92: =Home!G225 -> Pri | I92: =Home!H225 -> 3026112 | J92: =Home!I225 -> 0
B93: =Home!B226 -> Northside School | C93: =Home!C226 -> Primary | D93: =Home!D226 -> 0 | F93: =Home!E226 -> 0 | G93: =Home!F226 -> 3022045 | H93: =Home!G226 -> Pri | I93: =Home!H226 -> 3022045 | J93: =Home!I226 -> 0
B94: =Home!B227 -> Orion Primary School | C94: =Home!C227 -> Primary | D94: =Home!D227 -> 0 | F94: =Home!E227 -> 0 | G94: =Home!F227 -> 3022077 | H94: =Home!G227 -> Pri | I94: =Home!H227 -> 3022077 | J94: =Home!I227 -> 0
B95: =Home!B228 -> Osidge Primary School | C95: =Home!C228 -> Primary | D95: =Home!D228 -> 0 | F95: =Home!E228 -> 0 | G95: =Home!F228 -> 3025201 | H95: =Home!G228 -> Pri | I95: =Home!H228 -> 3025201 | J95: =Home!I228 -> 0
B96: =Home!B229 -> Our Lady of Lourdes School | C96: =Home!C229 -> Primary | D96: =Home!D229 -> 0 | F96: =Home!E229 -> 0 | G96: =Home!F229 -> 3023501 | H96: =Home!G229 -> Pri | I96: =Home!H229 -> 3023501 | J96: =Home!I229 -> 0
B97: =Home!B230 -> Pardes House School | C97: =Home!C230 -> Primary | D97: =Home!D230 -> 0 | F97: =Home!E230 -> 0 | G97: =Home!F230 -> 3022078 | H97: =Home!G230 -> Pri | I97: =Home!H230 -> 3022078 | J97: =Home!I230 -> 0
B98: =Home!B231 -> Parkfield Primary School | C98: =Home!C231 -> Primary | D98: =Home!D231 -> Recoupment Academy | F98: =Home!E231 -> 0 | G98: =Home!F231 -> 3022038 | H98: =Home!G231 -> Pri | I98: =Home!H231 -> 3022038 | J98: =Home!I231 -> 0
B99: =Home!B232 -> Queenswell Infant and Nursery School | C99: =Home!C232 -> Primary | D99: =Home!D232 -> 0 | F99: =Home!E232 -> 0 | G99: =Home!F232 -> 3022071 | H99: =Home!G232 -> Pri | I99: =Home!H232 -> 3022071 | J99: =Home!I232 -> 0
B100: =Home!B233 -> Queenswell Junior School | C100: =Home!C233 -> Primary | D100: =Home!D233 -> 0 | F100: =Home!E233 -> 0 | G100: =Home!F233 -> 3022072 | H100: =Home!G233 -> Pri | I100: =Home!H233 -> 3022072 | J100: =Home!I233 -> 0
B101: =Home!B234 -> Rimon Jewish Primary School | C101: =Home!C234 -> Primary | D101: =Home!D234 -> Recoupment Academy | F101: =Home!E234 -> 0 | G101: =Home!F234 -> 3022004 | H101: =Home!G234 -> Pri | I101: =Home!H234 -> 3022004 | J101: =Home!I234 -> 0
B102: =Home!B235 -> Rosh Pinah | C102: =Home!C235 -> Primary | D102: =Home!D235 -> 0 | F102: =Home!E235 -> 0 | G102: =Home!F235 -> 3023512 | H102: =Home!G235 -> Pri | I102: =Home!H235 -> 3023512 | J102: =Home!I235 -> 0
B103: =Home!B236 -> Sacks Morasha Jewish Primary School | C103: =Home!C236 -> Primary | D103: =Home!D236 -> 0 | F103: =Home!E236 -> 0 | G103: =Home!F236 -> 3022041 | H103: =Home!G236 -> Pri | I103: =Home!H236 -> 3022041 | J103: =Home!I236 -> 0
B104: =Home!B237 -> Sacred Heart School | C104: =Home!C237 -> Primary | D104: =Home!D237 -> 0 | F104: =Home!E237 -> 0 | G104: =Home!F237 -> 3023510 | H104: =Home!G237 -> Pri | I104: =Home!H237 -> 3023510 | J104: =Home!I237 -> 0
B105: =Home!B238 -> St Agnes RC Primary School | C105: =Home!C238 -> Primary | D105: =Home!D238 -> 0 | F105: =Home!E238 -> 0 | G105: =Home!F238 -> 3023502 | H105: =Home!G238 -> Pri | I105: =Home!H238 -> 3023502 | J105: =Home!I238 -> 0
B106: =Home!B239 -> St Andrew's C E | C106: =Home!C239 -> Primary | D106: =Home!D239 -> 0 | F106: =Home!E239 -> 0 | G106: =Home!F239 -> 3023315 | H106: =Home!G239 -> Pri | I106: =Home!H239 -> 3023315 | J106: =Home!I239 -> 0
B107: =Home!B240 -> St Catherines R C Primary | C107: =Home!C240 -> Primary | D107: =Home!D240 -> 0 | F107: =Home!E240 -> 0 | G107: =Home!F240 -> 3023504 | H107: =Home!G240 -> Pri | I107: =Home!H240 -> 3023504 | J107: =Home!I240 -> 0
B108: =Home!B241 -> St John's CE School N11 | C108: =Home!C241 -> Primary | D108: =Home!D241 -> 0 | F108: =Home!E241 -> 0 | G108: =Home!F241 -> 3023307 | H108: =Home!G241 -> Pri | I108: =Home!H241 -> 3023307 | J108: =Home!I241 -> 0
B109: =Home!B242 -> St Johns CE N20 | C109: =Home!C242 -> Primary | D109: =Home!D242 -> 0 | F109: =Home!E242 -> 0 | G109: =Home!F242 -> 3023309 | H109: =Home!G242 -> Pri | I109: =Home!H242 -> 3023309 | J109: =Home!I242 -> 0
B110: =Home!B243 -> St Joseph's Primary School | C110: =Home!C243 -> Primary | D110: =Home!D243 -> 0 | F110: =Home!E243 -> 0 | G110: =Home!F243 -> 3023509 | H110: =Home!G243 -> Pri | I110: =Home!H243 -> 3023509 | J110: =Home!I243 -> 0
B111: =Home!B244 -> St Mary's C E Primary School N3 | C111: =Home!C244 -> Primary | D111: =Home!D244 -> 0 | F111: =Home!E244 -> 0 | G111: =Home!F244 -> 3023311 | H111: =Home!G244 -> Pri | I111: =Home!H244 -> 3023311 | J111: =Home!I244 -> 0
B112: =Home!B245 -> St Mary's School EN4 | C112: =Home!C245 -> Primary | D112: =Home!D245 -> 0 | F112: =Home!E245 -> 0 | G112: =Home!F245 -> 3023312 | H112: =Home!G245 -> Pri | I112: =Home!H245 -> 3023312 | J112: =Home!I245 -> 0
B113: =Home!B246 -> St Pauls CE Primary, NW7 | C113: =Home!C246 -> Primary | D113: =Home!D246 -> 0 | F113: =Home!E246 -> 0 | G113: =Home!F246 -> 3023314 | H113: =Home!G246 -> Pri | I113: =Home!H246 -> 3023314 | J113: =Home!I246 -> 0
B114: =Home!B247 -> St Paul's School, N11 | C114: =Home!C247 -> Primary | D114: =Home!D247 -> 0 | F114: =Home!E247 -> 0 | G114: =Home!F247 -> 3023313 | H114: =Home!G247 -> Pri | I114: =Home!H247 -> 3023313 | J114: =Home!I247 -> 0
B115: =Home!B248 -> St Vincent's Catholic Primary School | C115: =Home!C248 -> Primary | D115: =Home!D248 -> 0 | F115: =Home!E248 -> 0 | G115: =Home!F248 -> 3023506 | H115: =Home!G248 -> Pri | I115: =Home!H248 -> 3023506 | J115: =Home!I248 -> 0
B116: =Home!B249 -> St Theresa's R.C. Primary School | C116: =Home!C249 -> Primary | D116: =Home!D249 -> 0 | F116: =Home!E249 -> 0 | G116: =Home!F249 -> 3023507 | H116: =Home!G249 -> Pri | I116: =Home!H249 -> 3023507 | J116: =Home!I249 -> 0
B117: =Home!B250 -> Summerside Primary Academy | C117: =Home!C250 -> Primary | D117: =Home!D250 -> Recoupment Academy | F117: =Home!E250 -> 0 | G117: =Home!F250 -> 3022051 | H117: =Home!G250 -> Pri | I117: =Home!H250 -> 3022052 | J117: =Home!I250 -> 0
B118: =Home!B251 -> Sunnyfields Primary School | C118: =Home!C251 -> Primary | D118: =Home!D251 -> 0 | F118: =Home!E251 -> 0 | G118: =Home!F251 -> 3022070 | H118: =Home!G251 -> Pri | I118: =Home!H251 -> 3022070 | J118: =Home!I251 -> 0
B119: =Home!B252 -> Trent C of E Primary School | C119: =Home!C252 -> Primary | D119: =Home!D252 -> 0 | F119: =Home!E252 -> 0 | G119: =Home!F252 -> 3023316 | H119: =Home!G252 -> Pri | I119: =Home!H252 -> 3023316 | J119: =Home!I252 -> 0
B120: =Home!B253 -> Tudor School | C120: =Home!C253 -> Primary | D120: =Home!D253 -> 0 | F120: =Home!E253 -> 0 | G120: =Home!F253 -> 3022055 | H120: =Home!G253 -> Pri | I120: =Home!H253 -> 3022055 | J120: =Home!I253 -> 0
B121: =Home!B254 -> Underhill School | C121: =Home!C254 -> Primary | D121: =Home!D254 -> 0 | F121: =Home!E254 -> 0 | G121: =Home!F254 -> 3022057 | H121: =Home!G254 -> Pri | I121: =Home!H254 -> 3022057 | J121: =Home!I254 -> 0
B122: =Home!B255 -> Watling Park Free School | C122: =Home!C255 -> Primary | D122: =Home!D255 -> Recoupment Academy | F122: =Home!E255 -> 0 | G122: =Home!F255 -> 3022049 | H122: =Home!G255 -> Pri | I122: =Home!H255 -> 3022049 | J122: =Home!I255 -> 0
B123: =Home!B256 -> Wessex Gardens Primary School | C123: =Home!C256 -> Primary | D123: =Home!D256 -> 0 | F123: =Home!E256 -> 0 | G123: =Home!F256 -> 3022076 | H123: =Home!G256 -> Pri | I123: =Home!H256 -> 3022076 | J123: =Home!I256 -> 0
B124: =Home!B257 -> Whitings Hill Primary School | C124: =Home!C257 -> Primary | D124: =Home!D257 -> 0 | F124: =Home!E257 -> 0 | G124: =Home!F257 -> 3022060 | H124: =Home!G257 -> Pri | I124: =Home!H257 -> 3022060 | J124: =Home!I257 -> 0
B125: =Home!B258 -> Woodcroft Primary School | C125: =Home!C258 -> Primary | D125: =Home!D258 -> 0 | F125: =Home!E258 -> 0 | G125: =Home!F258 -> 3023518 | H125: =Home!G258 -> Pri | I125: =Home!H258 -> 3023518 | J125: =Home!I258 -> 0
B126: =Home!B259 -> Woodridge Primary School | C126: =Home!C259 -> Primary | D126: =Home!D259 -> 0 | F126: =Home!E259 -> 0 | G126: =Home!F259 -> 3022054 | H126: =Home!G259 -> Pri | I126: =Home!H259 -> 3022054 | J126: =Home!I259 -> 0
B127: =Home!B260 -> - | C127: =Home!C260 -> Phase | D127: =Home!D260 -> Academy Type | F127: =Home!E260 -> Blank | G127: =Home!F260 -> LAESTAB | H127: =Home!G260 -> X | I127: =Home!H260 -> OldDfe | J127: =Home!I260 -> 0
B128: =Home!B261 -> Northgate | C128: =Home!C261 -> PRU | D128: =Home!D261 -> 0 | F128: =Home!E261 -> 0 | G128: =Home!F261 -> 3021102 | H128: =Home!G261 -> Sec | I128: =Home!H261 -> 3021102 | J128: =Home!I261 -> 0
B129: =Home!B262 -> Pavilion | C129: =Home!C262 -> PRU | D129: =Home!D262 -> 0 | F129: =Home!E262 -> 0 | G129: =Home!F262 -> 3021100 | H129: =Home!G262 -> Sec | I129: =Home!H262 -> 3021100 | J129: =Home!I262 -> 0
B130: =Home!B263 -> - | C130: =Home!C263 -> Phase | D130: =Home!D263 -> Academy Type | F130: =Home!E263 -> Blank | G130: =Home!F263 -> LAESTAB | H130: =Home!G263 -> X | I130: =Home!H263 -> OldDfe | J130: =Home!I263 -> 0
B131: =Home!B264 -> Archer Academy | C131: =Home!C264 -> Secondary | D131: =Home!D264 -> Recoupment Academy | F131: =Home!E264 -> 0 | G131: =Home!F264 -> 3024001 | H131: =Home!G264 -> Sec | I131: =Home!H264 -> 3024001 | J131: =Home!I264 -> 0
B132: =Home!B265 -> Ashmole Academy | C132: =Home!C265 -> Secondary | D132: =Home!D265 -> Recoupment Academy | F132: =Home!E265 -> 0 | G132: =Home!F265 -> 3025406 | H132: =Home!G265 -> Sec | I132: =Home!H265 -> 3025406 | J132: =Home!I265 -> 0
B133: =Home!B266 -> Bishop Douglass Academy | C133: =Home!C266 -> Secondary | D133: =Home!D266 -> Recoupment Academy | F133: =Home!E266 -> 0 | G133: =Home!F266 -> 3025408 | H133: =Home!G266 -> Sec | I133: =Home!H266 -> 3025408 | J133: =Home!I266 -> 0
B134: =Home!B267 -> Christ's College Finchley | C134: =Home!C267 -> Secondary | D134: =Home!D267 -> Recoupment Academy | F134: =Home!E267 -> 0 | G134: =Home!F267 -> 3024211 | H134: =Home!G267 -> Sec | I134: =Home!H267 -> 3024211 | J134: =Home!I267 -> 0
B135: =Home!B268 -> Compton School | C135: =Home!C268 -> Secondary | D135: =Home!D268 -> Recoupment Academy | F135: =Home!E268 -> 0 | G135: =Home!F268 -> 3024215 | H135: =Home!G268 -> Sec | I135: =Home!H268 -> 3024215 | J135: =Home!I268 -> 0
B136: =Home!B269 -> Copthall School | C136: =Home!C269 -> Secondary | D136: =Home!D269 -> Recoupment Academy | F136: =Home!E269 -> 0 | G136: =Home!F269 -> 3024210 | H136: =Home!G269 -> Sec | I136: =Home!H269 -> 3024210 | J136: =Home!I269 -> 0
B137: =Home!B270 -> East Barnet School | C137: =Home!C270 -> Secondary | D137: =Home!D270 -> Recoupment Academy | F137: =Home!E270 -> 0 | G137: =Home!F270 -> 3024212 | H137: =Home!G270 -> Sec | I137: =Home!H270 -> 3024212 | J137: =Home!I270 -> 0
B138: =Home!B271 -> Finchley Catholic High School | C138: =Home!C271 -> Secondary | D138: =Home!D271 -> 0 | F138: =Home!E271 -> 0 | G138: =Home!F271 -> 3025405 | H138: =Home!G271 -> Sec | I138: =Home!H271 -> 3025405 | J138: =Home!I271 -> 0
B139: =Home!B272 -> Friern Barnet School | C139: =Home!C272 -> Secondary | D139: =Home!D272 -> 0 | F139: =Home!E272 -> 0 | G139: =Home!F272 -> 3024003 | H139: =Home!G272 -> Sec | I139: =Home!H272 -> 3024003 | J139: =Home!I272 -> 0
B140: =Home!B273 -> Hasmonean High School | C140: =Home!C273 -> Secondary | D140: =Home!D273 -> Recoupment Academy | F140: =Home!E273 -> 0 | G140: =Home!F273 -> 3025409 | H140: =Home!G273 -> Sec | I140: =Home!H273 -> 3025409 | J140: =Home!I273 -> 0
B141: =Home!B274 -> Hendon School | C141: =Home!C274 -> Secondary | D141: =Home!D274 -> Recoupment Academy | F141: =Home!E274 -> 0 | G141: =Home!F274 -> 3025400 | H141: =Home!G274 -> Sec | I141: =Home!H274 -> 3025400 | J141: =Home!I274 -> 0
B142: =Home!B275 -> Henrietta Barnett School | C142: =Home!C275 -> Secondary | D142: =Home!D275 -> Recoupment Academy | F142: =Home!E275 -> 0 | G142: =Home!F275 -> 3024752 | H142: =Home!G275 -> Sec | I142: =Home!H275 -> 3024752 | J142: =Home!I275 -> 0
B143: =Home!B276 -> JCoSS | C143: =Home!C276 -> Secondary | D143: =Home!D276 -> 0 | F143: =Home!E276 -> 0 | G143: =Home!F276 -> 3025427 | H143: =Home!G276 -> Sec | I143: =Home!H276 -> 3025427 | J143: =Home!I276 -> 0
B144: =Home!B277 -> Menorah High School (Girls) | C144: =Home!C277 -> Secondary | D144: =Home!D277 -> 0 | F144: =Home!E277 -> 0 | G144: =Home!F277 -> 3024004 | H144: =Home!G277 -> Sec | I144: =Home!H277 -> 3024004 | J144: =Home!I277 -> 0
B145: =Home!B278 -> Mill Hill County High School | C145: =Home!C278 -> Secondary | D145: =Home!D278 -> Recoupment Academy | F145: =Home!E278 -> 0 | G145: =Home!F278 -> 3025402 | H145: =Home!G278 -> Sec | I145: =Home!H278 -> 3025402 | J145: =Home!I278 -> 0
B146: =Home!B279 -> Queen Elizabeth's Girls' School | C146: =Home!C279 -> Secondary | D146: =Home!D279 -> Recoupment Academy | F146: =Home!E279 -> 0 | G146: =Home!F279 -> 3024208 | H146: =Home!G279 -> Sec | I146: =Home!H279 -> 3024208 | J146: =Home!I279 -> 0
B147: =Home!B280 -> Queen Elizabeth's School (Boys) | C147: =Home!C280 -> Secondary | D147: =Home!D280 -> Recoupment Academy | F147: =Home!E280 -> 0 | G147: =Home!F280 -> 3025401 | H147: =Home!G280 -> Sec | I147: =Home!H280 -> 3025401 | J147: =Home!I280 -> 0
B148: =Home!B281 -> St Andrew the Apostle Greek Orthodox School | C148: =Home!C281 -> Secondary | D148: =Home!D281 -> Recoupment Academy | F148: =Home!E281 -> 0 | G148: =Home!F281 -> 3024000 | H148: =Home!G281 -> Sec | I148: =Home!H281 -> 3024000 | J148: =Home!I281 -> 0
B149: =Home!B282 -> St Michaels Catholic Grammar School | C149: =Home!C282 -> Secondary | D149: =Home!D282 -> 0 | F149: =Home!E282 -> 0 | G149: =Home!F282 -> 3025404 | H149: =Home!G282 -> Sec | I149: =Home!H282 -> 3025404 | J149: =Home!I282 -> 0
B150: =Home!B283 -> St. James' Catholic High School | C150: =Home!C283 -> Secondary | D150: =Home!D283 -> 0 | F150: =Home!E283 -> 0 | G150: =Home!F283 -> 3025407 | H150: =Home!G283 -> Sec | I150: =Home!H283 -> 3025407 | J150: =Home!I283 -> 0
B151: =Home!B284 -> Totteridge Academy | C151: =Home!C284 -> Secondary | D151: =Home!D284 -> Recoupment Academy | F151: =Home!E284 -> 0 | G151: =Home!F284 -> 3024010 | H151: =Home!G284 -> Sec | I151: =Home!H284 -> 3024010 | J151: =Home!I284 -> 0
B152: =Home!B285 -> Whitefield School | C152: =Home!C285 -> Secondary | D152: =Home!D285 -> Recoupment Academy | F152: =Home!E285 -> 0 | G152: =Home!F285 -> 3024012 | H152: =Home!G285 -> Sec | I152: =Home!H285 -> 3024012 | J152: =Home!I285 -> 0
B153: =Home!B286 -> - | C153: =Home!C286 -> Phase | D153: =Home!D286 -> Academy Type | F153: =Home!E286 -> Blank | G153: =Home!F286 -> LAESTAB | H153: =Home!G286 -> X | I153: =Home!H286 -> OldDfe | J153: =Home!I286 -> 0
B154: =Home!B287 -> St Mary's & St John's CE School | C154: =Home!C287 -> All through | D154: =Home!D287 -> 0 | F154: =Home!E287 -> 0 | G154: =Home!F287 -> 3023521 | H154: =Home!G287 -> AT | I154: =Home!H287 -> 3023521 | J154: =Home!I287 -> 0
B155: =Home!B288 -> London Academy | C155: =Home!C288 -> All through | D155: =Home!D288 -> Recoupment Academy | F155: =Home!E288 -> 0 | G155: =Home!F288 -> 3026905 | H155: =Home!G288 -> AT | I155: =Home!H288 -> 3026905 | J155: =Home!I288 -> 0
B156: =Home!B289 -> Wren Academy | C156: =Home!C289 -> All through | D156: =Home!D289 -> Recoupment Academy | F156: =Home!E289 -> 0 | G156: =Home!F289 -> 3026906 | H156: =Home!G289 -> AT | I156: =Home!H289 -> 3026906 | J156: =Home!I289 -> 0
B157: =Home!B290 -> - | C157: =Home!C290 -> Phase | D157: =Home!D290 -> Academy Type | F157: =Home!E290 -> Blank | G157: =Home!F290 -> LAESTAB | H157: =Home!G290 -> X | I157: =Home!H290 -> OldDfe | J157: =Home!I290 -> 0
B158: =Home!B291 -> Mapledown | C158: =Home!C291 -> Special | D158: =Home!D291 -> 0 | F158: =Home!E291 -> 0 | G158: =Home!F291 -> 3027010 | H158: =Home!G291 -> Sec | I158: =Home!H291 -> 3027010 | J158: =Home!I291 -> 0
B159: =Home!B292 -> Northway | C159: =Home!C292 -> Special | D159: =Home!D292 -> 0 | F159: =Home!E292 -> 0 | G159: =Home!F292 -> 3027005 | H159: =Home!G292 -> Pri | I159: =Home!H292 -> 3027005 | J159: =Home!I292 -> 0
B160: =Home!B293 -> Oakleigh | C160: =Home!C293 -> Special | D160: =Home!D293 -> 0 | F160: =Home!E293 -> 0 | G160: =Home!F293 -> 3027009 | H160: =Home!G293 -> Pri | I160: =Home!H293 -> 3027009 | J160: =Home!I293 -> 0
B161: =Home!B294 -> Oak Lodge Academy | C161: =Home!C294 -> Special | D161: =Home!D294 -> Special Academy | F161: =Home!E294 -> 0 | G161: =Home!F294 -> 3027000 | H161: =Home!G294 -> Sec | I161: =Home!H294 -> 3027000 | J161: =Home!I294 -> 0
B162: =Home!B295 -> Oak Hill School | C162: =Home!C295 -> ARP | D162: =Home!D295 -> ARP Academy | F162: =Home!E295 -> 0 | G162: =Home!F295 -> 3025950 | H162: =Home!G295 -> Sec | I162: =Home!H295 -> 3025950 | J162: =Home!I295 -> 0
B163: =Home!B296 -> 0 | C163: =Home!C296 -> 0 | D163: =Home!D296 -> 0 | F163: =Home!E296 -> 0 | G163: =Home!F296 -> 0 | H163: =Home!G296 -> 0 | I163: =Home!H296 -> 0 | J163: =Home!I296 -> 0
B164: =Home!B297 -> Not used | C164: =Home!C297 -> Phase | D164: =Home!D297 -> Academy Type | F164: =Home!E297 -> Blank | G164: =Home!F297 -> LAESTAB | H164: =Home!G297 -> X | I164: =Home!H297 -> OldDfe | J164: =Home!I297 -> 0
B165: =Home!B298 -> St Joseph's Infants closed 31/3/14 | C165: =Home!C298 -> Primary | D165: =Home!D298 -> 0 | F165: =Home!E298 -> 0 | G165: =Home!F298 -> 3023508 | H165: =Home!G298 -> Pri | I165: =Home!H298 -> 3023508 | J165: =Home!I298 -> 0
B166: =Home!B299 -> Bishop Douglass School | C166: =Home!C299 -> Secondary | D166: =Home!D299 -> 0 | F166: =Home!E299 -> 0 | G166: =Home!F299 -> 3025408 | H166: =Home!G299 -> Sec | I166: =Home!H299 -> 3025408 | J166: =Home!I299 -> 0
B167: =Home!B300 -> Kisharon Inclusive Special Free School | C167: =Home!C300 -> Special | D167: =Home!D300 -> Special Academy | F167: =Home!E300 -> 0 | G167: =Home!F300 -> 3026085 | H167: =Home!G300 -> AT | I167: =Home!H300 -> 3026085 | J167: =Home!I300 -> 0
B168: =Home!B301 -> Oak Lodge | C168: =Home!C301 -> Special | D168: =Home!D301 -> 0 | F168: =Home!E301 -> 0 | G168: =Home!F301 -> 3027000 | H168: =Home!G301 -> Sec | I168: =Home!H301 -> 3027000 | J168: =Home!I301 -> 0
B169: =Home!B302 -> Underhill Junior School - closed | C169: =Home!C302 -> Primary | D169: =Home!D302 -> 0 | F169: =Home!E302 -> 0 | G169: =Home!F302 -> 3022056 | H169: =Home!G302 -> Pri | I169: =Home!H302 -> 3022056 | J169: =Home!I302 -> 0
B170: =Home!B303 -> Claremont Primary School (closed) | C170: =Home!C303 -> Primary | D170: =Home!D303 -> 0 | F170: =Home!E303 -> 0 | G170: =Home!F303 -> 3022999 | H170: =Home!G303 -> Pri | I170: =Home!H303 -> 3022999 | J170: =Home!I303 -> 0
B171: =Home!B304 -> Edgware Junior School - closed | C171: =Home!C304 -> Primary | D171: =Home!D304 -> 0 | F171: =Home!E304 -> 0 | G171: =Home!F304 -> 3022022 | H171: =Home!G304 -> Pri | I171: =Home!H304 -> 3022022 | J171: =Home!I304 -> 0
B172: =Home!B305 -> Menorah Grammar School (Boys) | C172: =Home!C305 -> Secondary | D172: =Home!D305 -> 0 | F172: =Home!E305 -> 0 | G172: =Home!F305 -> 3026089 | H172: =Home!G305 -> Sec | I172: =Home!H305 -> 3026089 | J172: =Home!I305 -> 0
B173: =Home!B306 -> St. Mary's CE High School | C173: =Home!C306 -> Secondary | D173: =Home!D306 -> 0 | F173: =Home!E306 -> 0 | G173: =Home!F306 -> 3025403 | H173: =Home!G306 -> Sec | I173: =Home!H306 -> 3025403 | J173: =Home!I306 -> 0
B174: =Home!B307 -> Summerside Primary School | C174: =Home!C307 -> Primary | D174: =Home!D307 -> 0 | F174: =Home!E307 -> 0 | G174: =Home!F307 -> 3022052 | H174: =Home!G307 -> Pri | I174: =Home!H307 -> 3022052 | J174: =Home!I307 -> 0
B175: =Home!B308 -> Brookhill Nursery | C175: =Home!C308 -> Nursery | D175: =Home!D308 -> 0 | F175: =Home!E308 -> 0 | G175: =Home!F308 -> 3021000 | H175: =Home!G308 -> X | I175: =Home!H308 -> 3021000 | J175: =Home!I308 -> 0
B176: =Home!B309 -> Hampden Way Nursery | C176: =Home!C309 -> Nursery | D176: =Home!D309 -> 0 | F176: =Home!E309 -> 0 | G176: =Home!F309 -> 3021001 | H176: =Home!G309 -> X | I176: =Home!H309 -> 3021001 | J176: =Home!I309 -> 0
B177: =Home!B310 -> St Margaret's Nursery | C177: =Home!C310 -> Nursery | D177: =Home!D310 -> 0 | F177: =Home!E310 -> 0 | G177: =Home!F310 -> 3021003 | H177: =Home!G310 -> X | I177: =Home!H310 -> 3021003 | J177: =Home!I310 -> 0
B178: =Home!B311 -> 0 | C178: =Home!C311 -> 0 | D178: =Home!D311 -> 0 | F178: =Home!E311 -> 0 | G178: =Home!F311 -> 0 | H178: =Home!G311 -> 0 | I178: =Home!H311 -> 0 | J178: =Home!I311 -> 0
B179: =Home!B312 -> 0 | C179: =Home!C312 -> 0 | D179: =Home!D312 -> 0 | F179: =Home!E312 -> 0 | G179: =Home!F312 -> 0 | H179: =Home!G312 -> 0 | I179: =Home!H312 -> 0 | J179: =Home!I312 -> 0
B180: =Home!B313 -> 0 | C180: =Home!C313 -> 0 | D180: =Home!D313 -> 0 | F180: =Home!E313 -> 0 | G180: =Home!F313 -> 0 | H180: =Home!G313 -> 0 | I180: =Home!H313 -> 0 | J180: =Home!I313 -> 0
B181: =Home!B314 -> 0 | C181: =Home!C314 -> 0 | D181: =Home!D314 -> 0 | F181: =Home!E314 -> 0 | G181: =Home!F314 -> 0 | H181: =Home!G314 -> 0 | I181: =Home!H314 -> 0 | J181: =Home!I314 -> 0
B182: =Home!B315 -> 0 | C182: =Home!C315 -> 0 | D182: =Home!D315 -> 0 | F182: =Home!E315 -> 0 | G182: =Home!F315 -> 0 | H182: =Home!G315 -> 0 | I182: =Home!H315 -> 0 | J182: =Home!I315 -> 0
B183: =Home!B316 -> 0 | C183: =Home!C316 -> 0 | D183: =Home!D316 -> 0 | F183: =Home!E316 -> 0 | G183: =Home!F316 -> 0 | H183: =Home!G316 -> 0 | I183: =Home!H316 -> 0 | J183: =Home!I316 -> 0
B184: =Home!B317 -> 0 | C184: =Home!C317 -> 0 | D184: =Home!D317 -> 0 | F184: =Home!E317 -> 0 | G184: =Home!F317 -> 0 | H184: =Home!G317 -> 0 | I184: =Home!H317 -> 0 | J184: =Home!I317 -> 0
B185: =Home!B318 -> 0 | C185: =Home!C318 -> 0 | D185: =Home!D318 -> 0 | F185: =Home!E318 -> 0 | G185: =Home!F318 -> 0 | H185: =Home!G318 -> 0 | I185: =Home!H318 -> 0 | J185: =Home!I318 -> 0
B186: =Home!B319 -> 0 | C186: =Home!C319 -> 0 | D186: =Home!D319 -> 0 | F186: =Home!E319 -> 0 | G186: =Home!F319 -> 0 | H186: =Home!G319 -> 0 | I186: =Home!H319 -> 0 | J186: =Home!I319 -> 0
B187: =Home!B320 -> 0 | C187: =Home!C320 -> 0 | D187: =Home!D320 -> 0 | F187: =Home!E320 -> 0 | G187: =Home!F320 -> 0 | H187: =Home!G320 -> 0 | I187: =Home!H320 -> 0 | J187: =Home!I320 -> 0

Sheet News
C3: Released | D3: =Home!M14 -> 2018-06-01 | F3: =Home!M12 -> Barnet School Funding Allocation April 2018-March 2019 - May Adjustments
C4: Printed | D4: =Home!M15 -> 2018-06-01T10:54:13 | F4: News
D5: =Version -> Version 3.0
C7: For queries please contact | F7: =HYPERLINK("#choose!d6", "Choose a school") -> Choose a school
C8: schoolfunding@barnet.gov.uk
C11: Version (date) | D11: Subject | E11: Link | F11: Details of change
C12: V3.0 (30/05/2018) | D12: BEYA Nursery schools | E12: =HYPERLINK("#Choose!D6","Choose") -> Choose | F12: Funding for Brookhill, Hampden Way and St Margaret's nursery schools now shown as BEYA in the school dropdown list.
C13: V3.0 (30/05/2018) | D13: High Needs Top-Ups | E13: =HYPERLINK(D12,"TopUps") -> TopUps | F13: Revised top-up allocations based on actual summer pupil numbers. TopUps report shows (anonymised) pupil level funding.
C14: V3.0 (30/05/2018) | D14: NNDR | E14: =HYPERLINK("#Home!j21","Home") -> Home | F14: Adjustments according to latest bills.
C15: V2.0 (24/04/2018) | D15: High Needs Place Funding | E15: =HYPERLINK("#HighNeeds!j21","HighNeeds") -> HighNeeds | F15: Adjustments to Northway and Pavilion's funding.
C16: V2.0 (24/04/2018) | D16: Post-16 Funding | E16: =HYPERLINK("#SixthForm!j21","SixthForm") -> SixthForm | F16: Adjustments based on latest allocations for academic year 2018/19 from the ESFA.
C17: V2.0 (24/04/2018) | D17: Diseconomies Funding | E17: =HYPERLINK("#Growth!j21","Growth") -> Growth | F17: Diseconomy allocation for SMSJ.
C18: V2.0 (24/04/2018) | D18: NNDR | E18: =HYPERLINK("#Home!j21","Home") -> Home | F18: Adjustments according to latest bills.
C20: Commentary on the School Funding Allocations April 2018 – March 2019 (Version 1.0: 21st February 2018)
C21: NB: Funding sheets issued in February 2018 are a mixture of final allocations and estimates.
C22: Information is issued for all schools and academies, but academies should note that the funding in their General Annual Grant for the financial year September 2018 – August 2019 may vary from the estimates provided by Barnet depending on the funding agreement with the Education Funding Agency (EFA).
C23: Updated allocations | D23: We will issue updated allocations periodically throughout the year. The dates will vary but the following is a rough guide: | F23: April 2018 Post 16 allocations
F24: July 2018 Pupil Premium, high needs top-ups, Early Years, growth, NNDR, UIFSM
F25: October 2018 PE grant, NNDR
F26: December 2018 Early Years, high needs top-ups
F27: February 2019 Early Years, high needs top-ups, NNDR, Trade Union support
C29: Budget shares – for mainstream pupils, Reception to Year 11 | D29: The formula funding rates used for 2018/19 are the National Funding Formula rates, which are lower than the 2017/18 factor rates used in Barnet, but schools are protected by a 0% minimum funding guarantee to ensure the per pupil MFG funding is no less than received in 2017/18. | F29: 1. Minimum Funding Guarantee - schools have been protected to ensure that the funding per pupil has not reduced from the 2017/18 allocation.
F30: 2. Capping system – schools where the per pupil funding has risen since last year now keep up to 0.24% of the increase.
F31: 3. IDACI (Income Deprivation Affecting Children Index) – the National Funding Formula funds IDACI bands A to F for all schools
F32: 4. Prior Attainment - this is a factor used in the National Funding Formula but not used in the local formula previously.
F33: 5. Lump sum - this is lower in the National Funding Formula than was applied in Barnet previously, but the reduction has been protected within the Minimum Funding Guarantee calculation.
D34: 2018/19 NNDR | F34: NNDR is funded based on 2017/18 figures. Maintained schools are required to submit revised NNDR bills if the liability is not as shown. Academies claim NNDR adjustments via the ESFA.
D35: Other than the NNDR mentioned above, budget share allocations are final for the year.
C36: High Needs (Statements / EHCPs, Special Schools, PRUs, Additional Resourced Provision) | D36: Place funding for special schools and PRUs remains at £10,000 per annum as required by the government. | F36: Top-up funding rates for special schools and PRUs remain at 2017/18 levels.
D40: NEW: Place funding for ARPs is now £6,000 per occupied place per annum as required by the government. Unoccupied places are funded at £10,000 per place per annum. ARP pupils now receive all elements of formula funding, whereas they were excluded from this in 2017/18. | F40: Top-up funding rates for ARPs have been adjusted to take account of the additional amount received through the funding formula to ensure the total funding per ARP pupil remains the same as received in 2017/18.
D44: To calculate initial estimates of high needs top-ups we have assumed that the number of pupils at each band at each school remains the same as in the Spring term 2018. We do not try to predict leavers (e.g. from Year 6) since in many cases leavers will be replaced by a new admission. In the summer term we will replace the band estimates with allocations for individual pupils and these will be updated in the autumn and spring terms for admissions and leavers.
D46: Each high needs pupil has a unique “LA Ref” number which is used by the SEN team and also allows us to issue anonymous funding reports for each school. Please ensure a list of “LA Ref” numbers is maintained in school so that the funding reports can be checked for accuracy throughout the year.
C47: Post 16 allocations | D47: Sixth form learner funding for the 8 month period August 2018– March 2019 has not yet been released by the EFA. In the meantime we have used the Academic Year (August 2017-July 2018) as an estimate for secondary schools where known. We do not have information about funding for academy 6th forms. Special school 6th form allocations include place funding for Years 12, 13 and 14 instead of an allocation from the post 16 funding formula.
C48: Early Years National Funding Formula (EYNFF) | D48: All nursery providers will receive the same hourly base rate of £5.17, together with a deprivation supplement based on the IDACI score of the child. The calculation for 2018/19 is: Free entitlement hours per child * £5.17 Free entitlement hours per child * child level IDACI score * £1.53 deprivation supplement. Any eligible children receiving additional hours under the ‘working parent’ 30 hour entitlement will be funded using exactly the same EYNFF formula. We have estimated the take-up of the Free Entitlement for Early Education for 3 and 4 year olds based on the hours funded in 2017/18.
D51: Funding for two year olds is not included in the funding sheets. Schools with eligible two year olds should continue to claim through the Early Years team (earlyyears@barnet.gov.uk)
C52: Grants | D52: Grant allocations are calculated by the EFA and paid by the local authority to maintained schools. Academies receive the money directly from the EFA. VA schools also receive their Devolved Formula Capital funding directly from the EFA. | F52: 1. Devolved Formula Capital (DFC): this has been estimated using the same rates as 2017/18. These will be firmed up later in the year.
F53: 2. Universal Infant Free School Meals (UIFSM): estimates are based on allocations for 2017/18. No estimates have been attempted for growth or reduction in infant pupil numbers. We should have more accurate allocations in the summer term.
F54: 3. PE Grant: we have not received confirmation that this grant will continue into the academic year 2018/19 so at present are only paying the amount already announced for the summer term 2018.
F55: 4. No estimates have been made for any other grants that some schools may receive.
C56: Pupil Premium | D56: The EFA normally announces the Pupil Premium in the summer, so allocations have been estimated. There are 5 elements to the Pupil Premium: | F56: 1. Free School Meals (Ever 6) – estimates the same as 2017/18
F57: 2. Service Children – estimates the same as 2017/18
F58: 3. Post LAC – i.e. children adopted from care – estimates the same as 2017/18
F59: 4. Early Years Pupil Premium – no estimates until we receive the termly census data
F60: 5. Looked After Children – no estimates as allocations are decided by the Virtual School
D61: Please note that once the pupil premium has been announced later this year, the Key to Success website will show the list of pupils on the January 2018 census which have attracted funding. No adjustments are made for in-year joiners or leavers.
C63: Growth: planned increase in pupil numbers | D63: Mainstream schools opening whole new year groups in September 2018 have been funded for the extra pupils through the main funding formula, pro rata for the 7 months from September 2018 to March 2019. These allocations are final.
D64: Growth funding rates are the same as 2017/18. | F64: 1. Bulge classes
D65: Allocations will change if current plans for new classes are revised over the next few months. | F65: 2. Permanent expansions
D66: All other growth funding is provided as a lump sum. | F66: 3. Protection for bulge classes that have less than 22 pupils (1 or 2 form entry primaries only)
F67: 4. Diseconomies of scale for new schools opened to meet basic need which do not have all year groups open.
F68: 5. Academies only – summer term expansion funding where lump sum was paid in the previous financial year

Sheet Home
A1: =CELL("filename",C1) -> T:\School Funding\Cycle 10 - 2018-19\May Adjustments\[2018-19 MayReport v3.0 @ 30.05.18 WIP.xlsm]Home
A2: 1 | B2: 2 | C2: 3 | D2: 4 | E2: 5 | F2: 6 | H2: 7 | I2: 8 | J2: 9 | K2: 10 | L2: 11 | M2: 12 | N2: 13 | O2: 14 | P2: 15 | Q2: 16 | S2: 17 | T2: 18 | U2: 19 | V2: 20 | W2: 21 | X2: 22 | Y2: 23 | Z2: 24 | AA2: 25 | AB2: 26 | AC2: 27 | AD2: 28 | AE2: 29 | AF2: 31 | AG2: 32 | AI2: 34 | AJ2: 35 | AK2: 36 | AL2: 37 | AM2: 38 | AN2: 39 | AO2: 40 | AP2: 41 | AQ2: 42 | AR2: 43 | AS2: 44 | AT2: 45 | AU2: 46 | AV2: 47 | AW2: 48 | AX2: 49 | AY2: 50 | AZ2: 51 | BA2: 52 | BB2: 53 | BC2: 54 | BD2: 55 | BE2: 56 | BF2: 57
A3: OLDLAESTAB: | B3: =VLOOKUP(DFENO,$A$165:$H$300,8,0) ->  | I3: ERROR CHECK | J3: TOTAL | K3: 17/18 Original | L3: =L30&L31 -> 2017/18EOY | M3: spare | N3: spare | O3: spare | P3: spare | Q3: Original | R3: Apr | S3: May | T3: Jun | U3: Jul | V3: Aug | W3: Sep | X3: Oct | Y3: Nov | Z3: Dec | AA3: Jan | AB3: Feb | AC3: Mar | AD3: Total
A4: Total Errors: | B4: =$J$7 ->  | I4: CurrentSheetTotal | J4: blank | K4: =K33 -> 0 | L4: =L33 -> 0 | Q4: =Q33 -> 0 | R4: =R33 -> 0 | S4: =S33 -> 0 | T4: 0 | U4: 0 | V4: 0 | W4: 0 | X4: 0 | Y4: 0 | Z4: 0 | AA4: 0 | AB4: 0 | AC4: 0 | AD4: 0
I5: TRANS | J5: blank | K5: =IF(X21=0,0,IF(T21="oldLAESTAB",0,IF(ISERROR(VLOOKUP(OLDLAESTAB,'1718OriginalFunding'!F:G,2,0)),0,VLOOKUP(OLDLAESTAB,'1718OriginalFunding'!F:G,2,0)))) ->  | L5: =SUMIF('EOY1718'!A:A,DFENO,'EOY1718'!D:D) -> 0 | Q5: =SUMIF(TRANS!$AH:$AH,Q31&DFENO,TRANS!$S:$S) -> 0 | R5: =SUMIF(TRANS!$AH:$AH,R31&DFENO,TRANS!$S:$S) -> 0 | S5: =SUMIF(TRANS!$AH:$AH,S31&DFENO,TRANS!$S:$S) -> 0 | T5: =SUMIF(TRANS!$AH:$AH,T31&DFENO,TRANS!$S:$S) -> 0 | U5: =SUMIF(TRANS!$AH:$AH,U31&DFENO,TRANS!$S:$S) -> 0 | V5: =SUMIF(TRANS!$AH:$AH,V31&DFENO,TRANS!$S:$S) -> 0 | W5: =SUMIF(TRANS!$AH:$AH,W31&DFENO,TRANS!$S:$S) -> 0 | X5: =SUMIF(TRANS!$AH:$AH,X31&DFENO,TRANS!$S:$S) -> 0 | Y5: =SUMIF(TRANS!$AH:$AH,Y31&DFENO,TRANS!$S:$S) -> 0 | Z5: =SUMIF(TRANS!$AH:$AH,Z31&DFENO,TRANS!$S:$S) -> 0 | AA5: =SUMIF(TRANS!$AH:$AH,AA31&DFENO,TRANS!$S:$S) -> 0 | AB5: =SUMIF(TRANS!$AH:$AH,AB31&DFENO,TRANS!$S:$S) -> 0 | AC5: =SUMIF(TRANS!$AH:$AH,AC31&DFENO,TRANS!$S:$S) -> 0 | AD5: =SUMIF(TRANS!E:E,DFENO,TRANS!S:S) -> 0
I6: Subsheet | J6: blank | K6: =K4 -> 0 | L6: =L4 -> 0 | Q6: =Q4 -> 0 | R6: =R4 -> 0 | S6: =S4 -> 0 | T6: 0 | U6: 0 | V6: 0 | W6: 0 | X6: 0 | Y6: 0 | Z6: 0 | AA6: 0 | AB6: 0 | AC6: 0 | AD6: 0
I7: =IF(J7>0,"Errors","No Errors") ->  | J7: =SUM(K7:AD7) ->  | K7: =IF(ROUND(SUM(K4:K6)/3,0)=ROUND(K4,0),0,1) ->  | L7: =IF(ROUND(SUM(L4:L6)/3,0)=ROUND(L4,0),0,1) -> 0 | M7: 0 | N7: 0 | O7: 0 | P7: 0 | Q7: 0 | S7: 0 | T7: 0 | U7: 0 | V7: 0 | W7: 0 | X7: 0 | Y7: 0 | Z7: 0 | AA7: 0 | AB7: 0 | AC7: 0 | AD7: 0
I8: Difference | J8: =ROUND(SUM(K8:AD8),1) ->  | K8: =K5-K4 ->  | L8: =L5-L4 -> 0 | M8: =M5-M4 -> 0 | N8: 0 | O8: 0 | P8: 0 | Q8: 0 | S8: 0 | T8: 0 | U8: 0 | V8: 0 | W8: 0 | X8: 0 | Y8: 0 | Z8: 0 | AA8: 0 | AB8: 0 | AC8: 0 | AD8: 0
K12: =$J$7 ->  | M12: Barnet School Funding Allocation April 2018-March 2019 - May Adjustments
M14: 2018-06-01 | N14: Released | O14: Home | AC14: =HYPERLINK("#Choose!d10","Choose another school") -> Choose another school | AD14: =HYPERLINK("#News!f4","Check News") -> Check News
M15: =NOW() -> 2018-06-01T10:54:13 | N15: Printed
M16: Version 3.0
M17: For queries please contact | O17: =AD33 -> 0
M18: schoolfunding@barnet.gov.uk
AC19: =IF(AH19=0,"",AG19) ->  | AD19: =IF(AH28=0,"",AG28) -> 
B20: Sector | C20: Option | AC20: =IF(AH20=0,"",AG20) ->  | AD20: =IF(AH30=0,"",AG30) -> 
B21: Nursery | C21: B | K21: =IF(Choose!D6="Please choose a school","Please go to the Choose tab",Choose!D6) -> Please go to the Choose tab | S21: DfENo | T21: =VLOOKUP(K21,$B$165:$F$438,5,0) ->  | W21: Sector | X21: =VLOOKUP(DFENO,Schools!$B:$R,3,0) ->  | AC21: =AD33 -> 0
B22: CC | C22: B | S22: Vendor# | T22: =VLOOKUP(DFENO,Schools!$B:$R,11,0) ->  | W22: Phase | X22: =VLOOKUP(DFENO,Schools!$B:$Z,20,0) -> 
B23: Phase | C23: E | S23: Cost Centre | T23: =IF(VLOOKUP(DFENO,Schools!$B:$R,12,0)="Academy","None",VLOOKUP(DFENO,Schools!$B:$R,12,0)) ->  | W23: Type | X23: =VLOOKUP(DFENO,Schools!$B:$R,17,0) -> 
B24: Primary | C24: C | S24: Pay Option | T24: =IF(VLOOKUP(DFENO,Schools!$B:$R,16,0)="Academy","EFA",VLOOKUP(DFENO,Schools!$B:$R,16,0)) ->  | W24: 6th Form | X24: =VLOOKUP(DFENO,Schools!$B:$S,18,0) -> 
B25: Secondary | C25: D | S25: ARP | T25: =VLOOKUP(DFENO,Schools!$B:$Z,21,0) ->  | W25: Nursery | X25: =VLOOKUP(DFENO,Schools!$B:$T,19,0) -> 
B26: All through | C26: E
B27: ARP | C27: G
B28: Special | C28: F
B29: PRU | C29: H | K29: 2017/18 Funding | Q29: 2018/19 Funding
K30: 2017/18 | L30: =K30 -> 2017/18 | M30: CFR | Q30: Apr 18 - Mar 19 | R30: Adjustment | S30: Adjustment | T30: Adjustment | U30: Adjustment | V30: Adjustment | W30: Adjustment | X30: Adjustment | Y30: =X30 -> Adjustment | Z30: =Y30 -> Adjustment | AA30: =Z30 -> Adjustment | AB30: =AA30 -> Adjustment | AC30: Adjustment
A31: Area | B31: Nursery | C31: Primary | D31: Secondary | E31: Allthrough | F31: Special | G31: ARP | H31: PRU | I31: This School | K31: Original | L31: EOY | M31: Code | N31: Funding Element | Q31: Original | R31: Apr | S31: May | T31: Jun | U31: Jul | V31: Aug | W31: Sep | X31: Oct | Y31: Nov | Z31: Dec | AA31: Jan | AB31: Feb | AC31: Mar | AD31: TOTAL
K32: =IF(DFENO=3022999,"NB Includes primary school","") -> 
K33: =K68+K80+K93+K114+K127+K141+K161+K151 -> 0 | L33: =L68+L80+L93+L114+L127+L141+L161+L151 -> 0 | N33: ="Total funding for "&K21 -> Total funding for Please go to the Choose tab | P33: Status | Q33: =Q68+Q80+Q93+Q114+Q127+Q141+Q161+Q151 -> 0 | R33: 0 | S33: 0 | T33: 0 | U33: 0 | V33: 0 | W33: 0 | X33: 0 | Y33: 0 | Z33: 0 | AA33: 0 | AB33: 0 | AC33: 0 | AD33: 0
A35: Area | B35: Early Years | C35: Budget Shares | D35: Budget Shares | E35: Budget Shares | F35: High Needs | G35: High Needs | H35: High Needs | I35: =INDIRECT(VLOOKUP($X$21,$B$21:$C$29,2,0)&ROW()) ->  | N35: =I35 ->  | O35: =IF($N35="Not used","","For more detail please go to the "&VLOOKUP($N35,$J$168:$K$185,2,0)&" tab") -> 
A36: =VLOOKUP(I36,Rates!A:L,2,0) ->  | B36: HOURS | C36: Pri AWPU | D36: Sec AWPU | E36: Pri AWPU | F36: SPECIALNURBASE | G36: ARPRY11BASE | H36: PRURY11BASE | I36: =INDIRECT(VLOOKUP($X$21,$B$21:$C$29,2,0)&ROW()) ->  | K36: =IF(ISERROR(VLOOKUP("Original"&OLDLAESTAB&I36,'1718OriginalFunding'!C:D,2,0)),0,VLOOKUP("Original"&OLDLAESTAB&I36,'1718OriginalFunding'!C:D,2,0)) -> 0 | L36: =SUMIF('EOY1718'!E:E,DFENO&Home!I36,'EOY1718'!D:D) -> 0 | M36: =VLOOKUP(I36,Rates!A:L,8,0) ->  | N36: =IF(ISERROR(VLOOKUP(I36,Rates!A:L,3,0)),"",VLOOKUP(I36,Rates!A:L,3,0)) ->  | P36: =VLOOKUP(I36,Rates!A:AO,41,0) ->  | Q36: =SUMIF(TRANS!$BQ:$BQ,Q$3&DFENO&Home!$I36,TRANS!$S:$S) -> 0 | R36: =SUMIF(TRANS!$BQ:$BQ,R$3&DFENO&Home!$I36,TRANS!$S:$S) -> 0 | S36: =SUMIF(TRANS!$BQ:$BQ,S$3&DFENO&Home!$I36,TRANS!$S:$S) -> 0 | T36: =SUMIF(TRANS!$BQ:$BQ,T$3&DFENO&Home!$I36,TRANS!$S:$S) -> 0 | U36: =SUMIF(TRANS!$BQ:$BQ,U$3&DFENO&Home!$I36,TRANS!$S:$S) -> 0 | V36: =SUMIF(TRANS!$BQ:$BQ,V$3&DFENO&Home!$I36,TRANS!$S:$S) -> 0 | W36: =SUMIF(TRANS!$BQ:$BQ,W$3&DFENO&Home!$I36,TRANS!$S:$S) -> 0 | X36: =SUMIF(TRANS!$BQ:$BQ,X$3&DFENO&Home!$I36,TRANS!$S:$S) -> 0 | Y36: =SUMIF(TRANS!$BQ:$BQ,Y$3&DFENO&Home!$I36,TRANS!$S:$S) -> 0 | Z36: =SUMIF(TRANS!$BQ:$BQ,Z$3&DFENO&Home!$I36,TRANS!$S:$S) -> 0 | AA36: =SUMIF(TRANS!$BQ:$BQ,AA$3&DFENO&Home!$I36,TRANS!$S:$S) -> 0 | AB36: =SUMIF(TRANS!$BQ:$BQ,AB$3&DFENO&Home!$I36,TRANS!$S:$S) -> 0 | AC36: =SUMIF(TRANS!$BQ:$BQ,AC$3&DFENO&Home!$I36,TRANS!$S:$S) -> 0 | AD36: =SUM(Q36:AC36) -> 0 | AG36: =IF(ISERROR(VLOOKUP(I36,Rates!$A:$AP,42,0)),"",VLOOKUP(I36,Rates!$A:$AP,42,0)) -> 
A37: =VLOOKUP(I37,Rates!A:L,2,0) ->  | B37: BASIC | C37: Pri FSM | D37: Sec AWPU KS3 | E37: Sec AWPU | F37: SPECIALRY11BASE | G37: ARPTOPUP | H37: HOSPITAL | K37: =IF(ISERROR(VLOOKUP("Original"&OLDLAESTAB&I37,'1718OriginalFunding'!C:D,2,0)),0,VLOOKUP("Original"&OLDLAESTAB&I37,'1718OriginalFunding'!C:D,2,0)) -> 0 | L37: =SUMIF('EOY1718'!E:E,DFENO&Home!I37,'EOY1718'!D:D) -> 0 | M37: =VLOOKUP(I37,Rates!A:L,8,0) ->  | N37: =IF(ISERROR(VLOOKUP(I37,Rates!A:L,3,0)),"",VLOOKUP(I37,Rates!A:L,3,0)) ->  | P37: =VLOOKUP(I37,Rates!A:AO,41,0) ->  | Q37: =SUMIF(TRANS!$BQ:$BQ,Q$3&DFENO&Home!$I37,TRANS!$S:$S) -> 0 | R37: =SUMIF(TRANS!$BQ:$BQ,R$3&DFENO&Home!$I37,TRANS!$S:$S) -> 0 | S37: =SUMIF(TRANS!$BQ:$BQ,S$3&DFENO&Home!$I37,TRANS!$S:$S) -> 0 | T37: =SUMIF(TRANS!$BQ:$BQ,T$3&DFENO&Home!$I37,TRANS!$S:$S) -> 0 | U37: =SUMIF(TRANS!$BQ:$BQ,U$3&DFENO&Home!$I37,TRANS!$S:$S) -> 0 | V37: =SUMIF(TRANS!$BQ:$BQ,V$3&DFENO&Home!$I37,TRANS!$S:$S) -> 0 | W37: =SUMIF(TRANS!$BQ:$BQ,W$3&DFENO&Home!$I37,TRANS!$S:$S) -> 0 | X37: =SUMIF(TRANS!$BQ:$BQ,X$3&DFENO&Home!$I37,TRANS!$S:$S) -> 0 | Y37: =SUMIF(TRANS!$BQ:$BQ,Y$3&DFENO&Home!$I37,TRANS!$S:$S) -> 0 | Z37: =SUMIF(TRANS!$BQ:$BQ,Z$3&DFENO&Home!$I37,TRANS!$S:$S) -> 0 | AA37: =SUMIF(TRANS!$BQ:$BQ,AA$3&DFENO&Home!$I37,TRANS!$S:$S) -> 0 | AB37: =SUMIF(TRANS!$BQ:$BQ,AB$3&DFENO&Home!$I37,TRANS!$S:$S) -> 0 | AC37: =SUMIF(TRANS!$BQ:$BQ,AC$3&DFENO&Home!$I37,TRANS!$S:$S) -> 0 | AD37: =SUM(Q37:AC37) -> 0 | AG37: =IF(ISERROR(VLOOKUP(I37,Rates!$A:$AP,42,0)),"",VLOOKUP(I37,Rates!$A:$AP,42,0)) -> 
A38: =VLOOKUP(I38,Rates!A:L,2,0) ->  | B38: FLEX | C38: Pri FSM6 | D38: Sec AWPU KS4 | E38: Sec AWPU KS3 | F38: SPECIALP16BASE | G38: ARPGuaranteed | H38: STMTPY | K38: =IF(ISERROR(VLOOKUP("Original"&OLDLAESTAB&I38,'1718OriginalFunding'!C:D,2,0)),0,VLOOKUP("Original"&OLDLAESTAB&I38,'1718OriginalFunding'!C:D,2,0)) -> 0 | L38: =SUMIF('EOY1718'!E:E,DFENO&Home!I38,'EOY1718'!D:D) -> 0 | M38: =VLOOKUP(I38,Rates!A:L,8,0) ->  | N38: =IF(ISERROR(VLOOKUP(I38,Rates!A:L,3,0)),"",VLOOKUP(I38,Rates!A:L,3,0)) ->  | P38: =VLOOKUP(I38,Rates!A:AO,41,0) ->  | Q38: =SUMIF(TRANS!$BQ:$BQ,Q$3&DFENO&Home!$I38,TRANS!$S:$S) -> 0 | R38: =SUMIF(TRANS!$BQ:$BQ,R$3&DFENO&Home!$I38,TRANS!$S:$S) -> 0 | S38: =SUMIF(TRANS!$BQ:$BQ,S$3&DFENO&Home!$I38,TRANS!$S:$S) -> 0 | T38: =SUMIF(TRANS!$BQ:$BQ,T$3&DFENO&Home!$I38,TRANS!$S:$S) -> 0 | U38: =SUMIF(TRANS!$BQ:$BQ,U$3&DFENO&Home!$I38,TRANS!$S:$S) -> 0 | V38: =SUMIF(TRANS!$BQ:$BQ,V$3&DFENO&Home!$I38,TRANS!$S:$S) -> 0 | W38: =SUMIF(TRANS!$BQ:$BQ,W$3&DFENO&Home!$I38,TRANS!$S:$S) -> 0 | X38: =SUMIF(TRANS!$BQ:$BQ,X$3&DFENO&Home!$I38,TRANS!$S:$S) -> 0 | Y38: =SUMIF(TRANS!$BQ:$BQ,Y$3&DFENO&Home!$I38,TRANS!$S:$S) -> 0 | Z38: =SUMIF(TRANS!$BQ:$BQ,Z$3&DFENO&Home!$I38,TRANS!$S:$S) -> 0 | AA38: =SUMIF(TRANS!$BQ:$BQ,AA$3&DFENO&Home!$I38,TRANS!$S:$S) -> 0 | AB38: =SUMIF(TRANS!$BQ:$BQ,AB$3&DFENO&Home!$I38,TRANS!$S:$S) -> 0 | AC38: =SUMIF(TRANS!$BQ:$BQ,AC$3&DFENO&Home!$I38,TRANS!$S:$S) -> 0 | AD38: 0 | AG38: =IF(ISERROR(VLOOKUP(I38,Rates!$A:$AP,42,0)),"",VLOOKUP(I38,Rates!$A:$AP,42,0)) -> 
A39: =VLOOKUP(I39,Rates!A:L,2,0) ->  | B39: IDACI | C39: Pri IDACI A | D39: Sec FSM | E39: Sec AWPU KS4 | F39: NURSPECTOPUP | G39: blank | H39: STMTTOPUPSEC | K39: =IF(ISERROR(VLOOKUP("Original"&OLDLAESTAB&I39,'1718OriginalFunding'!C:D,2,0)),0,VLOOKUP("Original"&OLDLAESTAB&I39,'1718OriginalFunding'!C:D,2,0)) -> 0 | L39: =SUMIF('EOY1718'!E:E,DFENO&Home!I39,'EOY1718'!D:D) -> 0 | M39: =VLOOKUP(I39,Rates!A:L,8,0) ->  | N39: =IF(ISERROR(VLOOKUP(I39,Rates!A:L,3,0)),"",VLOOKUP(I39,Rates!A:L,3,0)) ->  | P39: =VLOOKUP(I39,Rates!A:AO,41,0) ->  | Q39: =SUMIF(TRANS!$BQ:$BQ,Q$3&DFENO&Home!$I39,TRANS!$S:$S) -> 0 | R39: =SUMIF(TRANS!$BQ:$BQ,R$3&DFENO&Home!$I39,TRANS!$S:$S) -> 0 | S39: =SUMIF(TRANS!$BQ:$BQ,S$3&DFENO&Home!$I39,TRANS!$S:$S) -> 0 | T39: =SUMIF(TRANS!$BQ:$BQ,T$3&DFENO&Home!$I39,TRANS!$S:$S) -> 0 | U39: =SUMIF(TRANS!$BQ:$BQ,U$3&DFENO&Home!$I39,TRANS!$S:$S) -> 0 | V39: =SUMIF(TRANS!$BQ:$BQ,V$3&DFENO&Home!$I39,TRANS!$S:$S) -> 0 | W39: =SUMIF(TRANS!$BQ:$BQ,W$3&DFENO&Home!$I39,TRANS!$S:$S) -> 0 | X39: =SUMIF(TRANS!$BQ:$BQ,X$3&DFENO&Home!$I39,TRANS!$S:$S) -> 0 | Y39: =SUMIF(TRANS!$BQ:$BQ,Y$3&DFENO&Home!$I39,TRANS!$S:$S) -> 0 | Z39: =SUMIF(TRANS!$BQ:$BQ,Z$3&DFENO&Home!$I39,TRANS!$S:$S) -> 0 | AA39: =SUMIF(TRANS!$BQ:$BQ,AA$3&DFENO&Home!$I39,TRANS!$S:$S) -> 0 | AB39: =SUMIF(TRANS!$BQ:$BQ,AB$3&DFENO&Home!$I39,TRANS!$S:$S) -> 0 | AC39: =SUMIF(TRANS!$BQ:$BQ,AC$3&DFENO&Home!$I39,TRANS!$S:$S) -> 0 | AD39: 0 | AG39: =IF(ISERROR(VLOOKUP(I39,Rates!$A:$AP,42,0)),"",VLOOKUP(I39,Rates!$A:$AP,42,0)) -> 
A40: =VLOOKUP(I40,Rates!A:L,2,0) ->  | B40: EYPP | C40: Pri IDACI B | D40: Sec FSM6 | E40: Pri FSM | F40: SPECIALTOPUP | G40: blank | H40: EXCLUSIONS | K40: =IF(ISERROR(VLOOKUP("Original"&OLDLAESTAB&I40,'1718OriginalFunding'!C:D,2,0)),0,VLOOKUP("Original"&OLDLAESTAB&I40,'1718OriginalFunding'!C:D,2,0)) -> 0 | L40: =SUMIF('EOY1718'!E:E,DFENO&Home!I40,'EOY1718'!D:D) -> 0 | M40: =VLOOKUP(I40,Rates!A:L,8,0) ->  | N40: =IF(ISERROR(VLOOKUP(I40,Rates!A:L,3,0)),"",VLOOKUP(I40,Rates!A:L,3,0)) ->  | P40: =VLOOKUP(I40,Rates!A:AO,41,0) ->  | Q40: =SUMIF(TRANS!$BQ:$BQ,Q$3&DFENO&Home!$I40,TRANS!$S:$S) -> 0 | R40: =SUMIF(TRANS!$BQ:$BQ,R$3&DFENO&Home!$I40,TRANS!$S:$S) -> 0 | S40: =SUMIF(TRANS!$BQ:$BQ,S$3&DFENO&Home!$I40,TRANS!$S:$S) -> 0 | T40: =SUMIF(TRANS!$BQ:$BQ,T$3&DFENO&Home!$I40,TRANS!$S:$S) -> 0 | U40: =SUMIF(TRANS!$BQ:$BQ,U$3&DFENO&Home!$I40,TRANS!$S:$S) -> 0 | V40: =SUMIF(TRANS!$BQ:$BQ,V$3&DFENO&Home!$I40,TRANS!$S:$S) -> 0 | W40: =SUMIF(TRANS!$BQ:$BQ,W$3&DFENO&Home!$I40,TRANS!$S:$S) -> 0 | X40: =SUMIF(TRANS!$BQ:$BQ,X$3&DFENO&Home!$I40,TRANS!$S:$S) -> 0 | Y40: =SUMIF(TRANS!$BQ:$BQ,Y$3&DFENO&Home!$I40,TRANS!$S:$S) -> 0 | Z40: =SUMIF(TRANS!$BQ:$BQ,Z$3&DFENO&Home!$I40,TRANS!$S:$S) -> 0 | AA40: =SUMIF(TRANS!$BQ:$BQ,AA$3&DFENO&Home!$I40,TRANS!$S:$S) -> 0 | AB40: =SUMIF(TRANS!$BQ:$BQ,AB$3&DFENO&Home!$I40,TRANS!$S:$S) -> 0 | AC40: =SUMIF(TRANS!$BQ:$BQ,AC$3&DFENO&Home!$I40,TRANS!$S:$S) -> 0 | AD40: 0 | AG40: =IF(ISERROR(VLOOKUP(I40,Rates!$A:$AP,42,0)),"",VLOOKUP(I40,Rates!$A:$AP,42,0)) -> 
A41: =VLOOKUP(I41,Rates!A:L,2,0) ->  | B41: ADJ | C41: Pri IDACI C | D41: Sec IDACI A | E41: Sec FSM | F41: POST16SPECTOPUP | G41: blank | H41: PRUASSESSBASE | K41: =IF(ISERROR(VLOOKUP("Original"&OLDLAESTAB&I41,'1718OriginalFunding'!C:D,2,0)),0,VLOOKUP("Original"&OLDLAESTAB&I41,'1718OriginalFunding'!C:D,2,0)) -> 0 | L41: =SUMIF('EOY1718'!E:E,DFENO&Home!I41,'EOY1718'!D:D) -> 0 | M41: =VLOOKUP(I41,Rates!A:L,8,0) ->  | N41: =IF(ISERROR(VLOOKUP(I41,Rates!A:L,3,0)),"",VLOOKUP(I41,Rates!A:L,3,0)) ->  | P41: =VLOOKUP(I41,Rates!A:AO,41,0) ->  | Q41: =SUMIF(TRANS!$BQ:$BQ,Q$3&DFENO&Home!$I41,TRANS!$S:$S) -> 0 | R41: =SUMIF(TRANS!$BQ:$BQ,R$3&DFENO&Home!$I41,TRANS!$S:$S) -> 0 | S41: =SUMIF(TRANS!$BQ:$BQ,S$3&DFENO&Home!$I41,TRANS!$S:$S) -> 0 | T41: =SUMIF(TRANS!$BQ:$BQ,T$3&DFENO&Home!$I41,TRANS!$S:$S) -> 0 | U41: =SUMIF(TRANS!$BQ:$BQ,U$3&DFENO&Home!$I41,TRANS!$S:$S) -> 0 | V41: =SUMIF(TRANS!$BQ:$BQ,V$3&DFENO&Home!$I41,TRANS!$S:$S) -> 0 | W41: =SUMIF(TRANS!$BQ:$BQ,W$3&DFENO&Home!$I41,TRANS!$S:$S) -> 0 | X41: =SUMIF(TRANS!$BQ:$BQ,X$3&DFENO&Home!$I41,TRANS!$S:$S) -> 0 | Y41: =SUMIF(TRANS!$BQ:$BQ,Y$3&DFENO&Home!$I41,TRANS!$S:$S) -> 0 | Z41: =SUMIF(TRANS!$BQ:$BQ,Z$3&DFENO&Home!$I41,TRANS!$S:$S) -> 0 | AA41: =SUMIF(TRANS!$BQ:$BQ,AA$3&DFENO&Home!$I41,TRANS!$S:$S) -> 0 | AB41: =SUMIF(TRANS!$BQ:$BQ,AB$3&DFENO&Home!$I41,TRANS!$S:$S) -> 0 | AC41: =SUMIF(TRANS!$BQ:$BQ,AC$3&DFENO&Home!$I41,TRANS!$S:$S) -> 0 | AD41: 0 | AG41: =IF(ISERROR(VLOOKUP(I41,Rates!$A:$AP,42,0)),"",VLOOKUP(I41,Rates!$A:$AP,42,0)) -> 
A42: =VLOOKUP(I42,Rates!A:L,2,0) ->  | B42: NTRANSIT | C42: Pri IDACI D | D42: Sec IDACI B | E42: Pri FSM6 | F42: SPECPY | G42: blank | H42: POST16TOPUP | K42: =IF(ISERROR(VLOOKUP("Original"&OLDLAESTAB&I42,'1718OriginalFunding'!C:D,2,0)),0,VLOOKUP("Original"&OLDLAESTAB&I42,'1718OriginalFunding'!C:D,2,0)) -> 0 | L42: =SUMIF('EOY1718'!E:E,DFENO&Home!I42,'EOY1718'!D:D) -> 0 | M42: =VLOOKUP(I42,Rates!A:L,8,0) ->  | N42: =IF(ISERROR(VLOOKUP(I42,Rates!A:L,3,0)),"",VLOOKUP(I42,Rates!A:L,3,0)) ->  | O42: =HYPERLINK(VLOOKUP(N35,$J$168:$M$185,4,0),IF(N35="Not Used","",N35)) ->  | P42: =VLOOKUP(I42,Rates!A:AO,41,0) ->  | Q42: =SUMIF(TRANS!$BQ:$BQ,Q$3&DFENO&Home!$I42,TRANS!$S:$S) -> 0 | R42: =SUMIF(TRANS!$BQ:$BQ,R$3&DFENO&Home!$I42,TRANS!$S:$S) -> 0 | S42: =SUMIF(TRANS!$BQ:$BQ,S$3&DFENO&Home!$I42,TRANS!$S:$S) -> 0 | T42: =SUMIF(TRANS!$BQ:$BQ,T$3&DFENO&Home!$I42,TRANS!$S:$S) -> 0 | U42: =SUMIF(TRANS!$BQ:$BQ,U$3&DFENO&Home!$I42,TRANS!$S:$S) -> 0 | V42: =SUMIF(TRANS!$BQ:$BQ,V$3&DFENO&Home!$I42,TRANS!$S:$S) -> 0 | W42: =SUMIF(TRANS!$BQ:$BQ,W$3&DFENO&Home!$I42,TRANS!$S:$S) -> 0 | X42: =SUMIF(TRANS!$BQ:$BQ,X$3&DFENO&Home!$I42,TRANS!$S:$S) -> 0 | Y42: =SUMIF(TRANS!$BQ:$BQ,Y$3&DFENO&Home!$I42,TRANS!$S:$S) -> 0 | Z42: =SUMIF(TRANS!$BQ:$BQ,Z$3&DFENO&Home!$I42,TRANS!$S:$S) -> 0 | AA42: =SUMIF(TRANS!$BQ:$BQ,AA$3&DFENO&Home!$I42,TRANS!$S:$S) -> 0 | AB42: =SUMIF(TRANS!$BQ:$BQ,AB$3&DFENO&Home!$I42,TRANS!$S:$S) -> 0 | AC42: =SUMIF(TRANS!$BQ:$BQ,AC$3&DFENO&Home!$I42,TRANS!$S:$S) -> 0 | AD42: 0 | AG42: =IF(ISERROR(VLOOKUP(I42,Rates!$A:$AP,42,0)),"",VLOOKUP(I42,Rates!$A:$AP,42,0)) -> 
A43: =VLOOKUP(I43,Rates!A:L,2,0) ->  | B43: NNEWDEL | C43: Pri IDACI E | D43: Sec IDACI C | E43: Sec FSM6 | F43: ARPGuaranteed | G43: blank | H43: STMTTOPUPPRI | K43: =IF(ISERROR(VLOOKUP("Original"&OLDLAESTAB&I43,'1718OriginalFunding'!C:D,2,0)),0,VLOOKUP("Original"&OLDLAESTAB&I43,'1718OriginalFunding'!C:D,2,0)) -> 0 | L43: =SUMIF('EOY1718'!E:E,DFENO&Home!I43,'EOY1718'!D:D) -> 0 | M43: =VLOOKUP(I43,Rates!A:L,8,0) ->  | N43: =IF(ISERROR(VLOOKUP(I43,Rates!A:L,3,0)),"",VLOOKUP(I43,Rates!A:L,3,0)) ->  | P43: =VLOOKUP(I43,Rates!A:AO,41,0) ->  | Q43: =SUMIF(TRANS!$BQ:$BQ,Q$3&DFENO&Home!$I43,TRANS!$S:$S) -> 0 | R43: =SUMIF(TRANS!$BQ:$BQ,R$3&DFENO&Home!$I43,TRANS!$S:$S) -> 0 | S43: =SUMIF(TRANS!$BQ:$BQ,S$3&DFENO&Home!$I43,TRANS!$S:$S) -> 0 | T43: =SUMIF(TRANS!$BQ:$BQ,T$3&DFENO&Home!$I43,TRANS!$S:$S) -> 0 | U43: =SUMIF(TRANS!$BQ:$BQ,U$3&DFENO&Home!$I43,TRANS!$S:$S) -> 0 | V43: =SUMIF(TRANS!$BQ:$BQ,V$3&DFENO&Home!$I43,TRANS!$S:$S) -> 0 | W43: =SUMIF(TRANS!$BQ:$BQ,W$3&DFENO&Home!$I43,TRANS!$S:$S) -> 0 | X43: =SUMIF(TRANS!$BQ:$BQ,X$3&DFENO&Home!$I43,TRANS!$S:$S) -> 0 | Y43: =SUMIF(TRANS!$BQ:$BQ,Y$3&DFENO&Home!$I43,TRANS!$S:$S) -> 0 | Z43: =SUMIF(TRANS!$BQ:$BQ,Z$3&DFENO&Home!$I43,TRANS!$S:$S) -> 0 | AA43: =SUMIF(TRANS!$BQ:$BQ,AA$3&DFENO&Home!$I43,TRANS!$S:$S) -> 0 | AB43: =SUMIF(TRANS!$BQ:$BQ,AB$3&DFENO&Home!$I43,TRANS!$S:$S) -> 0 | AC43: =SUMIF(TRANS!$BQ:$BQ,AC$3&DFENO&Home!$I43,TRANS!$S:$S) -> 0 | AD43: 0 | AG43: =IF(ISERROR(VLOOKUP(I43,Rates!$A:$AP,42,0)),"",VLOOKUP(I43,Rates!$A:$AP,42,0)) -> 
A44: =VLOOKUP(I44,Rates!A:L,2,0) ->  | B44: MNS Supp | C44: Pri IDACI F | D44: Sec IDACI D | E44: Pri IDACI A | F44: ARPPY | G44: blank | H44: blank | K44: =IF(ISERROR(VLOOKUP("Original"&OLDLAESTAB&I44,'1718OriginalFunding'!C:D,2,0)),0,VLOOKUP("Original"&OLDLAESTAB&I44,'1718OriginalFunding'!C:D,2,0)) -> 0 | L44: =SUMIF('EOY1718'!E:E,DFENO&Home!I44,'EOY1718'!D:D) -> 0 | M44: =VLOOKUP(I44,Rates!A:L,8,0) ->  | N44: =IF(ISERROR(VLOOKUP(I44,Rates!A:L,3,0)),"",VLOOKUP(I44,Rates!A:L,3,0)) ->  | P44: =VLOOKUP(I44,Rates!A:AO,41,0) ->  | Q44: =SUMIF(TRANS!$BQ:$BQ,Q$3&DFENO&Home!$I44,TRANS!$S:$S) -> 0 | R44: =SUMIF(TRANS!$BQ:$BQ,R$3&DFENO&Home!$I44,TRANS!$S:$S) -> 0 | S44: =SUMIF(TRANS!$BQ:$BQ,S$3&DFENO&Home!$I44,TRANS!$S:$S) -> 0 | T44: =SUMIF(TRANS!$BQ:$BQ,T$3&DFENO&Home!$I44,TRANS!$S:$S) -> 0 | U44: =SUMIF(TRANS!$BQ:$BQ,U$3&DFENO&Home!$I44,TRANS!$S:$S) -> 0 | V44: =SUMIF(TRANS!$BQ:$BQ,V$3&DFENO&Home!$I44,TRANS!$S:$S) -> 0 | W44: =SUMIF(TRANS!$BQ:$BQ,W$3&DFENO&Home!$I44,TRANS!$S:$S) -> 0 | X44: =SUMIF(TRANS!$BQ:$BQ,X$3&DFENO&Home!$I44,TRANS!$S:$S) -> 0 | Y44: =SUMIF(TRANS!$BQ:$BQ,Y$3&DFENO&Home!$I44,TRANS!$S:$S) -> 0 | Z44: =SUMIF(TRANS!$BQ:$BQ,Z$3&DFENO&Home!$I44,TRANS!$S:$S) -> 0 | AA44: =SUMIF(TRANS!$BQ:$BQ,AA$3&DFENO&Home!$I44,TRANS!$S:$S) -> 0 | AB44: =SUMIF(TRANS!$BQ:$BQ,AB$3&DFENO&Home!$I44,TRANS!$S:$S) -> 0 | AC44: =SUMIF(TRANS!$BQ:$BQ,AC$3&DFENO&Home!$I44,TRANS!$S:$S) -> 0 | AD44: 0 | AG44: =IF(ISERROR(VLOOKUP(I44,Rates!$A:$AP,42,0)),"",VLOOKUP(I44,Rates!$A:$AP,42,0)) -> 
A45: =VLOOKUP(I45,Rates!A:L,2,0) ->  | B45: blank | C45: Pri EAL 2 | D45: Sec IDACI E | E45: Pri IDACI B | F45: ARPRY11BASE | G45: blank | H45: blank | K45: =IF(ISERROR(VLOOKUP("Original"&OLDLAESTAB&I45,'1718OriginalFunding'!C:D,2,0)),0,VLOOKUP("Original"&OLDLAESTAB&I45,'1718OriginalFunding'!C:D,2,0)) -> 0 | L45: =SUMIF('EOY1718'!E:E,DFENO&Home!I45,'EOY1718'!D:D) -> 0 | M45: =VLOOKUP(I45,Rates!A:L,8,0) ->  | N45: =IF(ISERROR(VLOOKUP(I45,Rates!A:L,3,0)),"",VLOOKUP(I45,Rates!A:L,3,0)) ->  | P45: =VLOOKUP(I45,Rates!A:AO,41,0) ->  | Q45: =SUMIF(TRANS!$BQ:$BQ,Q$3&DFENO&Home!$I45,TRANS!$S:$S) -> 0 | R45: =SUMIF(TRANS!$BQ:$BQ,R$3&DFENO&Home!$I45,TRANS!$S:$S) -> 0 | S45: =SUMIF(TRANS!$BQ:$BQ,S$3&DFENO&Home!$I45,TRANS!$S:$S) -> 0 | T45: =SUMIF(TRANS!$BQ:$BQ,T$3&DFENO&Home!$I45,TRANS!$S:$S) -> 0 | U45: =SUMIF(TRANS!$BQ:$BQ,U$3&DFENO&Home!$I45,TRANS!$S:$S) -> 0 | V45: =SUMIF(TRANS!$BQ:$BQ,V$3&DFENO&Home!$I45,TRANS!$S:$S) -> 0 | W45: =SUMIF(TRANS!$BQ:$BQ,W$3&DFENO&Home!$I45,TRANS!$S:$S) -> 0 | X45: =SUMIF(TRANS!$BQ:$BQ,X$3&DFENO&Home!$I45,TRANS!$S:$S) -> 0 | Y45: =SUMIF(TRANS!$BQ:$BQ,Y$3&DFENO&Home!$I45,TRANS!$S:$S) -> 0 | Z45: =SUMIF(TRANS!$BQ:$BQ,Z$3&DFENO&Home!$I45,TRANS!$S:$S) -> 0 | AA45: =SUMIF(TRANS!$BQ:$BQ,AA$3&DFENO&Home!$I45,TRANS!$S:$S) -> 0 | AB45: =SUMIF(TRANS!$BQ:$BQ,AB$3&DFENO&Home!$I45,TRANS!$S:$S) -> 0 | AC45: =SUMIF(TRANS!$BQ:$BQ,AC$3&DFENO&Home!$I45,TRANS!$S:$S) -> 0 | AD45: 0 | AG45: =IF(ISERROR(VLOOKUP(I45,Rates!$A:$AP,42,0)),"",VLOOKUP(I45,Rates!$A:$AP,42,0)) -> 
A46: =VLOOKUP(I46,Rates!A:L,2,0) ->  | B46: blank | C46: Pri MOB | D46: Sec IDACI F | E46: Pri IDACI C | F46: ARPTOPUP | G46: blank | H46: blank | K46: =IF(ISERROR(VLOOKUP("Original"&OLDLAESTAB&I46,'1718OriginalFunding'!C:D,2,0)),0,VLOOKUP("Original"&OLDLAESTAB&I46,'1718OriginalFunding'!C:D,2,0)) -> 0 | L46: =SUMIF('EOY1718'!E:E,DFENO&Home!I46,'EOY1718'!D:D) -> 0 | M46: =VLOOKUP(I46,Rates!A:L,8,0) ->  | N46: =IF(ISERROR(VLOOKUP(I46,Rates!A:L,3,0)),"",VLOOKUP(I46,Rates!A:L,3,0)) ->  | P46: =VLOOKUP(I46,Rates!A:AO,41,0) ->  | Q46: =SUMIF(TRANS!$BQ:$BQ,Q$3&DFENO&Home!$I46,TRANS!$S:$S) -> 0 | R46: =SUMIF(TRANS!$BQ:$BQ,R$3&DFENO&Home!$I46,TRANS!$S:$S) -> 0 | S46: =SUMIF(TRANS!$BQ:$BQ,S$3&DFENO&Home!$I46,TRANS!$S:$S) -> 0 | T46: =SUMIF(TRANS!$BQ:$BQ,T$3&DFENO&Home!$I46,TRANS!$S:$S) -> 0 | U46: =SUMIF(TRANS!$BQ:$BQ,U$3&DFENO&Home!$I46,TRANS!$S:$S) -> 0 | V46: =SUMIF(TRANS!$BQ:$BQ,V$3&DFENO&Home!$I46,TRANS!$S:$S) -> 0 | W46: =SUMIF(TRANS!$BQ:$BQ,W$3&DFENO&Home!$I46,TRANS!$S:$S) -> 0 | X46: =SUMIF(TRANS!$BQ:$BQ,X$3&DFENO&Home!$I46,TRANS!$S:$S) -> 0 | Y46: =SUMIF(TRANS!$BQ:$BQ,Y$3&DFENO&Home!$I46,TRANS!$S:$S) -> 0 | Z46: =SUMIF(TRANS!$BQ:$BQ,Z$3&DFENO&Home!$I46,TRANS!$S:$S) -> 0 | AA46: =SUMIF(TRANS!$BQ:$BQ,AA$3&DFENO&Home!$I46,TRANS!$S:$S) -> 0 | AB46: =SUMIF(TRANS!$BQ:$BQ,AB$3&DFENO&Home!$I46,TRANS!$S:$S) -> 0 | AC46: =SUMIF(TRANS!$BQ:$BQ,AC$3&DFENO&Home!$I46,TRANS!$S:$S) -> 0 | AD46: 0 | AG46: =IF(ISERROR(VLOOKUP(I46,Rates!$A:$AP,42,0)),"",VLOOKUP(I46,Rates!$A:$AP,42,0)) -> 
A47: =VLOOKUP(I47,Rates!A:L,2,0) ->  | B47: blank | C47: Pri LPA | D47: Sec EAL 2 | E47: Pri IDACI D | F47: STMTtopupPRI | G47: blank | H47: blank | K47: =IF(ISERROR(VLOOKUP("Original"&OLDLAESTAB&I47,'1718OriginalFunding'!C:D,2,0)),0,VLOOKUP("Original"&OLDLAESTAB&I47,'1718OriginalFunding'!C:D,2,0)) -> 0 | L47: =SUMIF('EOY1718'!E:E,DFENO&Home!I47,'EOY1718'!D:D) -> 0 | M47: =VLOOKUP(I47,Rates!A:L,8,0) ->  | N47: =IF(ISERROR(VLOOKUP(I47,Rates!A:L,3,0)),"",VLOOKUP(I47,Rates!A:L,3,0)) ->  | P47: =VLOOKUP(I47,Rates!A:AO,41,0) ->  | Q47: =SUMIF(TRANS!$BQ:$BQ,Q$3&DFENO&Home!$I47,TRANS!$S:$S) -> 0 | R47: =SUMIF(TRANS!$BQ:$BQ,R$3&DFENO&Home!$I47,TRANS!$S:$S) -> 0 | S47: =SUMIF(TRANS!$BQ:$BQ,S$3&DFENO&Home!$I47,TRANS!$S:$S) -> 0 | T47: =SUMIF(TRANS!$BQ:$BQ,T$3&DFENO&Home!$I47,TRANS!$S:$S) -> 0 | U47: =SUMIF(TRANS!$BQ:$BQ,U$3&DFENO&Home!$I47,TRANS!$S:$S) -> 0 | V47: =SUMIF(TRANS!$BQ:$BQ,V$3&DFENO&Home!$I47,TRANS!$S:$S) -> 0 | W47: =SUMIF(TRANS!$BQ:$BQ,W$3&DFENO&Home!$I47,TRANS!$S:$S) -> 0 | X47: =SUMIF(TRANS!$BQ:$BQ,X$3&DFENO&Home!$I47,TRANS!$S:$S) -> 0 | Y47: =SUMIF(TRANS!$BQ:$BQ,Y$3&DFENO&Home!$I47,TRANS!$S:$S) -> 0 | Z47: =SUMIF(TRANS!$BQ:$BQ,Z$3&DFENO&Home!$I47,TRANS!$S:$S) -> 0 | AA47: =SUMIF(TRANS!$BQ:$BQ,AA$3&DFENO&Home!$I47,TRANS!$S:$S) -> 0 | AB47: =SUMIF(TRANS!$BQ:$BQ,AB$3&DFENO&Home!$I47,TRANS!$S:$S) -> 0 | AC47: =SUMIF(TRANS!$BQ:$BQ,AC$3&DFENO&Home!$I47,TRANS!$S:$S) -> 0 | AD47: 0 | AG47: =IF(ISERROR(VLOOKUP(I47,Rates!$A:$AP,42,0)),"",VLOOKUP(I47,Rates!$A:$AP,42,0)) -> 
A48: =VLOOKUP(I48,Rates!A:L,2,0) ->  | B48: blank | C48: NNDR | D48: Sec MOB | E48: Pri IDACI E | F48: blank | G48: blank | H48: blank | K48: =IF(ISERROR(VLOOKUP("Original"&OLDLAESTAB&I48,'1718OriginalFunding'!C:D,2,0)),0,VLOOKUP("Original"&OLDLAESTAB&I48,'1718OriginalFunding'!C:D,2,0)) -> 0 | L48: =SUMIF('EOY1718'!E:E,DFENO&Home!I48,'EOY1718'!D:D) -> 0 | M48: =VLOOKUP(I48,Rates!A:L,8,0) ->  | N48: =IF(ISERROR(VLOOKUP(I48,Rates!A:L,3,0)),"",VLOOKUP(I48,Rates!A:L,3,0)) ->  | P48: =VLOOKUP(I48,Rates!A:AO,41,0) ->  | Q48: =SUMIF(TRANS!$BQ:$BQ,Q$3&DFENO&Home!$I48,TRANS!$S:$S) -> 0 | R48: =SUMIF(TRANS!$BQ:$BQ,R$3&DFENO&Home!$I48,TRANS!$S:$S) -> 0 | S48: =SUMIF(TRANS!$BQ:$BQ,S$3&DFENO&Home!$I48,TRANS!$S:$S) -> 0 | T48: =SUMIF(TRANS!$BQ:$BQ,T$3&DFENO&Home!$I48,TRANS!$S:$S) -> 0 | U48: =SUMIF(TRANS!$BQ:$BQ,U$3&DFENO&Home!$I48,TRANS!$S:$S) -> 0 | V48: =SUMIF(TRANS!$BQ:$BQ,V$3&DFENO&Home!$I48,TRANS!$S:$S) -> 0 | W48: =SUMIF(TRANS!$BQ:$BQ,W$3&DFENO&Home!$I48,TRANS!$S:$S) -> 0 | X48: =SUMIF(TRANS!$BQ:$BQ,X$3&DFENO&Home!$I48,TRANS!$S:$S) -> 0 | Y48: =SUMIF(TRANS!$BQ:$BQ,Y$3&DFENO&Home!$I48,TRANS!$S:$S) -> 0 | Z48: =SUMIF(TRANS!$BQ:$BQ,Z$3&DFENO&Home!$I48,TRANS!$S:$S) -> 0 | AA48: =SUMIF(TRANS!$BQ:$BQ,AA$3&DFENO&Home!$I48,TRANS!$S:$S) -> 0 | AB48: =SUMIF(TRANS!$BQ:$BQ,AB$3&DFENO&Home!$I48,TRANS!$S:$S) -> 0 | AC48: =SUMIF(TRANS!$BQ:$BQ,AC$3&DFENO&Home!$I48,TRANS!$S:$S) -> 0 | AD48: 0 | AG48: =IF(ISERROR(VLOOKUP(I48,Rates!$A:$AP,42,0)),"",VLOOKUP(I48,Rates!$A:$AP,42,0)) -> 
A49: =VLOOKUP(I49,Rates!A:L,2,0) ->  | B49: blank | C49: NNDRPY | D49: Sec LPA | E49: Pri IDACI F | F49: blank | G49: blank | H49: blank | K49: =IF(ISERROR(VLOOKUP("Original"&OLDLAESTAB&I49,'1718OriginalFunding'!C:D,2,0)),0,VLOOKUP("Original"&OLDLAESTAB&I49,'1718OriginalFunding'!C:D,2,0)) -> 0 | L49: =SUMIF('EOY1718'!E:E,DFENO&Home!I49,'EOY1718'!D:D) -> 0 | M49: =VLOOKUP(I49,Rates!A:L,8,0) ->  | N49: =IF(ISERROR(VLOOKUP(I49,Rates!A:L,3,0)),"",VLOOKUP(I49,Rates!A:L,3,0)) ->  | P49: =VLOOKUP(I49,Rates!A:AO,41,0) ->  | Q49: =SUMIF(TRANS!$BQ:$BQ,Q$3&DFENO&Home!$I49,TRANS!$S:$S) -> 0 | R49: =SUMIF(TRANS!$BQ:$BQ,R$3&DFENO&Home!$I49,TRANS!$S:$S) -> 0 | S49: =SUMIF(TRANS!$BQ:$BQ,S$3&DFENO&Home!$I49,TRANS!$S:$S) -> 0 | T49: =SUMIF(TRANS!$BQ:$BQ,T$3&DFENO&Home!$I49,TRANS!$S:$S) -> 0 | U49: =SUMIF(TRANS!$BQ:$BQ,U$3&DFENO&Home!$I49,TRANS!$S:$S) -> 0 | V49: =SUMIF(TRANS!$BQ:$BQ,V$3&DFENO&Home!$I49,TRANS!$S:$S) -> 0 | W49: =SUMIF(TRANS!$BQ:$BQ,W$3&DFENO&Home!$I49,TRANS!$S:$S) -> 0 | X49: =SUMIF(TRANS!$BQ:$BQ,X$3&DFENO&Home!$I49,TRANS!$S:$S) -> 0 | Y49: =SUMIF(TRANS!$BQ:$BQ,Y$3&DFENO&Home!$I49,TRANS!$S:$S) -> 0 | Z49: =SUMIF(TRANS!$BQ:$BQ,Z$3&DFENO&Home!$I49,TRANS!$S:$S) -> 0 | AA49: =SUMIF(TRANS!$BQ:$BQ,AA$3&DFENO&Home!$I49,TRANS!$S:$S) -> 0 | AB49: =SUMIF(TRANS!$BQ:$BQ,AB$3&DFENO&Home!$I49,TRANS!$S:$S) -> 0 | AC49: =SUMIF(TRANS!$BQ:$BQ,AC$3&DFENO&Home!$I49,TRANS!$S:$S) -> 0 | AD49: 0 | AG49: =IF(ISERROR(VLOOKUP(I49,Rates!$A:$AP,42,0)),"",VLOOKUP(I49,Rates!$A:$AP,42,0)) -> 
A50: =VLOOKUP(I50,Rates!A:L,2,0) ->  | B50: blank | C50: LUMP SUM | D50: NNDR | E50: Sec IDACI A | F50: blank | G50: blank | H50: blank | K50: =IF(ISERROR(VLOOKUP("Original"&OLDLAESTAB&I50,'1718OriginalFunding'!C:D,2,0)),0,VLOOKUP("Original"&OLDLAESTAB&I50,'1718OriginalFunding'!C:D,2,0)) -> 0 | L50: =SUMIF('EOY1718'!E:E,DFENO&Home!I50,'EOY1718'!D:D) -> 0 | M50: =VLOOKUP(I50,Rates!A:L,8,0) ->  | N50: =IF(ISERROR(VLOOKUP(I50,Rates!A:L,3,0)),"",VLOOKUP(I50,Rates!A:L,3,0)) ->  | P50: =VLOOKUP(I50,Rates!A:AO,41,0) ->  | Q50: =SUMIF(TRANS!$BQ:$BQ,Q$3&DFENO&Home!$I50,TRANS!$S:$S) -> 0 | R50: =SUMIF(TRANS!$BQ:$BQ,R$3&DFENO&Home!$I50,TRANS!$S:$S) -> 0 | S50: =SUMIF(TRANS!$BQ:$BQ,S$3&DFENO&Home!$I50,TRANS!$S:$S) -> 0 | T50: =SUMIF(TRANS!$BQ:$BQ,T$3&DFENO&Home!$I50,TRANS!$S:$S) -> 0 | U50: =SUMIF(TRANS!$BQ:$BQ,U$3&DFENO&Home!$I50,TRANS!$S:$S) -> 0 | V50: =SUMIF(TRANS!$BQ:$BQ,V$3&DFENO&Home!$I50,TRANS!$S:$S) -> 0 | W50: =SUMIF(TRANS!$BQ:$BQ,W$3&DFENO&Home!$I50,TRANS!$S:$S) -> 0 | X50: =SUMIF(TRANS!$BQ:$BQ,X$3&DFENO&Home!$I50,TRANS!$S:$S) -> 0 | Y50: =SUMIF(TRANS!$BQ:$BQ,Y$3&DFENO&Home!$I50,TRANS!$S:$S) -> 0 | Z50: =SUMIF(TRANS!$BQ:$BQ,Z$3&DFENO&Home!$I50,TRANS!$S:$S) -> 0 | AA50: =SUMIF(TRANS!$BQ:$BQ,AA$3&DFENO&Home!$I50,TRANS!$S:$S) -> 0 | AB50: =SUMIF(TRANS!$BQ:$BQ,AB$3&DFENO&Home!$I50,TRANS!$S:$S) -> 0 | AC50: =SUMIF(TRANS!$BQ:$BQ,AC$3&DFENO&Home!$I50,TRANS!$S:$S) -> 0 | AD50: 0 | AG50: =IF(ISERROR(VLOOKUP(I50,Rates!$A:$AP,42,0)),"",VLOOKUP(I50,Rates!$A:$AP,42,0)) -> 
A51: =VLOOKUP(I51,Rates!A:L,2,0) ->  | B51: blank | C51: SPLIT SITES | D51: NNDRPY | E51: Sec IDACI B | F51: blank | G51: blank | H51: blank | K51: =IF(ISERROR(VLOOKUP("Original"&OLDLAESTAB&I51,'1718OriginalFunding'!C:D,2,0)),0,VLOOKUP("Original"&OLDLAESTAB&I51,'1718OriginalFunding'!C:D,2,0)) -> 0 | L51: =SUMIF('EOY1718'!E:E,DFENO&Home!I51,'EOY1718'!D:D) -> 0 | M51: =VLOOKUP(I51,Rates!A:L,8,0) ->  | N51: =IF(ISERROR(VLOOKUP(I51,Rates!A:L,3,0)),"",VLOOKUP(I51,Rates!A:L,3,0)) ->  | P51: =VLOOKUP(I51,Rates!A:AO,41,0) ->  | Q51: =SUMIF(TRANS!$BQ:$BQ,Q$3&DFENO&Home!$I51,TRANS!$S:$S) -> 0 | R51: =SUMIF(TRANS!$BQ:$BQ,R$3&DFENO&Home!$I51,TRANS!$S:$S) -> 0 | S51: =SUMIF(TRANS!$BQ:$BQ,S$3&DFENO&Home!$I51,TRANS!$S:$S) -> 0 | T51: =SUMIF(TRANS!$BQ:$BQ,T$3&DFENO&Home!$I51,TRANS!$S:$S) -> 0 | U51: =SUMIF(TRANS!$BQ:$BQ,U$3&DFENO&Home!$I51,TRANS!$S:$S) -> 0 | V51: =SUMIF(TRANS!$BQ:$BQ,V$3&DFENO&Home!$I51,TRANS!$S:$S) -> 0 | W51: =SUMIF(TRANS!$BQ:$BQ,W$3&DFENO&Home!$I51,TRANS!$S:$S) -> 0 | X51: =SUMIF(TRANS!$BQ:$BQ,X$3&DFENO&Home!$I51,TRANS!$S:$S) -> 0 | Y51: =SUMIF(TRANS!$BQ:$BQ,Y$3&DFENO&Home!$I51,TRANS!$S:$S) -> 0 | Z51: =SUMIF(TRANS!$BQ:$BQ,Z$3&DFENO&Home!$I51,TRANS!$S:$S) -> 0 | AA51: =SUMIF(TRANS!$BQ:$BQ,AA$3&DFENO&Home!$I51,TRANS!$S:$S) -> 0 | AB51: =SUMIF(TRANS!$BQ:$BQ,AB$3&DFENO&Home!$I51,TRANS!$S:$S) -> 0 | AC51: =SUMIF(TRANS!$BQ:$BQ,AC$3&DFENO&Home!$I51,TRANS!$S:$S) -> 0 | AD51: 0 | AG51: =IF(ISERROR(VLOOKUP(I51,Rates!$A:$AP,42,0)),"",VLOOKUP(I51,Rates!$A:$AP,42,0)) -> 
A52: =VLOOKUP(I52,Rates!A:L,2,0) ->  | B52: blank | C52: ADDLUMP | D52: LUMP SUM | E52: Sec IDACI C | F52: blank | G52: blank | H52: blank | K52: =IF(ISERROR(VLOOKUP("Original"&OLDLAESTAB&I52,'1718OriginalFunding'!C:D,2,0)),0,VLOOKUP("Original"&OLDLAESTAB&I52,'1718OriginalFunding'!C:D,2,0)) -> 0 | L52: =SUMIF('EOY1718'!E:E,DFENO&Home!I52,'EOY1718'!D:D) -> 0 | M52: =VLOOKUP(I52,Rates!A:L,8,0) ->  | N52: =IF(ISERROR(VLOOKUP(I52,Rates!A:L,3,0)),"",VLOOKUP(I52,Rates!A:L,3,0)) ->  | P52: =VLOOKUP(I52,Rates!A:AO,41,0) ->  | Q52: =SUMIF(TRANS!$BQ:$BQ,Q$3&DFENO&Home!$I52,TRANS!$S:$S) -> 0 | R52: =SUMIF(TRANS!$BQ:$BQ,R$3&DFENO&Home!$I52,TRANS!$S:$S) -> 0 | S52: =SUMIF(TRANS!$BQ:$BQ,S$3&DFENO&Home!$I52,TRANS!$S:$S) -> 0 | T52: =SUMIF(TRANS!$BQ:$BQ,T$3&DFENO&Home!$I52,TRANS!$S:$S) -> 0 | U52: =SUMIF(TRANS!$BQ:$BQ,U$3&DFENO&Home!$I52,TRANS!$S:$S) -> 0 | V52: =SUMIF(TRANS!$BQ:$BQ,V$3&DFENO&Home!$I52,TRANS!$S:$S) -> 0 | W52: =SUMIF(TRANS!$BQ:$BQ,W$3&DFENO&Home!$I52,TRANS!$S:$S) -> 0 | X52: =SUMIF(TRANS!$BQ:$BQ,X$3&DFENO&Home!$I52,TRANS!$S:$S) -> 0 | Y52: =SUMIF(TRANS!$BQ:$BQ,Y$3&DFENO&Home!$I52,TRANS!$S:$S) -> 0 | Z52: =SUMIF(TRANS!$BQ:$BQ,Z$3&DFENO&Home!$I52,TRANS!$S:$S) -> 0 | AA52: =SUMIF(TRANS!$BQ:$BQ,AA$3&DFENO&Home!$I52,TRANS!$S:$S) -> 0 | AB52: =SUMIF(TRANS!$BQ:$BQ,AB$3&DFENO&Home!$I52,TRANS!$S:$S) -> 0 | AC52: =SUMIF(TRANS!$BQ:$BQ,AC$3&DFENO&Home!$I52,TRANS!$S:$S) -> 0 | AD52: 0 | AG52: =IF(ISERROR(VLOOKUP(I52,Rates!$A:$AP,42,0)),"",VLOOKUP(I52,Rates!$A:$AP,42,0)) -> 
A53: =VLOOKUP(I53,Rates!A:L,2,0) ->  | B53: blank | C53: MFG | D53: SPLIT SITES | E53: Sec IDACI D | F53: blank | G53: blank | H53: blank | K53: =IF(ISERROR(VLOOKUP("Original"&OLDLAESTAB&I53,'1718OriginalFunding'!C:D,2,0)),0,VLOOKUP("Original"&OLDLAESTAB&I53,'1718OriginalFunding'!C:D,2,0)) -> 0 | L53: =SUMIF('EOY1718'!E:E,DFENO&Home!I53,'EOY1718'!D:D) -> 0 | M53: =VLOOKUP(I53,Rates!A:L,8,0) ->  | N53: =IF(ISERROR(VLOOKUP(I53,Rates!A:L,3,0)),"",VLOOKUP(I53,Rates!A:L,3,0)) ->  | P53: =VLOOKUP(I53,Rates!A:AO,41,0) ->  | Q53: =SUMIF(TRANS!$BQ:$BQ,Q$3&DFENO&Home!$I53,TRANS!$S:$S) -> 0 | R53: =SUMIF(TRANS!$BQ:$BQ,R$3&DFENO&Home!$I53,TRANS!$S:$S) -> 0 | S53: =SUMIF(TRANS!$BQ:$BQ,S$3&DFENO&Home!$I53,TRANS!$S:$S) -> 0 | T53: =SUMIF(TRANS!$BQ:$BQ,T$3&DFENO&Home!$I53,TRANS!$S:$S) -> 0 | U53: =SUMIF(TRANS!$BQ:$BQ,U$3&DFENO&Home!$I53,TRANS!$S:$S) -> 0 | V53: =SUMIF(TRANS!$BQ:$BQ,V$3&DFENO&Home!$I53,TRANS!$S:$S) -> 0 | W53: =SUMIF(TRANS!$BQ:$BQ,W$3&DFENO&Home!$I53,TRANS!$S:$S) -> 0 | X53: =SUMIF(TRANS!$BQ:$BQ,X$3&DFENO&Home!$I53,TRANS!$S:$S) -> 0 | Y53: =SUMIF(TRANS!$BQ:$BQ,Y$3&DFENO&Home!$I53,TRANS!$S:$S) -> 0 | Z53: =SUMIF(TRANS!$BQ:$BQ,Z$3&DFENO&Home!$I53,TRANS!$S:$S) -> 0 | AA53: =SUMIF(TRANS!$BQ:$BQ,AA$3&DFENO&Home!$I53,TRANS!$S:$S) -> 0 | AB53: =SUMIF(TRANS!$BQ:$BQ,AB$3&DFENO&Home!$I53,TRANS!$S:$S) -> 0 | AC53: =SUMIF(TRANS!$BQ:$BQ,AC$3&DFENO&Home!$I53,TRANS!$S:$S) -> 0 | AD53: 0 | AG53: =IF(ISERROR(VLOOKUP(I53,Rates!$A:$AP,42,0)),"",VLOOKUP(I53,Rates!$A:$AP,42,0)) -> 
A54: =VLOOKUP(I54,Rates!A:L,2,0) ->  | B54: blank | C54: EXCLUSIONS | D54: MFG | E54: Sec IDACI E | F54: blank | G54: blank | H54: blank | K54: =IF(ISERROR(VLOOKUP("Original"&OLDLAESTAB&I54,'1718OriginalFunding'!C:D,2,0)),0,VLOOKUP("Original"&OLDLAESTAB&I54,'1718OriginalFunding'!C:D,2,0)) -> 0 | L54: =SUMIF('EOY1718'!E:E,DFENO&Home!I54,'EOY1718'!D:D) -> 0 | M54: =VLOOKUP(I54,Rates!A:L,8,0) ->  | N54: =IF(ISERROR(VLOOKUP(I54,Rates!A:L,3,0)),"",VLOOKUP(I54,Rates!A:L,3,0)) ->  | P54: =VLOOKUP(I54,Rates!A:AO,41,0) ->  | Q54: =SUMIF(TRANS!$BQ:$BQ,Q$3&DFENO&Home!$I54,TRANS!$S:$S) -> 0 | R54: =SUMIF(TRANS!$BQ:$BQ,R$3&DFENO&Home!$I54,TRANS!$S:$S) -> 0 | S54: =SUMIF(TRANS!$BQ:$BQ,S$3&DFENO&Home!$I54,TRANS!$S:$S) -> 0 | T54: =SUMIF(TRANS!$BQ:$BQ,T$3&DFENO&Home!$I54,TRANS!$S:$S) -> 0 | U54: =SUMIF(TRANS!$BQ:$BQ,U$3&DFENO&Home!$I54,TRANS!$S:$S) -> 0 | V54: =SUMIF(TRANS!$BQ:$BQ,V$3&DFENO&Home!$I54,TRANS!$S:$S) -> 0 | W54: =SUMIF(TRANS!$BQ:$BQ,W$3&DFENO&Home!$I54,TRANS!$S:$S) -> 0 | X54: =SUMIF(TRANS!$BQ:$BQ,X$3&DFENO&Home!$I54,TRANS!$S:$S) -> 0 | Y54: =SUMIF(TRANS!$BQ:$BQ,Y$3&DFENO&Home!$I54,TRANS!$S:$S) -> 0 | Z54: =SUMIF(TRANS!$BQ:$BQ,Z$3&DFENO&Home!$I54,TRANS!$S:$S) -> 0 | AA54: =SUMIF(TRANS!$BQ:$BQ,AA$3&DFENO&Home!$I54,TRANS!$S:$S) -> 0 | AB54: =SUMIF(TRANS!$BQ:$BQ,AB$3&DFENO&Home!$I54,TRANS!$S:$S) -> 0 | AC54: =SUMIF(TRANS!$BQ:$BQ,AC$3&DFENO&Home!$I54,TRANS!$S:$S) -> 0 | AD54: 0 | AG54: =IF(ISERROR(VLOOKUP(I54,Rates!$A:$AP,42,0)),"",VLOOKUP(I54,Rates!$A:$AP,42,0)) -> 
A55: =VLOOKUP(I55,Rates!A:L,2,0) ->  | B55: blank | C55: Pri FFAdj | D55: EXCLUSIONS | E55: Sec IDACI F | F55: blank | G55: blank | H55: blank | K55: =IF(ISERROR(VLOOKUP("Original"&OLDLAESTAB&I55,'1718OriginalFunding'!C:D,2,0)),0,VLOOKUP("Original"&OLDLAESTAB&I55,'1718OriginalFunding'!C:D,2,0)) -> 0 | L55: =SUMIF('EOY1718'!E:E,DFENO&Home!I55,'EOY1718'!D:D) -> 0 | M55: =VLOOKUP(I55,Rates!A:L,8,0) ->  | N55: =IF(ISERROR(VLOOKUP(I55,Rates!A:L,3,0)),"",VLOOKUP(I55,Rates!A:L,3,0)) ->  | P55: =VLOOKUP(I55,Rates!A:AO,41,0) ->  | Q55: =SUMIF(TRANS!$BQ:$BQ,Q$3&DFENO&Home!$I55,TRANS!$S:$S) -> 0 | R55: =SUMIF(TRANS!$BQ:$BQ,R$3&DFENO&Home!$I55,TRANS!$S:$S) -> 0 | S55: =SUMIF(TRANS!$BQ:$BQ,S$3&DFENO&Home!$I55,TRANS!$S:$S) -> 0 | T55: =SUMIF(TRANS!$BQ:$BQ,T$3&DFENO&Home!$I55,TRANS!$S:$S) -> 0 | U55: =SUMIF(TRANS!$BQ:$BQ,U$3&DFENO&Home!$I55,TRANS!$S:$S) -> 0 | V55: =SUMIF(TRANS!$BQ:$BQ,V$3&DFENO&Home!$I55,TRANS!$S:$S) -> 0 | W55: =SUMIF(TRANS!$BQ:$BQ,W$3&DFENO&Home!$I55,TRANS!$S:$S) -> 0 | X55: =SUMIF(TRANS!$BQ:$BQ,X$3&DFENO&Home!$I55,TRANS!$S:$S) -> 0 | Y55: =SUMIF(TRANS!$BQ:$BQ,Y$3&DFENO&Home!$I55,TRANS!$S:$S) -> 0 | Z55: =SUMIF(TRANS!$BQ:$BQ,Z$3&DFENO&Home!$I55,TRANS!$S:$S) -> 0 | AA55: =SUMIF(TRANS!$BQ:$BQ,AA$3&DFENO&Home!$I55,TRANS!$S:$S) -> 0 | AB55: =SUMIF(TRANS!$BQ:$BQ,AB$3&DFENO&Home!$I55,TRANS!$S:$S) -> 0 | AC55: =SUMIF(TRANS!$BQ:$BQ,AC$3&DFENO&Home!$I55,TRANS!$S:$S) -> 0 | AD55: 0 | AG55: =IF(ISERROR(VLOOKUP(I55,Rates!$A:$AP,42,0)),"",VLOOKUP(I55,Rates!$A:$AP,42,0)) -> 
A56: =VLOOKUP(I56,Rates!A:L,2,0) ->  | B56: blank | C56: blank | D56: blank | E56: Pri EAL 2 | F56: blank | G56: blank | H56: blank | K56: =IF(ISERROR(VLOOKUP("Original"&OLDLAESTAB&I56,'1718OriginalFunding'!C:D,2,0)),0,VLOOKUP("Original"&OLDLAESTAB&I56,'1718OriginalFunding'!C:D,2,0)) -> 0 | L56: =SUMIF('EOY1718'!E:E,DFENO&Home!I56,'EOY1718'!D:D) -> 0 | M56: =VLOOKUP(I56,Rates!A:L,8,0) ->  | N56: =IF(ISERROR(VLOOKUP(I56,Rates!A:L,3,0)),"",VLOOKUP(I56,Rates!A:L,3,0)) ->  | P56: =VLOOKUP(I56,Rates!A:AO,41,0) ->  | Q56: =SUMIF(TRANS!$BQ:$BQ,Q$3&DFENO&Home!$I56,TRANS!$S:$S) -> 0 | R56: =SUMIF(TRANS!$BQ:$BQ,R$3&DFENO&Home!$I56,TRANS!$S:$S) -> 0 | S56: =SUMIF(TRANS!$BQ:$BQ,S$3&DFENO&Home!$I56,TRANS!$S:$S) -> 0 | T56: =SUMIF(TRANS!$BQ:$BQ,T$3&DFENO&Home!$I56,TRANS!$S:$S) -> 0 | U56: =SUMIF(TRANS!$BQ:$BQ,U$3&DFENO&Home!$I56,TRANS!$S:$S) -> 0 | V56: =SUMIF(TRANS!$BQ:$BQ,V$3&DFENO&Home!$I56,TRANS!$S:$S) -> 0 | W56: =SUMIF(TRANS!$BQ:$BQ,W$3&DFENO&Home!$I56,TRANS!$S:$S) -> 0 | X56: =SUMIF(TRANS!$BQ:$BQ,X$3&DFENO&Home!$I56,TRANS!$S:$S) -> 0 | Y56: =SUMIF(TRANS!$BQ:$BQ,Y$3&DFENO&Home!$I56,TRANS!$S:$S) -> 0 | Z56: =SUMIF(TRANS!$BQ:$BQ,Z$3&DFENO&Home!$I56,TRANS!$S:$S) -> 0 | AA56: =SUMIF(TRANS!$BQ:$BQ,AA$3&DFENO&Home!$I56,TRANS!$S:$S) -> 0 | AB56: =SUMIF(TRANS!$BQ:$BQ,AB$3&DFENO&Home!$I56,TRANS!$S:$S) -> 0 | AC56: =SUMIF(TRANS!$BQ:$BQ,AC$3&DFENO&Home!$I56,TRANS!$S:$S) -> 0 | AD56: 0 | AG56: =IF(ISERROR(VLOOKUP(I56,Rates!$A:$AP,42,0)),"",VLOOKUP(I56,Rates!$A:$AP,42,0)) -> 
A57: =VLOOKUP(I57,Rates!A:L,2,0) ->  | B57: blank | C57: blank | D57: blank | E57: Sec EAL 2 | F57: blank | G57: blank | H57: blank | K57: =IF(ISERROR(VLOOKUP("Original"&OLDLAESTAB&I57,'1718OriginalFunding'!C:D,2,0)),0,VLOOKUP("Original"&OLDLAESTAB&I57,'1718OriginalFunding'!C:D,2,0)) -> 0 | L57: =SUMIF('EOY1718'!E:E,DFENO&Home!I57,'EOY1718'!D:D) -> 0 | M57: =VLOOKUP(I57,Rates!A:L,8,0) ->  | N57: =IF(ISERROR(VLOOKUP(I57,Rates!A:L,3,0)),"",VLOOKUP(I57,Rates!A:L,3,0)) ->  | P57: =VLOOKUP(I57,Rates!A:AO,41,0) ->  | Q57: =SUMIF(TRANS!$BQ:$BQ,Q$3&DFENO&Home!$I57,TRANS!$S:$S) -> 0 | R57: =SUMIF(TRANS!$BQ:$BQ,R$3&DFENO&Home!$I57,TRANS!$S:$S) -> 0 | S57: =SUMIF(TRANS!$BQ:$BQ,S$3&DFENO&Home!$I57,TRANS!$S:$S) -> 0 | T57: =SUMIF(TRANS!$BQ:$BQ,T$3&DFENO&Home!$I57,TRANS!$S:$S) -> 0 | U57: =SUMIF(TRANS!$BQ:$BQ,U$3&DFENO&Home!$I57,TRANS!$S:$S) -> 0 | V57: =SUMIF(TRANS!$BQ:$BQ,V$3&DFENO&Home!$I57,TRANS!$S:$S) -> 0 | W57: =SUMIF(TRANS!$BQ:$BQ,W$3&DFENO&Home!$I57,TRANS!$S:$S) -> 0 | X57: =SUMIF(TRANS!$BQ:$BQ,X$3&DFENO&Home!$I57,TRANS!$S:$S) -> 0 | Y57: =SUMIF(TRANS!$BQ:$BQ,Y$3&DFENO&Home!$I57,TRANS!$S:$S) -> 0 | Z57: =SUMIF(TRANS!$BQ:$BQ,Z$3&DFENO&Home!$I57,TRANS!$S:$S) -> 0 | AA57: =SUMIF(TRANS!$BQ:$BQ,AA$3&DFENO&Home!$I57,TRANS!$S:$S) -> 0 | AB57: =SUMIF(TRANS!$BQ:$BQ,AB$3&DFENO&Home!$I57,TRANS!$S:$S) -> 0 | AC57: =SUMIF(TRANS!$BQ:$BQ,AC$3&DFENO&Home!$I57,TRANS!$S:$S) -> 0 | AD57: =SUM(Q57:AC57) -> 0 | AG57: =IF(ISERROR(VLOOKUP(I57,Rates!$A:$AP,42,0)),"",VLOOKUP(I57,Rates!$A:$AP,42,0)) -> 
A58: =VLOOKUP(I58,Rates!A:L,2,0) ->  | B58: blank | C58: blank | D58: blank | E58: Pri MOB | F58: blank | G58: blank | H58: blank | K58: =IF(ISERROR(VLOOKUP("Original"&OLDLAESTAB&I58,'1718OriginalFunding'!C:D,2,0)),0,VLOOKUP("Original"&OLDLAESTAB&I58,'1718OriginalFunding'!C:D,2,0)) -> 0 | L58: =SUMIF('EOY1718'!E:E,DFENO&Home!I58,'EOY1718'!D:D) -> 0 | M58: =VLOOKUP(I58,Rates!A:L,8,0) ->  | N58: =IF(ISERROR(VLOOKUP(I58,Rates!A:L,3,0)),"",VLOOKUP(I58,Rates!A:L,3,0)) ->  | P58: =VLOOKUP(I58,Rates!A:AO,41,0) ->  | Q58: =SUMIF(TRANS!$BQ:$BQ,Q$3&DFENO&Home!$I58,TRANS!$S:$S) -> 0 | R58: =SUMIF(TRANS!$BQ:$BQ,R$3&DFENO&Home!$I58,TRANS!$S:$S) -> 0 | S58: =SUMIF(TRANS!$BQ:$BQ,S$3&DFENO&Home!$I58,TRANS!$S:$S) -> 0 | T58: =SUMIF(TRANS!$BQ:$BQ,T$3&DFENO&Home!$I58,TRANS!$S:$S) -> 0 | U58: =SUMIF(TRANS!$BQ:$BQ,U$3&DFENO&Home!$I58,TRANS!$S:$S) -> 0 | V58: =SUMIF(TRANS!$BQ:$BQ,V$3&DFENO&Home!$I58,TRANS!$S:$S) -> 0 | W58: =SUMIF(TRANS!$BQ:$BQ,W$3&DFENO&Home!$I58,TRANS!$S:$S) -> 0 | X58: =SUMIF(TRANS!$BQ:$BQ,X$3&DFENO&Home!$I58,TRANS!$S:$S) -> 0 | Y58: =SUMIF(TRANS!$BQ:$BQ,Y$3&DFENO&Home!$I58,TRANS!$S:$S) -> 0 | Z58: =SUMIF(TRANS!$BQ:$BQ,Z$3&DFENO&Home!$I58,TRANS!$S:$S) -> 0 | AA58: =SUMIF(TRANS!$BQ:$BQ,AA$3&DFENO&Home!$I58,TRANS!$S:$S) -> 0 | AB58: =SUMIF(TRANS!$BQ:$BQ,AB$3&DFENO&Home!$I58,TRANS!$S:$S) -> 0 | AC58: =SUMIF(TRANS!$BQ:$BQ,AC$3&DFENO&Home!$I58,TRANS!$S:$S) -> 0 | AD58: 0 | AG58: =IF(ISERROR(VLOOKUP(I58,Rates!$A:$AP,42,0)),"",VLOOKUP(I58,Rates!$A:$AP,42,0)) -> 
A59: =VLOOKUP(I59,Rates!A:L,2,0) ->  | B59: blank | C59: blank | D59: blank | E59: Sec MOB | F59: blank | G59: blank | H59: blank | K59: =IF(ISERROR(VLOOKUP("Original"&OLDLAESTAB&I59,'1718OriginalFunding'!C:D,2,0)),0,VLOOKUP("Original"&OLDLAESTAB&I59,'1718OriginalFunding'!C:D,2,0)) -> 0 | L59: =SUMIF('EOY1718'!E:E,DFENO&Home!I59,'EOY1718'!D:D) -> 0 | M59: =VLOOKUP(I59,Rates!A:L,8,0) ->  | N59: =IF(ISERROR(VLOOKUP(I59,Rates!A:L,3,0)),"",VLOOKUP(I59,Rates!A:L,3,0)) ->  | P59: =VLOOKUP(I59,Rates!A:AO,41,0) ->  | Q59: =SUMIF(TRANS!$BQ:$BQ,Q$3&DFENO&Home!$I59,TRANS!$S:$S) -> 0 | R59: =SUMIF(TRANS!$BQ:$BQ,R$3&DFENO&Home!$I59,TRANS!$S:$S) -> 0 | S59: =SUMIF(TRANS!$BQ:$BQ,S$3&DFENO&Home!$I59,TRANS!$S:$S) -> 0 | T59: =SUMIF(TRANS!$BQ:$BQ,T$3&DFENO&Home!$I59,TRANS!$S:$S) -> 0 | U59: =SUMIF(TRANS!$BQ:$BQ,U$3&DFENO&Home!$I59,TRANS!$S:$S) -> 0 | V59: =SUMIF(TRANS!$BQ:$BQ,V$3&DFENO&Home!$I59,TRANS!$S:$S) -> 0 | W59: =SUMIF(TRANS!$BQ:$BQ,W$3&DFENO&Home!$I59,TRANS!$S:$S) -> 0 | X59: =SUMIF(TRANS!$BQ:$BQ,X$3&DFENO&Home!$I59,TRANS!$S:$S) -> 0 | Y59: =SUMIF(TRANS!$BQ:$BQ,Y$3&DFENO&Home!$I59,TRANS!$S:$S) -> 0 | Z59: =SUMIF(TRANS!$BQ:$BQ,Z$3&DFENO&Home!$I59,TRANS!$S:$S) -> 0 | AA59: =SUMIF(TRANS!$BQ:$BQ,AA$3&DFENO&Home!$I59,TRANS!$S:$S) -> 0 | AB59: =SUMIF(TRANS!$BQ:$BQ,AB$3&DFENO&Home!$I59,TRANS!$S:$S) -> 0 | AC59: =SUMIF(TRANS!$BQ:$BQ,AC$3&DFENO&Home!$I59,TRANS!$S:$S) -> 0 | AD59: 0 | AG59: =IF(ISERROR(VLOOKUP(I59,Rates!$A:$AP,42,0)),"",VLOOKUP(I59,Rates!$A:$AP,42,0)) -> 
A60: =VLOOKUP(I60,Rates!A:L,2,0) ->  | B60: blank | C60: blank | D60: blank | E60: Pri LPA | F60: blank | G60: blank | H60: blank | K60: =IF(ISERROR(VLOOKUP("Original"&OLDLAESTAB&I60,'1718OriginalFunding'!C:D,2,0)),0,VLOOKUP("Original"&OLDLAESTAB&I60,'1718OriginalFunding'!C:D,2,0)) -> 0 | L60: =SUMIF('EOY1718'!E:E,DFENO&Home!I60,'EOY1718'!D:D) -> 0 | M60: =VLOOKUP(I60,Rates!A:L,8,0) ->  | N60: =IF(ISERROR(VLOOKUP(I60,Rates!A:L,3,0)),"",VLOOKUP(I60,Rates!A:L,3,0)) ->  | P60: =VLOOKUP(I60,Rates!A:AO,41,0) ->  | Q60: =SUMIF(TRANS!$BQ:$BQ,Q$3&DFENO&Home!$I60,TRANS!$S:$S) -> 0 | R60: =SUMIF(TRANS!$BQ:$BQ,R$3&DFENO&Home!$I60,TRANS!$S:$S) -> 0 | S60: =SUMIF(TRANS!$BQ:$BQ,S$3&DFENO&Home!$I60,TRANS!$S:$S) -> 0 | T60: =SUMIF(TRANS!$BQ:$BQ,T$3&DFENO&Home!$I60,TRANS!$S:$S) -> 0 | U60: =SUMIF(TRANS!$BQ:$BQ,U$3&DFENO&Home!$I60,TRANS!$S:$S) -> 0 | V60: =SUMIF(TRANS!$BQ:$BQ,V$3&DFENO&Home!$I60,TRANS!$S:$S) -> 0 | W60: =SUMIF(TRANS!$BQ:$BQ,W$3&DFENO&Home!$I60,TRANS!$S:$S) -> 0 | X60: =SUMIF(TRANS!$BQ:$BQ,X$3&DFENO&Home!$I60,TRANS!$S:$S) -> 0 | Y60: =SUMIF(TRANS!$BQ:$BQ,Y$3&DFENO&Home!$I60,TRANS!$S:$S) -> 0 | Z60: =SUMIF(TRANS!$BQ:$BQ,Z$3&DFENO&Home!$I60,TRANS!$S:$S) -> 0 | AA60: =SUMIF(TRANS!$BQ:$BQ,AA$3&DFENO&Home!$I60,TRANS!$S:$S) -> 0 | AB60: =SUMIF(TRANS!$BQ:$BQ,AB$3&DFENO&Home!$I60,TRANS!$S:$S) -> 0 | AC60: =SUMIF(TRANS!$BQ:$BQ,AC$3&DFENO&Home!$I60,TRANS!$S:$S) -> 0 | AD60: 0 | AG60: =IF(ISERROR(VLOOKUP(I60,Rates!$A:$AP,42,0)),"",VLOOKUP(I60,Rates!$A:$AP,42,0)) -> 
A61: =VLOOKUP(I61,Rates!A:L,2,0) ->  | B61: blank | C61: blank | D61: blank | E61: Sec LPA | F61: blank | G61: blank | H61: blank | K61: =IF(ISERROR(VLOOKUP("Original"&OLDLAESTAB&I61,'1718OriginalFunding'!C:D,2,0)),0,VLOOKUP("Original"&OLDLAESTAB&I61,'1718OriginalFunding'!C:D,2,0)) -> 0 | L61: =SUMIF('EOY1718'!E:E,DFENO&Home!I61,'EOY1718'!D:D) -> 0 | M61: =VLOOKUP(I61,Rates!A:L,8,0) ->  | N61: =IF(ISERROR(VLOOKUP(I61,Rates!A:L,3,0)),"",VLOOKUP(I61,Rates!A:L,3,0)) ->  | P61: =VLOOKUP(I61,Rates!A:AO,41,0) ->  | Q61: =SUMIF(TRANS!$BQ:$BQ,Q$3&DFENO&Home!$I61,TRANS!$S:$S) -> 0 | R61: =SUMIF(TRANS!$BQ:$BQ,R$3&DFENO&Home!$I61,TRANS!$S:$S) -> 0 | S61: =SUMIF(TRANS!$BQ:$BQ,S$3&DFENO&Home!$I61,TRANS!$S:$S) -> 0 | T61: =SUMIF(TRANS!$BQ:$BQ,T$3&DFENO&Home!$I61,TRANS!$S:$S) -> 0 | U61: =SUMIF(TRANS!$BQ:$BQ,U$3&DFENO&Home!$I61,TRANS!$S:$S) -> 0 | V61: =SUMIF(TRANS!$BQ:$BQ,V$3&DFENO&Home!$I61,TRANS!$S:$S) -> 0 | W61: =SUMIF(TRANS!$BQ:$BQ,W$3&DFENO&Home!$I61,TRANS!$S:$S) -> 0 | X61: =SUMIF(TRANS!$BQ:$BQ,X$3&DFENO&Home!$I61,TRANS!$S:$S) -> 0 | Y61: =SUMIF(TRANS!$BQ:$BQ,Y$3&DFENO&Home!$I61,TRANS!$S:$S) -> 0 | Z61: =SUMIF(TRANS!$BQ:$BQ,Z$3&DFENO&Home!$I61,TRANS!$S:$S) -> 0 | AA61: =SUMIF(TRANS!$BQ:$BQ,AA$3&DFENO&Home!$I61,TRANS!$S:$S) -> 0 | AB61: =SUMIF(TRANS!$BQ:$BQ,AB$3&DFENO&Home!$I61,TRANS!$S:$S) -> 0 | AC61: =SUMIF(TRANS!$BQ:$BQ,AC$3&DFENO&Home!$I61,TRANS!$S:$S) -> 0 | AD61: 0 | AG61: =IF(ISERROR(VLOOKUP(I61,Rates!$A:$AP,42,0)),"",VLOOKUP(I61,Rates!$A:$AP,42,0)) -> 
A62: =VLOOKUP(I62,Rates!A:L,2,0) ->  | B62: blank | C62: blank | D62: blank | E62: NNDR | F62: blank | G62: blank | H62: blank | K62: =IF(ISERROR(VLOOKUP("Original"&OLDLAESTAB&I62,'1718OriginalFunding'!C:D,2,0)),0,VLOOKUP("Original"&OLDLAESTAB&I62,'1718OriginalFunding'!C:D,2,0)) -> 0 | L62: =SUMIF('EOY1718'!E:E,DFENO&Home!I62,'EOY1718'!D:D) -> 0 | M62: =VLOOKUP(I62,Rates!A:L,8,0) ->  | N62: =IF(ISERROR(VLOOKUP(I62,Rates!A:L,3,0)),"",VLOOKUP(I62,Rates!A:L,3,0)) ->  | P62: =VLOOKUP(I62,Rates!A:AO,41,0) ->  | Q62: =SUMIF(TRANS!$BQ:$BQ,Q$3&DFENO&Home!$I62,TRANS!$S:$S) -> 0 | R62: =SUMIF(TRANS!$BQ:$BQ,R$3&DFENO&Home!$I62,TRANS!$S:$S) -> 0 | S62: =SUMIF(TRANS!$BQ:$BQ,S$3&DFENO&Home!$I62,TRANS!$S:$S) -> 0 | T62: =SUMIF(TRANS!$BQ:$BQ,T$3&DFENO&Home!$I62,TRANS!$S:$S) -> 0 | U62: =SUMIF(TRANS!$BQ:$BQ,U$3&DFENO&Home!$I62,TRANS!$S:$S) -> 0 | V62: =SUMIF(TRANS!$BQ:$BQ,V$3&DFENO&Home!$I62,TRANS!$S:$S) -> 0 | W62: =SUMIF(TRANS!$BQ:$BQ,W$3&DFENO&Home!$I62,TRANS!$S:$S) -> 0 | X62: =SUMIF(TRANS!$BQ:$BQ,X$3&DFENO&Home!$I62,TRANS!$S:$S) -> 0 | Y62: =SUMIF(TRANS!$BQ:$BQ,Y$3&DFENO&Home!$I62,TRANS!$S:$S) -> 0 | Z62: =SUMIF(TRANS!$BQ:$BQ,Z$3&DFENO&Home!$I62,TRANS!$S:$S) -> 0 | AA62: =SUMIF(TRANS!$BQ:$BQ,AA$3&DFENO&Home!$I62,TRANS!$S:$S) -> 0 | AB62: =SUMIF(TRANS!$BQ:$BQ,AB$3&DFENO&Home!$I62,TRANS!$S:$S) -> 0 | AC62: =SUMIF(TRANS!$BQ:$BQ,AC$3&DFENO&Home!$I62,TRANS!$S:$S) -> 0 | AD62: 0
A63: =VLOOKUP(I63,Rates!A:L,2,0) ->  | B63: blank | C63: blank | D63: blank | E63: NNDRPY | F63: blank | G63: blank | H63: blank | K63: =IF(ISERROR(VLOOKUP("Original"&OLDLAESTAB&I63,'1718OriginalFunding'!C:D,2,0)),0,VLOOKUP("Original"&OLDLAESTAB&I63,'1718OriginalFunding'!C:D,2,0)) -> 0 | L63: =SUMIF('EOY1718'!E:E,DFENO&Home!I63,'EOY1718'!D:D) -> 0 | M63: =VLOOKUP(I63,Rates!A:L,8,0) ->  | N63: =IF(ISERROR(VLOOKUP(I63,Rates!A:L,3,0)),"",VLOOKUP(I63,Rates!A:L,3,0)) ->  | P63: =VLOOKUP(I63,Rates!A:AO,41,0) ->  | Q63: =SUMIF(TRANS!$BQ:$BQ,Q$3&DFENO&Home!$I63,TRANS!$S:$S) -> 0 | R63: =SUMIF(TRANS!$BQ:$BQ,R$3&DFENO&Home!$I63,TRANS!$S:$S) -> 0 | S63: =SUMIF(TRANS!$BQ:$BQ,S$3&DFENO&Home!$I63,TRANS!$S:$S) -> 0 | T63: =SUMIF(TRANS!$BQ:$BQ,T$3&DFENO&Home!$I63,TRANS!$S:$S) -> 0 | U63: =SUMIF(TRANS!$BQ:$BQ,U$3&DFENO&Home!$I63,TRANS!$S:$S) -> 0 | V63: =SUMIF(TRANS!$BQ:$BQ,V$3&DFENO&Home!$I63,TRANS!$S:$S) -> 0 | W63: =SUMIF(TRANS!$BQ:$BQ,W$3&DFENO&Home!$I63,TRANS!$S:$S) -> 0 | X63: =SUMIF(TRANS!$BQ:$BQ,X$3&DFENO&Home!$I63,TRANS!$S:$S) -> 0 | Y63: =SUMIF(TRANS!$BQ:$BQ,Y$3&DFENO&Home!$I63,TRANS!$S:$S) -> 0 | Z63: =SUMIF(TRANS!$BQ:$BQ,Z$3&DFENO&Home!$I63,TRANS!$S:$S) -> 0 | AA63: =SUMIF(TRANS!$BQ:$BQ,AA$3&DFENO&Home!$I63,TRANS!$S:$S) -> 0 | AB63: =SUMIF(TRANS!$BQ:$BQ,AB$3&DFENO&Home!$I63,TRANS!$S:$S) -> 0 | AC63: =SUMIF(TRANS!$BQ:$BQ,AC$3&DFENO&Home!$I63,TRANS!$S:$S) -> 0 | AD63: 0
A64: =VLOOKUP(I64,Rates!A:L,2,0) ->  | B64: blank | C64: blank | D64: blank | E64: LUMP SUM | F64: blank | G64: blank | H64: blank | K64: =IF(ISERROR(VLOOKUP("Original"&OLDLAESTAB&I64,'1718OriginalFunding'!C:D,2,0)),0,VLOOKUP("Original"&OLDLAESTAB&I64,'1718OriginalFunding'!C:D,2,0)) -> 0 | L64: =SUMIF('EOY1718'!E:E,DFENO&Home!I64,'EOY1718'!D:D) -> 0 | M64: =VLOOKUP(I64,Rates!A:L,8,0) ->  | N64: =IF(ISERROR(VLOOKUP(I64,Rates!A:L,3,0)),"",VLOOKUP(I64,Rates!A:L,3,0)) ->  | P64: =VLOOKUP(I64,Rates!A:AO,41,0) ->  | Q64: =SUMIF(TRANS!$BQ:$BQ,Q$3&DFENO&Home!$I64,TRANS!$S:$S) -> 0 | R64: =SUMIF(TRANS!$BQ:$BQ,R$3&DFENO&Home!$I64,TRANS!$S:$S) -> 0 | S64: =SUMIF(TRANS!$BQ:$BQ,S$3&DFENO&Home!$I64,TRANS!$S:$S) -> 0 | T64: =SUMIF(TRANS!$BQ:$BQ,T$3&DFENO&Home!$I64,TRANS!$S:$S) -> 0 | U64: =SUMIF(TRANS!$BQ:$BQ,U$3&DFENO&Home!$I64,TRANS!$S:$S) -> 0 | V64: =SUMIF(TRANS!$BQ:$BQ,V$3&DFENO&Home!$I64,TRANS!$S:$S) -> 0 | W64: =SUMIF(TRANS!$BQ:$BQ,W$3&DFENO&Home!$I64,TRANS!$S:$S) -> 0 | X64: =SUMIF(TRANS!$BQ:$BQ,X$3&DFENO&Home!$I64,TRANS!$S:$S) -> 0 | Y64: =SUMIF(TRANS!$BQ:$BQ,Y$3&DFENO&Home!$I64,TRANS!$S:$S) -> 0 | Z64: =SUMIF(TRANS!$BQ:$BQ,Z$3&DFENO&Home!$I64,TRANS!$S:$S) -> 0 | AA64: =SUMIF(TRANS!$BQ:$BQ,AA$3&DFENO&Home!$I64,TRANS!$S:$S) -> 0 | AB64: =SUMIF(TRANS!$BQ:$BQ,AB$3&DFENO&Home!$I64,TRANS!$S:$S) -> 0 | AC64: =SUMIF(TRANS!$BQ:$BQ,AC$3&DFENO&Home!$I64,TRANS!$S:$S) -> 0 | AD64: 0
A65: =VLOOKUP(I65,Rates!A:L,2,0) ->  | B65: blank | C65: blank | D65: blank | E65: SPLIT SITES | F65: blank | G65: blank | H65: blank | K65: =IF(ISERROR(VLOOKUP("Original"&OLDLAESTAB&I65,'1718OriginalFunding'!C:D,2,0)),0,VLOOKUP("Original"&OLDLAESTAB&I65,'1718OriginalFunding'!C:D,2,0)) -> 0 | L65: =SUMIF('EOY1718'!E:E,DFENO&Home!I65,'EOY1718'!D:D) -> 0 | M65: =VLOOKUP(I65,Rates!A:L,8,0) ->  | N65: =IF(ISERROR(VLOOKUP(I65,Rates!A:L,3,0)),"",VLOOKUP(I65,Rates!A:L,3,0)) ->  | P65: =VLOOKUP(I65,Rates!A:AO,41,0) ->  | Q65: =SUMIF(TRANS!$BQ:$BQ,Q$3&DFENO&Home!$I65,TRANS!$S:$S) -> 0 | R65: =SUMIF(TRANS!$BQ:$BQ,R$3&DFENO&Home!$I65,TRANS!$S:$S) -> 0 | S65: =SUMIF(TRANS!$BQ:$BQ,S$3&DFENO&Home!$I65,TRANS!$S:$S) -> 0 | T65: =SUMIF(TRANS!$BQ:$BQ,T$3&DFENO&Home!$I65,TRANS!$S:$S) -> 0 | U65: =SUMIF(TRANS!$BQ:$BQ,U$3&DFENO&Home!$I65,TRANS!$S:$S) -> 0 | V65: =SUMIF(TRANS!$BQ:$BQ,V$3&DFENO&Home!$I65,TRANS!$S:$S) -> 0 | W65: =SUMIF(TRANS!$BQ:$BQ,W$3&DFENO&Home!$I65,TRANS!$S:$S) -> 0 | X65: =SUMIF(TRANS!$BQ:$BQ,X$3&DFENO&Home!$I65,TRANS!$S:$S) -> 0 | Y65: =SUMIF(TRANS!$BQ:$BQ,Y$3&DFENO&Home!$I65,TRANS!$S:$S) -> 0 | Z65: =SUMIF(TRANS!$BQ:$BQ,Z$3&DFENO&Home!$I65,TRANS!$S:$S) -> 0 | AA65: =SUMIF(TRANS!$BQ:$BQ,AA$3&DFENO&Home!$I65,TRANS!$S:$S) -> 0 | AB65: =SUMIF(TRANS!$BQ:$BQ,AB$3&DFENO&Home!$I65,TRANS!$S:$S) -> 0 | AC65: =SUMIF(TRANS!$BQ:$BQ,AC$3&DFENO&Home!$I65,TRANS!$S:$S) -> 0 | AD65: 0
A66: =VLOOKUP(I66,Rates!A:L,2,0) ->  | B66: blank | C66: blank | D66: blank | E66: MFG | F66: blank | G66: blank | H66: blank | K66: =IF(ISERROR(VLOOKUP("Original"&OLDLAESTAB&I66,'1718OriginalFunding'!C:D,2,0)),0,VLOOKUP("Original"&OLDLAESTAB&I66,'1718OriginalFunding'!C:D,2,0)) -> 0 | L66: =SUMIF('EOY1718'!E:E,DFENO&Home!I66,'EOY1718'!D:D) -> 0 | M66: =VLOOKUP(I66,Rates!A:L,8,0) ->  | N66: =IF(ISERROR(VLOOKUP(I66,Rates!A:L,3,0)),"",VLOOKUP(I66,Rates!A:L,3,0)) ->  | P66: =VLOOKUP(I66,Rates!A:AO,41,0) ->  | Q66: =SUMIF(TRANS!$BQ:$BQ,Q$3&DFENO&Home!$I66,TRANS!$S:$S) -> 0 | R66: =SUMIF(TRANS!$BQ:$BQ,R$3&DFENO&Home!$I66,TRANS!$S:$S) -> 0 | S66: =SUMIF(TRANS!$BQ:$BQ,S$3&DFENO&Home!$I66,TRANS!$S:$S) -> 0 | T66: =SUMIF(TRANS!$BQ:$BQ,T$3&DFENO&Home!$I66,TRANS!$S:$S) -> 0 | U66: =SUMIF(TRANS!$BQ:$BQ,U$3&DFENO&Home!$I66,TRANS!$S:$S) -> 0 | V66: =SUMIF(TRANS!$BQ:$BQ,V$3&DFENO&Home!$I66,TRANS!$S:$S) -> 0 | W66: =SUMIF(TRANS!$BQ:$BQ,W$3&DFENO&Home!$I66,TRANS!$S:$S) -> 0 | X66: =SUMIF(TRANS!$BQ:$BQ,X$3&DFENO&Home!$I66,TRANS!$S:$S) -> 0 | Y66: =SUMIF(TRANS!$BQ:$BQ,Y$3&DFENO&Home!$I66,TRANS!$S:$S) -> 0 | Z66: =SUMIF(TRANS!$BQ:$BQ,Z$3&DFENO&Home!$I66,TRANS!$S:$S) -> 0 | AA66: =SUMIF(TRANS!$BQ:$BQ,AA$3&DFENO&Home!$I66,TRANS!$S:$S) -> 0 | AB66: =SUMIF(TRANS!$BQ:$BQ,AB$3&DFENO&Home!$I66,TRANS!$S:$S) -> 0 | AC66: =SUMIF(TRANS!$BQ:$BQ,AC$3&DFENO&Home!$I66,TRANS!$S:$S) -> 0 | AD66: 0
A67: =VLOOKUP(I67,Rates!A:L,2,0) ->  | B67: blank | C67: blank | D67: blank | E67: EXCLUSIONS | F67: blank | G67: blank | H67: blank | K67: =IF(ISERROR(VLOOKUP("Original"&OLDLAESTAB&I67,'1718OriginalFunding'!C:D,2,0)),0,VLOOKUP("Original"&OLDLAESTAB&I67,'1718OriginalFunding'!C:D,2,0)) -> 0 | L67: =SUMIF('EOY1718'!E:E,DFENO&Home!I67,'EOY1718'!D:D) -> 0 | M67: =VLOOKUP(I67,Rates!A:L,8,0) ->  | N67: =IF(ISERROR(VLOOKUP(I67,Rates!A:L,3,0)),"",VLOOKUP(I67,Rates!A:L,3,0)) ->  | P67: =VLOOKUP(I67,Rates!A:AO,41,0) ->  | Q67: =SUMIF(TRANS!$BQ:$BQ,Q$3&DFENO&Home!$I67,TRANS!$S:$S) -> 0 | R67: =SUMIF(TRANS!$BQ:$BQ,R$3&DFENO&Home!$I67,TRANS!$S:$S) -> 0 | S67: =SUMIF(TRANS!$BQ:$BQ,S$3&DFENO&Home!$I67,TRANS!$S:$S) -> 0 | T67: =SUMIF(TRANS!$BQ:$BQ,T$3&DFENO&Home!$I67,TRANS!$S:$S) -> 0 | U67: =SUMIF(TRANS!$BQ:$BQ,U$3&DFENO&Home!$I67,TRANS!$S:$S) -> 0 | V67: =SUMIF(TRANS!$BQ:$BQ,V$3&DFENO&Home!$I67,TRANS!$S:$S) -> 0 | W67: =SUMIF(TRANS!$BQ:$BQ,W$3&DFENO&Home!$I67,TRANS!$S:$S) -> 0 | X67: =SUMIF(TRANS!$BQ:$BQ,X$3&DFENO&Home!$I67,TRANS!$S:$S) -> 0 | Y67: =SUMIF(TRANS!$BQ:$BQ,Y$3&DFENO&Home!$I67,TRANS!$S:$S) -> 0 | Z67: =SUMIF(TRANS!$BQ:$BQ,Z$3&DFENO&Home!$I67,TRANS!$S:$S) -> 0 | AA67: =SUMIF(TRANS!$BQ:$BQ,AA$3&DFENO&Home!$I67,TRANS!$S:$S) -> 0 | AB67: =SUMIF(TRANS!$BQ:$BQ,AB$3&DFENO&Home!$I67,TRANS!$S:$S) -> 0 | AC67: =SUMIF(TRANS!$BQ:$BQ,AC$3&DFENO&Home!$I67,TRANS!$S:$S) -> 0 | AD67: 0
A68: =VLOOKUP(I68,Rates!A:L,2,0) ->  | B68: SUBTOTAL | C68: SUBTOTAL | D68: SUBTOTAL | E68: SUBTOTAL | F68: SUBTOTAL | G68: SUBTOTAL | H68: SUBTOTAL | K68: =SUM(K36:K67) -> 0 | L68: =SUM(L36:L67) -> 0 | N68: =IF(ISERROR(VLOOKUP(I68,Rates!A:L,3,0)),"",VLOOKUP(I68,Rates!A:L,3,0)) ->  | Q68: =SUM(Q36:Q67) -> 0 | R68: =SUM(R36:R67) -> 0 | S68: 0 | T68: 0 | U68: 0 | V68: 0 | W68: 0 | X68: 0 | Y68: 0 | Z68: 0 | AA68: 0 | AB68: 0 | AC68: 0 | AD68: 0 | AG68: =IF(ISERROR(VLOOKUP(I68,Rates!$A:$AP,42,0)),"",VLOOKUP(I68,Rates!$A:$AP,42,0)) -> 
A69: =VLOOKUP(I69,Rates!A:L,2,0) -> REPORT | B69: 19 | C69: 12 | D69: 12 | E69: 19 | F69: 7 | G69: 7 | H69: 2 | AG69: =IF(ISERROR(VLOOKUP(I69,Rates!$A:$AP,42,0)),"",VLOOKUP(I69,Rates!$A:$AP,42,0)) -> 0
B70: High Needs | C70: De-Delegation | D70: De-Delegation | E70: De-Delegation | F70: Post 16 | G70: Post 16 | H70: PRUTop-ups | I70: =INDIRECT(VLOOKUP($X$21,$B$21:$C$29,2,0)&ROW()) ->  | N70: =I70 ->  | O70: =IF($N70="Not used","","For more detail please go to the "&VLOOKUP($N70,$J$168:$K$185,2,0)&" tab") ->  | AG70: =IF(ISERROR(VLOOKUP(I70,Rates!$A:$AP,42,0)),"",VLOOKUP(I70,Rates!$A:$AP,42,0)) -> 
A71: =VLOOKUP(I71,Rates!A:L,2,0) ->  | B71: NURSERYTOPUP | C71: NDPDEUPEG | D71: NDSDEUPEG | E71: NDPDEUPEG | F71: EFAHN | G71: EFAHN | H71: PRUTOPUP | K71: =IF(ISERROR(VLOOKUP("Original"&OLDLAESTAB&I71,'1718OriginalFunding'!C:D,2,0)),0,VLOOKUP("Original"&OLDLAESTAB&I71,'1718OriginalFunding'!C:D,2,0)) -> 0 | L71: =SUMIF('EOY1718'!E:E,DFENO&Home!I71,'EOY1718'!D:D) -> 0 | M71: =VLOOKUP(I30:I71,Rates!A:L,8,0) ->  | N71: =IF(ISERROR(VLOOKUP(I71,Rates!A:L,3,0)),"",VLOOKUP(I71,Rates!A:L,3,0)) ->  | P71: =VLOOKUP(I71,Rates!A:AO,41,0) ->  | Q71: =SUMIF(TRANS!$BQ:$BQ,Q$3&DFENO&Home!$I71,TRANS!$S:$S) -> 0 | R71: =SUMIF(TRANS!$BQ:$BQ,R$3&DFENO&Home!$I71,TRANS!$S:$S) -> 0 | S71: =SUMIF(TRANS!$BQ:$BQ,S$3&DFENO&Home!$I71,TRANS!$S:$S) -> 0 | T71: =SUMIF(TRANS!$BQ:$BQ,T$3&DFENO&Home!$I71,TRANS!$S:$S) -> 0 | U71: =SUMIF(TRANS!$BQ:$BQ,U$3&DFENO&Home!$I71,TRANS!$S:$S) -> 0 | V71: =SUMIF(TRANS!$BQ:$BQ,V$3&DFENO&Home!$I71,TRANS!$S:$S) -> 0 | W71: =SUMIF(TRANS!$BQ:$BQ,W$3&DFENO&Home!$I71,TRANS!$S:$S) -> 0 | X71: =SUMIF(TRANS!$BQ:$BQ,X$3&DFENO&Home!$I71,TRANS!$S:$S) -> 0 | Y71: =SUMIF(TRANS!$BQ:$BQ,Y$3&DFENO&Home!$I71,TRANS!$S:$S) -> 0 | Z71: =SUMIF(TRANS!$BQ:$BQ,Z$3&DFENO&Home!$I71,TRANS!$S:$S) -> 0 | AA71: =SUMIF(TRANS!$BQ:$BQ,AA$3&DFENO&Home!$I71,TRANS!$S:$S) -> 0 | AB71: =SUMIF(TRANS!$BQ:$BQ,AB$3&DFENO&Home!$I71,TRANS!$S:$S) -> 0 | AC71: =SUMIF(TRANS!$BQ:$BQ,AC$3&DFENO&Home!$I71,TRANS!$S:$S) -> 0 | AD71: =SUM(Q71:AC71) -> 0 | AG71: =IF(ISERROR(VLOOKUP(I71,Rates!$A:$AP,42,0)),"",VLOOKUP(I71,Rates!$A:$AP,42,0)) -> 
A72: =VLOOKUP(I72,Rates!A:L,2,0) ->  | B72: OTHERTOPUP | C72: NDPDEBS | D72: NDSDESupply | E72: NDSDEUPEG | F72: EFAPROG | G72: EFAPROG | H72: OTHERTOPUP | K72: =IF(ISERROR(VLOOKUP("Original"&OLDLAESTAB&I72,'1718OriginalFunding'!C:D,2,0)),0,VLOOKUP("Original"&OLDLAESTAB&I72,'1718OriginalFunding'!C:D,2,0)) -> 0 | L72: =SUMIF('EOY1718'!E:E,DFENO&Home!I72,'EOY1718'!D:D) -> 0 | M72: =VLOOKUP(I31:I72,Rates!A:L,8,0) ->  | N72: =IF(ISERROR(VLOOKUP(I72,Rates!A:L,3,0)),"",VLOOKUP(I72,Rates!A:L,3,0)) ->  | P72: =VLOOKUP(I72,Rates!A:AO,41,0) ->  | Q72: =SUMIF(TRANS!$BQ:$BQ,Q$3&DFENO&Home!$I72,TRANS!$S:$S) -> 0 | R72: =SUMIF(TRANS!$BQ:$BQ,R$3&DFENO&Home!$I72,TRANS!$S:$S) -> 0 | S72: =SUMIF(TRANS!$BQ:$BQ,S$3&DFENO&Home!$I72,TRANS!$S:$S) -> 0 | T72: =SUMIF(TRANS!$BQ:$BQ,T$3&DFENO&Home!$I72,TRANS!$S:$S) -> 0 | U72: =SUMIF(TRANS!$BQ:$BQ,U$3&DFENO&Home!$I72,TRANS!$S:$S) -> 0 | V72: =SUMIF(TRANS!$BQ:$BQ,V$3&DFENO&Home!$I72,TRANS!$S:$S) -> 0 | W72: =SUMIF(TRANS!$BQ:$BQ,W$3&DFENO&Home!$I72,TRANS!$S:$S) -> 0 | X72: =SUMIF(TRANS!$BQ:$BQ,X$3&DFENO&Home!$I72,TRANS!$S:$S) -> 0 | Y72: =SUMIF(TRANS!$BQ:$BQ,Y$3&DFENO&Home!$I72,TRANS!$S:$S) -> 0 | Z72: =SUMIF(TRANS!$BQ:$BQ,Z$3&DFENO&Home!$I72,TRANS!$S:$S) -> 0 | AA72: =SUMIF(TRANS!$BQ:$BQ,AA$3&DFENO&Home!$I72,TRANS!$S:$S) -> 0 | AB72: =SUMIF(TRANS!$BQ:$BQ,AB$3&DFENO&Home!$I72,TRANS!$S:$S) -> 0 | AC72: =SUMIF(TRANS!$BQ:$BQ,AC$3&DFENO&Home!$I72,TRANS!$S:$S) -> 0 | AD72: =SUM(Q72:AC72) -> 0 | AG72: =IF(ISERROR(VLOOKUP(I72,Rates!$A:$AP,42,0)),"",VLOOKUP(I72,Rates!$A:$AP,42,0)) -> 
A73: =VLOOKUP(I73,Rates!A:L,2,0) ->  | B73: STMTPY | C73: NDPDESupply | D73: NDSecDELConting | E73: NDPDEBS | F73: BURSARY | G73: BURSARY | H73: STATEMENTTOPUP | K73: =IF(ISERROR(VLOOKUP("Original"&OLDLAESTAB&I73,'1718OriginalFunding'!C:D,2,0)),0,VLOOKUP("Original"&OLDLAESTAB&I73,'1718OriginalFunding'!C:D,2,0)) -> 0 | L73: =SUMIF('EOY1718'!E:E,DFENO&Home!I73,'EOY1718'!D:D) -> 0 | M73: =VLOOKUP(I32:I73,Rates!A:L,8,0) ->  | N73: =IF(ISERROR(VLOOKUP(I73,Rates!A:L,3,0)),"",VLOOKUP(I73,Rates!A:L,3,0)) ->  | P73: =VLOOKUP(I73,Rates!A:AO,41,0) ->  | Q73: =SUMIF(TRANS!$BQ:$BQ,Q$3&DFENO&Home!$I73,TRANS!$S:$S) -> 0 | R73: =SUMIF(TRANS!$BQ:$BQ,R$3&DFENO&Home!$I73,TRANS!$S:$S) -> 0 | S73: =SUMIF(TRANS!$BQ:$BQ,S$3&DFENO&Home!$I73,TRANS!$S:$S) -> 0 | T73: =SUMIF(TRANS!$BQ:$BQ,T$3&DFENO&Home!$I73,TRANS!$S:$S) -> 0 | U73: =SUMIF(TRANS!$BQ:$BQ,U$3&DFENO&Home!$I73,TRANS!$S:$S) -> 0 | V73: =SUMIF(TRANS!$BQ:$BQ,V$3&DFENO&Home!$I73,TRANS!$S:$S) -> 0 | W73: =SUMIF(TRANS!$BQ:$BQ,W$3&DFENO&Home!$I73,TRANS!$S:$S) -> 0 | X73: =SUMIF(TRANS!$BQ:$BQ,X$3&DFENO&Home!$I73,TRANS!$S:$S) -> 0 | Y73: =SUMIF(TRANS!$BQ:$BQ,Y$3&DFENO&Home!$I73,TRANS!$S:$S) -> 0 | Z73: =SUMIF(TRANS!$BQ:$BQ,Z$3&DFENO&Home!$I73,TRANS!$S:$S) -> 0 | AA73: =SUMIF(TRANS!$BQ:$BQ,AA$3&DFENO&Home!$I73,TRANS!$S:$S) -> 0 | AB73: =SUMIF(TRANS!$BQ:$BQ,AB$3&DFENO&Home!$I73,TRANS!$S:$S) -> 0 | AC73: =SUMIF(TRANS!$BQ:$BQ,AC$3&DFENO&Home!$I73,TRANS!$S:$S) -> 0 | AD73: 0 | AG73: =IF(ISERROR(VLOOKUP(I73,Rates!$A:$AP,42,0)),"",VLOOKUP(I73,Rates!$A:$AP,42,0)) -> 
A74: =VLOOKUP(I74,Rates!A:L,2,0) ->  | B74: NURSERYEX | C74: NDPriDELConting | D74: NDSecDELImprov | E74: NDPDESupply | F74: blank | G74: blank | H74: blank | K74: =IF(ISERROR(VLOOKUP("Original"&OLDLAESTAB&I74,'1718OriginalFunding'!C:D,2,0)),0,VLOOKUP("Original"&OLDLAESTAB&I74,'1718OriginalFunding'!C:D,2,0)) -> 0 | L74: =SUMIF('EOY1718'!E:E,DFENO&Home!I74,'EOY1718'!D:D) -> 0 | M74: =VLOOKUP(I33:I74,Rates!A:L,8,0) ->  | N74: =IF(ISERROR(VLOOKUP(I74,Rates!A:L,3,0)),"",VLOOKUP(I74,Rates!A:L,3,0)) ->  | P74: =VLOOKUP(I74,Rates!A:AO,41,0) ->  | Q74: =SUMIF(TRANS!$BQ:$BQ,Q$3&DFENO&Home!$I74,TRANS!$S:$S) -> 0 | R74: =SUMIF(TRANS!$BQ:$BQ,R$3&DFENO&Home!$I74,TRANS!$S:$S) -> 0 | S74: =SUMIF(TRANS!$BQ:$BQ,S$3&DFENO&Home!$I74,TRANS!$S:$S) -> 0 | T74: =SUMIF(TRANS!$BQ:$BQ,T$3&DFENO&Home!$I74,TRANS!$S:$S) -> 0 | U74: =SUMIF(TRANS!$BQ:$BQ,U$3&DFENO&Home!$I74,TRANS!$S:$S) -> 0 | V74: =SUMIF(TRANS!$BQ:$BQ,V$3&DFENO&Home!$I74,TRANS!$S:$S) -> 0 | W74: =SUMIF(TRANS!$BQ:$BQ,W$3&DFENO&Home!$I74,TRANS!$S:$S) -> 0 | X74: =SUMIF(TRANS!$BQ:$BQ,X$3&DFENO&Home!$I74,TRANS!$S:$S) -> 0 | Y74: =SUMIF(TRANS!$BQ:$BQ,Y$3&DFENO&Home!$I74,TRANS!$S:$S) -> 0 | Z74: =SUMIF(TRANS!$BQ:$BQ,Z$3&DFENO&Home!$I74,TRANS!$S:$S) -> 0 | AA74: =SUMIF(TRANS!$BQ:$BQ,AA$3&DFENO&Home!$I74,TRANS!$S:$S) -> 0 | AB74: =SUMIF(TRANS!$BQ:$BQ,AB$3&DFENO&Home!$I74,TRANS!$S:$S) -> 0 | AC74: =SUMIF(TRANS!$BQ:$BQ,AC$3&DFENO&Home!$I74,TRANS!$S:$S) -> 0 | AD74: 0 | AG74: =IF(ISERROR(VLOOKUP(I74,Rates!$A:$AP,42,0)),"",VLOOKUP(I74,Rates!$A:$AP,42,0)) -> 
A75: =VLOOKUP(I75,Rates!A:L,2,0) ->  | B75: blank | C75: NDPriDELImprov | D75: blank | E75: NDSDESupply | F75: blank | G75: blank | H75: blank | K75: =IF(ISERROR(VLOOKUP("Original"&OLDLAESTAB&I75,'1718OriginalFunding'!C:D,2,0)),0,VLOOKUP("Original"&OLDLAESTAB&I75,'1718OriginalFunding'!C:D,2,0)) -> 0 | L75: =SUMIF('EOY1718'!E:E,DFENO&Home!I75,'EOY1718'!D:D) -> 0 | M75: =VLOOKUP(I34:I75,Rates!A:L,8,0) ->  | N75: =IF(ISERROR(VLOOKUP(I75,Rates!A:L,3,0)),"",VLOOKUP(I75,Rates!A:L,3,0)) ->  | P75: =VLOOKUP(I75,Rates!A:AO,41,0) ->  | Q75: =SUMIF(TRANS!$BQ:$BQ,Q$3&DFENO&Home!$I75,TRANS!$S:$S) -> 0 | R75: =SUMIF(TRANS!$BQ:$BQ,R$3&DFENO&Home!$I75,TRANS!$S:$S) -> 0 | S75: =SUMIF(TRANS!$BQ:$BQ,S$3&DFENO&Home!$I75,TRANS!$S:$S) -> 0 | T75: =SUMIF(TRANS!$BQ:$BQ,T$3&DFENO&Home!$I75,TRANS!$S:$S) -> 0 | U75: =SUMIF(TRANS!$BQ:$BQ,U$3&DFENO&Home!$I75,TRANS!$S:$S) -> 0 | V75: =SUMIF(TRANS!$BQ:$BQ,V$3&DFENO&Home!$I75,TRANS!$S:$S) -> 0 | W75: =SUMIF(TRANS!$BQ:$BQ,W$3&DFENO&Home!$I75,TRANS!$S:$S) -> 0 | X75: =SUMIF(TRANS!$BQ:$BQ,X$3&DFENO&Home!$I75,TRANS!$S:$S) -> 0 | Y75: =SUMIF(TRANS!$BQ:$BQ,Y$3&DFENO&Home!$I75,TRANS!$S:$S) -> 0 | Z75: =SUMIF(TRANS!$BQ:$BQ,Z$3&DFENO&Home!$I75,TRANS!$S:$S) -> 0 | AA75: =SUMIF(TRANS!$BQ:$BQ,AA$3&DFENO&Home!$I75,TRANS!$S:$S) -> 0 | AB75: =SUMIF(TRANS!$BQ:$BQ,AB$3&DFENO&Home!$I75,TRANS!$S:$S) -> 0 | AC75: =SUMIF(TRANS!$BQ:$BQ,AC$3&DFENO&Home!$I75,TRANS!$S:$S) -> 0 | AD75: 0 | AG75: =IF(ISERROR(VLOOKUP(I75,Rates!$A:$AP,42,0)),"",VLOOKUP(I75,Rates!$A:$AP,42,0)) -> 
A76: =VLOOKUP(I76,Rates!A:L,2,0) ->  | B76: blank | C76: blank | D76: blank | E76: NDPriDELConting | F76: blank | G76: blank | H76: blank | K76: =IF(ISERROR(VLOOKUP("Original"&OLDLAESTAB&I76,'1718OriginalFunding'!C:D,2,0)),0,VLOOKUP("Original"&OLDLAESTAB&I76,'1718OriginalFunding'!C:D,2,0)) -> 0 | L76: =SUMIF('EOY1718'!E:E,DFENO&Home!I76,'EOY1718'!D:D) -> 0 | M76: =VLOOKUP(I35:I76,Rates!A:L,8,0) ->  | N76: =IF(ISERROR(VLOOKUP(I76,Rates!A:L,3,0)),"",VLOOKUP(I76,Rates!A:L,3,0)) ->  | O76: =HYPERLINK(VLOOKUP(N70,$J$168:$M$185,4,0),IF(N70="Not Used","",N70)) ->  | P76: =VLOOKUP(I76,Rates!A:AO,41,0) ->  | Q76: =SUMIF(TRANS!$BQ:$BQ,Q$3&DFENO&Home!$I76,TRANS!$S:$S) -> 0 | R76: =SUMIF(TRANS!$BQ:$BQ,R$3&DFENO&Home!$I76,TRANS!$S:$S) -> 0 | S76: =SUMIF(TRANS!$BQ:$BQ,S$3&DFENO&Home!$I76,TRANS!$S:$S) -> 0 | T76: =SUMIF(TRANS!$BQ:$BQ,T$3&DFENO&Home!$I76,TRANS!$S:$S) -> 0 | U76: =SUMIF(TRANS!$BQ:$BQ,U$3&DFENO&Home!$I76,TRANS!$S:$S) -> 0 | V76: =SUMIF(TRANS!$BQ:$BQ,V$3&DFENO&Home!$I76,TRANS!$S:$S) -> 0 | W76: =SUMIF(TRANS!$BQ:$BQ,W$3&DFENO&Home!$I76,TRANS!$S:$S) -> 0 | X76: =SUMIF(TRANS!$BQ:$BQ,X$3&DFENO&Home!$I76,TRANS!$S:$S) -> 0 | Y76: =SUMIF(TRANS!$BQ:$BQ,Y$3&DFENO&Home!$I76,TRANS!$S:$S) -> 0 | Z76: =SUMIF(TRANS!$BQ:$BQ,Z$3&DFENO&Home!$I76,TRANS!$S:$S) -> 0 | AA76: =SUMIF(TRANS!$BQ:$BQ,AA$3&DFENO&Home!$I76,TRANS!$S:$S) -> 0 | AB76: =SUMIF(TRANS!$BQ:$BQ,AB$3&DFENO&Home!$I76,TRANS!$S:$S) -> 0 | AC76: =SUMIF(TRANS!$BQ:$BQ,AC$3&DFENO&Home!$I76,TRANS!$S:$S) -> 0 | AD76: 0 | AG76: =IF(ISERROR(VLOOKUP(I76,Rates!$A:$AP,42,0)),"",VLOOKUP(I76,Rates!$A:$AP,42,0)) -> 
A77: =VLOOKUP(I77,Rates!A:L,2,0) ->  | B77: blank | C77: blank | D77: blank | E77: NDPriDELImprov | F77: blank | G77: blank | H77: blank | K77: =IF(ISERROR(VLOOKUP("Original"&OLDLAESTAB&I77,'1718OriginalFunding'!C:D,2,0)),0,VLOOKUP("Original"&OLDLAESTAB&I77,'1718OriginalFunding'!C:D,2,0)) -> 0 | L77: =SUMIF('EOY1718'!E:E,DFENO&Home!I77,'EOY1718'!D:D) -> 0 | M77: =VLOOKUP(I36:I77,Rates!A:L,8,0) ->  | N77: =IF(ISERROR(VLOOKUP(I77,Rates!A:L,3,0)),"",VLOOKUP(I77,Rates!A:L,3,0)) ->  | P77: =VLOOKUP(I77,Rates!A:AO,41,0) ->  | Q77: =SUMIF(TRANS!$BQ:$BQ,Q$3&DFENO&Home!$I77,TRANS!$S:$S) -> 0 | R77: =SUMIF(TRANS!$BQ:$BQ,R$3&DFENO&Home!$I77,TRANS!$S:$S) -> 0 | S77: =SUMIF(TRANS!$BQ:$BQ,S$3&DFENO&Home!$I77,TRANS!$S:$S) -> 0 | T77: =SUMIF(TRANS!$BQ:$BQ,T$3&DFENO&Home!$I77,TRANS!$S:$S) -> 0 | U77: =SUMIF(TRANS!$BQ:$BQ,U$3&DFENO&Home!$I77,TRANS!$S:$S) -> 0 | V77: =SUMIF(TRANS!$BQ:$BQ,V$3&DFENO&Home!$I77,TRANS!$S:$S) -> 0 | W77: =SUMIF(TRANS!$BQ:$BQ,W$3&DFENO&Home!$I77,TRANS!$S:$S) -> 0 | X77: =SUMIF(TRANS!$BQ:$BQ,X$3&DFENO&Home!$I77,TRANS!$S:$S) -> 0 | Y77: =SUMIF(TRANS!$BQ:$BQ,Y$3&DFENO&Home!$I77,TRANS!$S:$S) -> 0 | Z77: =SUMIF(TRANS!$BQ:$BQ,Z$3&DFENO&Home!$I77,TRANS!$S:$S) -> 0 | AA77: =SUMIF(TRANS!$BQ:$BQ,AA$3&DFENO&Home!$I77,TRANS!$S:$S) -> 0 | AB77: =SUMIF(TRANS!$BQ:$BQ,AB$3&DFENO&Home!$I77,TRANS!$S:$S) -> 0 | AC77: =SUMIF(TRANS!$BQ:$BQ,AC$3&DFENO&Home!$I77,TRANS!$S:$S) -> 0 | AD77: 0 | AG77: =IF(ISERROR(VLOOKUP(I77,Rates!$A:$AP,42,0)),"",VLOOKUP(I77,Rates!$A:$AP,42,0)) -> 
A78: =VLOOKUP(I78,Rates!A:L,2,0) ->  | B78: blank | C78: blank | D78: blank | E78: NDSecDELConting | F78: blank | G78: blank | H78: blank | K78: =IF(ISERROR(VLOOKUP("Original"&OLDLAESTAB&I78,'1718OriginalFunding'!C:D,2,0)),0,VLOOKUP("Original"&OLDLAESTAB&I78,'1718OriginalFunding'!C:D,2,0)) -> 0 | L78: =SUMIF('EOY1718'!E:E,DFENO&Home!I78,'EOY1718'!D:D) -> 0 | M78: =VLOOKUP(I37:I78,Rates!A:L,8,0) ->  | N78: =IF(ISERROR(VLOOKUP(I78,Rates!A:L,3,0)),"",VLOOKUP(I78,Rates!A:L,3,0)) ->  | Q78: =SUMIF(TRANS!$BQ:$BQ,Q$3&DFENO&Home!$I78,TRANS!$S:$S) -> 0 | R78: =SUMIF(TRANS!$BQ:$BQ,R$3&DFENO&Home!$I78,TRANS!$S:$S) -> 0 | S78: =SUMIF(TRANS!$BQ:$BQ,S$3&DFENO&Home!$I78,TRANS!$S:$S) -> 0 | T78: =SUMIF(TRANS!$BQ:$BQ,T$3&DFENO&Home!$I78,TRANS!$S:$S) -> 0 | U78: =SUMIF(TRANS!$BQ:$BQ,U$3&DFENO&Home!$I78,TRANS!$S:$S) -> 0 | V78: =SUMIF(TRANS!$BQ:$BQ,V$3&DFENO&Home!$I78,TRANS!$S:$S) -> 0 | W78: =SUMIF(TRANS!$BQ:$BQ,W$3&DFENO&Home!$I78,TRANS!$S:$S) -> 0 | X78: =SUMIF(TRANS!$BQ:$BQ,X$3&DFENO&Home!$I78,TRANS!$S:$S) -> 0 | Y78: =SUMIF(TRANS!$BQ:$BQ,Y$3&DFENO&Home!$I78,TRANS!$S:$S) -> 0 | Z78: =SUMIF(TRANS!$BQ:$BQ,Z$3&DFENO&Home!$I78,TRANS!$S:$S) -> 0 | AA78: =SUMIF(TRANS!$BQ:$BQ,AA$3&DFENO&Home!$I78,TRANS!$S:$S) -> 0 | AB78: =SUMIF(TRANS!$BQ:$BQ,AB$3&DFENO&Home!$I78,TRANS!$S:$S) -> 0 | AC78: =SUMIF(TRANS!$BQ:$BQ,AC$3&DFENO&Home!$I78,TRANS!$S:$S) -> 0 | AD78: =SUM(Q78:AC78) -> 0
A79: =VLOOKUP(I79,Rates!A:L,2,0) ->  | B79: blank | C79: blank | D79: blank | E79: NDSecDELImprov | F79: blank | G79: blank | H79: blank | K79: =IF(ISERROR(VLOOKUP("Original"&OLDLAESTAB&I79,'1718OriginalFunding'!C:D,2,0)),0,VLOOKUP("Original"&OLDLAESTAB&I79,'1718OriginalFunding'!C:D,2,0)) -> 0 | L79: =SUMIF('EOY1718'!E:E,DFENO&Home!I79,'EOY1718'!D:D) -> 0 | M79: =VLOOKUP(I38:I79,Rates!A:L,8,0) ->  | N79: =IF(ISERROR(VLOOKUP(I79,Rates!A:L,3,0)),"",VLOOKUP(I79,Rates!A:L,3,0)) ->  | Q79: =SUMIF(TRANS!$BQ:$BQ,Q$3&DFENO&Home!$I79,TRANS!$S:$S) -> 0 | R79: =SUMIF(TRANS!$BQ:$BQ,R$3&DFENO&Home!$I79,TRANS!$S:$S) -> 0 | S79: =SUMIF(TRANS!$BQ:$BQ,S$3&DFENO&Home!$I79,TRANS!$S:$S) -> 0 | T79: =SUMIF(TRANS!$BQ:$BQ,T$3&DFENO&Home!$I79,TRANS!$S:$S) -> 0 | U79: =SUMIF(TRANS!$BQ:$BQ,U$3&DFENO&Home!$I79,TRANS!$S:$S) -> 0 | V79: =SUMIF(TRANS!$BQ:$BQ,V$3&DFENO&Home!$I79,TRANS!$S:$S) -> 0 | W79: =SUMIF(TRANS!$BQ:$BQ,W$3&DFENO&Home!$I79,TRANS!$S:$S) -> 0 | X79: =SUMIF(TRANS!$BQ:$BQ,X$3&DFENO&Home!$I79,TRANS!$S:$S) -> 0 | Y79: =SUMIF(TRANS!$BQ:$BQ,Y$3&DFENO&Home!$I79,TRANS!$S:$S) -> 0 | Z79: =SUMIF(TRANS!$BQ:$BQ,Z$3&DFENO&Home!$I79,TRANS!$S:$S) -> 0 | AA79: =SUMIF(TRANS!$BQ:$BQ,AA$3&DFENO&Home!$I79,TRANS!$S:$S) -> 0 | AB79: =SUMIF(TRANS!$BQ:$BQ,AB$3&DFENO&Home!$I79,TRANS!$S:$S) -> 0 | AC79: =SUMIF(TRANS!$BQ:$BQ,AC$3&DFENO&Home!$I79,TRANS!$S:$S) -> 0 | AD79: =SUM(Q79:AC79) -> 0
A80: =VLOOKUP(I80,Rates!A:L,2,0) ->  | B80: subtotal | C80: subtotal | D80: subtotal | E80: subtotal | F80: subtotal | G80: subtotal | H80: subtotal | K80: =SUM(K70:K79) -> 0 | L80: =SUM(L70:L79) -> 0 | N80: =IF(ISERROR(VLOOKUP(I80,Rates!A:L,3,0)),"",VLOOKUP(I80,Rates!A:L,3,0)) ->  | Q80: =SUM(Q70:Q79) -> 0 | R80: 0 | S80: 0 | T80: 0 | U80: 0 | V80: 0 | W80: 0 | X80: 0 | Y80: 0 | Z80: 0 | AA80: 0 | AB80: 0 | AC80: 0 | AD80: =SUM(AD70:AD79) -> 0 | AG80: =IF(ISERROR(VLOOKUP(I80,Rates!$A:$AP,42,0)),"",VLOOKUP(I80,Rates!$A:$AP,42,0)) -> 
A81: =VLOOKUP(I81,Rates!A:L,2,0) -> REPORT | B81: 3 | C81: 3 | D81: 3 | E81: 6 | F81: 7 | G81: 7 | H81: 3 | AG81: =IF(ISERROR(VLOOKUP(I81,Rates!$A:$AP,42,0)),"",VLOOKUP(I81,Rates!$A:$AP,42,0)) -> 0
B82: Grants | C82: PupilPremium | D82: Post 16 | E82: Post 16 | F82: PupilPremium | G82: PupilPremium | H82: PupilPremium | I82: =INDIRECT(VLOOKUP($X$21,$B$21:$C$29,2,0)&ROW()) ->  | N82: =I82 ->  | O82: =IF($N82="Not used","","For more detail please go to the "&VLOOKUP($N82,$J$168:$K$185,2,0)&" tab") ->  | AG82: =IF(ISERROR(VLOOKUP(I82,Rates!$A:$AP,42,0)),"",VLOOKUP(I82,Rates!$A:$AP,42,0)) -> 
A83: =VLOOKUP(I83,Rates!A:L,2,0) ->  | B83: DFC | C83: PPFSMPri | D83: EFAADD | E83: EFAADD | F83: PPFSMPri | G83: PPFSMPri | H83: PPFSMPri | K83: =IF(ISERROR(VLOOKUP("Original"&OLDLAESTAB&I83,'1718OriginalFunding'!C:D,2,0)),0,VLOOKUP("Original"&OLDLAESTAB&I83,'1718OriginalFunding'!C:D,2,0)) -> 0 | L83: =SUMIF('EOY1718'!E:E,DFENO&Home!I83,'EOY1718'!D:D) -> 0 | M83: =VLOOKUP(I42:I83,Rates!A:L,8,0) ->  | N83: =IF(ISERROR(VLOOKUP(I83,Rates!A:L,3,0)),"",VLOOKUP(I83,Rates!A:L,3,0)) ->  | P83: =VLOOKUP(I83,Rates!A:AO,41,0) ->  | Q83: =SUMIF(TRANS!$BQ:$BQ,Q$3&DFENO&Home!$I83,TRANS!$S:$S) -> 0 | R83: =SUMIF(TRANS!$BQ:$BQ,R$3&DFENO&Home!$I83,TRANS!$S:$S) -> 0 | S83: =SUMIF(TRANS!$BQ:$BQ,S$3&DFENO&Home!$I83,TRANS!$S:$S) -> 0 | T83: =SUMIF(TRANS!$BQ:$BQ,T$3&DFENO&Home!$I83,TRANS!$S:$S) -> 0 | U83: =SUMIF(TRANS!$BQ:$BQ,U$3&DFENO&Home!$I83,TRANS!$S:$S) -> 0 | V83: =SUMIF(TRANS!$BQ:$BQ,V$3&DFENO&Home!$I83,TRANS!$S:$S) -> 0 | W83: =SUMIF(TRANS!$BQ:$BQ,W$3&DFENO&Home!$I83,TRANS!$S:$S) -> 0 | X83: =SUMIF(TRANS!$BQ:$BQ,X$3&DFENO&Home!$I83,TRANS!$S:$S) -> 0 | Y83: =SUMIF(TRANS!$BQ:$BQ,Y$3&DFENO&Home!$I83,TRANS!$S:$S) -> 0 | Z83: =SUMIF(TRANS!$BQ:$BQ,Z$3&DFENO&Home!$I83,TRANS!$S:$S) -> 0 | AA83: =SUMIF(TRANS!$BQ:$BQ,AA$3&DFENO&Home!$I83,TRANS!$S:$S) -> 0 | AB83: =SUMIF(TRANS!$BQ:$BQ,AB$3&DFENO&Home!$I83,TRANS!$S:$S) -> 0 | AC83: =SUMIF(TRANS!$BQ:$BQ,AC$3&DFENO&Home!$I83,TRANS!$S:$S) -> 0 | AD83: =SUM(Q83:AC83) -> 0 | AG83: =IF(ISERROR(VLOOKUP(I83,Rates!$A:$AP,42,0)),"",VLOOKUP(I83,Rates!$A:$AP,42,0)) -> 
A84: =VLOOKUP(I84,Rates!A:L,2,0) ->  | B84: blank | C84: PPSERVICE | D84: EFAFP | E84: EFAFP | F84: PPFSMSec | G84: PPFSMSec | H84: PPFSMSec | K84: =IF(ISERROR(VLOOKUP("Original"&OLDLAESTAB&I84,'1718OriginalFunding'!C:D,2,0)),0,VLOOKUP("Original"&OLDLAESTAB&I84,'1718OriginalFunding'!C:D,2,0)) -> 0 | L84: =SUMIF('EOY1718'!E:E,DFENO&Home!I84,'EOY1718'!D:D) -> 0 | M84: =VLOOKUP(I43:I84,Rates!A:L,8,0) ->  | N84: =IF(ISERROR(VLOOKUP(I84,Rates!A:L,3,0)),"",VLOOKUP(I84,Rates!A:L,3,0)) ->  | P84: =VLOOKUP(I84,Rates!A:AO,41,0) ->  | Q84: =SUMIF(TRANS!$BQ:$BQ,Q$3&DFENO&Home!$I84,TRANS!$S:$S) -> 0 | R84: =SUMIF(TRANS!$BQ:$BQ,R$3&DFENO&Home!$I84,TRANS!$S:$S) -> 0 | S84: =SUMIF(TRANS!$BQ:$BQ,S$3&DFENO&Home!$I84,TRANS!$S:$S) -> 0 | T84: =SUMIF(TRANS!$BQ:$BQ,T$3&DFENO&Home!$I84,TRANS!$S:$S) -> 0 | U84: =SUMIF(TRANS!$BQ:$BQ,U$3&DFENO&Home!$I84,TRANS!$S:$S) -> 0 | V84: =SUMIF(TRANS!$BQ:$BQ,V$3&DFENO&Home!$I84,TRANS!$S:$S) -> 0 | W84: =SUMIF(TRANS!$BQ:$BQ,W$3&DFENO&Home!$I84,TRANS!$S:$S) -> 0 | X84: =SUMIF(TRANS!$BQ:$BQ,X$3&DFENO&Home!$I84,TRANS!$S:$S) -> 0 | Y84: =SUMIF(TRANS!$BQ:$BQ,Y$3&DFENO&Home!$I84,TRANS!$S:$S) -> 0 | Z84: =SUMIF(TRANS!$BQ:$BQ,Z$3&DFENO&Home!$I84,TRANS!$S:$S) -> 0 | AA84: =SUMIF(TRANS!$BQ:$BQ,AA$3&DFENO&Home!$I84,TRANS!$S:$S) -> 0 | AB84: =SUMIF(TRANS!$BQ:$BQ,AB$3&DFENO&Home!$I84,TRANS!$S:$S) -> 0 | AC84: =SUMIF(TRANS!$BQ:$BQ,AC$3&DFENO&Home!$I84,TRANS!$S:$S) -> 0 | AD84: =SUM(Q84:AC84) -> 0 | AG84: =IF(ISERROR(VLOOKUP(I84,Rates!$A:$AP,42,0)),"",VLOOKUP(I84,Rates!$A:$AP,42,0)) -> 
A85: =VLOOKUP(I85,Rates!A:L,2,0) ->  | B85: blank | C85: PPLOOKEDAFTER | D85: EFAHN | E85: EFAHN | F85: PPSERVICE | G85: PPSERVICE | H85: PPSERVICE | K85: =IF(ISERROR(VLOOKUP("Original"&OLDLAESTAB&I85,'1718OriginalFunding'!C:D,2,0)),0,VLOOKUP("Original"&OLDLAESTAB&I85,'1718OriginalFunding'!C:D,2,0)) -> 0 | L85: =SUMIF('EOY1718'!E:E,DFENO&Home!I85,'EOY1718'!D:D) -> 0 | M85: =VLOOKUP(I44:I85,Rates!A:L,8,0) ->  | N85: =IF(ISERROR(VLOOKUP(I85,Rates!A:L,3,0)),"",VLOOKUP(I85,Rates!A:L,3,0)) ->  | P85: =VLOOKUP(I85,Rates!A:AO,41,0) ->  | Q85: =SUMIF(TRANS!$BQ:$BQ,Q$3&DFENO&Home!$I85,TRANS!$S:$S) -> 0 | R85: =SUMIF(TRANS!$BQ:$BQ,R$3&DFENO&Home!$I85,TRANS!$S:$S) -> 0 | S85: =SUMIF(TRANS!$BQ:$BQ,S$3&DFENO&Home!$I85,TRANS!$S:$S) -> 0 | T85: =SUMIF(TRANS!$BQ:$BQ,T$3&DFENO&Home!$I85,TRANS!$S:$S) -> 0 | U85: =SUMIF(TRANS!$BQ:$BQ,U$3&DFENO&Home!$I85,TRANS!$S:$S) -> 0 | V85: =SUMIF(TRANS!$BQ:$BQ,V$3&DFENO&Home!$I85,TRANS!$S:$S) -> 0 | W85: =SUMIF(TRANS!$BQ:$BQ,W$3&DFENO&Home!$I85,TRANS!$S:$S) -> 0 | X85: =SUMIF(TRANS!$BQ:$BQ,X$3&DFENO&Home!$I85,TRANS!$S:$S) -> 0 | Y85: =SUMIF(TRANS!$BQ:$BQ,Y$3&DFENO&Home!$I85,TRANS!$S:$S) -> 0 | Z85: =SUMIF(TRANS!$BQ:$BQ,Z$3&DFENO&Home!$I85,TRANS!$S:$S) -> 0 | AA85: =SUMIF(TRANS!$BQ:$BQ,AA$3&DFENO&Home!$I85,TRANS!$S:$S) -> 0 | AB85: =SUMIF(TRANS!$BQ:$BQ,AB$3&DFENO&Home!$I85,TRANS!$S:$S) -> 0 | AC85: =SUMIF(TRANS!$BQ:$BQ,AC$3&DFENO&Home!$I85,TRANS!$S:$S) -> 0 | AD85: 0 | AG85: =IF(ISERROR(VLOOKUP(I85,Rates!$A:$AP,42,0)),"",VLOOKUP(I85,Rates!$A:$AP,42,0)) -> 
A86: =VLOOKUP(I86,Rates!A:L,2,0) ->  | B86: blank | C86: PPPOST-LAC | D86: EFAALS | E86: EFAALS | F86: PPLOOKEDAFTER | G86: PPLOOKEDAFTER | H86: PPLOOKEDAFTER | K86: =IF(ISERROR(VLOOKUP("Original"&OLDLAESTAB&I86,'1718OriginalFunding'!C:D,2,0)),0,VLOOKUP("Original"&OLDLAESTAB&I86,'1718OriginalFunding'!C:D,2,0)) -> 0 | L86: =SUMIF('EOY1718'!E:E,DFENO&Home!I86,'EOY1718'!D:D) -> 0 | M86: =VLOOKUP(I45:I86,Rates!A:L,8,0) ->  | N86: =IF(ISERROR(VLOOKUP(I86,Rates!A:L,3,0)),"",VLOOKUP(I86,Rates!A:L,3,0)) ->  | P86: =VLOOKUP(I86,Rates!A:AO,41,0) ->  | Q86: =SUMIF(TRANS!$BQ:$BQ,Q$3&DFENO&Home!$I86,TRANS!$S:$S) -> 0 | R86: =SUMIF(TRANS!$BQ:$BQ,R$3&DFENO&Home!$I86,TRANS!$S:$S) -> 0 | S86: =SUMIF(TRANS!$BQ:$BQ,S$3&DFENO&Home!$I86,TRANS!$S:$S) -> 0 | T86: =SUMIF(TRANS!$BQ:$BQ,T$3&DFENO&Home!$I86,TRANS!$S:$S) -> 0 | U86: =SUMIF(TRANS!$BQ:$BQ,U$3&DFENO&Home!$I86,TRANS!$S:$S) -> 0 | V86: =SUMIF(TRANS!$BQ:$BQ,V$3&DFENO&Home!$I86,TRANS!$S:$S) -> 0 | W86: =SUMIF(TRANS!$BQ:$BQ,W$3&DFENO&Home!$I86,TRANS!$S:$S) -> 0 | X86: =SUMIF(TRANS!$BQ:$BQ,X$3&DFENO&Home!$I86,TRANS!$S:$S) -> 0 | Y86: =SUMIF(TRANS!$BQ:$BQ,Y$3&DFENO&Home!$I86,TRANS!$S:$S) -> 0 | Z86: =SUMIF(TRANS!$BQ:$BQ,Z$3&DFENO&Home!$I86,TRANS!$S:$S) -> 0 | AA86: =SUMIF(TRANS!$BQ:$BQ,AA$3&DFENO&Home!$I86,TRANS!$S:$S) -> 0 | AB86: =SUMIF(TRANS!$BQ:$BQ,AB$3&DFENO&Home!$I86,TRANS!$S:$S) -> 0 | AC86: =SUMIF(TRANS!$BQ:$BQ,AC$3&DFENO&Home!$I86,TRANS!$S:$S) -> 0 | AD86: 0 | AG86: =IF(ISERROR(VLOOKUP(I86,Rates!$A:$AP,42,0)),"",VLOOKUP(I86,Rates!$A:$AP,42,0)) -> 
A87: =VLOOKUP(I87,Rates!A:L,2,0) ->  | B87: blank | C87: PPPY | D87: EFAPROG | E87: EFAPROG | F87: PPPOST-LAC | G87: PPPOST-LAC | H87: PPPOST-LAC | K87: =IF(ISERROR(VLOOKUP("Original"&OLDLAESTAB&I87,'1718OriginalFunding'!C:D,2,0)),0,VLOOKUP("Original"&OLDLAESTAB&I87,'1718OriginalFunding'!C:D,2,0)) -> 0 | L87: =SUMIF('EOY1718'!E:E,DFENO&Home!I87,'EOY1718'!D:D) -> 0 | M87: =VLOOKUP(I46:I87,Rates!A:L,8,0) ->  | N87: =IF(ISERROR(VLOOKUP(I87,Rates!A:L,3,0)),"",VLOOKUP(I87,Rates!A:L,3,0)) ->  | P87: =VLOOKUP(I87,Rates!A:AO,41,0) ->  | Q87: =SUMIF(TRANS!$BQ:$BQ,Q$3&DFENO&Home!$I87,TRANS!$S:$S) -> 0 | R87: =SUMIF(TRANS!$BQ:$BQ,R$3&DFENO&Home!$I87,TRANS!$S:$S) -> 0 | S87: =SUMIF(TRANS!$BQ:$BQ,S$3&DFENO&Home!$I87,TRANS!$S:$S) -> 0 | T87: =SUMIF(TRANS!$BQ:$BQ,T$3&DFENO&Home!$I87,TRANS!$S:$S) -> 0 | U87: =SUMIF(TRANS!$BQ:$BQ,U$3&DFENO&Home!$I87,TRANS!$S:$S) -> 0 | V87: =SUMIF(TRANS!$BQ:$BQ,V$3&DFENO&Home!$I87,TRANS!$S:$S) -> 0 | W87: =SUMIF(TRANS!$BQ:$BQ,W$3&DFENO&Home!$I87,TRANS!$S:$S) -> 0 | X87: =SUMIF(TRANS!$BQ:$BQ,X$3&DFENO&Home!$I87,TRANS!$S:$S) -> 0 | Y87: =SUMIF(TRANS!$BQ:$BQ,Y$3&DFENO&Home!$I87,TRANS!$S:$S) -> 0 | Z87: =SUMIF(TRANS!$BQ:$BQ,Z$3&DFENO&Home!$I87,TRANS!$S:$S) -> 0 | AA87: =SUMIF(TRANS!$BQ:$BQ,AA$3&DFENO&Home!$I87,TRANS!$S:$S) -> 0 | AB87: =SUMIF(TRANS!$BQ:$BQ,AB$3&DFENO&Home!$I87,TRANS!$S:$S) -> 0 | AC87: =SUMIF(TRANS!$BQ:$BQ,AC$3&DFENO&Home!$I87,TRANS!$S:$S) -> 0 | AD87: 0 | AG87: =IF(ISERROR(VLOOKUP(I87,Rates!$A:$AP,42,0)),"",VLOOKUP(I87,Rates!$A:$AP,42,0)) -> 
A88: =VLOOKUP(I88,Rates!A:L,2,0) ->  | B88: blank | C88: PPEXCLUSIONS | D88: EFATRANS | E88: EFATRANS | F88: SUMMERSCHOOLSGRANT | G88: SUMMERSCHOOLSGRANT | H88: SUMMERSCHOOLSGRANT | K88: =IF(ISERROR(VLOOKUP("Original"&OLDLAESTAB&I88,'1718OriginalFunding'!C:D,2,0)),0,VLOOKUP("Original"&OLDLAESTAB&I88,'1718OriginalFunding'!C:D,2,0)) -> 0 | L88: =SUMIF('EOY1718'!E:E,DFENO&Home!I88,'EOY1718'!D:D) -> 0 | M88: =VLOOKUP(I47:I88,Rates!A:L,8,0) ->  | N88: =IF(ISERROR(VLOOKUP(I88,Rates!A:L,3,0)),"",VLOOKUP(I88,Rates!A:L,3,0)) ->  | P88: =VLOOKUP(I88,Rates!A:AO,41,0) ->  | Q88: =SUMIF(TRANS!$BQ:$BQ,Q$3&DFENO&Home!$I88,TRANS!$S:$S) -> 0 | R88: =SUMIF(TRANS!$BQ:$BQ,R$3&DFENO&Home!$I88,TRANS!$S:$S) -> 0 | S88: =SUMIF(TRANS!$BQ:$BQ,S$3&DFENO&Home!$I88,TRANS!$S:$S) -> 0 | T88: =SUMIF(TRANS!$BQ:$BQ,T$3&DFENO&Home!$I88,TRANS!$S:$S) -> 0 | U88: =SUMIF(TRANS!$BQ:$BQ,U$3&DFENO&Home!$I88,TRANS!$S:$S) -> 0 | V88: =SUMIF(TRANS!$BQ:$BQ,V$3&DFENO&Home!$I88,TRANS!$S:$S) -> 0 | W88: =SUMIF(TRANS!$BQ:$BQ,W$3&DFENO&Home!$I88,TRANS!$S:$S) -> 0 | X88: =SUMIF(TRANS!$BQ:$BQ,X$3&DFENO&Home!$I88,TRANS!$S:$S) -> 0 | Y88: =SUMIF(TRANS!$BQ:$BQ,Y$3&DFENO&Home!$I88,TRANS!$S:$S) -> 0 | Z88: =SUMIF(TRANS!$BQ:$BQ,Z$3&DFENO&Home!$I88,TRANS!$S:$S) -> 0 | AA88: =SUMIF(TRANS!$BQ:$BQ,AA$3&DFENO&Home!$I88,TRANS!$S:$S) -> 0 | AB88: =SUMIF(TRANS!$BQ:$BQ,AB$3&DFENO&Home!$I88,TRANS!$S:$S) -> 0 | AC88: =SUMIF(TRANS!$BQ:$BQ,AC$3&DFENO&Home!$I88,TRANS!$S:$S) -> 0 | AD88: 0 | AG88: =IF(ISERROR(VLOOKUP(I88,Rates!$A:$AP,42,0)),"",VLOOKUP(I88,Rates!$A:$AP,42,0)) -> 
A89: =VLOOKUP(I89,Rates!A:L,2,0) ->  | B89: blank | C89: blank | D89: BURSARY | E89: BURSARY | F89: EYPP | G89: EYPP | H89: PPFSMPRU | K89: =IF(ISERROR(VLOOKUP("Original"&OLDLAESTAB&I89,'1718OriginalFunding'!C:D,2,0)),0,VLOOKUP("Original"&OLDLAESTAB&I89,'1718OriginalFunding'!C:D,2,0)) -> 0 | L89: =SUMIF('EOY1718'!E:E,DFENO&Home!I89,'EOY1718'!D:D) -> 0 | M89: =VLOOKUP(I48:I89,Rates!A:L,8,0) ->  | N89: =IF(ISERROR(VLOOKUP(I89,Rates!A:L,3,0)),"",VLOOKUP(I89,Rates!A:L,3,0)) ->  | O89: =HYPERLINK(VLOOKUP(N82,$J$168:$M$185,4,0),IF(N82="Not Used","",N82)) ->  | P89: =VLOOKUP(I89,Rates!A:AO,41,0) ->  | Q89: =SUMIF(TRANS!$BQ:$BQ,Q$3&DFENO&Home!$I89,TRANS!$S:$S) -> 0 | R89: =SUMIF(TRANS!$BQ:$BQ,R$3&DFENO&Home!$I89,TRANS!$S:$S) -> 0 | S89: =SUMIF(TRANS!$BQ:$BQ,S$3&DFENO&Home!$I89,TRANS!$S:$S) -> 0 | T89: =SUMIF(TRANS!$BQ:$BQ,T$3&DFENO&Home!$I89,TRANS!$S:$S) -> 0 | U89: =SUMIF(TRANS!$BQ:$BQ,U$3&DFENO&Home!$I89,TRANS!$S:$S) -> 0 | V89: =SUMIF(TRANS!$BQ:$BQ,V$3&DFENO&Home!$I89,TRANS!$S:$S) -> 0 | W89: =SUMIF(TRANS!$BQ:$BQ,W$3&DFENO&Home!$I89,TRANS!$S:$S) -> 0 | X89: =SUMIF(TRANS!$BQ:$BQ,X$3&DFENO&Home!$I89,TRANS!$S:$S) -> 0 | Y89: =SUMIF(TRANS!$BQ:$BQ,Y$3&DFENO&Home!$I89,TRANS!$S:$S) -> 0 | Z89: =SUMIF(TRANS!$BQ:$BQ,Z$3&DFENO&Home!$I89,TRANS!$S:$S) -> 0 | AA89: =SUMIF(TRANS!$BQ:$BQ,AA$3&DFENO&Home!$I89,TRANS!$S:$S) -> 0 | AB89: =SUMIF(TRANS!$BQ:$BQ,AB$3&DFENO&Home!$I89,TRANS!$S:$S) -> 0 | AC89: =SUMIF(TRANS!$BQ:$BQ,AC$3&DFENO&Home!$I89,TRANS!$S:$S) -> 0 | AD89: 0 | AG89: =IF(ISERROR(VLOOKUP(I89,Rates!$A:$AP,42,0)),"",VLOOKUP(I89,Rates!$A:$AP,42,0)) -> 
A90: =VLOOKUP(I90,Rates!A:L,2,0) ->  | B90: blank | C90: blank | D90: EFAPY | E90: blank | F90: PPPY | G90: PPPY | H90: PPPY | K90: =IF(ISERROR(VLOOKUP("Original"&OLDLAESTAB&I90,'1718OriginalFunding'!C:D,2,0)),0,VLOOKUP("Original"&OLDLAESTAB&I90,'1718OriginalFunding'!C:D,2,0)) -> 0 | L90: =SUMIF('EOY1718'!E:E,DFENO&Home!I90,'EOY1718'!D:D) -> 0 | M90: =VLOOKUP(I49:I90,Rates!A:L,8,0) ->  | N90: =IF(ISERROR(VLOOKUP(I90,Rates!A:L,3,0)),"",VLOOKUP(I90,Rates!A:L,3,0)) ->  | P90: =VLOOKUP(I90,Rates!A:AO,41,0) ->  | Q90: =SUMIF(TRANS!$BQ:$BQ,Q$3&DFENO&Home!$I90,TRANS!$S:$S) -> 0 | R90: =SUMIF(TRANS!$BQ:$BQ,R$3&DFENO&Home!$I90,TRANS!$S:$S) -> 0 | S90: =SUMIF(TRANS!$BQ:$BQ,S$3&DFENO&Home!$I90,TRANS!$S:$S) -> 0 | T90: =SUMIF(TRANS!$BQ:$BQ,T$3&DFENO&Home!$I90,TRANS!$S:$S) -> 0 | U90: =SUMIF(TRANS!$BQ:$BQ,U$3&DFENO&Home!$I90,TRANS!$S:$S) -> 0 | V90: =SUMIF(TRANS!$BQ:$BQ,V$3&DFENO&Home!$I90,TRANS!$S:$S) -> 0 | W90: =SUMIF(TRANS!$BQ:$BQ,W$3&DFENO&Home!$I90,TRANS!$S:$S) -> 0 | X90: =SUMIF(TRANS!$BQ:$BQ,X$3&DFENO&Home!$I90,TRANS!$S:$S) -> 0 | Y90: =SUMIF(TRANS!$BQ:$BQ,Y$3&DFENO&Home!$I90,TRANS!$S:$S) -> 0 | Z90: =SUMIF(TRANS!$BQ:$BQ,Z$3&DFENO&Home!$I90,TRANS!$S:$S) -> 0 | AA90: =SUMIF(TRANS!$BQ:$BQ,AA$3&DFENO&Home!$I90,TRANS!$S:$S) -> 0 | AB90: =SUMIF(TRANS!$BQ:$BQ,AB$3&DFENO&Home!$I90,TRANS!$S:$S) -> 0 | AC90: =SUMIF(TRANS!$BQ:$BQ,AC$3&DFENO&Home!$I90,TRANS!$S:$S) -> 0 | AD90: 0 | AG90: =IF(ISERROR(VLOOKUP(I90,Rates!$A:$AP,42,0)),"",VLOOKUP(I90,Rates!$A:$AP,42,0)) -> 
A91: =VLOOKUP(I91,Rates!A:L,2,0) ->  | B91: blank | C91: blank | D91: blank | E91: blank | F91: PPEXCLUSIONS | G91: PPEXCLUSIONS | H91: PPEXCLUSIONS | K91: =IF(ISERROR(VLOOKUP("Original"&OLDLAESTAB&I91,'1718OriginalFunding'!C:D,2,0)),0,VLOOKUP("Original"&OLDLAESTAB&I91,'1718OriginalFunding'!C:D,2,0)) -> 0 | L91: =SUMIF('EOY1718'!E:E,DFENO&Home!I91,'EOY1718'!D:D) -> 0 | M91: =VLOOKUP(I50:I91,Rates!A:L,8,0) ->  | N91: =IF(ISERROR(VLOOKUP(I91,Rates!A:L,3,0)),"",VLOOKUP(I91,Rates!A:L,3,0)) ->  | P91: =VLOOKUP(I91,Rates!A:AO,41,0) ->  | Q91: =SUMIF(TRANS!$BQ:$BQ,Q$3&DFENO&Home!$I91,TRANS!$S:$S) -> 0 | R91: =SUMIF(TRANS!$BQ:$BQ,R$3&DFENO&Home!$I91,TRANS!$S:$S) -> 0 | S91: =SUMIF(TRANS!$BQ:$BQ,S$3&DFENO&Home!$I91,TRANS!$S:$S) -> 0 | T91: =SUMIF(TRANS!$BQ:$BQ,T$3&DFENO&Home!$I91,TRANS!$S:$S) -> 0 | U91: =SUMIF(TRANS!$BQ:$BQ,U$3&DFENO&Home!$I91,TRANS!$S:$S) -> 0 | V91: =SUMIF(TRANS!$BQ:$BQ,V$3&DFENO&Home!$I91,TRANS!$S:$S) -> 0 | W91: =SUMIF(TRANS!$BQ:$BQ,W$3&DFENO&Home!$I91,TRANS!$S:$S) -> 0 | X91: =SUMIF(TRANS!$BQ:$BQ,X$3&DFENO&Home!$I91,TRANS!$S:$S) -> 0 | Y91: =SUMIF(TRANS!$BQ:$BQ,Y$3&DFENO&Home!$I91,TRANS!$S:$S) -> 0 | Z91: =SUMIF(TRANS!$BQ:$BQ,Z$3&DFENO&Home!$I91,TRANS!$S:$S) -> 0 | AA91: =SUMIF(TRANS!$BQ:$BQ,AA$3&DFENO&Home!$I91,TRANS!$S:$S) -> 0 | AB91: =SUMIF(TRANS!$BQ:$BQ,AB$3&DFENO&Home!$I91,TRANS!$S:$S) -> 0 | AC91: =SUMIF(TRANS!$BQ:$BQ,AC$3&DFENO&Home!$I91,TRANS!$S:$S) -> 0 | AD91: =SUM(Q91:AC91) -> 0 | AG91: =IF(ISERROR(VLOOKUP(I91,Rates!$A:$AP,42,0)),"",VLOOKUP(I91,Rates!$A:$AP,42,0)) -> 
A92: =VLOOKUP(I92,Rates!A:L,2,0) ->  | B92: blank | C92: blank | D92: blank | E92: blank | F92: blank | G92: blank | K92: =IF(ISERROR(VLOOKUP("Original"&OLDLAESTAB&I92,'1718OriginalFunding'!C:D,2,0)),0,VLOOKUP("Original"&OLDLAESTAB&I92,'1718OriginalFunding'!C:D,2,0)) -> 0 | L92: =SUMIF('EOY1718'!E:E,DFENO&Home!I92,'EOY1718'!D:D) -> 0 | M92: =VLOOKUP(I51:I92,Rates!A:L,8,0) ->  | N92: =IF(ISERROR(VLOOKUP(I92,Rates!A:L,3,0)),"",VLOOKUP(I92,Rates!A:L,3,0)) ->  | P92: =VLOOKUP(I92,Rates!A:AO,41,0) ->  | Q92: =SUMIF(TRANS!$BQ:$BQ,Q$3&DFENO&Home!$I92,TRANS!$S:$S) -> 0 | R92: =SUMIF(TRANS!$BQ:$BQ,R$3&DFENO&Home!$I92,TRANS!$S:$S) -> 0 | S92: =SUMIF(TRANS!$BQ:$BQ,S$3&DFENO&Home!$I92,TRANS!$S:$S) -> 0 | T92: =SUMIF(TRANS!$BQ:$BQ,T$3&DFENO&Home!$I92,TRANS!$S:$S) -> 0 | U92: =SUMIF(TRANS!$BQ:$BQ,U$3&DFENO&Home!$I92,TRANS!$S:$S) -> 0 | V92: =SUMIF(TRANS!$BQ:$BQ,V$3&DFENO&Home!$I92,TRANS!$S:$S) -> 0 | W92: =SUMIF(TRANS!$BQ:$BQ,W$3&DFENO&Home!$I92,TRANS!$S:$S) -> 0 | X92: =SUMIF(TRANS!$BQ:$BQ,X$3&DFENO&Home!$I92,TRANS!$S:$S) -> 0 | Y92: =SUMIF(TRANS!$BQ:$BQ,Y$3&DFENO&Home!$I92,TRANS!$S:$S) -> 0 | Z92: =SUMIF(TRANS!$BQ:$BQ,Z$3&DFENO&Home!$I92,TRANS!$S:$S) -> 0 | AA92: =SUMIF(TRANS!$BQ:$BQ,AA$3&DFENO&Home!$I92,TRANS!$S:$S) -> 0 | AB92: =SUMIF(TRANS!$BQ:$BQ,AB$3&DFENO&Home!$I92,TRANS!$S:$S) -> 0 | AC92: =SUMIF(TRANS!$BQ:$BQ,AC$3&DFENO&Home!$I92,TRANS!$S:$S) -> 0 | AD92: =SUM(Q92:AC92) -> 0 | AG92: =IF(ISERROR(VLOOKUP(I92,Rates!$A:$AP,42,0)),"",VLOOKUP(I92,Rates!$A:$AP,42,0)) -> 
A93: =VLOOKUP(I93,Rates!A:L,2,0) ->  | B93: subtotal | C93: subtotal | D93: subtotal | E93: subtotal | F93: subtotal | G93: subtotal | H93: subtotal | K93: =SUM(K83:K92) -> 0 | L93: =SUM(L83:L92) -> 0 | N93: =IF(ISERROR(VLOOKUP(I93,Rates!A:L,3,0)),"",VLOOKUP(I93,Rates!A:L,3,0)) ->  | Q93: =SUM(Q82:Q92) -> 0 | R93: =SUM(R82:R92) -> 0 | S93: 0 | T93: 0 | U93: 0 | V93: 0 | W93: 0 | X93: 0 | Y93: 0 | Z93: 0 | AA93: 0 | AB93: 0 | AC93: 0 | AD93: 0 | AG93: =IF(ISERROR(VLOOKUP(I93,Rates!$A:$AP,42,0)),"",VLOOKUP(I93,Rates!$A:$AP,42,0)) -> 
A94: =VLOOKUP(I94,Rates!A:L,2,0) -> REPORT | B94: 2 | C94: 7 | D94: 7 | E94: 7 | F94: 5 | G94: 5 | H94: 5 | AG94: =IF(ISERROR(VLOOKUP(I94,Rates!$A:$AP,42,0)),"",VLOOKUP(I94,Rates!$A:$AP,42,0)) -> 0
B95: Not used | C95: High Needs | D95: High Needs | E95: High Needs | F95: Grants | G95: Grants | H95: Grants | I95: =INDIRECT(VLOOKUP($X$21,$B$21:$C$29,2,0)&ROW()) ->  | N95: =I95 ->  | O95: =IF($N95="Not used","","For more detail please go to the "&VLOOKUP($N95,$J$168:$K$185,2,0)&" tab") ->  | AG95: =IF(ISERROR(VLOOKUP(I95,Rates!$A:$AP,42,0)),"",VLOOKUP(I95,Rates!$A:$AP,42,0)) -> 
A96: =VLOOKUP(I96,Rates!A:L,2,0) ->  | B96: blank | C96: ARPNURBASE | D96: ARPRY11BASE | E96: ARPNURBASE | F96: DFC | G96: DFC | H96: DFC | K96: =IF(ISERROR(VLOOKUP("Original"&OLDLAESTAB&I96,'1718OriginalFunding'!C:D,2,0)),0,VLOOKUP("Original"&OLDLAESTAB&I96,'1718OriginalFunding'!C:D,2,0)) -> 0 | L96: =SUMIF('EOY1718'!E:E,DFENO&Home!I96,'EOY1718'!D:D) -> 0 | M96: =VLOOKUP(I52:I96,Rates!A:L,8,0) ->  | N96: =IF(ISERROR(VLOOKUP(I96,Rates!A:L,3,0)),"",VLOOKUP(I96,Rates!A:L,3,0)) ->  | P96: =VLOOKUP(I96,Rates!A:AO,41,0) ->  | Q96: =SUMIF(TRANS!BQ:BQ,Q$3&DFENO&Home!$I96,TRANS!$S:$S) -> 0 | R96: =SUMIF(TRANS!$BQ:$BQ,R$3&DFENO&Home!$I96,TRANS!$S:$S) -> 0 | S96: =SUMIF(TRANS!$BQ:$BQ,S$3&DFENO&Home!$I96,TRANS!$S:$S) -> 0 | T96: =SUMIF(TRANS!$BQ:$BQ,T$3&DFENO&Home!$I96,TRANS!$S:$S) -> 0 | U96: =SUMIF(TRANS!$BQ:$BQ,U$3&DFENO&Home!$I96,TRANS!$S:$S) -> 0 | V96: =SUMIF(TRANS!$BQ:$BQ,V$3&DFENO&Home!$I96,TRANS!$S:$S) -> 0 | W96: =SUMIF(TRANS!$BQ:$BQ,W$3&DFENO&Home!$I96,TRANS!$S:$S) -> 0 | X96: =SUMIF(TRANS!$BQ:$BQ,X$3&DFENO&Home!$I96,TRANS!$S:$S) -> 0 | Y96: =SUMIF(TRANS!$BQ:$BQ,Y$3&DFENO&Home!$I96,TRANS!$S:$S) -> 0 | Z96: =SUMIF(TRANS!$BQ:$BQ,Z$3&DFENO&Home!$I96,TRANS!$S:$S) -> 0 | AA96: =SUMIF(TRANS!$BQ:$BQ,AA$3&DFENO&Home!$I96,TRANS!$S:$S) -> 0 | AB96: =SUMIF(TRANS!$BQ:$BQ,AB$3&DFENO&Home!$I96,TRANS!$S:$S) -> 0 | AC96: =SUMIF(TRANS!$BQ:$BQ,AC$3&DFENO&Home!$I96,TRANS!$S:$S) -> 0 | AD96: =SUM(Q96:AC96) -> 0 | AG96: =IF(ISERROR(VLOOKUP(I96,Rates!$A:$AP,42,0)),"",VLOOKUP(I96,Rates!$A:$AP,42,0)) -> 
A97: =VLOOKUP(I97,Rates!A:L,2,0) ->  | B97: blank | C97: ARPRY11BASE | D97: OCCARPRY11BASE | E97: ARPRY11BASE | F97: Y7catchup | G97: Y7catchup | H97: TU | K97: =IF(ISERROR(VLOOKUP("Original"&OLDLAESTAB&I97,'1718OriginalFunding'!C:D,2,0)),0,VLOOKUP("Original"&OLDLAESTAB&I97,'1718OriginalFunding'!C:D,2,0)) -> 0 | L97: =SUMIF('EOY1718'!E:E,DFENO&Home!I97,'EOY1718'!D:D) -> 0 | M97: =VLOOKUP(I53:I97,Rates!A:L,8,0) ->  | N97: =IF(ISERROR(VLOOKUP(I97,Rates!A:L,3,0)),"",VLOOKUP(I97,Rates!A:L,3,0)) ->  | P97: =VLOOKUP(I97,Rates!A:AO,41,0) ->  | Q97: =SUMIF(TRANS!BQ:BQ,Q$3&DFENO&Home!$I97,TRANS!$S:$S) -> 0 | R97: =SUMIF(TRANS!$BQ:$BQ,R$3&DFENO&Home!$I97,TRANS!$S:$S) -> 0 | S97: =SUMIF(TRANS!$BQ:$BQ,S$3&DFENO&Home!$I97,TRANS!$S:$S) -> 0 | T97: =SUMIF(TRANS!$BQ:$BQ,T$3&DFENO&Home!$I97,TRANS!$S:$S) -> 0 | U97: =SUMIF(TRANS!$BQ:$BQ,U$3&DFENO&Home!$I97,TRANS!$S:$S) -> 0 | V97: =SUMIF(TRANS!$BQ:$BQ,V$3&DFENO&Home!$I97,TRANS!$S:$S) -> 0 | W97: =SUMIF(TRANS!$BQ:$BQ,W$3&DFENO&Home!$I97,TRANS!$S:$S) -> 0 | X97: =SUMIF(TRANS!$BQ:$BQ,X$3&DFENO&Home!$I97,TRANS!$S:$S) -> 0 | Y97: =SUMIF(TRANS!$BQ:$BQ,Y$3&DFENO&Home!$I97,TRANS!$S:$S) -> 0 | Z97: =SUMIF(TRANS!$BQ:$BQ,Z$3&DFENO&Home!$I97,TRANS!$S:$S) -> 0 | AA97: =SUMIF(TRANS!$BQ:$BQ,AA$3&DFENO&Home!$I97,TRANS!$S:$S) -> 0 | AB97: =SUMIF(TRANS!$BQ:$BQ,AB$3&DFENO&Home!$I97,TRANS!$S:$S) -> 0 | AC97: =SUMIF(TRANS!$BQ:$BQ,AC$3&DFENO&Home!$I97,TRANS!$S:$S) -> 0 | AD97: =SUM(Q97:AC97) -> 0 | AG97: =IF(ISERROR(VLOOKUP(I97,Rates!$A:$AP,42,0)),"",VLOOKUP(I97,Rates!$A:$AP,42,0)) -> 
A98: =VLOOKUP(I98,Rates!A:L,2,0) ->  | B98: blank | C98: OCCARPRY11BASE | D98: UNOCCARPRY11BASE | E98: OCCARPRY11BASE | F98: TU | G98: TU | H98: PEGRANT | K98: =IF(ISERROR(VLOOKUP("Original"&OLDLAESTAB&I98,'1718OriginalFunding'!C:D,2,0)),0,VLOOKUP("Original"&OLDLAESTAB&I98,'1718OriginalFunding'!C:D,2,0)) -> 0 | L98: =SUMIF('EOY1718'!E:E,DFENO&Home!I98,'EOY1718'!D:D) -> 0 | M98: =VLOOKUP(I54:I98,Rates!A:L,8,0) ->  | N98: =IF(ISERROR(VLOOKUP(I98,Rates!A:L,3,0)),"",VLOOKUP(I98,Rates!A:L,3,0)) ->  | P98: =VLOOKUP(I98,Rates!A:AO,41,0) ->  | Q98: =SUMIF(TRANS!BQ:BQ,Q$3&DFENO&Home!$I98,TRANS!$S:$S) -> 0 | R98: =SUMIF(TRANS!$BQ:$BQ,R$3&DFENO&Home!$I98,TRANS!$S:$S) -> 0 | S98: =SUMIF(TRANS!$BQ:$BQ,S$3&DFENO&Home!$I98,TRANS!$S:$S) -> 0 | T98: =SUMIF(TRANS!$BQ:$BQ,T$3&DFENO&Home!$I98,TRANS!$S:$S) -> 0 | U98: =SUMIF(TRANS!$BQ:$BQ,U$3&DFENO&Home!$I98,TRANS!$S:$S) -> 0 | V98: =SUMIF(TRANS!$BQ:$BQ,V$3&DFENO&Home!$I98,TRANS!$S:$S) -> 0 | W98: =SUMIF(TRANS!$BQ:$BQ,W$3&DFENO&Home!$I98,TRANS!$S:$S) -> 0 | X98: =SUMIF(TRANS!$BQ:$BQ,X$3&DFENO&Home!$I98,TRANS!$S:$S) -> 0 | Y98: =SUMIF(TRANS!$BQ:$BQ,Y$3&DFENO&Home!$I98,TRANS!$S:$S) -> 0 | Z98: =SUMIF(TRANS!$BQ:$BQ,Z$3&DFENO&Home!$I98,TRANS!$S:$S) -> 0 | AA98: =SUMIF(TRANS!$BQ:$BQ,AA$3&DFENO&Home!$I98,TRANS!$S:$S) -> 0 | AB98: =SUMIF(TRANS!$BQ:$BQ,AB$3&DFENO&Home!$I98,TRANS!$S:$S) -> 0 | AC98: =SUMIF(TRANS!$BQ:$BQ,AC$3&DFENO&Home!$I98,TRANS!$S:$S) -> 0 | AD98: 0 | AG98: =IF(ISERROR(VLOOKUP(I98,Rates!$A:$AP,42,0)),"",VLOOKUP(I98,Rates!$A:$AP,42,0)) -> 
A99: =VLOOKUP(I99,Rates!A:L,2,0) ->  | B99: blank | C99: UNOCCARPRY11BASE | D99: ARPP16BASE | E99: UNOCCARPRY11BASE | F99: PEGRANT | G99: PEGRANT | H99: UIFSM | K99: =IF(ISERROR(VLOOKUP("Original"&OLDLAESTAB&I99,'1718OriginalFunding'!C:D,2,0)),0,VLOOKUP("Original"&OLDLAESTAB&I99,'1718OriginalFunding'!C:D,2,0)) -> 0 | L99: =SUMIF('EOY1718'!E:E,DFENO&Home!I99,'EOY1718'!D:D) -> 0 | M99: =VLOOKUP(I55:I99,Rates!A:L,8,0) ->  | N99: =IF(ISERROR(VLOOKUP(I99,Rates!A:L,3,0)),"",VLOOKUP(I99,Rates!A:L,3,0)) ->  | P99: =VLOOKUP(I99,Rates!A:AO,41,0) ->  | Q99: =SUMIF(TRANS!BQ:BQ,Q$3&DFENO&Home!$I99,TRANS!$S:$S) -> 0 | R99: =SUMIF(TRANS!$BQ:$BQ,R$3&DFENO&Home!$I99,TRANS!$S:$S) -> 0 | S99: =SUMIF(TRANS!$BQ:$BQ,S$3&DFENO&Home!$I99,TRANS!$S:$S) -> 0 | T99: =SUMIF(TRANS!$BQ:$BQ,T$3&DFENO&Home!$I99,TRANS!$S:$S) -> 0 | U99: =SUMIF(TRANS!$BQ:$BQ,U$3&DFENO&Home!$I99,TRANS!$S:$S) -> 0 | V99: =SUMIF(TRANS!$BQ:$BQ,V$3&DFENO&Home!$I99,TRANS!$S:$S) -> 0 | W99: =SUMIF(TRANS!$BQ:$BQ,W$3&DFENO&Home!$I99,TRANS!$S:$S) -> 0 | X99: =SUMIF(TRANS!$BQ:$BQ,X$3&DFENO&Home!$I99,TRANS!$S:$S) -> 0 | Y99: =SUMIF(TRANS!$BQ:$BQ,Y$3&DFENO&Home!$I99,TRANS!$S:$S) -> 0 | Z99: =SUMIF(TRANS!$BQ:$BQ,Z$3&DFENO&Home!$I99,TRANS!$S:$S) -> 0 | AA99: =SUMIF(TRANS!$BQ:$BQ,AA$3&DFENO&Home!$I99,TRANS!$S:$S) -> 0 | AB99: =SUMIF(TRANS!$BQ:$BQ,AB$3&DFENO&Home!$I99,TRANS!$S:$S) -> 0 | AC99: =SUMIF(TRANS!$BQ:$BQ,AC$3&DFENO&Home!$I99,TRANS!$S:$S) -> 0 | AD99: 0 | AG99: =IF(ISERROR(VLOOKUP(I99,Rates!$A:$AP,42,0)),"",VLOOKUP(I99,Rates!$A:$AP,42,0)) -> 
A100: =VLOOKUP(I100,Rates!A:L,2,0) ->  | B100: blank | C100: PRURY11BASE | D100: STATEMENTTOPUP | E100: ARPP16BASE | F100: UIFSM | G100: UIFSM | H100: NCTL | K100: =IF(ISERROR(VLOOKUP("Original"&OLDLAESTAB&I100,'1718OriginalFunding'!C:D,2,0)),0,VLOOKUP("Original"&OLDLAESTAB&I100,'1718OriginalFunding'!C:D,2,0)) -> 0 | L100: =SUMIF('EOY1718'!E:E,DFENO&Home!I100,'EOY1718'!D:D) -> 0 | M100: =VLOOKUP(I56:I100,Rates!A:L,8,0) ->  | N100: =IF(ISERROR(VLOOKUP(I100,Rates!A:L,3,0)),"",VLOOKUP(I100,Rates!A:L,3,0)) ->  | P100: =VLOOKUP(I100,Rates!A:AO,41,0) ->  | Q100: =SUMIF(TRANS!BQ:BQ,Q$3&DFENO&Home!$I100,TRANS!$S:$S) -> 0 | R100: =SUMIF(TRANS!$BQ:$BQ,R$3&DFENO&Home!$I100,TRANS!$S:$S) -> 0 | S100: =SUMIF(TRANS!$BQ:$BQ,S$3&DFENO&Home!$I100,TRANS!$S:$S) -> 0 | T100: =SUMIF(TRANS!$BQ:$BQ,T$3&DFENO&Home!$I100,TRANS!$S:$S) -> 0 | U100: =SUMIF(TRANS!$BQ:$BQ,U$3&DFENO&Home!$I100,TRANS!$S:$S) -> 0 | V100: =SUMIF(TRANS!$BQ:$BQ,V$3&DFENO&Home!$I100,TRANS!$S:$S) -> 0 | W100: =SUMIF(TRANS!$BQ:$BQ,W$3&DFENO&Home!$I100,TRANS!$S:$S) -> 0 | X100: =SUMIF(TRANS!$BQ:$BQ,X$3&DFENO&Home!$I100,TRANS!$S:$S) -> 0 | Y100: =SUMIF(TRANS!$BQ:$BQ,Y$3&DFENO&Home!$I100,TRANS!$S:$S) -> 0 | Z100: =SUMIF(TRANS!$BQ:$BQ,Z$3&DFENO&Home!$I100,TRANS!$S:$S) -> 0 | AA100: =SUMIF(TRANS!$BQ:$BQ,AA$3&DFENO&Home!$I100,TRANS!$S:$S) -> 0 | AB100: =SUMIF(TRANS!$BQ:$BQ,AB$3&DFENO&Home!$I100,TRANS!$S:$S) -> 0 | AC100: =SUMIF(TRANS!$BQ:$BQ,AC$3&DFENO&Home!$I100,TRANS!$S:$S) -> 0 | AD100: 0 | AG100: =IF(ISERROR(VLOOKUP(I100,Rates!$A:$AP,42,0)),"",VLOOKUP(I100,Rates!$A:$AP,42,0)) -> 
A101: =VLOOKUP(I101,Rates!A:L,2,0) ->  | B101: blank | C101: NURSERYTOPUP | D101: POST16TOPUP | E101: NURSERYTOPUP | F101: NCTL | G101: NCTL | H101: y7catchup | K101: =IF(ISERROR(VLOOKUP("Original"&OLDLAESTAB&I101,'1718OriginalFunding'!C:D,2,0)),0,VLOOKUP("Original"&OLDLAESTAB&I101,'1718OriginalFunding'!C:D,2,0)) -> 0 | L101: =SUMIF('EOY1718'!E:E,DFENO&Home!I101,'EOY1718'!D:D) -> 0 | M101: =VLOOKUP(I68:I101,Rates!A:L,8,0) ->  | N101: =IF(ISERROR(VLOOKUP(I101,Rates!A:L,3,0)),"",VLOOKUP(I101,Rates!A:L,3,0)) ->  | O101: =HYPERLINK(VLOOKUP(N95,$J$168:$M$185,4,0),IF(N95="Not Used","",N95)) ->  | P101: =VLOOKUP(I101,Rates!A:AO,41,0) ->  | Q101: =SUMIF(TRANS!BQ:BQ,Q$3&DFENO&Home!$I101,TRANS!$S:$S) -> 0 | R101: =SUMIF(TRANS!$BQ:$BQ,R$3&DFENO&Home!$I101,TRANS!$S:$S) -> 0 | S101: =SUMIF(TRANS!$BQ:$BQ,S$3&DFENO&Home!$I101,TRANS!$S:$S) -> 0 | T101: =SUMIF(TRANS!$BQ:$BQ,T$3&DFENO&Home!$I101,TRANS!$S:$S) -> 0 | U101: =SUMIF(TRANS!$BQ:$BQ,U$3&DFENO&Home!$I101,TRANS!$S:$S) -> 0 | V101: =SUMIF(TRANS!$BQ:$BQ,V$3&DFENO&Home!$I101,TRANS!$S:$S) -> 0 | W101: =SUMIF(TRANS!$BQ:$BQ,W$3&DFENO&Home!$I101,TRANS!$S:$S) -> 0 | X101: =SUMIF(TRANS!$BQ:$BQ,X$3&DFENO&Home!$I101,TRANS!$S:$S) -> 0 | Y101: =SUMIF(TRANS!$BQ:$BQ,Y$3&DFENO&Home!$I101,TRANS!$S:$S) -> 0 | Z101: =SUMIF(TRANS!$BQ:$BQ,Z$3&DFENO&Home!$I101,TRANS!$S:$S) -> 0 | AA101: =SUMIF(TRANS!$BQ:$BQ,AA$3&DFENO&Home!$I101,TRANS!$S:$S) -> 0 | AB101: =SUMIF(TRANS!$BQ:$BQ,AB$3&DFENO&Home!$I101,TRANS!$S:$S) -> 0 | AC101: =SUMIF(TRANS!$BQ:$BQ,AC$3&DFENO&Home!$I101,TRANS!$S:$S) -> 0 | AD101: 0 | AG101: =IF(ISERROR(VLOOKUP(I101,Rates!$A:$AP,42,0)),"",VLOOKUP(I101,Rates!$A:$AP,42,0)) -> 
A102: =VLOOKUP(I102,Rates!A:L,2,0) ->  | B102: blank | C102: STATEMENTTOPUP | D102: STMTTOPUPSEC | E102: POST16TOPUP | F102: blank | G102: blank | H102: blank | K102: =IF(ISERROR(VLOOKUP("Original"&OLDLAESTAB&I102,'1718OriginalFunding'!C:D,2,0)),0,VLOOKUP("Original"&OLDLAESTAB&I102,'1718OriginalFunding'!C:D,2,0)) -> 0 | L102: =SUMIF('EOY1718'!E:E,DFENO&Home!I102,'EOY1718'!D:D) -> 0 | M102: =VLOOKUP(I69:I102,Rates!A:L,8,0) ->  | N102: =IF(ISERROR(VLOOKUP(I102,Rates!A:L,3,0)),"",VLOOKUP(I102,Rates!A:L,3,0)) ->  | P102: =VLOOKUP(I102,Rates!A:AO,41,0) ->  | Q102: =SUMIF(TRANS!BQ:BQ,Q$3&DFENO&Home!$I102,TRANS!$S:$S) -> 0 | R102: =SUMIF(TRANS!$BQ:$BQ,R$3&DFENO&Home!$I102,TRANS!$S:$S) -> 0 | S102: =SUMIF(TRANS!$BQ:$BQ,S$3&DFENO&Home!$I102,TRANS!$S:$S) -> 0 | T102: =SUMIF(TRANS!$BQ:$BQ,T$3&DFENO&Home!$I102,TRANS!$S:$S) -> 0 | U102: =SUMIF(TRANS!$BQ:$BQ,U$3&DFENO&Home!$I102,TRANS!$S:$S) -> 0 | V102: =SUMIF(TRANS!$BQ:$BQ,V$3&DFENO&Home!$I102,TRANS!$S:$S) -> 0 | W102: =SUMIF(TRANS!$BQ:$BQ,W$3&DFENO&Home!$I102,TRANS!$S:$S) -> 0 | X102: =SUMIF(TRANS!$BQ:$BQ,X$3&DFENO&Home!$I102,TRANS!$S:$S) -> 0 | Y102: =SUMIF(TRANS!$BQ:$BQ,Y$3&DFENO&Home!$I102,TRANS!$S:$S) -> 0 | Z102: =SUMIF(TRANS!$BQ:$BQ,Z$3&DFENO&Home!$I102,TRANS!$S:$S) -> 0 | AA102: =SUMIF(TRANS!$BQ:$BQ,AA$3&DFENO&Home!$I102,TRANS!$S:$S) -> 0 | AB102: =SUMIF(TRANS!$BQ:$BQ,AB$3&DFENO&Home!$I102,TRANS!$S:$S) -> 0 | AC102: =SUMIF(TRANS!$BQ:$BQ,AC$3&DFENO&Home!$I102,TRANS!$S:$S) -> 0 | AD102: 0 | AG102: =IF(ISERROR(VLOOKUP(I102,Rates!$A:$AP,42,0)),"",VLOOKUP(I102,Rates!$A:$AP,42,0)) -> 
A103: =VLOOKUP(I103,Rates!A:L,2,0) ->  | B103: blank | C103: STMTTOPUPPRI | D103: ARPTOPUP | E103: STATEMENTTOPUP | F103: blank | G103: blank | H103: blank | K103: =IF(ISERROR(VLOOKUP("Original"&OLDLAESTAB&I103,'1718OriginalFunding'!C:D,2,0)),0,VLOOKUP("Original"&OLDLAESTAB&I103,'1718OriginalFunding'!C:D,2,0)) -> 0 | L103: =SUMIF('EOY1718'!E:E,DFENO&Home!I103,'EOY1718'!D:D) -> 0 | M103: =VLOOKUP(I70:I103,Rates!A:L,8,0) ->  | N103: =IF(ISERROR(VLOOKUP(I103,Rates!A:L,3,0)),"",VLOOKUP(I103,Rates!A:L,3,0)) ->  | P103: =VLOOKUP(I103,Rates!A:AO,41,0) ->  | Q103: =SUMIF(TRANS!BQ:BQ,Q$3&DFENO&Home!$I103,TRANS!$S:$S) -> 0 | R103: =SUMIF(TRANS!$BQ:$BQ,R$3&DFENO&Home!$I103,TRANS!$S:$S) -> 0 | S103: =SUMIF(TRANS!$BQ:$BQ,S$3&DFENO&Home!$I103,TRANS!$S:$S) -> 0 | T103: =SUMIF(TRANS!$BQ:$BQ,T$3&DFENO&Home!$I103,TRANS!$S:$S) -> 0 | U103: =SUMIF(TRANS!$BQ:$BQ,U$3&DFENO&Home!$I103,TRANS!$S:$S) -> 0 | V103: =SUMIF(TRANS!$BQ:$BQ,V$3&DFENO&Home!$I103,TRANS!$S:$S) -> 0 | W103: =SUMIF(TRANS!$BQ:$BQ,W$3&DFENO&Home!$I103,TRANS!$S:$S) -> 0 | X103: =SUMIF(TRANS!$BQ:$BQ,X$3&DFENO&Home!$I103,TRANS!$S:$S) -> 0 | Y103: =SUMIF(TRANS!$BQ:$BQ,Y$3&DFENO&Home!$I103,TRANS!$S:$S) -> 0 | Z103: =SUMIF(TRANS!$BQ:$BQ,Z$3&DFENO&Home!$I103,TRANS!$S:$S) -> 0 | AA103: =SUMIF(TRANS!$BQ:$BQ,AA$3&DFENO&Home!$I103,TRANS!$S:$S) -> 0 | AB103: =SUMIF(TRANS!$BQ:$BQ,AB$3&DFENO&Home!$I103,TRANS!$S:$S) -> 0 | AC103: =SUMIF(TRANS!$BQ:$BQ,AC$3&DFENO&Home!$I103,TRANS!$S:$S) -> 0 | AD103: 0 | AG103: =IF(ISERROR(VLOOKUP(I103,Rates!$A:$AP,42,0)),"",VLOOKUP(I103,Rates!$A:$AP,42,0)) -> 
A104: =VLOOKUP(I104,Rates!A:L,2,0) ->  | B104: blank | C104: NURARPTOPUP | D104: POST16ARPTOPUP | E104: STMTTOPUPPRI | F104: blank | G104: blank | H104: blank | K104: =IF(ISERROR(VLOOKUP("Original"&OLDLAESTAB&I104,'1718OriginalFunding'!C:D,2,0)),0,VLOOKUP("Original"&OLDLAESTAB&I104,'1718OriginalFunding'!C:D,2,0)) -> 0 | L104: =SUMIF('EOY1718'!E:E,DFENO&Home!I104,'EOY1718'!D:D) -> 0 | M104: =VLOOKUP(I71:I104,Rates!A:L,8,0) ->  | N104: =IF(ISERROR(VLOOKUP(I104,Rates!A:L,3,0)),"",VLOOKUP(I104,Rates!A:L,3,0)) ->  | P104: =VLOOKUP(I104,Rates!A:AO,41,0) ->  | Q104: =SUMIF(TRANS!BQ:BQ,Q$3&DFENO&Home!$I104,TRANS!$S:$S) -> 0 | R104: =SUMIF(TRANS!$BQ:$BQ,R$3&DFENO&Home!$I104,TRANS!$S:$S) -> 0 | S104: =SUMIF(TRANS!$BQ:$BQ,S$3&DFENO&Home!$I104,TRANS!$S:$S) -> 0 | T104: =SUMIF(TRANS!$BQ:$BQ,T$3&DFENO&Home!$I104,TRANS!$S:$S) -> 0 | U104: =SUMIF(TRANS!$BQ:$BQ,U$3&DFENO&Home!$I104,TRANS!$S:$S) -> 0 | V104: =SUMIF(TRANS!$BQ:$BQ,V$3&DFENO&Home!$I104,TRANS!$S:$S) -> 0 | W104: =SUMIF(TRANS!$BQ:$BQ,W$3&DFENO&Home!$I104,TRANS!$S:$S) -> 0 | X104: =SUMIF(TRANS!$BQ:$BQ,X$3&DFENO&Home!$I104,TRANS!$S:$S) -> 0 | Y104: =SUMIF(TRANS!$BQ:$BQ,Y$3&DFENO&Home!$I104,TRANS!$S:$S) -> 0 | Z104: =SUMIF(TRANS!$BQ:$BQ,Z$3&DFENO&Home!$I104,TRANS!$S:$S) -> 0 | AA104: =SUMIF(TRANS!$BQ:$BQ,AA$3&DFENO&Home!$I104,TRANS!$S:$S) -> 0 | AB104: =SUMIF(TRANS!$BQ:$BQ,AB$3&DFENO&Home!$I104,TRANS!$S:$S) -> 0 | AC104: =SUMIF(TRANS!$BQ:$BQ,AC$3&DFENO&Home!$I104,TRANS!$S:$S) -> 0 | AD104: 0 | AG104: =IF(ISERROR(VLOOKUP(I104,Rates!$A:$AP,42,0)),"",VLOOKUP(I104,Rates!$A:$AP,42,0)) -> 
A105: =VLOOKUP(I105,Rates!A:L,2,0) ->  | B105: blank | C105: ARPTOPUP | D105: OTHERTOPUP | E105: STMTTOPUPSEC | F105: blank | G105: blank | H105: blank | K105: =IF(ISERROR(VLOOKUP("Original"&OLDLAESTAB&I105,'1718OriginalFunding'!C:D,2,0)),0,VLOOKUP("Original"&OLDLAESTAB&I105,'1718OriginalFunding'!C:D,2,0)) -> 0 | L105: =SUMIF('EOY1718'!E:E,DFENO&Home!I105,'EOY1718'!D:D) -> 0 | M105: =VLOOKUP(I72:I105,Rates!A:L,8,0) ->  | N105: =IF(ISERROR(VLOOKUP(I105,Rates!A:L,3,0)),"",VLOOKUP(I105,Rates!A:L,3,0)) ->  | P105: =VLOOKUP(I105,Rates!A:AO,41,0) ->  | Q105: =SUMIF(TRANS!BQ:BQ,Q$3&DFENO&Home!$I105,TRANS!$S:$S) -> 0 | R105: =SUMIF(TRANS!$BQ:$BQ,R$3&DFENO&Home!$I105,TRANS!$S:$S) -> 0 | S105: =SUMIF(TRANS!$BQ:$BQ,S$3&DFENO&Home!$I105,TRANS!$S:$S) -> 0 | T105: =SUMIF(TRANS!$BQ:$BQ,T$3&DFENO&Home!$I105,TRANS!$S:$S) -> 0 | U105: =SUMIF(TRANS!$BQ:$BQ,U$3&DFENO&Home!$I105,TRANS!$S:$S) -> 0 | V105: =SUMIF(TRANS!$BQ:$BQ,V$3&DFENO&Home!$I105,TRANS!$S:$S) -> 0 | W105: =SUMIF(TRANS!$BQ:$BQ,W$3&DFENO&Home!$I105,TRANS!$S:$S) -> 0 | X105: =SUMIF(TRANS!$BQ:$BQ,X$3&DFENO&Home!$I105,TRANS!$S:$S) -> 0 | Y105: =SUMIF(TRANS!$BQ:$BQ,Y$3&DFENO&Home!$I105,TRANS!$S:$S) -> 0 | Z105: =SUMIF(TRANS!$BQ:$BQ,Z$3&DFENO&Home!$I105,TRANS!$S:$S) -> 0 | AA105: =SUMIF(TRANS!$BQ:$BQ,AA$3&DFENO&Home!$I105,TRANS!$S:$S) -> 0 | AB105: =SUMIF(TRANS!$BQ:$BQ,AB$3&DFENO&Home!$I105,TRANS!$S:$S) -> 0 | AC105: =SUMIF(TRANS!$BQ:$BQ,AC$3&DFENO&Home!$I105,TRANS!$S:$S) -> 0 | AD105: 0 | AG105: =IF(ISERROR(VLOOKUP(I105,Rates!$A:$AP,42,0)),"",VLOOKUP(I105,Rates!$A:$AP,42,0)) -> 
A106: =VLOOKUP(I106,Rates!A:L,2,0) ->  | B106: blank | C106: PRUTOPUP | D106: STMTPY | E106: NURARPTOPUP | F106: blank | G106: blank | H106: blank | K106: =IF(ISERROR(VLOOKUP("Original"&OLDLAESTAB&I106,'1718OriginalFunding'!C:D,2,0)),0,VLOOKUP("Original"&OLDLAESTAB&I106,'1718OriginalFunding'!C:D,2,0)) -> 0 | L106: =SUMIF('EOY1718'!E:E,DFENO&Home!I106,'EOY1718'!D:D) -> 0 | M106: =VLOOKUP(I73:I106,Rates!A:L,8,0) ->  | N106: =IF(ISERROR(VLOOKUP(I106,Rates!A:L,3,0)),"",VLOOKUP(I106,Rates!A:L,3,0)) ->  | P106: =VLOOKUP(I106,Rates!A:AO,41,0) ->  | Q106: =SUMIF(TRANS!BQ:BQ,Q$3&DFENO&Home!$I106,TRANS!$S:$S) -> 0 | R106: =SUMIF(TRANS!$BQ:$BQ,R$3&DFENO&Home!$I106,TRANS!$S:$S) -> 0 | S106: =SUMIF(TRANS!$BQ:$BQ,S$3&DFENO&Home!$I106,TRANS!$S:$S) -> 0 | T106: =SUMIF(TRANS!$BQ:$BQ,T$3&DFENO&Home!$I106,TRANS!$S:$S) -> 0 | U106: =SUMIF(TRANS!$BQ:$BQ,U$3&DFENO&Home!$I106,TRANS!$S:$S) -> 0 | V106: =SUMIF(TRANS!$BQ:$BQ,V$3&DFENO&Home!$I106,TRANS!$S:$S) -> 0 | W106: =SUMIF(TRANS!$BQ:$BQ,W$3&DFENO&Home!$I106,TRANS!$S:$S) -> 0 | X106: =SUMIF(TRANS!$BQ:$BQ,X$3&DFENO&Home!$I106,TRANS!$S:$S) -> 0 | Y106: =SUMIF(TRANS!$BQ:$BQ,Y$3&DFENO&Home!$I106,TRANS!$S:$S) -> 0 | Z106: =SUMIF(TRANS!$BQ:$BQ,Z$3&DFENO&Home!$I106,TRANS!$S:$S) -> 0 | AA106: =SUMIF(TRANS!$BQ:$BQ,AA$3&DFENO&Home!$I106,TRANS!$S:$S) -> 0 | AB106: =SUMIF(TRANS!$BQ:$BQ,AB$3&DFENO&Home!$I106,TRANS!$S:$S) -> 0 | AC106: =SUMIF(TRANS!$BQ:$BQ,AC$3&DFENO&Home!$I106,TRANS!$S:$S) -> 0 | AD106: 0 | AG106: =IF(ISERROR(VLOOKUP(I106,Rates!$A:$AP,42,0)),"",VLOOKUP(I106,Rates!$A:$AP,42,0)) -> 
A107: =VLOOKUP(I107,Rates!A:L,2,0) ->  | B107: blank | C107: OTHERTOPUP | D107: ARPPY | E107: ARPTOPUP | F107: blank | G107: blank | H107: blank | K107: =IF(ISERROR(VLOOKUP("Original"&OLDLAESTAB&I107,'1718OriginalFunding'!C:D,2,0)),0,VLOOKUP("Original"&OLDLAESTAB&I107,'1718OriginalFunding'!C:D,2,0)) -> 0 | L107: =SUMIF('EOY1718'!E:E,DFENO&Home!I107,'EOY1718'!D:D) -> 0 | M107: =VLOOKUP(I74:I107,Rates!A:L,8,0) ->  | N107: =IF(ISERROR(VLOOKUP(I107,Rates!A:L,3,0)),"",VLOOKUP(I107,Rates!A:L,3,0)) ->  | P107: =VLOOKUP(I107,Rates!A:AO,41,0) ->  | Q107: =SUMIF(TRANS!BQ:BQ,Q$3&DFENO&Home!$I107,TRANS!$S:$S) -> 0 | R107: =SUMIF(TRANS!$BQ:$BQ,R$3&DFENO&Home!$I107,TRANS!$S:$S) -> 0 | S107: =SUMIF(TRANS!$BQ:$BQ,S$3&DFENO&Home!$I107,TRANS!$S:$S) -> 0 | T107: =SUMIF(TRANS!$BQ:$BQ,T$3&DFENO&Home!$I107,TRANS!$S:$S) -> 0 | U107: =SUMIF(TRANS!$BQ:$BQ,U$3&DFENO&Home!$I107,TRANS!$S:$S) -> 0 | V107: =SUMIF(TRANS!$BQ:$BQ,V$3&DFENO&Home!$I107,TRANS!$S:$S) -> 0 | W107: =SUMIF(TRANS!$BQ:$BQ,W$3&DFENO&Home!$I107,TRANS!$S:$S) -> 0 | X107: =SUMIF(TRANS!$BQ:$BQ,X$3&DFENO&Home!$I107,TRANS!$S:$S) -> 0 | Y107: =SUMIF(TRANS!$BQ:$BQ,Y$3&DFENO&Home!$I107,TRANS!$S:$S) -> 0 | Z107: =SUMIF(TRANS!$BQ:$BQ,Z$3&DFENO&Home!$I107,TRANS!$S:$S) -> 0 | AA107: =SUMIF(TRANS!$BQ:$BQ,AA$3&DFENO&Home!$I107,TRANS!$S:$S) -> 0 | AB107: =SUMIF(TRANS!$BQ:$BQ,AB$3&DFENO&Home!$I107,TRANS!$S:$S) -> 0 | AC107: =SUMIF(TRANS!$BQ:$BQ,AC$3&DFENO&Home!$I107,TRANS!$S:$S) -> 0 | AD107: 0 | AG107: =IF(ISERROR(VLOOKUP(I107,Rates!$A:$AP,42,0)),"",VLOOKUP(I107,Rates!$A:$AP,42,0)) -> 
A108: =VLOOKUP(I108,Rates!A:L,2,0) ->  | B108: blank | C108: STMTPY | D108: SPECIALRY11BASE | E108: POST16ARPTOPUP | F108: blank | G108: blank | H108: blank | K108: =IF(ISERROR(VLOOKUP("Original"&OLDLAESTAB&I108,'1718OriginalFunding'!C:D,2,0)),0,VLOOKUP("Original"&OLDLAESTAB&I108,'1718OriginalFunding'!C:D,2,0)) -> 0 | L108: =SUMIF('EOY1718'!E:E,DFENO&Home!I108,'EOY1718'!D:D) -> 0 | M108: =VLOOKUP(I75:I108,Rates!A:L,8,0) ->  | N108: =IF(ISERROR(VLOOKUP(I108,Rates!A:L,3,0)),"",VLOOKUP(I108,Rates!A:L,3,0)) ->  | P108: =VLOOKUP(I108,Rates!A:AO,41,0) ->  | Q108: =SUMIF(TRANS!BQ:BQ,Q$3&DFENO&Home!$I108,TRANS!$S:$S) -> 0 | R108: =SUMIF(TRANS!$BQ:$BQ,R$3&DFENO&Home!$I108,TRANS!$S:$S) -> 0 | S108: =SUMIF(TRANS!$BQ:$BQ,S$3&DFENO&Home!$I108,TRANS!$S:$S) -> 0 | T108: =SUMIF(TRANS!$BQ:$BQ,T$3&DFENO&Home!$I108,TRANS!$S:$S) -> 0 | U108: =SUMIF(TRANS!$BQ:$BQ,U$3&DFENO&Home!$I108,TRANS!$S:$S) -> 0 | V108: =SUMIF(TRANS!$BQ:$BQ,V$3&DFENO&Home!$I108,TRANS!$S:$S) -> 0 | W108: =SUMIF(TRANS!$BQ:$BQ,W$3&DFENO&Home!$I108,TRANS!$S:$S) -> 0 | X108: =SUMIF(TRANS!$BQ:$BQ,X$3&DFENO&Home!$I108,TRANS!$S:$S) -> 0 | Y108: =SUMIF(TRANS!$BQ:$BQ,Y$3&DFENO&Home!$I108,TRANS!$S:$S) -> 0 | Z108: =SUMIF(TRANS!$BQ:$BQ,Z$3&DFENO&Home!$I108,TRANS!$S:$S) -> 0 | AA108: =SUMIF(TRANS!$BQ:$BQ,AA$3&DFENO&Home!$I108,TRANS!$S:$S) -> 0 | AB108: =SUMIF(TRANS!$BQ:$BQ,AB$3&DFENO&Home!$I108,TRANS!$S:$S) -> 0 | AC108: =SUMIF(TRANS!$BQ:$BQ,AC$3&DFENO&Home!$I108,TRANS!$S:$S) -> 0 | AD108: 0 | AG108: =IF(ISERROR(VLOOKUP(I108,Rates!$A:$AP,42,0)),"",VLOOKUP(I108,Rates!$A:$AP,42,0)) -> 
A109: =VLOOKUP(I109,Rates!A:L,2,0) ->  | B109: blank | C109: ARPPY | D109: blank | E109: OTHERTOPUP | F109: blank | G109: blank | H109: blank | K109: =IF(ISERROR(VLOOKUP("Original"&OLDLAESTAB&I109,'1718OriginalFunding'!C:D,2,0)),0,VLOOKUP("Original"&OLDLAESTAB&I109,'1718OriginalFunding'!C:D,2,0)) -> 0 | L109: =SUMIF('EOY1718'!E:E,DFENO&Home!I109,'EOY1718'!D:D) -> 0 | M109: =VLOOKUP(I76:I109,Rates!A:L,8,0) ->  | N109: =IF(ISERROR(VLOOKUP(I109,Rates!A:L,3,0)),"",VLOOKUP(I109,Rates!A:L,3,0)) ->  | P109: =VLOOKUP(I109,Rates!A:AO,41,0) ->  | Q109: =SUMIF(TRANS!BQ:BQ,Q$3&DFENO&Home!$I109,TRANS!$S:$S) -> 0 | R109: =SUMIF(TRANS!$BQ:$BQ,R$3&DFENO&Home!$I109,TRANS!$S:$S) -> 0 | S109: =SUMIF(TRANS!$BQ:$BQ,S$3&DFENO&Home!$I109,TRANS!$S:$S) -> 0 | T109: =SUMIF(TRANS!$BQ:$BQ,T$3&DFENO&Home!$I109,TRANS!$S:$S) -> 0 | U109: =SUMIF(TRANS!$BQ:$BQ,U$3&DFENO&Home!$I109,TRANS!$S:$S) -> 0 | V109: =SUMIF(TRANS!$BQ:$BQ,V$3&DFENO&Home!$I109,TRANS!$S:$S) -> 0 | W109: =SUMIF(TRANS!$BQ:$BQ,W$3&DFENO&Home!$I109,TRANS!$S:$S) -> 0 | X109: =SUMIF(TRANS!$BQ:$BQ,X$3&DFENO&Home!$I109,TRANS!$S:$S) -> 0 | Y109: =SUMIF(TRANS!$BQ:$BQ,Y$3&DFENO&Home!$I109,TRANS!$S:$S) -> 0 | Z109: =SUMIF(TRANS!$BQ:$BQ,Z$3&DFENO&Home!$I109,TRANS!$S:$S) -> 0 | AA109: =SUMIF(TRANS!$BQ:$BQ,AA$3&DFENO&Home!$I109,TRANS!$S:$S) -> 0 | AB109: =SUMIF(TRANS!$BQ:$BQ,AB$3&DFENO&Home!$I109,TRANS!$S:$S) -> 0 | AC109: =SUMIF(TRANS!$BQ:$BQ,AC$3&DFENO&Home!$I109,TRANS!$S:$S) -> 0 | AD109: 0 | AG109: =IF(ISERROR(VLOOKUP(I109,Rates!$A:$AP,42,0)),"",VLOOKUP(I109,Rates!$A:$AP,42,0)) -> 
A110: =VLOOKUP(I110,Rates!A:L,2,0) ->  | B110: blank | C110: NURSERYEX | D110: blank | E110: STMTPY | F110: blank | G110: blank | H110: blank | K110: =IF(ISERROR(VLOOKUP("Original"&OLDLAESTAB&I110,'1718OriginalFunding'!C:D,2,0)),0,VLOOKUP("Original"&OLDLAESTAB&I110,'1718OriginalFunding'!C:D,2,0)) -> 0 | L110: =SUMIF('EOY1718'!E:E,DFENO&Home!I110,'EOY1718'!D:D) -> 0 | M110: =VLOOKUP(I77:I110,Rates!A:L,8,0) ->  | N110: =IF(ISERROR(VLOOKUP(I110,Rates!A:L,3,0)),"",VLOOKUP(I110,Rates!A:L,3,0)) ->  | P110: =VLOOKUP(I110,Rates!A:AO,41,0) ->  | Q110: =SUMIF(TRANS!BQ:BQ,Q$3&DFENO&Home!$I110,TRANS!$S:$S) -> 0 | R110: =SUMIF(TRANS!$BQ:$BQ,R$3&DFENO&Home!$I110,TRANS!$S:$S) -> 0 | S110: =SUMIF(TRANS!$BQ:$BQ,S$3&DFENO&Home!$I110,TRANS!$S:$S) -> 0 | T110: =SUMIF(TRANS!$BQ:$BQ,T$3&DFENO&Home!$I110,TRANS!$S:$S) -> 0 | U110: =SUMIF(TRANS!$BQ:$BQ,U$3&DFENO&Home!$I110,TRANS!$S:$S) -> 0 | V110: =SUMIF(TRANS!$BQ:$BQ,V$3&DFENO&Home!$I110,TRANS!$S:$S) -> 0 | W110: =SUMIF(TRANS!$BQ:$BQ,W$3&DFENO&Home!$I110,TRANS!$S:$S) -> 0 | X110: =SUMIF(TRANS!$BQ:$BQ,X$3&DFENO&Home!$I110,TRANS!$S:$S) -> 0 | Y110: =SUMIF(TRANS!$BQ:$BQ,Y$3&DFENO&Home!$I110,TRANS!$S:$S) -> 0 | Z110: =SUMIF(TRANS!$BQ:$BQ,Z$3&DFENO&Home!$I110,TRANS!$S:$S) -> 0 | AA110: =SUMIF(TRANS!$BQ:$BQ,AA$3&DFENO&Home!$I110,TRANS!$S:$S) -> 0 | AB110: =SUMIF(TRANS!$BQ:$BQ,AB$3&DFENO&Home!$I110,TRANS!$S:$S) -> 0 | AC110: =SUMIF(TRANS!$BQ:$BQ,AC$3&DFENO&Home!$I110,TRANS!$S:$S) -> 0 | AD110: 0 | AG110: =IF(ISERROR(VLOOKUP(I110,Rates!$A:$AP,42,0)),"",VLOOKUP(I110,Rates!$A:$AP,42,0)) -> 
A111: =VLOOKUP(I111,Rates!A:L,2,0) ->  | B111: blank | C111: NOTIONALSEN | D111: blank | E111: ARPPY | F111: blank | G111: blank | H111: blank | K111: =IF(ISERROR(VLOOKUP("Original"&OLDLAESTAB&I111,'1718OriginalFunding'!C:D,2,0)),0,VLOOKUP("Original"&OLDLAESTAB&I111,'1718OriginalFunding'!C:D,2,0)) -> 0 | L111: =SUMIF('EOY1718'!E:E,DFENO&Home!I111,'EOY1718'!D:D) -> 0 | M111: =VLOOKUP(I78:I111,Rates!A:L,8,0) ->  | N111: =IF(ISERROR(VLOOKUP(I111,Rates!A:L,3,0)),"",VLOOKUP(I111,Rates!A:L,3,0)) ->  | P111: =VLOOKUP(I111,Rates!A:AO,41,0) ->  | Q111: =SUMIF(TRANS!BQ:BQ,Q$3&DFENO&Home!$I111,TRANS!$S:$S) -> 0 | R111: =SUMIF(TRANS!$BQ:$BQ,R$3&DFENO&Home!$I111,TRANS!$S:$S) -> 0 | S111: =SUMIF(TRANS!$BQ:$BQ,S$3&DFENO&Home!$I111,TRANS!$S:$S) -> 0 | T111: =SUMIF(TRANS!$BQ:$BQ,T$3&DFENO&Home!$I111,TRANS!$S:$S) -> 0 | U111: =SUMIF(TRANS!$BQ:$BQ,U$3&DFENO&Home!$I111,TRANS!$S:$S) -> 0 | V111: =SUMIF(TRANS!$BQ:$BQ,V$3&DFENO&Home!$I111,TRANS!$S:$S) -> 0 | W111: =SUMIF(TRANS!$BQ:$BQ,W$3&DFENO&Home!$I111,TRANS!$S:$S) -> 0 | X111: =SUMIF(TRANS!$BQ:$BQ,X$3&DFENO&Home!$I111,TRANS!$S:$S) -> 0 | Y111: =SUMIF(TRANS!$BQ:$BQ,Y$3&DFENO&Home!$I111,TRANS!$S:$S) -> 0 | Z111: =SUMIF(TRANS!$BQ:$BQ,Z$3&DFENO&Home!$I111,TRANS!$S:$S) -> 0 | AA111: =SUMIF(TRANS!$BQ:$BQ,AA$3&DFENO&Home!$I111,TRANS!$S:$S) -> 0 | AB111: =SUMIF(TRANS!$BQ:$BQ,AB$3&DFENO&Home!$I111,TRANS!$S:$S) -> 0 | AC111: =SUMIF(TRANS!$BQ:$BQ,AC$3&DFENO&Home!$I111,TRANS!$S:$S) -> 0 | AD111: =SUM(Q111:AC111) -> 0
A112: =VLOOKUP(I112,Rates!A:L,2,0) ->  | B112: blank | C112: blank | D112: blank | E112: NURSERYEX | F112: blank | G112: blank | H112: blank | K112: =IF(ISERROR(VLOOKUP("Original"&OLDLAESTAB&I112,'1718OriginalFunding'!C:D,2,0)),0,VLOOKUP("Original"&OLDLAESTAB&I112,'1718OriginalFunding'!C:D,2,0)) -> 0 | L112: =SUMIF('EOY1718'!E:E,DFENO&Home!I112,'EOY1718'!D:D) -> 0 | M112: =VLOOKUP(I79:I112,Rates!A:L,8,0) ->  | N112: =IF(ISERROR(VLOOKUP(I112,Rates!A:L,3,0)),"",VLOOKUP(I112,Rates!A:L,3,0)) ->  | P112: =VLOOKUP(I112,Rates!A:AO,41,0) ->  | Q112: =SUMIF(TRANS!BQ:BQ,Q$3&DFENO&Home!$I112,TRANS!$S:$S) -> 0 | R112: =SUMIF(TRANS!$BQ:$BQ,R$3&DFENO&Home!$I112,TRANS!$S:$S) -> 0 | S112: =SUMIF(TRANS!$BQ:$BQ,S$3&DFENO&Home!$I112,TRANS!$S:$S) -> 0 | T112: =SUMIF(TRANS!$BQ:$BQ,T$3&DFENO&Home!$I112,TRANS!$S:$S) -> 0 | U112: =SUMIF(TRANS!$BQ:$BQ,U$3&DFENO&Home!$I112,TRANS!$S:$S) -> 0 | V112: =SUMIF(TRANS!$BQ:$BQ,V$3&DFENO&Home!$I112,TRANS!$S:$S) -> 0 | W112: =SUMIF(TRANS!$BQ:$BQ,W$3&DFENO&Home!$I112,TRANS!$S:$S) -> 0 | X112: =SUMIF(TRANS!$BQ:$BQ,X$3&DFENO&Home!$I112,TRANS!$S:$S) -> 0 | Y112: =SUMIF(TRANS!$BQ:$BQ,Y$3&DFENO&Home!$I112,TRANS!$S:$S) -> 0 | Z112: =SUMIF(TRANS!$BQ:$BQ,Z$3&DFENO&Home!$I112,TRANS!$S:$S) -> 0 | AA112: =SUMIF(TRANS!$BQ:$BQ,AA$3&DFENO&Home!$I112,TRANS!$S:$S) -> 0 | AB112: =SUMIF(TRANS!$BQ:$BQ,AB$3&DFENO&Home!$I112,TRANS!$S:$S) -> 0 | AC112: =SUMIF(TRANS!$BQ:$BQ,AC$3&DFENO&Home!$I112,TRANS!$S:$S) -> 0 | AD112: =SUM(Q112:AC112) -> 0
A113: =VLOOKUP(I113,Rates!A:L,2,0) ->  | B113: blank | C113: blank | D113: blank | E113: blank | F113: blank | G113: blank | H113: blank | K113: =IF(ISERROR(VLOOKUP("Original"&OLDLAESTAB&I113,'1718OriginalFunding'!C:D,2,0)),0,VLOOKUP("Original"&OLDLAESTAB&I113,'1718OriginalFunding'!C:D,2,0)) -> 0 | L113: =SUMIF('EOY1718'!E:E,DFENO&Home!I113,'EOY1718'!D:D) -> 0 | M113: =VLOOKUP(I80:I113,Rates!A:L,8,0) ->  | N113: =IF(ISERROR(VLOOKUP(I113,Rates!A:L,3,0)),"",VLOOKUP(I113,Rates!A:L,3,0)) ->  | P113: =VLOOKUP(I113,Rates!A:AO,41,0) ->  | Q113: =SUMIF(TRANS!BQ:BQ,Q$3&DFENO&Home!$I113,TRANS!$S:$S) -> 0 | R113: =SUMIF(TRANS!$BQ:$BQ,R$3&DFENO&Home!$I113,TRANS!$S:$S) -> 0 | S113: =SUMIF(TRANS!$BQ:$BQ,S$3&DFENO&Home!$I113,TRANS!$S:$S) -> 0 | T113: =SUMIF(TRANS!$BQ:$BQ,T$3&DFENO&Home!$I113,TRANS!$S:$S) -> 0 | U113: =SUMIF(TRANS!$BQ:$BQ,U$3&DFENO&Home!$I113,TRANS!$S:$S) -> 0 | V113: =SUMIF(TRANS!$BQ:$BQ,V$3&DFENO&Home!$I113,TRANS!$S:$S) -> 0 | W113: =SUMIF(TRANS!$BQ:$BQ,W$3&DFENO&Home!$I113,TRANS!$S:$S) -> 0 | X113: =SUMIF(TRANS!$BQ:$BQ,X$3&DFENO&Home!$I113,TRANS!$S:$S) -> 0 | Y113: =SUMIF(TRANS!$BQ:$BQ,Y$3&DFENO&Home!$I113,TRANS!$S:$S) -> 0 | Z113: =SUMIF(TRANS!$BQ:$BQ,Z$3&DFENO&Home!$I113,TRANS!$S:$S) -> 0 | AA113: =SUMIF(TRANS!$BQ:$BQ,AA$3&DFENO&Home!$I113,TRANS!$S:$S) -> 0 | AB113: =SUMIF(TRANS!$BQ:$BQ,AB$3&DFENO&Home!$I113,TRANS!$S:$S) -> 0 | AC113: =SUMIF(TRANS!$BQ:$BQ,AC$3&DFENO&Home!$I113,TRANS!$S:$S) -> 0 | AD113: =SUM(Q113:AC113) -> 0
A114: =VLOOKUP(I114,Rates!A:L,2,0) ->  | B114: subtotal | C114: subtotal | D114: subtotal | E114: subtotal | F114: subtotal | G114: subtotal | H114: subtotal | K114: =SUM(K96:K113) -> 0 | L114: =SUM(L96:L113) -> 0 | N114: =IF(ISERROR(VLOOKUP(I114,Rates!A:L,3,0)),"",VLOOKUP(I114,Rates!A:L,3,0)) ->  | Q114: =SUM(Q96:Q113) -> 0 | R114: =SUM(R96:R113) -> 0 | S114: 0 | T114: 0 | U114: 0 | V114: 0 | W114: 0 | X114: 0 | Y114: 0 | Z114: 0 | AA114: 0 | AB114: 0 | AC114: 0 | AD114: 0 | AG114: =IF(ISERROR(VLOOKUP(I114,Rates!$A:$AP,42,0)),"",VLOOKUP(I114,Rates!$A:$AP,42,0)) -> 
A115: =VLOOKUP(I115,Rates!A:L,2,0) -> REPORT | B115: 2 | C115: 9 | D115: 7 | E115: 10 | F115: 7 | G115: 7 | H115: 7 | AG115: =IF(ISERROR(VLOOKUP(I115,Rates!$A:$AP,42,0)),"",VLOOKUP(I115,Rates!$A:$AP,42,0)) -> 0
B116: Not used | C116: Grants | D116: PupilPremium | E116: PupilPremium | F116: Not used | G116: Not used | H116: Not used | I116: =INDIRECT(VLOOKUP($X$21,$B$21:$C$29,2,0)&ROW()) ->  | N116: =I116 ->  | O116: =IF($N116="Not used","","For more detail please go to the "&VLOOKUP($N116,$J$168:$K$185,2,0)&" tab") ->  | AG116: =IF(ISERROR(VLOOKUP(I116,Rates!$A:$AP,42,0)),"",VLOOKUP(I116,Rates!$A:$AP,42,0)) -> 
A117: =VLOOKUP(I117,Rates!A:L,2,0) ->  | B117: blank | C117: DFC | D117: PPFSMSec | E117: PPFSMPri | F117: blank | G117: blank | H117: blank | K117: =IF(ISERROR(VLOOKUP("Original"&OLDLAESTAB&I117,'1718OriginalFunding'!C:D,2,0)),0,VLOOKUP("Original"&OLDLAESTAB&I117,'1718OriginalFunding'!C:D,2,0)) -> 0 | L117: =SUMIF('EOY1718'!E:E,DFENO&Home!I117,'EOY1718'!D:D) -> 0 | M117: =VLOOKUP(I77:I117,Rates!A:L,8,0) ->  | N117: =IF(ISERROR(VLOOKUP(I117,Rates!A:L,3,0)),"",VLOOKUP(I117,Rates!A:L,3,0)) ->  | P117: =VLOOKUP(I117,Rates!A:AO,41,0) ->  | Q117: =SUMIF(TRANS!$BQ:$BQ,Q$3&DFENO&Home!$I117,TRANS!$S:$S) -> 0 | R117: =SUMIF(TRANS!$BQ:$BQ,R$3&DFENO&Home!$I117,TRANS!$S:$S) -> 0 | S117: =SUMIF(TRANS!$BQ:$BQ,S$3&DFENO&Home!$I117,TRANS!$S:$S) -> 0 | T117: =SUMIF(TRANS!$BQ:$BQ,T$3&DFENO&Home!$I117,TRANS!$S:$S) -> 0 | U117: =SUMIF(TRANS!$BQ:$BQ,U$3&DFENO&Home!$I117,TRANS!$S:$S) -> 0 | V117: =SUMIF(TRANS!$BQ:$BQ,V$3&DFENO&Home!$I117,TRANS!$S:$S) -> 0 | W117: =SUMIF(TRANS!$BQ:$BQ,W$3&DFENO&Home!$I117,TRANS!$S:$S) -> 0 | X117: =SUMIF(TRANS!$BQ:$BQ,X$3&DFENO&Home!$I117,TRANS!$S:$S) -> 0 | Y117: =SUMIF(TRANS!$BQ:$BQ,Y$3&DFENO&Home!$I117,TRANS!$S:$S) -> 0 | Z117: =SUMIF(TRANS!$BQ:$BQ,Z$3&DFENO&Home!$I117,TRANS!$S:$S) -> 0 | AA117: =SUMIF(TRANS!$BQ:$BQ,AA$3&DFENO&Home!$I117,TRANS!$S:$S) -> 0 | AB117: =SUMIF(TRANS!$BQ:$BQ,AB$3&DFENO&Home!$I117,TRANS!$S:$S) -> 0 | AC117: =SUMIF(TRANS!$BQ:$BQ,AC$3&DFENO&Home!$I117,TRANS!$S:$S) -> 0 | AD117: =SUM(Q117:AC117) -> 0 | AG117: =IF(ISERROR(VLOOKUP(I117,Rates!$A:$AP,42,0)),"",VLOOKUP(I117,Rates!$A:$AP,42,0)) -> 
A118: =VLOOKUP(I118,Rates!A:L,2,0) ->  | B118: blank | C118: dfcloan | D118: PPSERVICE | E118: PPFSMSec | F118: blank | G118: blank | H118: blank | K118: =IF(ISERROR(VLOOKUP("Original"&OLDLAESTAB&I118,'1718OriginalFunding'!C:D,2,0)),0,VLOOKUP("Original"&OLDLAESTAB&I118,'1718OriginalFunding'!C:D,2,0)) -> 0 | L118: =SUMIF('EOY1718'!E:E,DFENO&Home!I118,'EOY1718'!D:D) -> 0 | M118: =VLOOKUP(I80:I118,Rates!A:L,8,0) ->  | N118: =IF(ISERROR(VLOOKUP(I118,Rates!A:L,3,0)),"",VLOOKUP(I118,Rates!A:L,3,0)) ->  | P118: =VLOOKUP(I118,Rates!A:AO,41,0) ->  | Q118: =SUMIF(TRANS!$BQ:$BQ,Q$3&DFENO&Home!$I118,TRANS!$S:$S) -> 0 | R118: =SUMIF(TRANS!$BQ:$BQ,R$3&DFENO&Home!$I118,TRANS!$S:$S) -> 0 | S118: =SUMIF(TRANS!$BQ:$BQ,S$3&DFENO&Home!$I118,TRANS!$S:$S) -> 0 | T118: =SUMIF(TRANS!$BQ:$BQ,T$3&DFENO&Home!$I118,TRANS!$S:$S) -> 0 | U118: =SUMIF(TRANS!$BQ:$BQ,U$3&DFENO&Home!$I118,TRANS!$S:$S) -> 0 | V118: =SUMIF(TRANS!$BQ:$BQ,V$3&DFENO&Home!$I118,TRANS!$S:$S) -> 0 | W118: =SUMIF(TRANS!$BQ:$BQ,W$3&DFENO&Home!$I118,TRANS!$S:$S) -> 0 | X118: =SUMIF(TRANS!$BQ:$BQ,X$3&DFENO&Home!$I118,TRANS!$S:$S) -> 0 | Y118: =SUMIF(TRANS!$BQ:$BQ,Y$3&DFENO&Home!$I118,TRANS!$S:$S) -> 0 | Z118: =SUMIF(TRANS!$BQ:$BQ,Z$3&DFENO&Home!$I118,TRANS!$S:$S) -> 0 | AA118: =SUMIF(TRANS!$BQ:$BQ,AA$3&DFENO&Home!$I118,TRANS!$S:$S) -> 0 | AB118: =SUMIF(TRANS!$BQ:$BQ,AB$3&DFENO&Home!$I118,TRANS!$S:$S) -> 0 | AC118: =SUMIF(TRANS!$BQ:$BQ,AC$3&DFENO&Home!$I118,TRANS!$S:$S) -> 0 | AD118: =SUM(Q118:AC118) -> 0 | AG118: =IF(ISERROR(VLOOKUP(I118,Rates!$A:$AP,42,0)),"",VLOOKUP(I118,Rates!$A:$AP,42,0)) -> 
A119: =VLOOKUP(I119,Rates!A:L,2,0) ->  | B119: blank | C119: tu | D119: PPLOOKEDAFTER | E119: PPSERVICE | F119: blank | G119: blank | H119: blank | K119: =IF(ISERROR(VLOOKUP("Original"&OLDLAESTAB&I119,'1718OriginalFunding'!C:D,2,0)),0,VLOOKUP("Original"&OLDLAESTAB&I119,'1718OriginalFunding'!C:D,2,0)) -> 0 | L119: =SUMIF('EOY1718'!E:E,DFENO&Home!I119,'EOY1718'!D:D) -> 0 | M119: =VLOOKUP(I81:I119,Rates!A:L,8,0) ->  | N119: =IF(ISERROR(VLOOKUP(I119,Rates!A:L,3,0)),"",VLOOKUP(I119,Rates!A:L,3,0)) ->  | P119: =VLOOKUP(I119,Rates!A:AO,41,0) ->  | Q119: =SUMIF(TRANS!$BQ:$BQ,Q$3&DFENO&Home!$I119,TRANS!$S:$S) -> 0 | R119: =SUMIF(TRANS!$BQ:$BQ,R$3&DFENO&Home!$I119,TRANS!$S:$S) -> 0 | S119: =SUMIF(TRANS!$BQ:$BQ,S$3&DFENO&Home!$I119,TRANS!$S:$S) -> 0 | T119: =SUMIF(TRANS!$BQ:$BQ,T$3&DFENO&Home!$I119,TRANS!$S:$S) -> 0 | U119: =SUMIF(TRANS!$BQ:$BQ,U$3&DFENO&Home!$I119,TRANS!$S:$S) -> 0 | V119: =SUMIF(TRANS!$BQ:$BQ,V$3&DFENO&Home!$I119,TRANS!$S:$S) -> 0 | W119: =SUMIF(TRANS!$BQ:$BQ,W$3&DFENO&Home!$I119,TRANS!$S:$S) -> 0 | X119: =SUMIF(TRANS!$BQ:$BQ,X$3&DFENO&Home!$I119,TRANS!$S:$S) -> 0 | Y119: =SUMIF(TRANS!$BQ:$BQ,Y$3&DFENO&Home!$I119,TRANS!$S:$S) -> 0 | Z119: =SUMIF(TRANS!$BQ:$BQ,Z$3&DFENO&Home!$I119,TRANS!$S:$S) -> 0 | AA119: =SUMIF(TRANS!$BQ:$BQ,AA$3&DFENO&Home!$I119,TRANS!$S:$S) -> 0 | AB119: =SUMIF(TRANS!$BQ:$BQ,AB$3&DFENO&Home!$I119,TRANS!$S:$S) -> 0 | AC119: =SUMIF(TRANS!$BQ:$BQ,AC$3&DFENO&Home!$I119,TRANS!$S:$S) -> 0 | AD119: 0 | AG119: =IF(ISERROR(VLOOKUP(I119,Rates!$A:$AP,42,0)),"",VLOOKUP(I119,Rates!$A:$AP,42,0)) -> 
A120: =VLOOKUP(I120,Rates!A:L,2,0) ->  | B120: blank | C120: PEGRANT | D120: PPPOST-LAC | E120: PPLOOKEDAFTER | F120: blank | G120: blank | H120: blank | K120: =IF(ISERROR(VLOOKUP("Original"&OLDLAESTAB&I120,'1718OriginalFunding'!C:D,2,0)),0,VLOOKUP("Original"&OLDLAESTAB&I120,'1718OriginalFunding'!C:D,2,0)) -> 0 | L120: =SUMIF('EOY1718'!E:E,DFENO&Home!I120,'EOY1718'!D:D) -> 0 | M120: =VLOOKUP(I82:I120,Rates!A:L,8,0) ->  | N120: =IF(ISERROR(VLOOKUP(I120,Rates!A:L,3,0)),"",VLOOKUP(I120,Rates!A:L,3,0)) ->  | P120: =VLOOKUP(I120,Rates!A:AO,41,0) ->  | Q120: =SUMIF(TRANS!$BQ:$BQ,Q$3&DFENO&Home!$I120,TRANS!$S:$S) -> 0 | R120: =SUMIF(TRANS!$BQ:$BQ,R$3&DFENO&Home!$I120,TRANS!$S:$S) -> 0 | S120: =SUMIF(TRANS!$BQ:$BQ,S$3&DFENO&Home!$I120,TRANS!$S:$S) -> 0 | T120: =SUMIF(TRANS!$BQ:$BQ,T$3&DFENO&Home!$I120,TRANS!$S:$S) -> 0 | U120: =SUMIF(TRANS!$BQ:$BQ,U$3&DFENO&Home!$I120,TRANS!$S:$S) -> 0 | V120: =SUMIF(TRANS!$BQ:$BQ,V$3&DFENO&Home!$I120,TRANS!$S:$S) -> 0 | W120: =SUMIF(TRANS!$BQ:$BQ,W$3&DFENO&Home!$I120,TRANS!$S:$S) -> 0 | X120: =SUMIF(TRANS!$BQ:$BQ,X$3&DFENO&Home!$I120,TRANS!$S:$S) -> 0 | Y120: =SUMIF(TRANS!$BQ:$BQ,Y$3&DFENO&Home!$I120,TRANS!$S:$S) -> 0 | Z120: =SUMIF(TRANS!$BQ:$BQ,Z$3&DFENO&Home!$I120,TRANS!$S:$S) -> 0 | AA120: =SUMIF(TRANS!$BQ:$BQ,AA$3&DFENO&Home!$I120,TRANS!$S:$S) -> 0 | AB120: =SUMIF(TRANS!$BQ:$BQ,AB$3&DFENO&Home!$I120,TRANS!$S:$S) -> 0 | AC120: =SUMIF(TRANS!$BQ:$BQ,AC$3&DFENO&Home!$I120,TRANS!$S:$S) -> 0 | AD120: 0 | AG120: =IF(ISERROR(VLOOKUP(I120,Rates!$A:$AP,42,0)),"",VLOOKUP(I120,Rates!$A:$AP,42,0)) -> 
A121: =VLOOKUP(I121,Rates!A:L,2,0) ->  | B121: blank | C121: UIFSM | D121: SUMMERSCHOOLSGRANT | E121: PPPOST-LAC | F121: blank | G121: blank | H121: blank | K121: =IF(ISERROR(VLOOKUP("Original"&OLDLAESTAB&I121,'1718OriginalFunding'!C:D,2,0)),0,VLOOKUP("Original"&OLDLAESTAB&I121,'1718OriginalFunding'!C:D,2,0)) -> 0 | L121: =SUMIF('EOY1718'!E:E,DFENO&Home!I121,'EOY1718'!D:D) -> 0 | M121: =VLOOKUP(I83:I121,Rates!A:L,8,0) ->  | N121: =IF(ISERROR(VLOOKUP(I121,Rates!A:L,3,0)),"",VLOOKUP(I121,Rates!A:L,3,0)) ->  | P121: =VLOOKUP(I121,Rates!A:AO,41,0) ->  | Q121: =SUMIF(TRANS!$BQ:$BQ,Q$3&DFENO&Home!$I121,TRANS!$S:$S) -> 0 | R121: =SUMIF(TRANS!$BQ:$BQ,R$3&DFENO&Home!$I121,TRANS!$S:$S) -> 0 | S121: =SUMIF(TRANS!$BQ:$BQ,S$3&DFENO&Home!$I121,TRANS!$S:$S) -> 0 | T121: =SUMIF(TRANS!$BQ:$BQ,T$3&DFENO&Home!$I121,TRANS!$S:$S) -> 0 | U121: =SUMIF(TRANS!$BQ:$BQ,U$3&DFENO&Home!$I121,TRANS!$S:$S) -> 0 | V121: =SUMIF(TRANS!$BQ:$BQ,V$3&DFENO&Home!$I121,TRANS!$S:$S) -> 0 | W121: =SUMIF(TRANS!$BQ:$BQ,W$3&DFENO&Home!$I121,TRANS!$S:$S) -> 0 | X121: =SUMIF(TRANS!$BQ:$BQ,X$3&DFENO&Home!$I121,TRANS!$S:$S) -> 0 | Y121: =SUMIF(TRANS!$BQ:$BQ,Y$3&DFENO&Home!$I121,TRANS!$S:$S) -> 0 | Z121: =SUMIF(TRANS!$BQ:$BQ,Z$3&DFENO&Home!$I121,TRANS!$S:$S) -> 0 | AA121: =SUMIF(TRANS!$BQ:$BQ,AA$3&DFENO&Home!$I121,TRANS!$S:$S) -> 0 | AB121: =SUMIF(TRANS!$BQ:$BQ,AB$3&DFENO&Home!$I121,TRANS!$S:$S) -> 0 | AC121: =SUMIF(TRANS!$BQ:$BQ,AC$3&DFENO&Home!$I121,TRANS!$S:$S) -> 0 | AD121: 0 | AG121: =IF(ISERROR(VLOOKUP(I121,Rates!$A:$AP,42,0)),"",VLOOKUP(I121,Rates!$A:$AP,42,0)) -> 
A122: =VLOOKUP(I122,Rates!A:L,2,0) ->  | B122: blank | C122: RBASELINE | D122: PPPY | E122: SUMMERSCHOOLSGRANT | F122: blank | G122: blank | H122: blank | K122: =IF(ISERROR(VLOOKUP("Original"&OLDLAESTAB&I122,'1718OriginalFunding'!C:D,2,0)),0,VLOOKUP("Original"&OLDLAESTAB&I122,'1718OriginalFunding'!C:D,2,0)) -> 0 | L122: =SUMIF('EOY1718'!E:E,DFENO&Home!I122,'EOY1718'!D:D) -> 0 | M122: =VLOOKUP(I84:I122,Rates!A:L,8,0) ->  | N122: =IF(ISERROR(VLOOKUP(I122,Rates!A:L,3,0)),"",VLOOKUP(I122,Rates!A:L,3,0)) ->  | O122: =HYPERLINK(VLOOKUP(N116,$J$168:$M$185,4,0),IF(N116="Not Used","",N116)) ->  | P122: =VLOOKUP(I122,Rates!A:AO,41,0) ->  | Q122: =SUMIF(TRANS!$BQ:$BQ,Q$3&DFENO&Home!$I122,TRANS!$S:$S) -> 0 | R122: =SUMIF(TRANS!$BQ:$BQ,R$3&DFENO&Home!$I122,TRANS!$S:$S) -> 0 | S122: =SUMIF(TRANS!$BQ:$BQ,S$3&DFENO&Home!$I122,TRANS!$S:$S) -> 0 | T122: =SUMIF(TRANS!$BQ:$BQ,T$3&DFENO&Home!$I122,TRANS!$S:$S) -> 0 | U122: =SUMIF(TRANS!$BQ:$BQ,U$3&DFENO&Home!$I122,TRANS!$S:$S) -> 0 | V122: =SUMIF(TRANS!$BQ:$BQ,V$3&DFENO&Home!$I122,TRANS!$S:$S) -> 0 | W122: =SUMIF(TRANS!$BQ:$BQ,W$3&DFENO&Home!$I122,TRANS!$S:$S) -> 0 | X122: =SUMIF(TRANS!$BQ:$BQ,X$3&DFENO&Home!$I122,TRANS!$S:$S) -> 0 | Y122: =SUMIF(TRANS!$BQ:$BQ,Y$3&DFENO&Home!$I122,TRANS!$S:$S) -> 0 | Z122: =SUMIF(TRANS!$BQ:$BQ,Z$3&DFENO&Home!$I122,TRANS!$S:$S) -> 0 | AA122: =SUMIF(TRANS!$BQ:$BQ,AA$3&DFENO&Home!$I122,TRANS!$S:$S) -> 0 | AB122: =SUMIF(TRANS!$BQ:$BQ,AB$3&DFENO&Home!$I122,TRANS!$S:$S) -> 0 | AC122: =SUMIF(TRANS!$BQ:$BQ,AC$3&DFENO&Home!$I122,TRANS!$S:$S) -> 0 | AD122: 0 | AG122: =IF(ISERROR(VLOOKUP(I122,Rates!$A:$AP,42,0)),"",VLOOKUP(I122,Rates!$A:$AP,42,0)) -> 
A123: =VLOOKUP(I123,Rates!A:L,2,0) ->  | B123: blank | C123: NCTL | D123: PPEXCLUSIONS | E123: PPEXCLUSIONS | F123: blank | G123: blank | H123: blank | K123: =IF(ISERROR(VLOOKUP("Original"&OLDLAESTAB&I123,'1718OriginalFunding'!C:D,2,0)),0,VLOOKUP("Original"&OLDLAESTAB&I123,'1718OriginalFunding'!C:D,2,0)) -> 0 | L123: =SUMIF('EOY1718'!E:E,DFENO&Home!I123,'EOY1718'!D:D) -> 0 | M123: =VLOOKUP(I85:I123,Rates!A:L,8,0) ->  | N123: =IF(ISERROR(VLOOKUP(I123,Rates!A:L,3,0)),"",VLOOKUP(I123,Rates!A:L,3,0)) ->  | P123: =VLOOKUP(I123,Rates!A:AO,41,0) ->  | Q123: =SUMIF(TRANS!$BQ:$BQ,Q$3&DFENO&Home!$I123,TRANS!$S:$S) -> 0 | R123: =SUMIF(TRANS!$BQ:$BQ,R$3&DFENO&Home!$I123,TRANS!$S:$S) -> 0 | S123: =SUMIF(TRANS!$BQ:$BQ,S$3&DFENO&Home!$I123,TRANS!$S:$S) -> 0 | T123: =SUMIF(TRANS!$BQ:$BQ,T$3&DFENO&Home!$I123,TRANS!$S:$S) -> 0 | U123: =SUMIF(TRANS!$BQ:$BQ,U$3&DFENO&Home!$I123,TRANS!$S:$S) -> 0 | V123: =SUMIF(TRANS!$BQ:$BQ,V$3&DFENO&Home!$I123,TRANS!$S:$S) -> 0 | W123: =SUMIF(TRANS!$BQ:$BQ,W$3&DFENO&Home!$I123,TRANS!$S:$S) -> 0 | X123: =SUMIF(TRANS!$BQ:$BQ,X$3&DFENO&Home!$I123,TRANS!$S:$S) -> 0 | Y123: =SUMIF(TRANS!$BQ:$BQ,Y$3&DFENO&Home!$I123,TRANS!$S:$S) -> 0 | Z123: =SUMIF(TRANS!$BQ:$BQ,Z$3&DFENO&Home!$I123,TRANS!$S:$S) -> 0 | AA123: =SUMIF(TRANS!$BQ:$BQ,AA$3&DFENO&Home!$I123,TRANS!$S:$S) -> 0 | AB123: =SUMIF(TRANS!$BQ:$BQ,AB$3&DFENO&Home!$I123,TRANS!$S:$S) -> 0 | AC123: =SUMIF(TRANS!$BQ:$BQ,AC$3&DFENO&Home!$I123,TRANS!$S:$S) -> 0 | AD123: 0 | AG123: =IF(ISERROR(VLOOKUP(I123,Rates!$A:$AP,42,0)),"",VLOOKUP(I123,Rates!$A:$AP,42,0)) -> 
A124: =VLOOKUP(I124,Rates!A:L,2,0) ->  | B124: blank | C124: blank | D124: blank | E124: PPPY | F124: blank | G124: blank | H124: blank | K124: =IF(ISERROR(VLOOKUP("Original"&OLDLAESTAB&I124,'1718OriginalFunding'!C:D,2,0)),0,VLOOKUP("Original"&OLDLAESTAB&I124,'1718OriginalFunding'!C:D,2,0)) -> 0 | L124: =SUMIF('EOY1718'!E:E,DFENO&Home!I124,'EOY1718'!D:D) -> 0 | M124: =VLOOKUP(I86:I124,Rates!A:L,8,0) ->  | N124: =IF(ISERROR(VLOOKUP(I124,Rates!A:L,3,0)),"",VLOOKUP(I124,Rates!A:L,3,0)) ->  | P124: =VLOOKUP(I124,Rates!A:AO,41,0) ->  | Q124: =SUMIF(TRANS!$BQ:$BQ,Q$3&DFENO&Home!$I124,TRANS!$S:$S) -> 0 | R124: =SUMIF(TRANS!$BQ:$BQ,R$3&DFENO&Home!$I124,TRANS!$S:$S) -> 0 | S124: =SUMIF(TRANS!$BQ:$BQ,S$3&DFENO&Home!$I124,TRANS!$S:$S) -> 0 | T124: =SUMIF(TRANS!$BQ:$BQ,T$3&DFENO&Home!$I124,TRANS!$S:$S) -> 0 | U124: =SUMIF(TRANS!$BQ:$BQ,U$3&DFENO&Home!$I124,TRANS!$S:$S) -> 0 | V124: =SUMIF(TRANS!$BQ:$BQ,V$3&DFENO&Home!$I124,TRANS!$S:$S) -> 0 | W124: =SUMIF(TRANS!$BQ:$BQ,W$3&DFENO&Home!$I124,TRANS!$S:$S) -> 0 | X124: =SUMIF(TRANS!$BQ:$BQ,X$3&DFENO&Home!$I124,TRANS!$S:$S) -> 0 | Y124: =SUMIF(TRANS!$BQ:$BQ,Y$3&DFENO&Home!$I124,TRANS!$S:$S) -> 0 | Z124: =SUMIF(TRANS!$BQ:$BQ,Z$3&DFENO&Home!$I124,TRANS!$S:$S) -> 0 | AA124: =SUMIF(TRANS!$BQ:$BQ,AA$3&DFENO&Home!$I124,TRANS!$S:$S) -> 0 | AB124: =SUMIF(TRANS!$BQ:$BQ,AB$3&DFENO&Home!$I124,TRANS!$S:$S) -> 0 | AC124: =SUMIF(TRANS!$BQ:$BQ,AC$3&DFENO&Home!$I124,TRANS!$S:$S) -> 0 | AD124: 0 | AG124: =IF(ISERROR(VLOOKUP(I124,Rates!$A:$AP,42,0)),"",VLOOKUP(I124,Rates!$A:$AP,42,0)) -> 
A125: =VLOOKUP(I125,Rates!A:L,2,0) ->  | B125: blank | C125: blank | D125: blank | E125: blank | F125: blank | G125: blank | H125: blank | K125: =IF(ISERROR(VLOOKUP("Original"&OLDLAESTAB&I125,'1718OriginalFunding'!C:D,2,0)),0,VLOOKUP("Original"&OLDLAESTAB&I125,'1718OriginalFunding'!C:D,2,0)) -> 0 | L125: =SUMIF('EOY1718'!E:E,DFENO&Home!I125,'EOY1718'!D:D) -> 0 | M125: =VLOOKUP(I87:I125,Rates!A:L,8,0) ->  | N125: =IF(ISERROR(VLOOKUP(I125,Rates!A:L,3,0)),"",VLOOKUP(I125,Rates!A:L,3,0)) ->  | P125: =VLOOKUP(I125,Rates!A:AO,41,0) ->  | Q125: =SUMIF(TRANS!$BQ:$BQ,Q$3&DFENO&Home!$I125,TRANS!$S:$S) -> 0 | R125: =SUMIF(TRANS!$BQ:$BQ,R$3&DFENO&Home!$I125,TRANS!$S:$S) -> 0 | S125: =SUMIF(TRANS!$BQ:$BQ,S$3&DFENO&Home!$I125,TRANS!$S:$S) -> 0 | T125: =SUMIF(TRANS!$BQ:$BQ,T$3&DFENO&Home!$I125,TRANS!$S:$S) -> 0 | U125: =SUMIF(TRANS!$BQ:$BQ,U$3&DFENO&Home!$I125,TRANS!$S:$S) -> 0 | V125: =SUMIF(TRANS!$BQ:$BQ,V$3&DFENO&Home!$I125,TRANS!$S:$S) -> 0 | W125: =SUMIF(TRANS!$BQ:$BQ,W$3&DFENO&Home!$I125,TRANS!$S:$S) -> 0 | X125: =SUMIF(TRANS!$BQ:$BQ,X$3&DFENO&Home!$I125,TRANS!$S:$S) -> 0 | Y125: =SUMIF(TRANS!$BQ:$BQ,Y$3&DFENO&Home!$I125,TRANS!$S:$S) -> 0 | Z125: =SUMIF(TRANS!$BQ:$BQ,Z$3&DFENO&Home!$I125,TRANS!$S:$S) -> 0 | AA125: =SUMIF(TRANS!$BQ:$BQ,AA$3&DFENO&Home!$I125,TRANS!$S:$S) -> 0 | AB125: =SUMIF(TRANS!$BQ:$BQ,AB$3&DFENO&Home!$I125,TRANS!$S:$S) -> 0 | AC125: =SUMIF(TRANS!$BQ:$BQ,AC$3&DFENO&Home!$I125,TRANS!$S:$S) -> 0 | AD125: 0 | AG125: =IF(ISERROR(VLOOKUP(I125,Rates!$A:$AP,42,0)),"",VLOOKUP(I125,Rates!$A:$AP,42,0)) -> 
A126: =VLOOKUP(I126,Rates!A:L,2,0) ->  | B126: blank | C126: blank | D126: blank | E126: blank | F126: blank | G126: blank | H126: blank | K126: =IF(ISERROR(VLOOKUP("Original"&OLDLAESTAB&I126,'1718OriginalFunding'!C:D,2,0)),0,VLOOKUP("Original"&OLDLAESTAB&I126,'1718OriginalFunding'!C:D,2,0)) -> 0 | L126: =SUMIF('EOY1718'!E:E,DFENO&Home!I126,'EOY1718'!D:D) -> 0 | M126: =VLOOKUP(I88:I126,Rates!A:L,8,0) ->  | N126: =IF(ISERROR(VLOOKUP(I126,Rates!A:L,3,0)),"",VLOOKUP(I126,Rates!A:L,3,0)) ->  | P126: =VLOOKUP(I126,Rates!A:AO,41,0) ->  | Q126: =SUMIF(TRANS!$BQ:$BQ,Q$3&DFENO&Home!$I126,TRANS!$S:$S) -> 0 | R126: =SUMIF(TRANS!$BQ:$BQ,R$3&DFENO&Home!$I126,TRANS!$S:$S) -> 0 | S126: =SUMIF(TRANS!$BQ:$BQ,S$3&DFENO&Home!$I126,TRANS!$S:$S) -> 0 | T126: =SUMIF(TRANS!$BQ:$BQ,T$3&DFENO&Home!$I126,TRANS!$S:$S) -> 0 | U126: =SUMIF(TRANS!$BQ:$BQ,U$3&DFENO&Home!$I126,TRANS!$S:$S) -> 0 | V126: =SUMIF(TRANS!$BQ:$BQ,V$3&DFENO&Home!$I126,TRANS!$S:$S) -> 0 | W126: =SUMIF(TRANS!$BQ:$BQ,W$3&DFENO&Home!$I126,TRANS!$S:$S) -> 0 | X126: =SUMIF(TRANS!$BQ:$BQ,X$3&DFENO&Home!$I126,TRANS!$S:$S) -> 0 | Y126: =SUMIF(TRANS!$BQ:$BQ,Y$3&DFENO&Home!$I126,TRANS!$S:$S) -> 0 | Z126: =SUMIF(TRANS!$BQ:$BQ,Z$3&DFENO&Home!$I126,TRANS!$S:$S) -> 0 | AA126: =SUMIF(TRANS!$BQ:$BQ,AA$3&DFENO&Home!$I126,TRANS!$S:$S) -> 0 | AB126: =SUMIF(TRANS!$BQ:$BQ,AB$3&DFENO&Home!$I126,TRANS!$S:$S) -> 0 | AC126: =SUMIF(TRANS!$BQ:$BQ,AC$3&DFENO&Home!$I126,TRANS!$S:$S) -> 0 | AD126: 0 | AG126: =IF(ISERROR(VLOOKUP(I126,Rates!$A:$AP,42,0)),"",VLOOKUP(I126,Rates!$A:$AP,42,0)) -> 
A127: =VLOOKUP(I127,Rates!A:L,2,0) ->  | B127: subtotal | C127: subtotal | D127: subtotal | E127: subtotal | F127: subtotal | G127: subtotal | H127: subtotal | K127: =SUM(K117:K126) -> 0 | L127: =SUM(L117:L126) -> 0 | N127: =IF(ISERROR(VLOOKUP(I127,Rates!A:L,3,0)),"",VLOOKUP(I127,Rates!A:L,3,0)) ->  | Q127: =SUM(Q117:Q126) -> 0 | R127: =SUM(R117:R126) -> 0 | S127: 0 | T127: 0 | U127: 0 | V127: 0 | W127: 0 | X127: 0 | Y127: 0 | Z127: 0 | AA127: 0 | AB127: 0 | AC127: 0 | AD127: 0 | AG127: =IF(ISERROR(VLOOKUP(I127,Rates!$A:$AP,42,0)),"",VLOOKUP(I127,Rates!$A:$AP,42,0)) -> 
A128: =VLOOKUP(I128,Rates!A:L,2,0) -> REPORT | B128: 0 | C128: 4 | D128: 4 | E128: 5 | F128: 0 | G128: 0 | H128: 0 | AG128: =IF(ISERROR(VLOOKUP(I128,Rates!$A:$AP,42,0)),"",VLOOKUP(I128,Rates!$A:$AP,42,0)) -> 0
A129: =VLOOKUP(I129,Rates!A:L,2,0) ->  | B129: Not used | C129: Growth | D129: Growth | E129: Growth | F129: Not used | G129: Not used | H129: Not used | I129: =INDIRECT(VLOOKUP($X$21,$B$21:$C$29,2,0)&ROW()) ->  | N129: =I129 ->  | O129: =IF($N129="Not used","","For more detail please go to the "&VLOOKUP($N129,$J$168:$K$185,2,0)&" tab") ->  | AG129: =IF(ISERROR(VLOOKUP(I129,Rates!$A:$AP,42,0)),"",VLOOKUP(I129,Rates!$A:$AP,42,0)) -> 
A130: =VLOOKUP(I130,Rates!A:L,2,0) ->  | B130: blank | C130: BULGE | D130: BULGESEC | E130: BULGE | F130: blank | G130: blank | H130: blank | K130: =IF(ISERROR(VLOOKUP("Original"&OLDLAESTAB&I130,'1718OriginalFunding'!C:D,2,0)),0,VLOOKUP("Original"&OLDLAESTAB&I130,'1718OriginalFunding'!C:D,2,0)) -> 0 | L130: =SUMIF('EOY1718'!E:E,DFENO&Home!I130,'EOY1718'!D:D) -> 0 | M130: =VLOOKUP(I88:I130,Rates!A:L,8,0) ->  | N130: =IF(ISERROR(VLOOKUP(I130,Rates!A:L,3,0)),"",VLOOKUP(I130,Rates!A:L,3,0)) ->  | P130: =VLOOKUP(I130,Rates!A:AO,41,0) ->  | Q130: =SUMIF(TRANS!BQ:BQ,Q$3&DFENO&Home!$I130,TRANS!$S:$S) -> 0 | R130: =SUMIF(TRANS!$BQ:$BQ,R$3&DFENO&Home!$I130,TRANS!$S:$S) -> 0 | S130: =SUMIF(TRANS!$BQ:$BQ,S$3&DFENO&Home!$I130,TRANS!$S:$S) -> 0 | T130: =SUMIF(TRANS!$BQ:$BQ,T$3&DFENO&Home!$I130,TRANS!$S:$S) -> 0 | U130: =SUMIF(TRANS!$BQ:$BQ,U$3&DFENO&Home!$I130,TRANS!$S:$S) -> 0 | V130: =SUMIF(TRANS!$BQ:$BQ,V$3&DFENO&Home!$I130,TRANS!$S:$S) -> 0 | W130: =SUMIF(TRANS!$BQ:$BQ,W$3&DFENO&Home!$I130,TRANS!$S:$S) -> 0 | X130: =SUMIF(TRANS!$BQ:$BQ,X$3&DFENO&Home!$I130,TRANS!$S:$S) -> 0 | Y130: =SUMIF(TRANS!$BQ:$BQ,Y$3&DFENO&Home!$I130,TRANS!$S:$S) -> 0 | Z130: =SUMIF(TRANS!$BQ:$BQ,Z$3&DFENO&Home!$I130,TRANS!$S:$S) -> 0 | AA130: =SUMIF(TRANS!$BQ:$BQ,AA$3&DFENO&Home!$I130,TRANS!$S:$S) -> 0 | AB130: =SUMIF(TRANS!$BQ:$BQ,AB$3&DFENO&Home!$I130,TRANS!$S:$S) -> 0 | AC130: =SUMIF(TRANS!$BQ:$BQ,AC$3&DFENO&Home!$I130,TRANS!$S:$S) -> 0 | AD130: =SUM(Q130:AC130) -> 0 | AG130: =IF(ISERROR(VLOOKUP(I130,Rates!$A:$AP,42,0)),"",VLOOKUP(I130,Rates!$A:$AP,42,0)) -> 
A131: =VLOOKUP(I131,Rates!A:L,2,0) ->  | B131: blank | C131: BULGEPRI | D131: EXPANDPRI | E131: EXPANDPRI | F131: blank | G131: blank | H131: blank | K131: =IF(ISERROR(VLOOKUP("Original"&OLDLAESTAB&I131,'1718OriginalFunding'!C:D,2,0)),0,VLOOKUP("Original"&OLDLAESTAB&I131,'1718OriginalFunding'!C:D,2,0)) -> 0 | L131: =SUMIF('EOY1718'!E:E,DFENO&Home!I131,'EOY1718'!D:D) -> 0 | M131: =VLOOKUP(I89:I131,Rates!A:L,8,0) ->  | N131: =IF(ISERROR(VLOOKUP(I131,Rates!A:L,3,0)),"",VLOOKUP(I131,Rates!A:L,3,0)) ->  | P131: =VLOOKUP(I131,Rates!A:AO,41,0) ->  | Q131: =SUMIF(TRANS!BQ:BQ,Q$3&DFENO&Home!$I131,TRANS!$S:$S) -> 0 | R131: =SUMIF(TRANS!$BQ:$BQ,R$3&DFENO&Home!$I131,TRANS!$S:$S) -> 0 | S131: =SUMIF(TRANS!$BQ:$BQ,S$3&DFENO&Home!$I131,TRANS!$S:$S) -> 0 | T131: =SUMIF(TRANS!$BQ:$BQ,T$3&DFENO&Home!$I131,TRANS!$S:$S) -> 0 | U131: =SUMIF(TRANS!$BQ:$BQ,U$3&DFENO&Home!$I131,TRANS!$S:$S) -> 0 | V131: =SUMIF(TRANS!$BQ:$BQ,V$3&DFENO&Home!$I131,TRANS!$S:$S) -> 0 | W131: =SUMIF(TRANS!$BQ:$BQ,W$3&DFENO&Home!$I131,TRANS!$S:$S) -> 0 | X131: =SUMIF(TRANS!$BQ:$BQ,X$3&DFENO&Home!$I131,TRANS!$S:$S) -> 0 | Y131: =SUMIF(TRANS!$BQ:$BQ,Y$3&DFENO&Home!$I131,TRANS!$S:$S) -> 0 | Z131: =SUMIF(TRANS!$BQ:$BQ,Z$3&DFENO&Home!$I131,TRANS!$S:$S) -> 0 | AA131: =SUMIF(TRANS!$BQ:$BQ,AA$3&DFENO&Home!$I131,TRANS!$S:$S) -> 0 | AB131: =SUMIF(TRANS!$BQ:$BQ,AB$3&DFENO&Home!$I131,TRANS!$S:$S) -> 0 | AC131: =SUMIF(TRANS!$BQ:$BQ,AC$3&DFENO&Home!$I131,TRANS!$S:$S) -> 0 | AD131: 0 | AG131: =IF(ISERROR(VLOOKUP(I131,Rates!$A:$AP,42,0)),"",VLOOKUP(I131,Rates!$A:$AP,42,0)) -> 
A132: =VLOOKUP(I132,Rates!A:L,2,0) ->  | B132: blank | C132: EXPANDPRI | D132: EXPANDSEC | E132: EXPANDPRIHALF | F132: blank | G132: blank | H132: blank | K132: =IF(ISERROR(VLOOKUP("Original"&OLDLAESTAB&I132,'1718OriginalFunding'!C:D,2,0)),0,VLOOKUP("Original"&OLDLAESTAB&I132,'1718OriginalFunding'!C:D,2,0)) -> 0 | L132: =SUMIF('EOY1718'!E:E,DFENO&Home!I132,'EOY1718'!D:D) -> 0 | M132: =VLOOKUP(I90:I132,Rates!A:L,8,0) ->  | N132: =IF(ISERROR(VLOOKUP(I132,Rates!A:L,3,0)),"",VLOOKUP(I132,Rates!A:L,3,0)) ->  | P132: =VLOOKUP(I132,Rates!A:AO,41,0) ->  | Q132: =SUMIF(TRANS!BQ:BQ,Q$3&DFENO&Home!$I132,TRANS!$S:$S) -> 0 | R132: =SUMIF(TRANS!$BQ:$BQ,R$3&DFENO&Home!$I132,TRANS!$S:$S) -> 0 | S132: =SUMIF(TRANS!$BQ:$BQ,S$3&DFENO&Home!$I132,TRANS!$S:$S) -> 0 | T132: =SUMIF(TRANS!$BQ:$BQ,T$3&DFENO&Home!$I132,TRANS!$S:$S) -> 0 | U132: =SUMIF(TRANS!$BQ:$BQ,U$3&DFENO&Home!$I132,TRANS!$S:$S) -> 0 | V132: =SUMIF(TRANS!$BQ:$BQ,V$3&DFENO&Home!$I132,TRANS!$S:$S) -> 0 | W132: =SUMIF(TRANS!$BQ:$BQ,W$3&DFENO&Home!$I132,TRANS!$S:$S) -> 0 | X132: =SUMIF(TRANS!$BQ:$BQ,X$3&DFENO&Home!$I132,TRANS!$S:$S) -> 0 | Y132: =SUMIF(TRANS!$BQ:$BQ,Y$3&DFENO&Home!$I132,TRANS!$S:$S) -> 0 | Z132: =SUMIF(TRANS!$BQ:$BQ,Z$3&DFENO&Home!$I132,TRANS!$S:$S) -> 0 | AA132: =SUMIF(TRANS!$BQ:$BQ,AA$3&DFENO&Home!$I132,TRANS!$S:$S) -> 0 | AB132: =SUMIF(TRANS!$BQ:$BQ,AB$3&DFENO&Home!$I132,TRANS!$S:$S) -> 0 | AC132: =SUMIF(TRANS!$BQ:$BQ,AC$3&DFENO&Home!$I132,TRANS!$S:$S) -> 0 | AD132: 0 | AG132: =IF(ISERROR(VLOOKUP(I132,Rates!$A:$AP,42,0)),"",VLOOKUP(I132,Rates!$A:$AP,42,0)) -> 
A133: =VLOOKUP(I133,Rates!A:L,2,0) ->  | B133: blank | C133: EXPANDPRIHALF | D133: PYGROWTH1 | E133: EXPANDSEC | F133: blank | G133: blank | H133: blank | K133: =IF(ISERROR(VLOOKUP("Original"&OLDLAESTAB&I133,'1718OriginalFunding'!C:D,2,0)),0,VLOOKUP("Original"&OLDLAESTAB&I133,'1718OriginalFunding'!C:D,2,0)) -> 0 | L133: =SUMIF('EOY1718'!E:E,DFENO&Home!I133,'EOY1718'!D:D) -> 0 | M133: =VLOOKUP(I93:I133,Rates!A:L,8,0) ->  | N133: =IF(ISERROR(VLOOKUP(I133,Rates!A:L,3,0)),"",VLOOKUP(I133,Rates!A:L,3,0)) ->  | P133: =VLOOKUP(I133,Rates!A:AO,41,0) ->  | Q133: =SUMIF(TRANS!BQ:BQ,Q$3&DFENO&Home!$I133,TRANS!$S:$S) -> 0 | R133: =SUMIF(TRANS!$BQ:$BQ,R$3&DFENO&Home!$I133,TRANS!$S:$S) -> 0 | S133: =SUMIF(TRANS!$BQ:$BQ,S$3&DFENO&Home!$I133,TRANS!$S:$S) -> 0 | T133: =SUMIF(TRANS!$BQ:$BQ,T$3&DFENO&Home!$I133,TRANS!$S:$S) -> 0 | U133: =SUMIF(TRANS!$BQ:$BQ,U$3&DFENO&Home!$I133,TRANS!$S:$S) -> 0 | V133: =SUMIF(TRANS!$BQ:$BQ,V$3&DFENO&Home!$I133,TRANS!$S:$S) -> 0 | W133: =SUMIF(TRANS!$BQ:$BQ,W$3&DFENO&Home!$I133,TRANS!$S:$S) -> 0 | X133: =SUMIF(TRANS!$BQ:$BQ,X$3&DFENO&Home!$I133,TRANS!$S:$S) -> 0 | Y133: =SUMIF(TRANS!$BQ:$BQ,Y$3&DFENO&Home!$I133,TRANS!$S:$S) -> 0 | Z133: =SUMIF(TRANS!$BQ:$BQ,Z$3&DFENO&Home!$I133,TRANS!$S:$S) -> 0 | AA133: =SUMIF(TRANS!$BQ:$BQ,AA$3&DFENO&Home!$I133,TRANS!$S:$S) -> 0 | AB133: =SUMIF(TRANS!$BQ:$BQ,AB$3&DFENO&Home!$I133,TRANS!$S:$S) -> 0 | AC133: =SUMIF(TRANS!$BQ:$BQ,AC$3&DFENO&Home!$I133,TRANS!$S:$S) -> 0 | AD133: =SUM(Q133:AC133) -> 0 | AG133: =IF(ISERROR(VLOOKUP(I133,Rates!$A:$AP,42,0)),"",VLOOKUP(I133,Rates!$A:$AP,42,0)) -> 
A134: =VLOOKUP(I134,Rates!A:L,2,0) ->  | B134: blank | C134: PYGROWTH1 | D134: NEWSTART | E134: PYGROWTH1 | F134: blank | G134: blank | H134: blank | K134: =IF(ISERROR(VLOOKUP("Original"&OLDLAESTAB&I134,'1718OriginalFunding'!C:D,2,0)),0,VLOOKUP("Original"&OLDLAESTAB&I134,'1718OriginalFunding'!C:D,2,0)) -> 0 | L134: =SUMIF('EOY1718'!E:E,DFENO&Home!I134,'EOY1718'!D:D) -> 0 | M134: =VLOOKUP(I94:I134,Rates!A:L,8,0) ->  | N134: =IF(ISERROR(VLOOKUP(I134,Rates!A:L,3,0)),"",VLOOKUP(I134,Rates!A:L,3,0)) ->  | P134: =VLOOKUP(I134,Rates!A:AO,41,0) ->  | Q134: =SUMIF(TRANS!BQ:BQ,Q$3&DFENO&Home!$I134,TRANS!$S:$S) -> 0 | R134: =SUMIF(TRANS!$BQ:$BQ,R$3&DFENO&Home!$I134,TRANS!$S:$S) -> 0 | S134: =SUMIF(TRANS!$BQ:$BQ,S$3&DFENO&Home!$I134,TRANS!$S:$S) -> 0 | T134: =SUMIF(TRANS!$BQ:$BQ,T$3&DFENO&Home!$I134,TRANS!$S:$S) -> 0 | U134: =SUMIF(TRANS!$BQ:$BQ,U$3&DFENO&Home!$I134,TRANS!$S:$S) -> 0 | V134: =SUMIF(TRANS!$BQ:$BQ,V$3&DFENO&Home!$I134,TRANS!$S:$S) -> 0 | W134: =SUMIF(TRANS!$BQ:$BQ,W$3&DFENO&Home!$I134,TRANS!$S:$S) -> 0 | X134: =SUMIF(TRANS!$BQ:$BQ,X$3&DFENO&Home!$I134,TRANS!$S:$S) -> 0 | Y134: =SUMIF(TRANS!$BQ:$BQ,Y$3&DFENO&Home!$I134,TRANS!$S:$S) -> 0 | Z134: =SUMIF(TRANS!$BQ:$BQ,Z$3&DFENO&Home!$I134,TRANS!$S:$S) -> 0 | AA134: =SUMIF(TRANS!$BQ:$BQ,AA$3&DFENO&Home!$I134,TRANS!$S:$S) -> 0 | AB134: =SUMIF(TRANS!$BQ:$BQ,AB$3&DFENO&Home!$I134,TRANS!$S:$S) -> 0 | AC134: =SUMIF(TRANS!$BQ:$BQ,AC$3&DFENO&Home!$I134,TRANS!$S:$S) -> 0 | AD134: 0 | AG134: =IF(ISERROR(VLOOKUP(I134,Rates!$A:$AP,42,0)),"",VLOOKUP(I134,Rates!$A:$AP,42,0)) -> 
A135: =VLOOKUP(I135,Rates!A:L,2,0) ->  | B135: blank | C135: NEWSTART | D135: DISECON | E135: NEWSTART | F135: blank | G135: blank | H135: blank | K135: =IF(ISERROR(VLOOKUP("Original"&OLDLAESTAB&I135,'1718OriginalFunding'!C:D,2,0)),0,VLOOKUP("Original"&OLDLAESTAB&I135,'1718OriginalFunding'!C:D,2,0)) -> 0 | L135: =SUMIF('EOY1718'!E:E,DFENO&Home!I135,'EOY1718'!D:D) -> 0 | M135: =VLOOKUP(I94:I135,Rates!A:L,8,0) ->  | N135: =IF(ISERROR(VLOOKUP(I135,Rates!A:L,3,0)),"",VLOOKUP(I135,Rates!A:L,3,0)) ->  | P135: =VLOOKUP(I135,Rates!A:AO,41,0) ->  | Q135: =SUMIF(TRANS!BQ:BQ,Q$3&DFENO&Home!$I135,TRANS!$S:$S) -> 0 | R135: =SUMIF(TRANS!$BQ:$BQ,R$3&DFENO&Home!$I135,TRANS!$S:$S) -> 0 | S135: =SUMIF(TRANS!$BQ:$BQ,S$3&DFENO&Home!$I135,TRANS!$S:$S) -> 0 | T135: =SUMIF(TRANS!$BQ:$BQ,T$3&DFENO&Home!$I135,TRANS!$S:$S) -> 0 | U135: =SUMIF(TRANS!$BQ:$BQ,U$3&DFENO&Home!$I135,TRANS!$S:$S) -> 0 | V135: =SUMIF(TRANS!$BQ:$BQ,V$3&DFENO&Home!$I135,TRANS!$S:$S) -> 0 | W135: =SUMIF(TRANS!$BQ:$BQ,W$3&DFENO&Home!$I135,TRANS!$S:$S) -> 0 | X135: =SUMIF(TRANS!$BQ:$BQ,X$3&DFENO&Home!$I135,TRANS!$S:$S) -> 0 | Y135: =SUMIF(TRANS!$BQ:$BQ,Y$3&DFENO&Home!$I135,TRANS!$S:$S) -> 0 | Z135: =SUMIF(TRANS!$BQ:$BQ,Z$3&DFENO&Home!$I135,TRANS!$S:$S) -> 0 | AA135: =SUMIF(TRANS!$BQ:$BQ,AA$3&DFENO&Home!$I135,TRANS!$S:$S) -> 0 | AB135: =SUMIF(TRANS!$BQ:$BQ,AB$3&DFENO&Home!$I135,TRANS!$S:$S) -> 0 | AC135: =SUMIF(TRANS!$BQ:$BQ,AC$3&DFENO&Home!$I135,TRANS!$S:$S) -> 0 | AD135: 0 | AG135: =IF(ISERROR(VLOOKUP(I135,Rates!$A:$AP,42,0)),"",VLOOKUP(I135,Rates!$A:$AP,42,0)) -> 
A136: =VLOOKUP(I136,Rates!A:L,2,0) ->  | B136: blank | C136: DISECON | D136: blank | E136: DISECON | F136: blank | G136: blank | H136: blank | K136: =IF(ISERROR(VLOOKUP("Original"&OLDLAESTAB&I136,'1718OriginalFunding'!C:D,2,0)),0,VLOOKUP("Original"&OLDLAESTAB&I136,'1718OriginalFunding'!C:D,2,0)) -> 0 | L136: =SUMIF('EOY1718'!E:E,DFENO&Home!I136,'EOY1718'!D:D) -> 0 | M136: =VLOOKUP(I95:I136,Rates!A:L,8,0) ->  | N136: =IF(ISERROR(VLOOKUP(I136,Rates!A:L,3,0)),"",VLOOKUP(I136,Rates!A:L,3,0)) ->  | O136: =HYPERLINK(VLOOKUP(N129,$J$168:$M$185,4,0),IF(N129="Not Used","",N129)) ->  | P136: =VLOOKUP(I136,Rates!A:AO,41,0) ->  | Q136: =SUMIF(TRANS!BQ:BQ,Q$3&DFENO&Home!$I136,TRANS!$S:$S) -> 0 | R136: =SUMIF(TRANS!$BQ:$BQ,R$3&DFENO&Home!$I136,TRANS!$S:$S) -> 0 | S136: =SUMIF(TRANS!$BQ:$BQ,S$3&DFENO&Home!$I136,TRANS!$S:$S) -> 0 | T136: =SUMIF(TRANS!$BQ:$BQ,T$3&DFENO&Home!$I136,TRANS!$S:$S) -> 0 | U136: =SUMIF(TRANS!$BQ:$BQ,U$3&DFENO&Home!$I136,TRANS!$S:$S) -> 0 | V136: =SUMIF(TRANS!$BQ:$BQ,V$3&DFENO&Home!$I136,TRANS!$S:$S) -> 0 | W136: =SUMIF(TRANS!$BQ:$BQ,W$3&DFENO&Home!$I136,TRANS!$S:$S) -> 0 | X136: =SUMIF(TRANS!$BQ:$BQ,X$3&DFENO&Home!$I136,TRANS!$S:$S) -> 0 | Y136: =SUMIF(TRANS!$BQ:$BQ,Y$3&DFENO&Home!$I136,TRANS!$S:$S) -> 0 | Z136: =SUMIF(TRANS!$BQ:$BQ,Z$3&DFENO&Home!$I136,TRANS!$S:$S) -> 0 | AA136: =SUMIF(TRANS!$BQ:$BQ,AA$3&DFENO&Home!$I136,TRANS!$S:$S) -> 0 | AB136: =SUMIF(TRANS!$BQ:$BQ,AB$3&DFENO&Home!$I136,TRANS!$S:$S) -> 0 | AC136: =SUMIF(TRANS!$BQ:$BQ,AC$3&DFENO&Home!$I136,TRANS!$S:$S) -> 0 | AD136: 0 | AG136: =IF(ISERROR(VLOOKUP(I136,Rates!$A:$AP,42,0)),"",VLOOKUP(I136,Rates!$A:$AP,42,0)) -> 
A137: =VLOOKUP(I137,Rates!A:L,2,0) ->  | B137: blank | C137: BULGEPROT | D137: blank | E137: BULGEPROT | F137: blank | G137: blank | H137: blank | K137: =IF(ISERROR(VLOOKUP("Original"&OLDLAESTAB&I137,'1718OriginalFunding'!C:D,2,0)),0,VLOOKUP("Original"&OLDLAESTAB&I137,'1718OriginalFunding'!C:D,2,0)) -> 0 | L137: =SUMIF('EOY1718'!E:E,DFENO&Home!I137,'EOY1718'!D:D) -> 0 | M137: =VLOOKUP(I97:I137,Rates!A:L,8,0) ->  | N137: =IF(ISERROR(VLOOKUP(I137,Rates!A:L,3,0)),"",VLOOKUP(I137,Rates!A:L,3,0)) ->  | P137: =VLOOKUP(I137,Rates!A:AO,41,0) ->  | Q137: =SUMIF(TRANS!BQ:BQ,Q$3&DFENO&Home!$I137,TRANS!$S:$S) -> 0 | R137: =SUMIF(TRANS!$BQ:$BQ,R$3&DFENO&Home!$I137,TRANS!$S:$S) -> 0 | S137: =SUMIF(TRANS!$BQ:$BQ,S$3&DFENO&Home!$I137,TRANS!$S:$S) -> 0 | T137: =SUMIF(TRANS!$BQ:$BQ,T$3&DFENO&Home!$I137,TRANS!$S:$S) -> 0 | U137: =SUMIF(TRANS!$BQ:$BQ,U$3&DFENO&Home!$I137,TRANS!$S:$S) -> 0 | V137: =SUMIF(TRANS!$BQ:$BQ,V$3&DFENO&Home!$I137,TRANS!$S:$S) -> 0 | W137: =SUMIF(TRANS!$BQ:$BQ,W$3&DFENO&Home!$I137,TRANS!$S:$S) -> 0 | X137: =SUMIF(TRANS!$BQ:$BQ,X$3&DFENO&Home!$I137,TRANS!$S:$S) -> 0 | Y137: =SUMIF(TRANS!$BQ:$BQ,Y$3&DFENO&Home!$I137,TRANS!$S:$S) -> 0 | Z137: =SUMIF(TRANS!$BQ:$BQ,Z$3&DFENO&Home!$I137,TRANS!$S:$S) -> 0 | AA137: =SUMIF(TRANS!$BQ:$BQ,AA$3&DFENO&Home!$I137,TRANS!$S:$S) -> 0 | AB137: =SUMIF(TRANS!$BQ:$BQ,AB$3&DFENO&Home!$I137,TRANS!$S:$S) -> 0 | AC137: =SUMIF(TRANS!$BQ:$BQ,AC$3&DFENO&Home!$I137,TRANS!$S:$S) -> 0 | AD137: 0 | AG137: =IF(ISERROR(VLOOKUP(I137,Rates!$A:$AP,42,0)),"",VLOOKUP(I137,Rates!$A:$AP,42,0)) -> 
A138: =VLOOKUP(I138,Rates!A:L,2,0) ->  | B138: blank | C138: BULGEHALF | D138: blank | E138: BULGESEC | F138: blank | G138: blank | H138: blank | K138: =IF(ISERROR(VLOOKUP("Original"&OLDLAESTAB&I138,'1718OriginalFunding'!C:D,2,0)),0,VLOOKUP("Original"&OLDLAESTAB&I138,'1718OriginalFunding'!C:D,2,0)) -> 0 | L138: =SUMIF('EOY1718'!E:E,DFENO&Home!I138,'EOY1718'!D:D) -> 0 | M138: =VLOOKUP(I98:I138,Rates!A:L,8,0) ->  | N138: =IF(ISERROR(VLOOKUP(I138,Rates!A:L,3,0)),"",VLOOKUP(I138,Rates!A:L,3,0)) ->  | P138: =VLOOKUP(I138,Rates!A:AO,41,0) ->  | Q138: =SUMIF(TRANS!BQ:BQ,Q$3&DFENO&Home!$I138,TRANS!$S:$S) -> 0 | R138: =SUMIF(TRANS!$BQ:$BQ,R$3&DFENO&Home!$I138,TRANS!$S:$S) -> 0 | S138: =SUMIF(TRANS!$BQ:$BQ,S$3&DFENO&Home!$I138,TRANS!$S:$S) -> 0 | T138: =SUMIF(TRANS!$BQ:$BQ,T$3&DFENO&Home!$I138,TRANS!$S:$S) -> 0 | U138: =SUMIF(TRANS!$BQ:$BQ,U$3&DFENO&Home!$I138,TRANS!$S:$S) -> 0 | V138: =SUMIF(TRANS!$BQ:$BQ,V$3&DFENO&Home!$I138,TRANS!$S:$S) -> 0 | W138: =SUMIF(TRANS!$BQ:$BQ,W$3&DFENO&Home!$I138,TRANS!$S:$S) -> 0 | X138: =SUMIF(TRANS!$BQ:$BQ,X$3&DFENO&Home!$I138,TRANS!$S:$S) -> 0 | Y138: =SUMIF(TRANS!$BQ:$BQ,Y$3&DFENO&Home!$I138,TRANS!$S:$S) -> 0 | Z138: =SUMIF(TRANS!$BQ:$BQ,Z$3&DFENO&Home!$I138,TRANS!$S:$S) -> 0 | AA138: =SUMIF(TRANS!$BQ:$BQ,AA$3&DFENO&Home!$I138,TRANS!$S:$S) -> 0 | AB138: =SUMIF(TRANS!$BQ:$BQ,AB$3&DFENO&Home!$I138,TRANS!$S:$S) -> 0 | AC138: =SUMIF(TRANS!$BQ:$BQ,AC$3&DFENO&Home!$I138,TRANS!$S:$S) -> 0 | AD138: 0 | AG138: =IF(ISERROR(VLOOKUP(I138,Rates!$A:$AP,42,0)),"",VLOOKUP(I138,Rates!$A:$AP,42,0)) -> 
A139: =VLOOKUP(I139,Rates!A:L,2,0) ->  | B139: blank | C139: EXPANDHALF | D139: blank | E139: BULGESEC | F139: blank | G139: blank | H139: blank | K139: =IF(ISERROR(VLOOKUP("Original"&OLDLAESTAB&I139,'1718OriginalFunding'!C:D,2,0)),0,VLOOKUP("Original"&OLDLAESTAB&I139,'1718OriginalFunding'!C:D,2,0)) -> 0 | L139: =SUMIF('EOY1718'!E:E,DFENO&Home!I139,'EOY1718'!D:D) -> 0 | M139: =VLOOKUP(I99:I139,Rates!A:L,8,0) ->  | N139: =IF(ISERROR(VLOOKUP(I139,Rates!A:L,3,0)),"",VLOOKUP(I139,Rates!A:L,3,0)) ->  | P139: =VLOOKUP(I139,Rates!A:AO,41,0) ->  | Q139: =SUMIF(TRANS!BQ:BQ,Q$3&DFENO&Home!$I139,TRANS!$S:$S) -> 0 | R139: =SUMIF(TRANS!$BQ:$BQ,R$3&DFENO&Home!$I139,TRANS!$S:$S) -> 0 | S139: =SUMIF(TRANS!$BQ:$BQ,S$3&DFENO&Home!$I139,TRANS!$S:$S) -> 0 | T139: =SUMIF(TRANS!$BQ:$BQ,T$3&DFENO&Home!$I139,TRANS!$S:$S) -> 0 | U139: =SUMIF(TRANS!$BQ:$BQ,U$3&DFENO&Home!$I139,TRANS!$S:$S) -> 0 | V139: =SUMIF(TRANS!$BQ:$BQ,V$3&DFENO&Home!$I139,TRANS!$S:$S) -> 0 | W139: =SUMIF(TRANS!$BQ:$BQ,W$3&DFENO&Home!$I139,TRANS!$S:$S) -> 0 | X139: =SUMIF(TRANS!$BQ:$BQ,X$3&DFENO&Home!$I139,TRANS!$S:$S) -> 0 | Y139: =SUMIF(TRANS!$BQ:$BQ,Y$3&DFENO&Home!$I139,TRANS!$S:$S) -> 0 | Z139: =SUMIF(TRANS!$BQ:$BQ,Z$3&DFENO&Home!$I139,TRANS!$S:$S) -> 0 | AA139: =SUMIF(TRANS!$BQ:$BQ,AA$3&DFENO&Home!$I139,TRANS!$S:$S) -> 0 | AB139: =SUMIF(TRANS!$BQ:$BQ,AB$3&DFENO&Home!$I139,TRANS!$S:$S) -> 0 | AC139: =SUMIF(TRANS!$BQ:$BQ,AC$3&DFENO&Home!$I139,TRANS!$S:$S) -> 0 | AD139: =SUM(Q139:AC139) -> 0 | AG139: =IF(ISERROR(VLOOKUP(I139,Rates!$A:$AP,42,0)),"",VLOOKUP(I139,Rates!$A:$AP,42,0)) -> 
A140: =VLOOKUP(I140,Rates!A:L,2,0) ->  | B140: blank | C140: EXPANDSEC | D140: blank | E140: BULGESEC | F140: blank | G140: blank | H140: blank | K140: =IF(ISERROR(VLOOKUP("Original"&OLDLAESTAB&I140,'1718OriginalFunding'!C:D,2,0)),0,VLOOKUP("Original"&OLDLAESTAB&I140,'1718OriginalFunding'!C:D,2,0)) -> 0 | L140: =SUMIF('EOY1718'!E:E,DFENO&Home!I140,'EOY1718'!D:D) -> 0 | M140: =VLOOKUP(I100:I140,Rates!A:L,8,0) ->  | N140: =IF(ISERROR(VLOOKUP(I140,Rates!A:L,3,0)),"",VLOOKUP(I140,Rates!A:L,3,0)) ->  | P140: =VLOOKUP(I140,Rates!A:AO,41,0) ->  | Q140: =SUMIF(TRANS!BQ:BQ,Q$3&DFENO&Home!$I140,TRANS!$S:$S) -> 0 | R140: =SUMIF(TRANS!$BQ:$BQ,R$3&DFENO&Home!$I140,TRANS!$S:$S) -> 0 | S140: =SUMIF(TRANS!$BQ:$BQ,S$3&DFENO&Home!$I140,TRANS!$S:$S) -> 0 | T140: =SUMIF(TRANS!$BQ:$BQ,T$3&DFENO&Home!$I140,TRANS!$S:$S) -> 0 | U140: =SUMIF(TRANS!$BQ:$BQ,U$3&DFENO&Home!$I140,TRANS!$S:$S) -> 0 | V140: =SUMIF(TRANS!$BQ:$BQ,V$3&DFENO&Home!$I140,TRANS!$S:$S) -> 0 | W140: =SUMIF(TRANS!$BQ:$BQ,W$3&DFENO&Home!$I140,TRANS!$S:$S) -> 0 | X140: =SUMIF(TRANS!$BQ:$BQ,X$3&DFENO&Home!$I140,TRANS!$S:$S) -> 0 | Y140: =SUMIF(TRANS!$BQ:$BQ,Y$3&DFENO&Home!$I140,TRANS!$S:$S) -> 0 | Z140: =SUMIF(TRANS!$BQ:$BQ,Z$3&DFENO&Home!$I140,TRANS!$S:$S) -> 0 | AA140: =SUMIF(TRANS!$BQ:$BQ,AA$3&DFENO&Home!$I140,TRANS!$S:$S) -> 0 | AB140: =SUMIF(TRANS!$BQ:$BQ,AB$3&DFENO&Home!$I140,TRANS!$S:$S) -> 0 | AC140: =SUMIF(TRANS!$BQ:$BQ,AC$3&DFENO&Home!$I140,TRANS!$S:$S) -> 0 | AD140: =SUM(Q140:AC140) -> 0 | AG140: =IF(ISERROR(VLOOKUP(I140,Rates!$A:$AP,42,0)),"",VLOOKUP(I140,Rates!$A:$AP,42,0)) -> 
A141: =VLOOKUP(I141,Rates!A:L,2,0) ->  | B141: subtotal | C141: subtotal | D141: subtotal | E141: subtotal | F141: subtotal | G141: subtotal | H141: subtotal | K141: =SUM(K130:K140) -> 0 | L141: =SUM(L130:L140) -> 0 | N141: =IF(ISERROR(VLOOKUP(I141,Rates!A:L,3,0)),"",VLOOKUP(I141,Rates!A:L,3,0)) ->  | Q141: =SUM(Q130:Q140) -> 0 | R141: =SUM(R130:R140) -> 0 | S141: =SUM(S130:S140) -> 0 | T141: 0 | U141: 0 | V141: 0 | W141: 0 | X141: 0 | Y141: 0 | Z141: 0 | AA141: 0 | AB141: 0 | AC141: 0 | AD141: 0 | AG141: =IF(ISERROR(VLOOKUP(I141,Rates!$A:$AP,42,0)),"",VLOOKUP(I141,Rates!$A:$AP,42,0)) -> 
A142: =VLOOKUP(I142,Rates!A:L,2,0) -> REPORT | B142: 0 | C142: 9 | D142: 9 | E142: 9 | F142: 0 | G142: 0 | H142: 0 | AG142: =IF(ISERROR(VLOOKUP(I142,Rates!$A:$AP,42,0)),"",VLOOKUP(I142,Rates!$A:$AP,42,0)) -> 0
B143: Not used | C143: Early Years | D143: Grants | E143: Early Years | F143: Not used | G143: Not used | H143: Not used | I143: =INDIRECT(VLOOKUP($X$21,$B$21:$C$29,2,0)&ROW()) ->  | N143: =I143 ->  | O143: =IF($N143="Not used","","For more detail please go to the "&VLOOKUP($N143,$J$168:$K$185,2,0)&" tab") ->  | AG143: =IF(ISERROR(VLOOKUP(I143,Rates!$A:$AP,42,0)),"",VLOOKUP(I143,Rates!$A:$AP,42,0)) -> 
A144: =VLOOKUP(I144,Rates!A:L,2,0) ->  | B144: blank | C144: HOURS | D144: DFC | E144: HOURS | F144: blank | G144: blank | H144: blank | K144: =IF(ISERROR(VLOOKUP("Original"&OLDLAESTAB&I144,'1718OriginalFunding'!C:D,2,0)),0,VLOOKUP("Original"&OLDLAESTAB&I144,'1718OriginalFunding'!C:D,2,0)) -> 0 | L144: =SUMIF('EOY1718'!E:E,DFENO&Home!I144,'EOY1718'!D:D) -> 0 | M144: =VLOOKUP(I127:I144,Rates!A:L,8,0) ->  | N144: =IF(ISERROR(VLOOKUP(I144,Rates!A:L,3,0)),"",VLOOKUP(I144,Rates!A:L,3,0)) ->  | P144: =VLOOKUP(I144,Rates!A:AO,41,0) ->  | Q144: =SUMIF(TRANS!$BQ:$BQ,Q$3&DFENO&Home!$I144,TRANS!$S:$S) -> 0 | R144: =SUMIF(TRANS!$BQ:$BQ,R$3&DFENO&Home!$I144,TRANS!$S:$S) -> 0 | S144: =SUMIF(TRANS!$BQ:$BQ,S$3&DFENO&Home!$I144,TRANS!$S:$S) -> 0 | T144: =SUMIF(TRANS!$BQ:$BQ,T$3&DFENO&Home!$I144,TRANS!$S:$S) -> 0 | U144: =SUMIF(TRANS!$BQ:$BQ,U$3&DFENO&Home!$I144,TRANS!$S:$S) -> 0 | V144: =SUMIF(TRANS!$BQ:$BQ,V$3&DFENO&Home!$I144,TRANS!$S:$S) -> 0 | W144: =SUMIF(TRANS!$BQ:$BQ,W$3&DFENO&Home!$I144,TRANS!$S:$S) -> 0 | X144: =SUMIF(TRANS!$BQ:$BQ,X$3&DFENO&Home!$I144,TRANS!$S:$S) -> 0 | Y144: =SUMIF(TRANS!$BQ:$BQ,Y$3&DFENO&Home!$I144,TRANS!$S:$S) -> 0 | Z144: =SUMIF(TRANS!$BQ:$BQ,Z$3&DFENO&Home!$I144,TRANS!$S:$S) -> 0 | AA144: =SUMIF(TRANS!$BQ:$BQ,AA$3&DFENO&Home!$I144,TRANS!$S:$S) -> 0 | AB144: =SUMIF(TRANS!$BQ:$BQ,AB$3&DFENO&Home!$I144,TRANS!$S:$S) -> 0 | AC144: =SUMIF(TRANS!$BQ:$BQ,AC$3&DFENO&Home!$I144,TRANS!$S:$S) -> 0 | AD144: =SUM(Q144:AC144) -> 0 | AG144: =IF(ISERROR(VLOOKUP(I144,Rates!$A:$AP,42,0)),"",VLOOKUP(I144,Rates!$A:$AP,42,0)) -> 
A145: =VLOOKUP(I145,Rates!A:L,2,0) ->  | B145: blank | C145: BASIC | D145: dfcloan | E145: BASIC | F145: blank | G145: blank | H145: blank | K145: =IF(ISERROR(VLOOKUP("Original"&OLDLAESTAB&I145,'1718OriginalFunding'!C:D,2,0)),0,VLOOKUP("Original"&OLDLAESTAB&I145,'1718OriginalFunding'!C:D,2,0)) -> 0 | L145: =SUMIF('EOY1718'!E:E,DFENO&Home!I145,'EOY1718'!D:D) -> 0 | M145: =VLOOKUP(I127:I145,Rates!A:L,8,0) ->  | N145: =IF(ISERROR(VLOOKUP(I145,Rates!A:L,3,0)),"",VLOOKUP(I145,Rates!A:L,3,0)) ->  | P145: =VLOOKUP(I145,Rates!A:AO,41,0) ->  | Q145: =SUMIF(TRANS!$BQ:$BQ,Q$3&DFENO&Home!$I145,TRANS!$S:$S) -> 0 | R145: =SUMIF(TRANS!$BQ:$BQ,R$3&DFENO&Home!$I145,TRANS!$S:$S) -> 0 | S145: =SUMIF(TRANS!$BQ:$BQ,S$3&DFENO&Home!$I145,TRANS!$S:$S) -> 0 | T145: =SUMIF(TRANS!$BQ:$BQ,T$3&DFENO&Home!$I145,TRANS!$S:$S) -> 0 | U145: =SUMIF(TRANS!$BQ:$BQ,U$3&DFENO&Home!$I145,TRANS!$S:$S) -> 0 | V145: =SUMIF(TRANS!$BQ:$BQ,V$3&DFENO&Home!$I145,TRANS!$S:$S) -> 0 | W145: =SUMIF(TRANS!$BQ:$BQ,W$3&DFENO&Home!$I145,TRANS!$S:$S) -> 0 | X145: =SUMIF(TRANS!$BQ:$BQ,X$3&DFENO&Home!$I145,TRANS!$S:$S) -> 0 | Y145: =SUMIF(TRANS!$BQ:$BQ,Y$3&DFENO&Home!$I145,TRANS!$S:$S) -> 0 | Z145: =SUMIF(TRANS!$BQ:$BQ,Z$3&DFENO&Home!$I145,TRANS!$S:$S) -> 0 | AA145: =SUMIF(TRANS!$BQ:$BQ,AA$3&DFENO&Home!$I145,TRANS!$S:$S) -> 0 | AB145: =SUMIF(TRANS!$BQ:$BQ,AB$3&DFENO&Home!$I145,TRANS!$S:$S) -> 0 | AC145: =SUMIF(TRANS!$BQ:$BQ,AC$3&DFENO&Home!$I145,TRANS!$S:$S) -> 0 | AD145: 0 | AG145: =IF(ISERROR(VLOOKUP(I145,Rates!$A:$AP,42,0)),"",VLOOKUP(I145,Rates!$A:$AP,42,0)) -> 
A146: =VLOOKUP(I146,Rates!A:L,2,0) ->  | B146: blank | C146: FLEX | D146: tu | E146: FLEX | F146: blank | G146: blank | H146: blank | K146: =IF(ISERROR(VLOOKUP("Original"&OLDLAESTAB&I146,'1718OriginalFunding'!C:D,2,0)),0,VLOOKUP("Original"&OLDLAESTAB&I146,'1718OriginalFunding'!C:D,2,0)) -> 0 | L146: =SUMIF('EOY1718'!E:E,DFENO&Home!I146,'EOY1718'!D:D) -> 0 | M146: =VLOOKUP(I128:I146,Rates!A:L,8,0) ->  | N146: =IF(ISERROR(VLOOKUP(I146,Rates!A:L,3,0)),"",VLOOKUP(I146,Rates!A:L,3,0)) ->  | P146: =VLOOKUP(I146,Rates!A:AO,41,0) ->  | Q146: =SUMIF(TRANS!$BQ:$BQ,Q$3&DFENO&Home!$I146,TRANS!$S:$S) -> 0 | R146: =SUMIF(TRANS!$BQ:$BQ,R$3&DFENO&Home!$I146,TRANS!$S:$S) -> 0 | S146: =SUMIF(TRANS!$BQ:$BQ,S$3&DFENO&Home!$I146,TRANS!$S:$S) -> 0 | T146: =SUMIF(TRANS!$BQ:$BQ,T$3&DFENO&Home!$I146,TRANS!$S:$S) -> 0 | U146: =SUMIF(TRANS!$BQ:$BQ,U$3&DFENO&Home!$I146,TRANS!$S:$S) -> 0 | V146: =SUMIF(TRANS!$BQ:$BQ,V$3&DFENO&Home!$I146,TRANS!$S:$S) -> 0 | W146: =SUMIF(TRANS!$BQ:$BQ,W$3&DFENO&Home!$I146,TRANS!$S:$S) -> 0 | X146: =SUMIF(TRANS!$BQ:$BQ,X$3&DFENO&Home!$I146,TRANS!$S:$S) -> 0 | Y146: =SUMIF(TRANS!$BQ:$BQ,Y$3&DFENO&Home!$I146,TRANS!$S:$S) -> 0 | Z146: =SUMIF(TRANS!$BQ:$BQ,Z$3&DFENO&Home!$I146,TRANS!$S:$S) -> 0 | AA146: =SUMIF(TRANS!$BQ:$BQ,AA$3&DFENO&Home!$I146,TRANS!$S:$S) -> 0 | AB146: =SUMIF(TRANS!$BQ:$BQ,AB$3&DFENO&Home!$I146,TRANS!$S:$S) -> 0 | AC146: =SUMIF(TRANS!$BQ:$BQ,AC$3&DFENO&Home!$I146,TRANS!$S:$S) -> 0 | AD146: 0 | AG146: =IF(ISERROR(VLOOKUP(I146,Rates!$A:$AP,42,0)),"",VLOOKUP(I146,Rates!$A:$AP,42,0)) -> 
A147: =VLOOKUP(I147,Rates!A:L,2,0) ->  | B147: blank | C147: IDACI | D147: PEGRANT | E147: IDACI | F147: blank | G147: blank | H147: blank | K147: =IF(ISERROR(VLOOKUP("Original"&OLDLAESTAB&I147,'1718OriginalFunding'!C:D,2,0)),0,VLOOKUP("Original"&OLDLAESTAB&I147,'1718OriginalFunding'!C:D,2,0)) -> 0 | L147: =SUMIF('EOY1718'!E:E,DFENO&Home!I147,'EOY1718'!D:D) -> 0 | M147: =VLOOKUP(I129:I147,Rates!A:L,8,0) ->  | N147: =IF(ISERROR(VLOOKUP(I147,Rates!A:L,3,0)),"",VLOOKUP(I147,Rates!A:L,3,0)) ->  | P147: =VLOOKUP(I147,Rates!A:AO,41,0) ->  | Q147: =SUMIF(TRANS!$BQ:$BQ,Q$3&DFENO&Home!$I147,TRANS!$S:$S) -> 0 | R147: =SUMIF(TRANS!$BQ:$BQ,R$3&DFENO&Home!$I147,TRANS!$S:$S) -> 0 | S147: =SUMIF(TRANS!$BQ:$BQ,S$3&DFENO&Home!$I147,TRANS!$S:$S) -> 0 | T147: =SUMIF(TRANS!$BQ:$BQ,T$3&DFENO&Home!$I147,TRANS!$S:$S) -> 0 | U147: =SUMIF(TRANS!$BQ:$BQ,U$3&DFENO&Home!$I147,TRANS!$S:$S) -> 0 | V147: =SUMIF(TRANS!$BQ:$BQ,V$3&DFENO&Home!$I147,TRANS!$S:$S) -> 0 | W147: =SUMIF(TRANS!$BQ:$BQ,W$3&DFENO&Home!$I147,TRANS!$S:$S) -> 0 | X147: =SUMIF(TRANS!$BQ:$BQ,X$3&DFENO&Home!$I147,TRANS!$S:$S) -> 0 | Y147: =SUMIF(TRANS!$BQ:$BQ,Y$3&DFENO&Home!$I147,TRANS!$S:$S) -> 0 | Z147: =SUMIF(TRANS!$BQ:$BQ,Z$3&DFENO&Home!$I147,TRANS!$S:$S) -> 0 | AA147: =SUMIF(TRANS!$BQ:$BQ,AA$3&DFENO&Home!$I147,TRANS!$S:$S) -> 0 | AB147: =SUMIF(TRANS!$BQ:$BQ,AB$3&DFENO&Home!$I147,TRANS!$S:$S) -> 0 | AC147: =SUMIF(TRANS!$BQ:$BQ,AC$3&DFENO&Home!$I147,TRANS!$S:$S) -> 0 | AD147: 0 | AG147: =IF(ISERROR(VLOOKUP(I147,Rates!$A:$AP,42,0)),"",VLOOKUP(I147,Rates!$A:$AP,42,0)) -> 
A148: =VLOOKUP(I148,Rates!A:L,2,0) ->  | B148: blank | C148: EYPP | D148: NCTL | E148: EYPP | F148: blank | G148: blank | H148: blank | K148: =IF(ISERROR(VLOOKUP("Original"&OLDLAESTAB&I148,'1718OriginalFunding'!C:D,2,0)),0,VLOOKUP("Original"&OLDLAESTAB&I148,'1718OriginalFunding'!C:D,2,0)) -> 0 | L148: =SUMIF('EOY1718'!E:E,DFENO&Home!I148,'EOY1718'!D:D) -> 0 | M148: =VLOOKUP(I130:I148,Rates!A:L,8,0) ->  | N148: =IF(ISERROR(VLOOKUP(I148,Rates!A:L,3,0)),"",VLOOKUP(I148,Rates!A:L,3,0)) ->  | P148: =VLOOKUP(I148,Rates!A:AO,41,0) ->  | Q148: =SUMIF(TRANS!$BQ:$BQ,Q$3&DFENO&Home!$I148,TRANS!$S:$S) -> 0 | R148: =SUMIF(TRANS!$BQ:$BQ,R$3&DFENO&Home!$I148,TRANS!$S:$S) -> 0 | S148: =SUMIF(TRANS!$BQ:$BQ,S$3&DFENO&Home!$I148,TRANS!$S:$S) -> 0 | T148: =SUMIF(TRANS!$BQ:$BQ,T$3&DFENO&Home!$I148,TRANS!$S:$S) -> 0 | U148: =SUMIF(TRANS!$BQ:$BQ,U$3&DFENO&Home!$I148,TRANS!$S:$S) -> 0 | V148: =SUMIF(TRANS!$BQ:$BQ,V$3&DFENO&Home!$I148,TRANS!$S:$S) -> 0 | W148: =SUMIF(TRANS!$BQ:$BQ,W$3&DFENO&Home!$I148,TRANS!$S:$S) -> 0 | X148: =SUMIF(TRANS!$BQ:$BQ,X$3&DFENO&Home!$I148,TRANS!$S:$S) -> 0 | Y148: =SUMIF(TRANS!$BQ:$BQ,Y$3&DFENO&Home!$I148,TRANS!$S:$S) -> 0 | Z148: =SUMIF(TRANS!$BQ:$BQ,Z$3&DFENO&Home!$I148,TRANS!$S:$S) -> 0 | AA148: =SUMIF(TRANS!$BQ:$BQ,AA$3&DFENO&Home!$I148,TRANS!$S:$S) -> 0 | AB148: =SUMIF(TRANS!$BQ:$BQ,AB$3&DFENO&Home!$I148,TRANS!$S:$S) -> 0 | AC148: =SUMIF(TRANS!$BQ:$BQ,AC$3&DFENO&Home!$I148,TRANS!$S:$S) -> 0 | AD148: 0 | AG148: =IF(ISERROR(VLOOKUP(I148,Rates!$A:$AP,42,0)),"",VLOOKUP(I148,Rates!$A:$AP,42,0)) -> 
A149: =VLOOKUP(I149,Rates!A:L,2,0) ->  | B149: blank | C149: ADJ | D149: Y7CATCHUP | E149: ADJ | F149: blank | G149: blank | H149: blank | K149: =IF(ISERROR(VLOOKUP("Original"&OLDLAESTAB&I149,'1718OriginalFunding'!C:D,2,0)),0,VLOOKUP("Original"&OLDLAESTAB&I149,'1718OriginalFunding'!C:D,2,0)) -> 0 | L149: =SUMIF('EOY1718'!E:E,DFENO&Home!I149,'EOY1718'!D:D) -> 0 | M149: =VLOOKUP(I131:I149,Rates!A:L,8,0) ->  | N149: =IF(ISERROR(VLOOKUP(I149,Rates!A:L,3,0)),"",VLOOKUP(I149,Rates!A:L,3,0)) ->  | O149: =HYPERLINK(VLOOKUP(N143,$J$168:$M$185,4,0),IF(N143="Not Used","",N143)) ->  | P149: =VLOOKUP(I149,Rates!A:AO,41,0) ->  | Q149: =SUMIF(TRANS!$BQ:$BQ,Q$3&DFENO&Home!$I149,TRANS!$S:$S) -> 0 | R149: =SUMIF(TRANS!$BQ:$BQ,R$3&DFENO&Home!$I149,TRANS!$S:$S) -> 0 | S149: =SUMIF(TRANS!$BQ:$BQ,S$3&DFENO&Home!$I149,TRANS!$S:$S) -> 0 | T149: =SUMIF(TRANS!$BQ:$BQ,T$3&DFENO&Home!$I149,TRANS!$S:$S) -> 0 | U149: =SUMIF(TRANS!$BQ:$BQ,U$3&DFENO&Home!$I149,TRANS!$S:$S) -> 0 | V149: =SUMIF(TRANS!$BQ:$BQ,V$3&DFENO&Home!$I149,TRANS!$S:$S) -> 0 | W149: =SUMIF(TRANS!$BQ:$BQ,W$3&DFENO&Home!$I149,TRANS!$S:$S) -> 0 | X149: =SUMIF(TRANS!$BQ:$BQ,X$3&DFENO&Home!$I149,TRANS!$S:$S) -> 0 | Y149: =SUMIF(TRANS!$BQ:$BQ,Y$3&DFENO&Home!$I149,TRANS!$S:$S) -> 0 | Z149: =SUMIF(TRANS!$BQ:$BQ,Z$3&DFENO&Home!$I149,TRANS!$S:$S) -> 0 | AA149: =SUMIF(TRANS!$BQ:$BQ,AA$3&DFENO&Home!$I149,TRANS!$S:$S) -> 0 | AB149: =SUMIF(TRANS!$BQ:$BQ,AB$3&DFENO&Home!$I149,TRANS!$S:$S) -> 0 | AC149: =SUMIF(TRANS!$BQ:$BQ,AC$3&DFENO&Home!$I149,TRANS!$S:$S) -> 0 | AD149: 0 | AG149: =IF(ISERROR(VLOOKUP(I149,Rates!$A:$AP,42,0)),"",VLOOKUP(I149,Rates!$A:$AP,42,0)) -> 
A150: =VLOOKUP(I150,Rates!A:L,2,0) ->  | B150: blank | C150: ADD | D150: blank | E150: ADD | F150: blank | G150: blank | H150: blank | K150: =IF(ISERROR(VLOOKUP("Original"&OLDLAESTAB&I150,'1718OriginalFunding'!C:D,2,0)),0,VLOOKUP("Original"&OLDLAESTAB&I150,'1718OriginalFunding'!C:D,2,0)) -> 0 | L150: =SUMIF('EOY1718'!E:E,DFENO&Home!I150,'EOY1718'!D:D) -> 0 | M150: =VLOOKUP(I132:I150,Rates!A:L,8,0) ->  | N150: =IF(ISERROR(VLOOKUP(I150,Rates!A:L,3,0)),"",VLOOKUP(I150,Rates!A:L,3,0)) ->  | P150: =VLOOKUP(I150,Rates!A:AO,41,0) ->  | Q150: =SUMIF(TRANS!$BQ:$BQ,Q$3&DFENO&Home!$I150,TRANS!$S:$S) -> 0 | R150: =SUMIF(TRANS!$BQ:$BQ,R$3&DFENO&Home!$I150,TRANS!$S:$S) -> 0 | S150: =SUMIF(TRANS!$BQ:$BQ,S$3&DFENO&Home!$I150,TRANS!$S:$S) -> 0 | T150: =SUMIF(TRANS!$BQ:$BQ,T$3&DFENO&Home!$I150,TRANS!$S:$S) -> 0 | U150: =SUMIF(TRANS!$BQ:$BQ,U$3&DFENO&Home!$I150,TRANS!$S:$S) -> 0 | V150: =SUMIF(TRANS!$BQ:$BQ,V$3&DFENO&Home!$I150,TRANS!$S:$S) -> 0 | W150: =SUMIF(TRANS!$BQ:$BQ,W$3&DFENO&Home!$I150,TRANS!$S:$S) -> 0 | X150: =SUMIF(TRANS!$BQ:$BQ,X$3&DFENO&Home!$I150,TRANS!$S:$S) -> 0 | Y150: =SUMIF(TRANS!$BQ:$BQ,Y$3&DFENO&Home!$I150,TRANS!$S:$S) -> 0 | Z150: =SUMIF(TRANS!$BQ:$BQ,Z$3&DFENO&Home!$I150,TRANS!$S:$S) -> 0 | AA150: =SUMIF(TRANS!$BQ:$BQ,AA$3&DFENO&Home!$I150,TRANS!$S:$S) -> 0 | AB150: =SUMIF(TRANS!$BQ:$BQ,AB$3&DFENO&Home!$I150,TRANS!$S:$S) -> 0 | AC150: =SUMIF(TRANS!$BQ:$BQ,AC$3&DFENO&Home!$I150,TRANS!$S:$S) -> 0 | AD150: 0 | AG150: =IF(ISERROR(VLOOKUP(I150,Rates!$A:$AP,42,0)),"",VLOOKUP(I150,Rates!$A:$AP,42,0)) -> 
A151: =VLOOKUP(I151,Rates!A:L,2,0) ->  | B151: subtotal | C151: subtotal | D151: subtotal | E151: subtotal | F151: subtotal | G151: subtotal | H151: subtotal | K151: =SUM(K144:K150) -> 0 | L151: =SUM(L143:L150) -> 0 | N151: =IF(ISERROR(VLOOKUP(I151,Rates!A:L,3,0)),"",VLOOKUP(I151,Rates!A:L,3,0)) ->  | Q151: =SUM(Q143:Q150) -> 0 | R151: =SUM(R143:R150) -> 0 | S151: 0 | T151: 0 | U151: 0 | V151: 0 | W151: 0 | X151: 0 | Y151: 0 | Z151: 0 | AA151: 0 | AB151: 0 | AC151: 0 | AD151: 0 | AG151: =IF(ISERROR(VLOOKUP(I151,Rates!$A:$AP,42,0)),"",VLOOKUP(I151,Rates!$A:$AP,42,0)) -> 
A152: =VLOOKUP(I152,Rates!A:L,2,0) -> REPORT | B152: 0 | C152: 19 | D152: 0 | E152: 19 | F152: 0 | G152: 0 | H152: 0 | AG152: =IF(ISERROR(VLOOKUP(I152,Rates!$A:$AP,42,0)),"",VLOOKUP(I152,Rates!$A:$AP,42,0)) -> 0
B153: Not used | C153: Not used | D153: Other | E153: Grants | F153: Not used | G153: Not used | H153: Not used | I153: =INDIRECT(VLOOKUP($X$21,$B$21:$C$29,2,0)&ROW()) ->  | N153: =I153 ->  | O153: =IF(OR($N153="Not used",$N153="Other"),"","For more detail please go to the "&VLOOKUP($N153,$J$168:$K$185,2,0)&" tab") ->  | AG153: =IF(ISERROR(VLOOKUP(I153,Rates!$A:$AP,42,0)),"",VLOOKUP(I153,Rates!$A:$AP,42,0)) -> 
A154: =VLOOKUP(I154,Rates!A:L,2,0) ->  | B154: blank | C154: blank | D154: blank | E154: DFC | F154: blank | G154: blank | H154: blank | K154: =IF(ISERROR(VLOOKUP("Original"&OLDLAESTAB&I154,'1718OriginalFunding'!C:D,2,0)),0,VLOOKUP("Original"&OLDLAESTAB&I154,'1718OriginalFunding'!C:D,2,0)) -> 0 | L154: =SUMIF('EOY1718'!E:E,DFENO&Home!I154,'EOY1718'!D:D) -> 0 | M154: =VLOOKUP(I104:I154,Rates!A:L,8,0) ->  | N154: =IF(ISERROR(VLOOKUP(I154,Rates!A:L,3,0)),"",VLOOKUP(I154,Rates!A:L,3,0)) ->  | P154: =VLOOKUP(I154,Rates!A:AO,41,0) ->  | Q154: =SUMIF(TRANS!$BQ:$BQ,Q$3&DFENO&Home!$I154,TRANS!$S:$S) -> 0 | R154: =SUMIF(TRANS!$BQ:$BQ,R$3&DFENO&Home!$I154,TRANS!$S:$S) -> 0 | S154: =SUMIF(TRANS!$BQ:$BQ,S$3&DFENO&Home!$I154,TRANS!$S:$S) -> 0 | T154: =SUMIF(TRANS!$BQ:$BQ,T$3&DFENO&Home!$I154,TRANS!$S:$S) -> 0 | U154: =SUMIF(TRANS!$BQ:$BQ,U$3&DFENO&Home!$I154,TRANS!$S:$S) -> 0 | V154: =SUMIF(TRANS!$BQ:$BQ,V$3&DFENO&Home!$I154,TRANS!$S:$S) -> 0 | W154: =SUMIF(TRANS!$BQ:$BQ,W$3&DFENO&Home!$I154,TRANS!$S:$S) -> 0 | X154: =SUMIF(TRANS!$BQ:$BQ,X$3&DFENO&Home!$I154,TRANS!$S:$S) -> 0 | Y154: =SUMIF(TRANS!$BQ:$BQ,Y$3&DFENO&Home!$I154,TRANS!$S:$S) -> 0 | Z154: =SUMIF(TRANS!$BQ:$BQ,Z$3&DFENO&Home!$I154,TRANS!$S:$S) -> 0 | AA154: =SUMIF(TRANS!$BQ:$BQ,AA$3&DFENO&Home!$I154,TRANS!$S:$S) -> 0 | AB154: =SUMIF(TRANS!$BQ:$BQ,AB$3&DFENO&Home!$I154,TRANS!$S:$S) -> 0 | AC154: =SUMIF(TRANS!$BQ:$BQ,AC$3&DFENO&Home!$I154,TRANS!$S:$S) -> 0 | AD154: =SUM(Q154:AC154) -> 0 | AG154: =IF(ISERROR(VLOOKUP(I154,Rates!$A:$AP,42,0)),"",VLOOKUP(I154,Rates!$A:$AP,42,0)) -> 
A155: =VLOOKUP(I155,Rates!A:L,2,0) ->  | B155: blank | C155: blank | D155: blank | E155: dfcloan | F155: blank | G155: blank | H155: blank | K155: =IF(ISERROR(VLOOKUP("Original"&OLDLAESTAB&I155,'1718OriginalFunding'!C:D,2,0)),0,VLOOKUP("Original"&OLDLAESTAB&I155,'1718OriginalFunding'!C:D,2,0)) -> 0 | L155: =SUMIF('EOY1718'!E:E,DFENO&Home!I155,'EOY1718'!D:D) -> 0 | M155: =VLOOKUP(I106:I155,Rates!A:L,8,0) ->  | N155: =IF(ISERROR(VLOOKUP(I155,Rates!A:L,3,0)),"",VLOOKUP(I155,Rates!A:L,3,0)) ->  | P155: =VLOOKUP(I155,Rates!A:AO,41,0) ->  | Q155: =SUMIF(TRANS!$BQ:$BQ,Q$3&DFENO&Home!$I155,TRANS!$S:$S) -> 0 | R155: =SUMIF(TRANS!$BQ:$BQ,R$3&DFENO&Home!$I155,TRANS!$S:$S) -> 0 | S155: =SUMIF(TRANS!$BQ:$BQ,S$3&DFENO&Home!$I155,TRANS!$S:$S) -> 0 | T155: =SUMIF(TRANS!$BQ:$BQ,T$3&DFENO&Home!$I155,TRANS!$S:$S) -> 0 | U155: =SUMIF(TRANS!$BQ:$BQ,U$3&DFENO&Home!$I155,TRANS!$S:$S) -> 0 | V155: =SUMIF(TRANS!$BQ:$BQ,V$3&DFENO&Home!$I155,TRANS!$S:$S) -> 0 | W155: =SUMIF(TRANS!$BQ:$BQ,W$3&DFENO&Home!$I155,TRANS!$S:$S) -> 0 | X155: =SUMIF(TRANS!$BQ:$BQ,X$3&DFENO&Home!$I155,TRANS!$S:$S) -> 0 | Y155: =SUMIF(TRANS!$BQ:$BQ,Y$3&DFENO&Home!$I155,TRANS!$S:$S) -> 0 | Z155: =SUMIF(TRANS!$BQ:$BQ,Z$3&DFENO&Home!$I155,TRANS!$S:$S) -> 0 | AA155: =SUMIF(TRANS!$BQ:$BQ,AA$3&DFENO&Home!$I155,TRANS!$S:$S) -> 0 | AB155: =SUMIF(TRANS!$BQ:$BQ,AB$3&DFENO&Home!$I155,TRANS!$S:$S) -> 0 | AC155: =SUMIF(TRANS!$BQ:$BQ,AC$3&DFENO&Home!$I155,TRANS!$S:$S) -> 0 | AD155: 0 | AG155: =IF(ISERROR(VLOOKUP(I155,Rates!$A:$AP,42,0)),"",VLOOKUP(I155,Rates!$A:$AP,42,0)) -> 
A156: =VLOOKUP(I156,Rates!A:L,2,0) ->  | B156: blank | C156: blank | D156: blank | E156: tu | F156: blank | G156: blank | H156: blank | K156: =IF(ISERROR(VLOOKUP("Original"&OLDLAESTAB&I156,'1718OriginalFunding'!C:D,2,0)),0,VLOOKUP("Original"&OLDLAESTAB&I156,'1718OriginalFunding'!C:D,2,0)) -> 0 | L156: =SUMIF('EOY1718'!E:E,DFENO&Home!I156,'EOY1718'!D:D) -> 0 | M156: =VLOOKUP(I110:I156,Rates!A:L,8,0) ->  | N156: =IF(ISERROR(VLOOKUP(I156,Rates!A:L,3,0)),"",VLOOKUP(I156,Rates!A:L,3,0)) ->  | P156: =VLOOKUP(I156,Rates!A:AO,41,0) ->  | Q156: =SUMIF(TRANS!$BQ:$BQ,Q$3&DFENO&Home!$I156,TRANS!$S:$S) -> 0 | R156: =SUMIF(TRANS!$BQ:$BQ,R$3&DFENO&Home!$I156,TRANS!$S:$S) -> 0 | S156: =SUMIF(TRANS!$BQ:$BQ,S$3&DFENO&Home!$I156,TRANS!$S:$S) -> 0 | T156: =SUMIF(TRANS!$BQ:$BQ,T$3&DFENO&Home!$I156,TRANS!$S:$S) -> 0 | U156: =SUMIF(TRANS!$BQ:$BQ,U$3&DFENO&Home!$I156,TRANS!$S:$S) -> 0 | V156: =SUMIF(TRANS!$BQ:$BQ,V$3&DFENO&Home!$I156,TRANS!$S:$S) -> 0 | W156: =SUMIF(TRANS!$BQ:$BQ,W$3&DFENO&Home!$I156,TRANS!$S:$S) -> 0 | X156: =SUMIF(TRANS!$BQ:$BQ,X$3&DFENO&Home!$I156,TRANS!$S:$S) -> 0 | Y156: =SUMIF(TRANS!$BQ:$BQ,Y$3&DFENO&Home!$I156,TRANS!$S:$S) -> 0 | Z156: =SUMIF(TRANS!$BQ:$BQ,Z$3&DFENO&Home!$I156,TRANS!$S:$S) -> 0 | AA156: =SUMIF(TRANS!$BQ:$BQ,AA$3&DFENO&Home!$I156,TRANS!$S:$S) -> 0 | AB156: =SUMIF(TRANS!$BQ:$BQ,AB$3&DFENO&Home!$I156,TRANS!$S:$S) -> 0 | AC156: =SUMIF(TRANS!$BQ:$BQ,AC$3&DFENO&Home!$I156,TRANS!$S:$S) -> 0 | AD156: 0 | AG156: =IF(ISERROR(VLOOKUP(I156,Rates!$A:$AP,42,0)),"",VLOOKUP(I156,Rates!$A:$AP,42,0)) -> 
A157: =VLOOKUP(I157,Rates!A:L,2,0) ->  | B157: blank | C157: blank | D157: blank | E157: PEGRANT | F157: blank | G157: blank | H157: blank | K157: =IF(ISERROR(VLOOKUP("Original"&OLDLAESTAB&I157,'1718OriginalFunding'!C:D,2,0)),0,VLOOKUP("Original"&OLDLAESTAB&I157,'1718OriginalFunding'!C:D,2,0)) -> 0 | L157: =SUMIF('EOY1718'!E:E,DFENO&Home!I157,'EOY1718'!D:D) -> 0 | M157: =VLOOKUP(I114:I157,Rates!A:L,8,0) ->  | N157: =IF(ISERROR(VLOOKUP(I157,Rates!A:L,3,0)),"",VLOOKUP(I157,Rates!A:L,3,0)) ->  | P157: =VLOOKUP(I157,Rates!A:AO,41,0) ->  | Q157: =SUMIF(TRANS!$BQ:$BQ,Q$3&DFENO&Home!$I157,TRANS!$S:$S) -> 0 | R157: =SUMIF(TRANS!$BQ:$BQ,R$3&DFENO&Home!$I157,TRANS!$S:$S) -> 0 | S157: =SUMIF(TRANS!$BQ:$BQ,S$3&DFENO&Home!$I157,TRANS!$S:$S) -> 0 | T157: =SUMIF(TRANS!$BQ:$BQ,T$3&DFENO&Home!$I157,TRANS!$S:$S) -> 0 | U157: =SUMIF(TRANS!$BQ:$BQ,U$3&DFENO&Home!$I157,TRANS!$S:$S) -> 0 | V157: =SUMIF(TRANS!$BQ:$BQ,V$3&DFENO&Home!$I157,TRANS!$S:$S) -> 0 | W157: =SUMIF(TRANS!$BQ:$BQ,W$3&DFENO&Home!$I157,TRANS!$S:$S) -> 0 | X157: =SUMIF(TRANS!$BQ:$BQ,X$3&DFENO&Home!$I157,TRANS!$S:$S) -> 0 | Y157: =SUMIF(TRANS!$BQ:$BQ,Y$3&DFENO&Home!$I157,TRANS!$S:$S) -> 0 | Z157: =SUMIF(TRANS!$BQ:$BQ,Z$3&DFENO&Home!$I157,TRANS!$S:$S) -> 0 | AA157: =SUMIF(TRANS!$BQ:$BQ,AA$3&DFENO&Home!$I157,TRANS!$S:$S) -> 0 | AB157: =SUMIF(TRANS!$BQ:$BQ,AB$3&DFENO&Home!$I157,TRANS!$S:$S) -> 0 | AC157: =SUMIF(TRANS!$BQ:$BQ,AC$3&DFENO&Home!$I157,TRANS!$S:$S) -> 0 | AD157: 0 | AG157: =IF(ISERROR(VLOOKUP(I157,Rates!$A:$AP,42,0)),"",VLOOKUP(I157,Rates!$A:$AP,42,0)) -> 
A158: =VLOOKUP(I158,Rates!A:L,2,0) ->  | B158: blank | C158: blank | D158: blank | E158: UIFSM | F158: blank | G158: blank | H158: blank | K158: =IF(ISERROR(VLOOKUP("Original"&OLDLAESTAB&I158,'1718OriginalFunding'!C:D,2,0)),0,VLOOKUP("Original"&OLDLAESTAB&I158,'1718OriginalFunding'!C:D,2,0)) -> 0 | L158: =SUMIF('EOY1718'!E:E,DFENO&Home!I158,'EOY1718'!D:D) -> 0 | M158: =VLOOKUP(I115:I158,Rates!A:L,8,0) ->  | N158: =IF(ISERROR(VLOOKUP(I158,Rates!A:L,3,0)),"",VLOOKUP(I158,Rates!A:L,3,0)) ->  | O158: =HYPERLINK(VLOOKUP(N153,$J$168:$M$185,4,0),IF(OR(N153="Not Used",N153="Other"),"",N153)) ->  | P158: =VLOOKUP(I158,Rates!A:AO,41,0) ->  | Q158: =SUMIF(TRANS!$BQ:$BQ,Q$3&DFENO&Home!$I158,TRANS!$S:$S) -> 0 | R158: =SUMIF(TRANS!$BQ:$BQ,R$3&DFENO&Home!$I158,TRANS!$S:$S) -> 0 | S158: =SUMIF(TRANS!$BQ:$BQ,S$3&DFENO&Home!$I158,TRANS!$S:$S) -> 0 | T158: =SUMIF(TRANS!$BQ:$BQ,T$3&DFENO&Home!$I158,TRANS!$S:$S) -> 0 | U158: =SUMIF(TRANS!$BQ:$BQ,U$3&DFENO&Home!$I158,TRANS!$S:$S) -> 0 | V158: =SUMIF(TRANS!$BQ:$BQ,V$3&DFENO&Home!$I158,TRANS!$S:$S) -> 0 | W158: =SUMIF(TRANS!$BQ:$BQ,W$3&DFENO&Home!$I158,TRANS!$S:$S) -> 0 | X158: =SUMIF(TRANS!$BQ:$BQ,X$3&DFENO&Home!$I158,TRANS!$S:$S) -> 0 | Y158: =SUMIF(TRANS!$BQ:$BQ,Y$3&DFENO&Home!$I158,TRANS!$S:$S) -> 0 | Z158: =SUMIF(TRANS!$BQ:$BQ,Z$3&DFENO&Home!$I158,TRANS!$S:$S) -> 0 | AA158: =SUMIF(TRANS!$BQ:$BQ,AA$3&DFENO&Home!$I158,TRANS!$S:$S) -> 0 | AB158: =SUMIF(TRANS!$BQ:$BQ,AB$3&DFENO&Home!$I158,TRANS!$S:$S) -> 0 | AC158: =SUMIF(TRANS!$BQ:$BQ,AC$3&DFENO&Home!$I158,TRANS!$S:$S) -> 0 | AD158: 0 | AG158: =IF(ISERROR(VLOOKUP(I158,Rates!$A:$AP,42,0)),"",VLOOKUP(I158,Rates!$A:$AP,42,0)) -> 
A159: =VLOOKUP(I159,Rates!A:L,2,0) ->  | B159: blank | C159: blank | D159: blank | E159: Y7CATCHUP | F159: blank | G159: blank | H159: blank | K159: =IF(ISERROR(VLOOKUP("Original"&OLDLAESTAB&I159,'1718OriginalFunding'!C:D,2,0)),0,VLOOKUP("Original"&OLDLAESTAB&I159,'1718OriginalFunding'!C:D,2,0)) -> 0 | L159: =SUMIF('EOY1718'!E:E,DFENO&Home!I159,'EOY1718'!D:D) -> 0 | M159: =VLOOKUP(I116:I159,Rates!A:L,8,0) ->  | N159: =IF(ISERROR(VLOOKUP(I159,Rates!A:L,3,0)),"",VLOOKUP(I159,Rates!A:L,3,0)) ->  | P159: =VLOOKUP(I159,Rates!A:AO,41,0) ->  | Q159: =SUMIF(TRANS!$BQ:$BQ,Q$3&DFENO&Home!$I159,TRANS!$S:$S) -> 0 | R159: =SUMIF(TRANS!$BQ:$BQ,R$3&DFENO&Home!$I159,TRANS!$S:$S) -> 0 | S159: =SUMIF(TRANS!$BQ:$BQ,S$3&DFENO&Home!$I159,TRANS!$S:$S) -> 0 | T159: =SUMIF(TRANS!$BQ:$BQ,T$3&DFENO&Home!$I159,TRANS!$S:$S) -> 0 | U159: =SUMIF(TRANS!$BQ:$BQ,U$3&DFENO&Home!$I159,TRANS!$S:$S) -> 0 | V159: =SUMIF(TRANS!$BQ:$BQ,V$3&DFENO&Home!$I159,TRANS!$S:$S) -> 0 | W159: =SUMIF(TRANS!$BQ:$BQ,W$3&DFENO&Home!$I159,TRANS!$S:$S) -> 0 | X159: =SUMIF(TRANS!$BQ:$BQ,X$3&DFENO&Home!$I159,TRANS!$S:$S) -> 0 | Y159: =SUMIF(TRANS!$BQ:$BQ,Y$3&DFENO&Home!$I159,TRANS!$S:$S) -> 0 | Z159: =SUMIF(TRANS!$BQ:$BQ,Z$3&DFENO&Home!$I159,TRANS!$S:$S) -> 0 | AA159: =SUMIF(TRANS!$BQ:$BQ,AA$3&DFENO&Home!$I159,TRANS!$S:$S) -> 0 | AB159: =SUMIF(TRANS!$BQ:$BQ,AB$3&DFENO&Home!$I159,TRANS!$S:$S) -> 0 | AC159: =SUMIF(TRANS!$BQ:$BQ,AC$3&DFENO&Home!$I159,TRANS!$S:$S) -> 0 | AD159: 0 | AG159: =IF(ISERROR(VLOOKUP(I159,Rates!$A:$AP,42,0)),"",VLOOKUP(I159,Rates!$A:$AP,42,0)) -> 
A160: =VLOOKUP(I160,Rates!A:L,2,0) ->  | B160: blank | C160: blank | D160: blank | E160: NCTL | F160: blank | G160: blank | H160: blank | K160: =IF(ISERROR(VLOOKUP("Original"&OLDLAESTAB&I160,'1718OriginalFunding'!C:D,2,0)),0,VLOOKUP("Original"&OLDLAESTAB&I160,'1718OriginalFunding'!C:D,2,0)) -> 0 | L160: =SUMIF('EOY1718'!E:E,DFENO&Home!I160,'EOY1718'!D:D) -> 0 | M160: =VLOOKUP(I117:I160,Rates!A:L,8,0) ->  | N160: =IF(ISERROR(VLOOKUP(I160,Rates!A:L,3,0)),"",VLOOKUP(I160,Rates!A:L,3,0)) ->  | P160: =VLOOKUP(I160,Rates!A:AO,41,0) ->  | Q160: =SUMIF(TRANS!$BQ:$BQ,Q$3&DFENO&Home!$I160,TRANS!$S:$S) -> 0 | R160: =SUMIF(TRANS!$BQ:$BQ,R$3&DFENO&Home!$I160,TRANS!$S:$S) -> 0 | S160: =SUMIF(TRANS!$BQ:$BQ,S$3&DFENO&Home!$I160,TRANS!$S:$S) -> 0 | T160: =SUMIF(TRANS!$BQ:$BQ,T$3&DFENO&Home!$I160,TRANS!$S:$S) -> 0 | U160: =SUMIF(TRANS!$BQ:$BQ,U$3&DFENO&Home!$I160,TRANS!$S:$S) -> 0 | V160: =SUMIF(TRANS!$BQ:$BQ,V$3&DFENO&Home!$I160,TRANS!$S:$S) -> 0 | W160: =SUMIF(TRANS!$BQ:$BQ,W$3&DFENO&Home!$I160,TRANS!$S:$S) -> 0 | X160: =SUMIF(TRANS!$BQ:$BQ,X$3&DFENO&Home!$I160,TRANS!$S:$S) -> 0 | Y160: =SUMIF(TRANS!$BQ:$BQ,Y$3&DFENO&Home!$I160,TRANS!$S:$S) -> 0 | Z160: =SUMIF(TRANS!$BQ:$BQ,Z$3&DFENO&Home!$I160,TRANS!$S:$S) -> 0 | AA160: =SUMIF(TRANS!$BQ:$BQ,AA$3&DFENO&Home!$I160,TRANS!$S:$S) -> 0 | AB160: =SUMIF(TRANS!$BQ:$BQ,AB$3&DFENO&Home!$I160,TRANS!$S:$S) -> 0 | AC160: =SUMIF(TRANS!$BQ:$BQ,AC$3&DFENO&Home!$I160,TRANS!$S:$S) -> 0 | AD160: 0 | AG160: =IF(ISERROR(VLOOKUP(I160,Rates!$A:$AP,42,0)),"",VLOOKUP(I160,Rates!$A:$AP,42,0)) -> 
A161: =VLOOKUP(I161,Rates!A:L,2,0) ->  | B161: subtotal | C161: subtotal | D161: subtotal | E161: subtotal | F161: subtotal | G161: subtotal | H161: subtotal | K161: =SUM(K154:K160) -> 0 | L161: =SUM(L154:L160) -> 0 | N161: =IF(ISERROR(VLOOKUP(I161,Rates!A:L,3,0)),"",VLOOKUP(I161,Rates!A:L,3,0)) ->  | Q161: =SUM(Q154:Q160) -> 0 | R161: =SUM(R154:R160) -> 0 | S161: 0 | T161: 0 | U161: 0 | V161: 0 | W161: 0 | X161: 0 | Y161: 0 | Z161: 0 | AA161: 0 | AB161: 0 | AC161: 0 | AD161: 0 | AG161: =IF(ISERROR(VLOOKUP(I161,Rates!$A:$AP,42,0)),"",VLOOKUP(I161,Rates!$A:$AP,42,0)) -> 
A162: =VLOOKUP(I162,Rates!A:L,2,0) -> REPORT | B162: 0 | C162: 0 | D162: 8 | E162: 8 | F162: 0 | G162: blank | H162: 0 | AG162: =IF(ISERROR(VLOOKUP(I162,Rates!$A:$AP,42,0)),"",VLOOKUP(I162,Rates!$A:$AP,42,0)) -> 0
A165: LAESTAB | B165: Please choose a school | C165: Phase | D165: Academy Type | E165: Blank | F165: 0 | G165: X | H165: OldDfe
A166: 3020135 | B166: Barnet Early Years Alliance (BEYA) | C166: Nursery | D166: 0 | F166: 3020135 | H166: 3020135
A167: 3021002 | B167: Moss Hall Nursery | C167: Nursery | D167: 0 | F167: =A167 -> 3021002 | G167: X | H167: 3021002 | J167: Hyperlink Look-up table
A168: LAESTAB | B168: - | C168: Phase | D168: Academy Type | E168: Blank | F168: 0 | G168: X | H168: OldDfe | J168: Early Years | K168: EarlyYears | L168: 1 | M168: #EarlyYears!p13
A169: 3023520 | B169: Akiva School | C169: Primary | D169: 0 | F169: 3023520 | G169: Pri | H169: 3023520 | J169: Budget Shares | K169: BudgetShare | L169: 2 | M169: #BudgetShare!p13
A170: 3023300 | B170: All Saints' CE Primary School NW2 | C170: Primary | D170: 0 | F170: =A170 -> 3023300 | G170: Pri | H170: 3023300 | J170: Grants | K170: Grants | L170: 3 | M170: #Grants!p13
A171: 3023317 | B171: All Saints' CE Primary School, N20 | C171: Primary | D171: 0 | F171: 3023317 | G171: Pri | H171: 3023317 | J171: Not Used
A172: 3022020 | B172: Alma Primary | C172: Primary | D172: Recoupment Academy | F172: 3022020 | G172: Pri | H172: 3022020 | J172: PupilPremium | K172: PupilPremium | L172: 4 | M172: #PupilPremium!p13
A173: 3023500 | B173: Annunciation Catholic Infant School | C173: Primary | D173: 0 | F173: 3023500 | G173: Pri | H173: 3023500 | J173: Growth | K173: Growth | L173: 5 | M173: #Growth!p13
A174: 3023514 | B174: Annunciation Catholic Junior School | C174: Primary | D174: 0 | F174: 3023514 | G174: Pri | H174: 3023514 | J174: High Needs | K174: HighNeeds | L174: 6 | M174: #HighNeeds!p13
A175: 3022050 | B175: Ashmole Primary School | C175: Primary | D175: Recoupment Academy | F175: 3022050 | G175: Pri | H175: 3022050 | J175: Post 16 | K175: SixthForm | L175: 7 | M175: #SixthForm!p13
A176: 3022002 | B176: Barnfield School | C176: Primary | D176: 0 | F176: 3022002 | G176: Pri | H176: 3022002 | J176: De-Delegation | K176: BudgetShare | L176: 8 | M176: #BudgetShare!p13
A177: 3022079 | B177: Beis Yaakov | C177: Primary | D177: 0 | F177: 3022079 | G177: Pri | H177: 3022079 | J177: Top-ups | K177: Top-ups | L177: 9 | M177: #Top-ups!p13
A178: 3023524 | B178: Beit Shvidler Primary School | C178: Primary | D178: 0 | F178: 3023524 | G178: Pri | H178: 3023524 | J178: Other
A179: 3022003 | B179: Bell Lane Primary School | C179: Primary | D179: 0 | F179: 3022003 | G179: Pri | H179: 3022003 | J179: PRUtop-ups | K179: =J179 -> PRUtop-ups | L179: 10 | M179: #PRUTopups!q13
A180: 3023511 | B180: Blessed Dominic School | C180: Primary | D180: 0 | F180: 3023511 | G180: Pri | H180: 3023511
A181: 3023519 | B181: Broadfields Primary School | C181: Primary | D181: Recoupment Academy | F181: 3023519 | G181: Pri | H181: 3023519
A182: 3022008 | B182: Brookland Infant & Nursery School | C182: Primary | D182: 0 | F182: 3022008 | G182: Pri | H182: 3022008
A183: 3022007 | B183: Brookland Junior School | C183: Primary | D183: 0 | F183: 3022007 | G183: Pri | H183: 3022007
A184: 3022009 | B184: Brunswick Park Primary & Nursery School | C184: Primary | D184: 0 | F184: 3022009 | G184: Pri | H184: 3022009
A185: 3022067 | B185: Chalgrove Primary School | C185: Primary | D185: 0 | F185: 3022067 | G185: Pri | H185: 3022067
A186: 3022010 | B186: Child's Hill School | C186: Primary | D186: 0 | F186: 3022010 | G186: Pri | H186: 3022010
A187: 3023302 | B187: Christ Church CE Primary School | C187: Primary | D187: 0 | F187: 3023302 | G187: Pri | H187: 3023302
A188: 3022011 | B188: Church Hill Primary School | C188: Primary | D188: 0 | F188: 3022011 | G188: Pri | H188: 3022011
A189: 3023522 | B189: Claremont Academy | C189: Primary | D189: Recoupment Academy | F189: 3023522 | G189: Pri | H189: 3023522
A190: 3022014 | B190: Colindale School | C190: Primary | D190: 0 | F190: 3022014 | G190: Pri | H190: 3022014
A191: 3022015 | B191: Coppetts Wood | C191: Primary | D191: 0 | F191: 3022015 | G191: Pri | H191: 3022015
A192: 3022016 | B192: Courtland School | C192: Primary | D192: 0 | F192: 3022016 | G192: Pri | H192: 3022016
A193: 3022017 | B193: Cromer Road Primary School | C193: Primary | D193: 0 | F193: 3022017 | G193: Pri | H193: 3022017
A194: 3022073 | B194: Danegrove JMI School | C194: Primary | D194: 0 | F194: 3022073 | G194: Pri | H194: 3022073
A195: 3022019 | B195: Deansbrook Infant School | C195: Primary | D195: 0 | F195: 3022019 | G195: Pri | H195: 3022019
A196: 3022018 | B196: Deansbrook Junior School | C196: Primary | D196: Recoupment Academy | F196: 3022018 | G196: Pri | H196: 3022018
A197: 3022021 | B197: Dollis Infant School | C197: Primary | D197: 0 | F197: 3022021 | G197: Pri | H197: 3022021
A198: 3025200 | B198: Dollis Junior School | C198: Primary | D198: 0 | F198: 3025200 | G198: Pri | H198: 3025200
A199: 3022023 | B199: Edgware Primary School | C199: Primary | D199: 0 | F199: 3022023 | G199: Pri | H199: 3022023
A200: 3022001 | B200: Etz Chaim Jewish Primary School | C200: Primary | D200: Recoupment Academy | F200: 3022001 | G200: Pri | H200: 3022001
A201: 3022024 | B201: Fairway Primary School | C201: Primary | D201: 0 | F201: 3022024 | G201: Pri | H201: 3022024
A202: 3022025 | B202: Foulds | C202: Primary | D202: 0 | F202: 3022025 | G202: Pri | H202: 3022025
A203: 3022026 | B203: Frith Manor School | C203: Primary | D203: 0 | F203: 3022026 | G203: Pri | H203: 3022026
A204: 3022028 | B204: Garden Suburb Infant School | C204: Primary | D204: 0 | F204: 3022028 | G204: Pri | H204: 3022028
A205: 3022027 | B205: Garden Suburb Junior | C205: Primary | D205: 0 | F205: 3022027 | G205: Pri | H205: 3022027
A206: 3022029 | B206: Goldbeaters Primary School | C206: Primary | D206: 0 | F206: 3022029 | G206: Pri | H206: 3022029
A207: 3022030 | B207: Grasvenor Avenue Infants | C207: Primary | D207: Recoupment Academy | F207: 3022030 | G207: Pri | H207: 3022030
... 102 more rows

Sheet DFCOriginal1819 (hidden)
A2: EFA PROVISIONAL ALLOCATIONS for 2016-17 to be confirmed after March
B4: Per non-boarding Pupil | C4: Per boarding Pupil | D4: Lump sum per school
B5: 2016-17 | C5: 2016-17 | D5: 2016-17
A6: Nursery/Primary | B6: 11.25 | C6: 33.75 | D6: 4000
A7: Secondary | B7: 16.875 | C7: 33.75 | D7: 4000
A8: Post-16 | B8: 22.5 | C8: 33.75 | D8: 4000
A9: Special/PRU | B9: 33.75 | C9: 33.75 | D9: 4000
A10: 1. The rates shown above are used for all schools except voluntary aided schools, whose lump sum and per pupil rates are 8% higher.
A11: 2. The data source for all school data and pupil numbers is the School Census (Jan 2015).
A12: 3. Pupil Counts for all schools include both sole and dual main registrations.
A15: URN | B15: LA No. | C15: LA Name | D15: LAEstab | E15: School Name | F15: VA flag | G15: DFC
A16: 101251 | B16: 302 | C16: Barnet | D16: 3021000 | E16: Brookhill Nursery School | G16: 4719.55
A17: 101252 | B17: 302 | C17: Barnet | D17: 3021001 | E17: Hampden Way Nursery School | G17: 4626.85
A18: 101253 | B18: 302 | C18: Barnet | D18: 3021002 | E18: Moss Hall Nursery School | G18: 5053
A19: 101254 | B19: 302 | C19: Barnet | D19: 3021003 | E19: St Margaret's Nursery School | G19: 4800.55
A20: 101255 | B20: 302 | C20: Barnet | D20: 3021100 | E20: Pavilion Study Centre | G20: 6666.25
A21: 101258 | B21: 302 | C21: Barnet | D21: 3022002 | E21: Barnfield Primary School | G21: 9838.75
A22: 101259 | B22: 302 | C22: Barnet | D22: 3022003 | E22: Bell Lane Primary School | G22: 8977
A23: 101262 | B23: 302 | C23: Barnet | D23: 3022007 | E23: Brookland Junior School | G23: 8038.75
A24: 101263 | B24: 302 | C24: Barnet | D24: 3022008 | E24: Brookland Infant and Nursery School | G24: 7388.5
A25: 101264 | B25: 302 | C25: Barnet | D25: 3022009 | E25: Brunswick Park Primary and Nursery School | G25: 8302
A26: 101265 | B26: 302 | C26: Barnet | D26: 3022010 | E26: Childs Hill School | G26: 7975.75
A27: 101266 | B27: 302 | C27: Barnet | D27: 3022011 | E27: Church Hill School | G27: 6553.75
A28: 101269 | B28: 302 | C28: Barnet | D28: 3022014 | E28: Colindale Primary School | G28: 11951.5
A29: 101270 | B29: 302 | C29: Barnet | D29: 3022015 | E29: Coppetts Wood Primary School | G29: 7051
A30: 101271 | B30: 302 | C30: Barnet | D30: 3022016 | E30: Courtland School | G30: 6362.5
A31: 101272 | B31: 302 | C31: Barnet | D31: 3022017 | E31: Cromer Road Primary School | G31: 8657.5
A32: 101274 | B32: 302 | C32: Barnet | D32: 3022019 | E32: Deansbrook Infant School | G32: 7483
A33: 101275 | B33: 302 | C33: Barnet | D33: 3022021 | E33: Dollis Infant School | G33: 7339
A34: 101277 | B34: 302 | C34: Barnet | D34: 3022023 | E34: Edgware Primary School | G34: 11239.38
A35: 101278 | B35: 302 | C35: Barnet | D35: 3022024 | E35: Fairway Primary School and Children's Centre | G35: 6954.25
A36: 101279 | B36: 302 | C36: Barnet | D36: 3022025 | E36: Foulds School | G36: 7543.75
A37: 101280 | B37: 302 | C37: Barnet | D37: 3022026 | E37: Frith Manor Primary School | G37: 11308
A38: 101281 | B38: 302 | C38: Barnet | D38: 3022027 | E38: Garden Suburb Junior School | G38: 8038.75
A39: 101282 | B39: 302 | C39: Barnet | D39: 3022028 | E39: Garden Suburb Infant School | G39: 7026.25
A40: 101283 | B40: 302 | C40: Barnet | D40: 3022029 | E40: Goldbeaters Primary School | G40: 9114.25
A41: 101285 | B41: 302 | C41: Barnet | D41: 3022031 | E41: Hollickwood Primary School | G41: 6499.75
A42: 101286 | B42: 302 | C42: Barnet | D42: 3022032 | E42: Holly Park Primary School | G42: 9832
A43: 101289 | B43: 302 | C43: Barnet | D43: 3022036 | E43: Livingstone Primary and Nursery School | G43: 7246.75
A44: 101290 | B44: 302 | C44: Barnet | D44: 3022037 | E44: Manorside Primary School | G44: 7696.75
A45: 101293 | B45: 302 | C45: Barnet | D45: 3022042 | E45: Monkfrith Primary School | G45: 7408.75
A46: 101294 | B46: 302 | C46: Barnet | D46: 3022043 | E46: Moss Hall Junior School | G46: 8646.25
A47: 101295 | B47: 302 | C47: Barnet | D47: 3022044 | E47: Moss Hall Infant School | G47: 8083.75
A48: 101296 | B48: 302 | C48: Barnet | D48: 3022045 | E48: Northside Primary School | G48: 7033
A49: 101297 | B49: 302 | C49: Barnet | D49: 3022051 | E49: Summerside Primary School | G49: 9546.25
A50: 101298 | B50: 302 | C50: Barnet | D50: 3022054 | E50: Woodridge Primary School | G50: 6688.75
A51: 101299 | B51: 302 | C51: Barnet | D51: 3022055 | E51: Tudor Primary School | G51: 6601
A52: 101301 | B52: 302 | C52: Barnet | D52: 3022057 | E52: Underhill School | G52: 9920.2
A53: 101304 | B53: 302 | C53: Barnet | D53: 3022060 | E53: Whitings Hill Primary School | G53: 9019.75
A54: 101309 | B54: 302 | C54: Barnet | D54: 3022067 | E54: Chalgrove Primary School | G54: 6958.75
A55: 101311 | B55: 302 | C55: Barnet | D55: 3022070 | E55: Sunnyfields Primary School | G55: 6616.75
A56: 101312 | B56: 302 | C56: Barnet | D56: 3022071 | E56: Queenswell Infant & Nursery School | G56: 7399.75
A57: 101313 | B57: 302 | C57: Barnet | D57: 3022072 | E57: Queenswell Junior School | G57: 7825
A58: 101314 | B58: 302 | C58: Barnet | D58: 3022073 | E58: Danegrove Primary School | G58: 11391.25
A59: 101315 | B59: 302 | C59: Barnet | D59: 3023300 | E59: All Saints' CofE Primary School NW2 | F59: VA | G59: 6847.2
A60: 101316 | B60: 302 | C60: Barnet | D60: 3023302 | E60: Christ Church Primary School | F60: VA | G60: 6978.42
A61: 101317 | B61: 302 | C61: Barnet | D61: 3023304 | E61: Holy Trinity CofE Primary School | F61: VA | G61: 7355.07
A62: 101318 | B62: 302 | C62: Barnet | D62: 3023305 | E62: Monken Hadley CofE Primary School | F62: VA | G62: 6106.05
A63: 101319 | B63: 302 | C63: Barnet | D63: 3023307 | E63: St John's CofE Junior Mixed and Infant School | F63: VA | G63: 7157.75
A64: 101321 | B64: 302 | C64: Barnet | D64: 3023309 | E64: St John's CofE Primary School | F64: VA | G64: 7116.93
A65: 101323 | B65: 302 | C65: Barnet | D65: 3023311 | E65: St Mary's CofE Primary School | F65: VA | G65: 9926.01
A66: 101324 | B66: 302 | C66: Barnet | D66: 3023312 | E66: St Mary's CofE Primary School, East Barnet | F66: VA | G66: 6944.4
A67: 101325 | B67: 302 | C67: Barnet | D67: 3023313 | E67: St Paul's CofE Primary School N11 | F67: VA | G67: 7042.82
A68: 101326 | B68: 302 | C68: Barnet | D68: 3023314 | E68: St Paul's CofE Primary School NW7 | F68: VA | G68: 6835.05
A69: 101327 | B69: 302 | C69: Barnet | D69: 3023315 | E69: St Andrew's CofE Voluntary Aided Primary School, Totteridge | F69: VA | G69: 6847.2
A70: 101328 | B70: 302 | C70: Barnet | D70: 3023316 | E70: Trent CofE Primary School | F70: VA | G70: 6859.35
A71: 101329 | B71: 302 | C71: Barnet | D71: 3023317 | E71: All Saints' CofE Primary School N20 | F71: VA | G71: 7481.43
A72: 101330 | B72: 302 | C72: Barnet | D72: 3023500 | E72: The Annunciation Catholic Infant School | F72: VA | G72: 6679.53
A73: 101331 | B73: 302 | C73: Barnet | D73: 3023501 | E73: Our Lady of Lourdes RC School | F73: VA | G73: 7199.79
A74: 101332 | B74: 302 | C74: Barnet | D74: 3023502 | E74: St Agnes RC School | F74: VA | G74: 8407.75
A75: 101333 | B75: 302 | C75: Barnet | D75: 3023504 | E75: St Catherine's RC School | F75: VA | G75: 10142.28
A76: 101334 | B76: 302 | C76: Barnet | D76: 3023506 | E76: St Vincent's Catholic Primary School | F76: VA | G76: 8305.2
A77: 101335 | B77: 302 | C77: Barnet | D77: 3023507 | E77: St Theresa's Catholic Primary School | F77: VA | G77: 7223.85
A78: 101337 | B78: 302 | C78: Barnet | D78: 3023509 | E78: St Joseph's Catholic Primary School | F78: VA | G78: 10360.98
A79: 101338 | B79: 302 | C79: Barnet | D79: 3023510 | E79: Sacred Heart Roman Catholic Primary School | F79: VA | G79: 9410.85
A80: 101339 | B80: 302 | C80: Barnet | D80: 3023511 | E80: Blessed Dominic Catholic Primary School | F80: VA | G80: 8856.81
A81: 101340 | B81: 302 | C81: Barnet | D81: 3023512 | E81: Rosh Pinah Primary School | F81: VA | G81: 9505.62
A82: 101341 | B82: 302 | C82: Barnet | D82: 3023513 | E82: Menorah Primary School | F82: VA | G82: 9440.01
A83: 101342 | B83: 302 | C83: Barnet | D83: 3023514 | E83: The Annunciation RC Junior School | F83: VA | G83: 7053.75
A84: 101345 | B84: 302 | C84: Barnet | D84: 3024003 | E84: Friern Barnet School | G84: 17297.5
A85: 101355 | B85: 302 | C85: Barnet | D85: 3025200 | E85: Dollis Junior School | G85: 7892.5
A86: 101356 | B86: 302 | C86: Barnet | D86: 3025201 | E86: Osidge Primary School | G86: 8882.5
A87: 101361 | B87: 302 | C87: Barnet | D87: 3025404 | E87: St Michael's Catholic Grammar School | F87: VA | G87: 20090.7
A88: 101362 | B88: 302 | C88: Barnet | D88: 3025405 | E88: Finchley Catholic High School | F88: VA | G88: 27149.85
A89: 101364 | B89: 302 | C89: Barnet | D89: 3025407 | E89: St James' Catholic High School | F89: VA | G89: 25789.05
A90: 101376 | B90: 302 | C90: Barnet | D90: 3025948 | E90: Mathilda Marks-Kennedy Jewish Primary School | F90: VA | G90: 6951.69
A91: 101395 | B91: 302 | C91: Barnet | D91: 3027005 | E91: Northway School | G91: 7341.25
A92: 101396 | B92: 302 | C92: Barnet | D92: 3027009 | E92: Oakleigh School & Acorn Assessment Centre | G92: 7510
A93: 101397 | B93: 302 | C93: Barnet | D93: 3027010 | E93: Mapledown School | G93: 6396.25
A94: 103119 | B94: 302 | C94: Barnet | D94: 3023521 | E94: St Mary's and St John's CofE School | F94: VA | G94: 15551.46
A95: 130998 | B95: 302 | C95: Barnet | D95: 3023516 | E95: Hasmonean Primary School | F95: VA | G95: 7065.9
A96: 131359 | B96: 302 | C96: Barnet | D96: 3025949 | E96: Menorah Foundation School | F96: VA | G96: 8441.28
A97: 131617 | B97: 302 | C97: Barnet | D97: 3022076 | E97: Wessex Gardens Primary School | G97: 9368.5
A98: 131970 | B98: 302 | C98: Barnet | D98: 3022077 | E98: The Orion Primary School | G98: 13049.5
A99: 133364 | B99: 302 | C99: Barnet | D99: 3022078 | E99: Pardes House Primary School | F99: VA | G99: 7539.75
A100: 133365 | B100: 302 | C100: Barnet | D100: 3022079 | E100: Beis Yaakov Primary School | F100: VA | G100: 10241.91
A101: 133749 | B101: 302 | C101: Barnet | D101: 3021102 | E101: Northgate School | G101: 4135
A102: 134677 | B102: 302 | C102: Barnet | D102: 3023518 | E102: Woodcroft Primary School | G102: 9359.5
A103: 135086 | B103: 302 | C103: Barnet | D103: 3023520 | E103: Akiva School | F103: VA | G103: 9435.15
A104: 135226 | B104: 302 | C104: Barnet | D104: 3023523 | E104: Martin Primary School | G104: 11056
A105: 135747 | B105: 302 | C105: Barnet | D105: 3025427 | E105: JCoSS | F105: VA | G105: 25631.1
A106: 136402 | B106: 302 | C106: Barnet | D106: 3023524 | E106: Beit Shvidler Primary School | F106: VA | G106: 7078.05
A107: 139727 | B107: 302 | C107: Barnet | D107: 3022041 | E107: Sacks Morasha Jewish Primary School | F107: VA | G107: 6810.75
A108: 134798 | B108: 302 | C108: Barnet | D108: 3026905 | E108: London Academy | G108: 30611.88
A109: 135507 | B109: 302 | C109: Barnet | D109: 3026906 | E109: Wren Academy | G109: 24272.5
A110: 136290 | B110: 302 | C110: Barnet | D110: 3025401 | E110: Queen Elizabeth's School, Barnet | G110: 25735
A111: 136308 | B111: 302 | C111: Barnet | D111: 3025406 | E111: Ashmole Academy | G111: 31691.88
A112: 136418 | B112: 302 | C112: Barnet | D112: 3024215 | E112: The Compton School | G112: 23670.63
A113: 136658 | B113: 302 | C113: Barnet | D113: 3024212 | E113: East Barnet School | G113: 28181.88
A114: 136938 | B114: 302 | C114: Barnet | D114: 3022001 | E114: Etz Chaim Jewish Primary School | G114: 5739.25
A115: 137131 | B115: 302 | C115: Barnet | D115: 3024208 | E115: Queen Elizabeth's Girls' School | G115: 23344.38
A116: 137303 | B116: 302 | C116: Barnet | D116: 3023515 | E116: Independent Jewish Day School | G116: 6421
A117: 137361 | B117: 302 | C117: Barnet | D117: 3024012 | E117: Whitefield School | G117: 18011.88
A118: 137386 | B118: 302 | C118: Barnet | D118: 3025402 | E118: Mill Hill County High School | G118: 34037.5
A119: 137388 | B119: 302 | C119: Barnet | D119: 3024211 | E119: Christ's College Finchley | G119: 19513.75
A120: 137539 | B120: 302 | C120: Barnet | D120: 3025409 | E120: Hasmonean High School | G120: 23867.5
A121: 137645 | B121: 302 | C121: Barnet | D121: 3025400 | E121: Hendon School | G121: 26100.63
A122: 138051 | B122: 302 | C122: Barnet | D122: 3024752 | E122: The Henrietta Barnett School | G122: 18034.38
A123: 138272 | B123: 302 | C123: Barnet | D123: 3022004 | E123: Rimon Jewish Primary School | G123: 5181.25
A124: 138649 | B124: 302 | C124: Barnet | D124: 3022030 | E124: Grasvenor Avenue Infant School | G124: 5158.75
A125: 138685 | B125: 302 | C125: Barnet | D125: 3024210 | E125: Copthall School | G125: 22793.13
A126: 139410 | B126: 302 | C126: Barnet | D126: 3024000 | E126: St Andrew the Apostle Greek Orthodox School | G126: 9332.5
A127: 139489 | B127: 302 | C127: Barnet | D127: 3022018 | E127: Deansbrook Junior School | G127: 8747.5
A128: 139562 | B128: 302 | C128: Barnet | D128: 3022020 | E128: Alma Primary | G128: 5012.5
A129: 139594 | B129: 302 | C129: Barnet | D129: 3024001 | E129: The Archer Academy | G129: 11576.88
A130: 139633 | B130: 302 | C130: Barnet | D130: 3022038 | E130: Parkfield Primary School | G130: 8806
A131: 139817 | B131: 302 | C131: Barnet | D131: 3022047 | E131: The Hyde School | G131: 9226.75
A132: 140236 | B132: 302 | C132: Barnet | D132: 3023519 | E132: Broadfields Primary School | G132: 11452
A133: 140601 | B133: 302 | C133: Barnet | D133: 3022048 | E133: Millbrook Park Primary School | G133: 5336.5
A134: 142114 | B134: 302 | C134: Barnet | D134: 3022049 | E134: Watling Park school | G134: 4607.5
A135: 142636 | B135: 302 | C135: Barnet | D135: 3023522 | E135: Claremont Primary School | G135: 8797
A136: 143082 | B136: 302 | C136: Barnet | D136: 3025408 | E136: Bishop Douglass School Finchley | G136: 16465
A137: 143865 | B137: 302 | C137: Barnet | D137: 3027000 | E137: Oak Lodge School | G137: 9568.75
A138: 144502 | B138: 302 | C138: Barnet | D138: 3024010 | E138: The Totteridge Academy | G138: 13585

Sheet PEGrantOriginal11819 (hidden)
A1: Standard Header for 2016/17 School Funding System
A2: Setup: | B2: 2015-01-07T16:13:53.260
A3: File: | B3: =CELL("filename",A1) -> T:\School Funding\Cycle 10 - 2018-19\May Adjustments\[2018-19 MayReport v3.0 @ 30.05.18 WIP.xlsm]PEGrantOriginal11819
A4: Date: | B4: =NOW() -> 2018-06-01T10:54:13
A5: Sheet: | B5: =RIGHT(B3,LEN(B3)-FIND("]",B3)) -> PEGrantOriginal11819 | G5: =LEFT(B3,FIND("]",B3)-1) -> T:\School Funding\Cycle 10 - 2018-19\May Adjustments\[2018-19 MayReport v3.0 @ 30.05.18 WIP.xlsm
A8: 1 | B8: 2 | C8: 3 | D8: 4 | E8: 5 | F8: 6 | G8: 7 | H8: 8 | I8: 9 | J8: 10 | K8: 11 | L8: 12 | M8: 20
D9: FY 2017/18 (7 months) | E9: FY 2018/19 (5 months) | F9: Note: No announcement for 2017/18 academic year yet, so no allocations for autumn 2017 & spring 2018 yet.
A10: LAEstab (at Sep 16) | B10: School Name (at Sep 16) | C10: Total Allocation | D10: Aut/Spr | E10: Summer (for 2017/18 originals)
A11: DfE No | B11: School | C11: 2017/18 Academic Year allocation (Sep 17 - Aug 18) | D11: First instalment (7/12) Autumn 17 (paid in 17/18 financial year to cover Sept 17 to March 18) | E11: Second Instalment (5/12) Summer 17 paid in 18/19 financial year to cover Apr to Aug]
A12: Academies
A13: 3026905 | B13: London Academy | C13: 16300 | D13: =C13*7/12 -> 9508.333333 | E13: =C13-D13 -> 6791.666667
A14: 3026906 | B14: Wren Academy | C14: 16600 | D14: =C14*7/12 -> 9683.333333 | E14: =C14-D14 -> 6916.666667
A15: 3022001 | B15: Etz Chaim Jewish Primary School | C15: 17360 | D15: 10126.66667 | E15: 7233.333333
A16: 3023515 | B16: Independent Jewish Day School | C16: 17740 | D16: 10348.33333 | E16: 7391.666667
A17: 3022004 | B17: Rimon Jewish Primary School | C17: 17050 | D17: 9945.833333 | E17: 7104.166667
A18: 3022030 | B18: Grasvenor Avenue Infant School | C18: 16540 | D18: 9648.333333 | E18: 6891.666667
A19: 3022018 | B19: Deansbrook Junior School | C19: 19850 | D19: 11579.16667 | E19: 8270.833333
A20: 3022020 | B20: Alma Primary | C20: 16900 | D20: 9858.333333 | E20: 7041.666667
A21: 3022038 | B21: Parkfield Primary School | C21: 19440 | D21: 11340 | E21: 8100
A22: 3022047 | B22: The Hyde School | C22: 19580 | D22: 11421.66667 | E22: 8158.333333
A23: 3023519 | B23: Broadfields Primary School | C23: 21590 | D23: 12594.16667 | E23: 8995.833333
A24: 3022048 | B24: Millbrook Park Primary School | C24: 17060 | D24: 9951.666667 | E24: 7108.333333
A25: 3022049 | B25: Watling Park school | C25: 16580 | D25: 9671.666667 | E25: 6908.333333
A26: 3023522 | B26: Claremont Primary School | C26: 19210 | D26: 11205.83333 | E26: 8004.166667
A27: 3022051 | B27: Summerside Primary Academy | C27: 20200 | D27: 11783.33333 | E27: 8416.666667
A29: LA Maintained schools
A30: 3021100 | B30: Pavilion Study Centre | C30: 2000 | D30: =C30*7/12 -> 1166.666667 | E30: =C30-D30 -> 833.3333333
A31: 3022002 | B31: Barnfield Primary School | C31: 20130 | D31: =C31*7/12 -> 11742.5 | E31: =C31-D31 -> 8387.5
A32: 3022003 | B32: Bell Lane Primary School | C32: 19350 | D32: 11287.5 | E32: 8062.5
A33: 3022007 | B33: Brookland Junior School | C33: 19550 | D33: 11404.16667 | E33: 8145.833333
A34: 3022008 | B34: Brookland Infant and Nursery School | C34: 17790 | D34: 10377.5 | E34: 7412.5
A35: 3022009 | B35: Brunswick Park Primary and Nursery School | C35: 19320 | D35: 11270 | E35: 8050
A36: 3022010 | B36: Childs Hill School | C36: 18680 | D36: 10896.66667 | E36: 7783.333333
A37: 3022011 | B37: Church Hill School | C37: 17980 | D37: 10488.33333 | E37: 7491.666667
A38: 3022014 | B38: Colindale Primary School | C38: 21680 | D38: 12646.66667 | E38: 9033.333333
A39: 3022015 | B39: Coppetts Wood Primary School | C39: 18100 | D39: 10558.33333 | E39: 7541.666667
A40: 3022016 | B40: Courtland School | C40: 17820 | D40: 10395 | E40: 7425
A41: 3022017 | B41: Cromer Road Primary School | C41: 19490 | D41: 11369.16667 | E41: 8120.833333
A42: 3022019 | B42: Deansbrook Infant School | C42: 17750 | D42: 10354.16667 | E42: 7395.833333
A43: 3022021 | B43: Dollis Infant School | C43: 17680 | D43: 10313.33333 | E43: 7366.666667
A44: 3022023 | B44: Edgware Primary School | C44: 20970 | D44: 12232.5 | E44: 8737.5
A45: 3022024 | B45: Fairway Primary School and Children's Centre | C45: 18090 | D45: 10552.5 | E45: 7537.5
A46: 3022025 | B46: Foulds School | C46: 18670 | D46: 10890.83333 | E46: 7779.166667
A47: 3022026 | B47: Frith Manor Primary School | C47: 21180 | D47: 12355 | E47: 8825
A48: 3022027 | B48: Garden Suburb Junior School | C48: 19580 | D48: 11421.66667 | E48: 8158.333333
A49: 3022028 | B49: Garden Suburb Infant School | C49: 17790 | D49: 10377.5 | E49: 7412.5
A50: 3022029 | B50: Goldbeaters Primary School | C50: 19590 | D50: 11427.5 | E50: 8162.5
A51: 3022031 | B51: Hollickwood Primary School | C51: 17670 | D51: 10307.5 | E51: 7362.5
A52: 3022032 | B52: Holly Park Primary School | C52: 20150 | D52: 11754.16667 | E52: 8395.833333
A53: 3022036 | B53: Livingstone Primary and Nursery School | C53: 18350 | D53: 10704.16667 | E53: 7645.833333
A54: 3022037 | B54: Manorside Primary School | C54: 18710 | D54: 10914.16667 | E54: 7795.833333
A55: 3022042 | B55: Monkfrith Primary School | C55: 18710 | D55: 10914.16667 | E55: 7795.833333
A56: 3022043 | B56: Moss Hall Junior School | C56: 20140 | D56: 11748.33333 | E56: 8391.666667
A57: 3022044 | B57: Moss Hall Infant School | C57: 18390 | D57: 10727.5 | E57: 7662.5
A58: 3022045 | B58: Northside Primary School | C58: 18140 | D58: 10581.66667 | E58: 7558.333333
A59: 3022054 | B59: Woodridge Primary School | C59: 18080 | D59: 10546.66667 | E59: 7533.333333
A60: 3022055 | B60: Tudor Primary School | C60: 17940 | D60: 10465 | E60: 7475
A61: 3022057 | B61: Underhill School | C61: 20580 | D61: 12005 | E61: 8575
A62: 3022060 | B62: Whitings Hill Primary School | C62: 19600 | D62: 11433.33333 | E62: 8166.666667
A63: 3022067 | B63: Chalgrove Primary School | C63: 18250 | D63: 10645.83333 | E63: 7604.166667
A64: 3022070 | B64: Sunnyfields Primary School | C64: 17780 | D64: 10371.66667 | E64: 7408.333333
A65: 3022071 | B65: Queenswell Infant & Nursery School | C65: 17750 | D65: 10354.16667 | E65: 7395.833333
A66: 3022072 | B66: Queenswell Junior School | C66: 19480 | D66: 11363.33333 | E66: 8116.666667
A67: 3022073 | B67: Danegrove Primary School | C67: 21650 | D67: 12629.16667 | E67: 9020.833333
A68: 3023300 | B68: All Saints' CofE Primary School NW2 | C68: 17770 | D68: 10365.83333 | E68: 7404.166667
A69: 3023302 | B69: Christ Church Primary School | C69: 17750 | D69: 10354.16667 | E69: 7395.833333
A70: 3023304 | B70: Holy Trinity CofE Primary School | C70: 17950 | D70: 10470.83333 | E70: 7479.166667
A71: 3023305 | B71: Monken Hadley CofE Primary School | C71: 17200 | D71: 10033.33333 | E71: 7166.666667
A72: 3023307 | B72: St John's CofE Junior Mixed and Infant School | C72: 17800 | D72: 10383.33333 | E72: 7416.666667
A73: 3023309 | B73: St John's CofE Primary School | C73: 17790 | D73: 10377.5 | E73: 7412.5
A74: 3023311 | B74: St Mary's CofE Primary School | C74: 19580 | D74: 11421.66667 | E74: 8158.333333
A75: 3023312 | B75: St Mary's CofE Primary School, East Barnet | C75: 17860 | D75: 10418.33333 | E75: 7441.666667
A76: 3023313 | B76: St Paul's CofE Primary School N11 | C76: 17780 | D76: 10371.66667 | E76: 7408.333333
A77: 3023314 | B77: St Paul's CofE Primary School NW7 | C77: 17810 | D77: 10389.16667 | E77: 7420.833333
A78: 3023315 | B78: St Andrew's CofE Voluntary Aided Primary School, Totteridge | C78: 17760 | D78: 10360 | E78: 7400
A79: 3023316 | B79: Trent CofE Primary School | C79: 17780 | D79: 10371.66667 | E79: 7408.333333
A80: 3023317 | B80: All Saints' CofE Primary School N20 | C80: 18080 | D80: 10546.66667 | E80: 7533.333333
A81: 3023500 | B81: The Annunciation Catholic Infant School | C81: 17120 | D81: 9986.666667 | E81: 7133.333333
A82: 3023501 | B82: Our Lady of Lourdes RC School | C82: 17810 | D82: 10389.16667 | E82: 7420.833333
A83: 3023502 | B83: St Agnes RC School | C83: 18650 | D83: 10879.16667 | E83: 7770.833333
A84: 3023504 | B84: St Catherine's RC School | C84: 19870 | D84: 11590.83333 | E84: 8279.166667
A85: 3023506 | B85: St Vincent's Catholic Primary School | C85: 18850 | D85: 10995.83333 | E85: 7854.166667
A86: 3023507 | B86: St Theresa's Catholic Primary School | C86: 18080 | D86: 10546.66667 | E86: 7533.333333
A87: 3023509 | B87: St Joseph's Catholic Primary School | C87: 20040 | D87: 11690 | E87: 8350
A88: 3023510 | B88: Sacred Heart Roman Catholic Primary School | C88: 19600 | D88: 11433.33333 | E88: 8166.666667
A89: 3023511 | B89: Blessed Dominic Catholic Primary School | C89: 19230 | D89: 11217.5 | E89: 8012.5
A90: 3023512 | B90: Rosh Pinah Primary School | C90: 19420 | D90: 11328.33333 | E90: 8091.666667
A91: 3023513 | B91: Menorah Primary School | C91: 19330 | D91: 11275.83333 | E91: 8054.166667
A92: 3023514 | B92: The Annunciation RC Junior School | C92: 18240 | D92: 10640 | E92: 7600
A93: 3025200 | B93: Dollis Junior School | C93: 19360 | D93: 11293.33333 | E93: 8066.666667
A94: 3025201 | B94: Osidge Primary School | C94: 19630 | D94: 11450.83333 | E94: 8179.166667
A95: 3025948 | B95: Mathilda Marks-Kennedy Jewish Primary School | C95: 17730 | D95: =C95*7/12 -> 10342.5 | E95: =C95-D95 -> 7387.5
A96: 3027005 | B96: Northway School | C96: 16920 | D96: 9870 | E96: 7050
A97: 3027009 | B97: Oakleigh School & Acorn Assessment Centre | C97: 16730 | D97: 9759.166667 | E97: 6970.833333
A98: 3023521 | B98: St Mary's and St John's CofE School | C98: 20710 | D98: 12080.83333 | E98: 8629.166667
A99: 3023516 | B99: Hasmonean Primary School | C99: 17790 | D99: 10377.5 | E99: 7412.5
A100: 3025949 | B100: Menorah Foundation School | C100: 18680 | D100: 10896.66667 | E100: 7783.333333
A101: 3022076 | B101: Wessex Gardens Primary School | C101: 19440 | D101: 11340 | E101: 8100
A102: 3022077 | B102: The Orion Primary School | C102: 22610 | D102: 13189.16667 | E102: 9420.833333
A103: 3022078 | B103: Pardes House Primary School | C103: 18460 | D103: 10768.33333 | E103: 7691.666667
A104: 3022079 | B104: Beis Yaakov Primary School | C104: 19950 | D104: 11637.5 | E104: 8312.5
A105: 3023518 | B105: Woodcroft Primary School | C105: 19870 | D105: 11590.83333 | E105: 8279.166667
A106: 3023520 | B106: Akiva School | C106: 19600 | D106: 11433.33333 | E106: 8166.666667
A107: 3023523 | B107: Martin Primary School | C107: 21030 | D107: 12267.5 | E107: 8762.5
A108: 3023524 | B108: Beit Shvidler Primary School | C108: 17730 | D108: 10342.5 | E108: 7387.5
A109: 3022041 | B109: Sacks Morasha Jewish Primary School | C109: 17780 | D109: 10371.66667 | E109: 7408.333333

Sheet 1718OriginalFunding (hidden)
A1: RUN | B1: Original | C1: Taken from December 2017 report | F1: RUN | G1: Original
A2: Phase | B2: (All)
A4: Sum of Funding | F4: Sum of Funding
A5: DfE Number | B5: Total | C5: Run+Dfe+Type2 | D5: Amount | F5: DfE Number | G5: Total
A6: 3021000 | B6: 4803.25 | C6: Original3021000DFC | D6: 4803.25 | F6: 3021000 | G6: 327236.84
A7: 3021000 | B7: 288586.59 | C7: Original3021000HOURS | D7: 288586.59 | F7: 3021001 | G7: 283453.1
A8: 3021000 | B8: 14248.49 | C8: Original3021000IDACI | D8: 14248.49 | F8: 3021002 | G8: 467762.67
A9: 3021000 | B9: 16745.84 | C9: Original3021000MNS Supp | D9: 16745.84 | F9: 3021003 | G9: 435462.18
A10: 3021000 | B10: 2852.67 | C10: Original3021000NURSERYTOPUP | D10: 2852.67 | F10: 3021100 | G10: 2211708.25
A11: 3021001 | B11: 4580.5 | C11: Original3021001DFC | D11: 4580.5 | F11: 3021102 | G11: 414923.5
A12: 3021001 | B12: 247191.73 | C12: Original3021001HOURS | D12: 247191.73 | F12: 3022001 | G12: 898554.72
A13: 3021001 | B13: 10048.02 | C13: Original3021001IDACI | D13: 10048.02 | F13: 3022002 | G13: 2929167.1
A14: 3021001 | B14: 14343.81 | C14: Original3021001MNS Supp | D14: 14343.81 | F14: 3022003 | G14: 2361194.9
A15: 3021001 | B15: 7289.04 | C15: Original3021001NURSERYEX | D15: 7289.04 | F15: 3022004 | G15: 752747.34
A16: 3021001 | B16: - | C16: Original3021001NURSERYTOPUP | D16: 0 | F16: 3022007 | G16: 1642145.16
A17: 3021002 | B17: 5053 | C17: Original3021002DFC | D17: 5053 | F17: 3022008 | G17: 1550083.17
A18: 3021002 | B18: 412368.8 | C18: Original3021002HOURS | D18: 412368.8 | F18: 3022009 | G18: 2181642.1
A19: 3021002 | B19: 14652.14 | C19: Original3021002IDACI | D19: 14652.14 | F19: 3022010 | G19: 2384502.3
A20: 3021002 | B20: 23928.56 | C20: Original3021002MNS Supp | D20: 23928.56 | F20: 3022011 | G20: 1126185.6
A21: 3021002 | B21: 6768 | C21: Original3021002NURSERYEX | D21: 6768 | F21: 3022014 | G21: 3908390.84
A22: 3021002 | B22: 4992.17 | C22: Original3021002NURSERYTOPUP | D22: 4992.17 | F22: 3022015 | G22: 1722651.99
A23: 3021003 | B23: 5100.25 | C23: Original3021003DFC | D23: 5100.25 | F23: 3022016 | G23: 1070508.36
A24: 3021003 | B24: 377612.67 | C24: Original3021003HOURS | D24: 377612.67 | F24: 3022017 | G24: 2022337.03
A25: 3021003 | B25: 21832.67 | C25: Original3021003IDACI | D25: 21832.67 | F25: 3022018 | G25: 2101965.51
A26: 3021003 | B26: 21911.76 | C26: Original3021003MNS Supp | D26: 21911.76 | F26: 3022019 | G26: 1676280.33
A27: 3021003 | B27: 5439 | C27: Original3021003NURSERYEX | D27: 5439 | F27: 3022020 | G27: 639586.81
A28: 3021003 | B28: 3565.83 | C28: Original3021003NURSERYTOPUP | D28: 3565.83 | F28: 3022021 | G28: 1644922.94
A29: 3021100 | B29: 6463.75 | C29: Original3021100DFC | D29: 6463.75 | F29: 3022022 | G29: 0
A30: 3021100 | B30: 234840 | C30: Original3021100HOSPITAL | D30: 234840 | F30: 3022023 | G30: 3354568.7
A31: 3021100 | B31: - | C31: Original3021100othertopup | D31: 0 | F31: 3022024 | G31: 1518827.01
A32: 3021100 | B32: 416.67 | C32: Original3021100PEGRANT | D32: 416.67 | F32: 3022025 | G32: 1421304.29
A33: 3021100 | B33: 660 | C33: Original3021100PPFSMPRI | D33: 660 | F33: 3022026 | G33: 3029098.89
A34: 3021100 | B34: 46282.5 | C34: Original3021100PPFSMSEC | D34: 46282.5 | F34: 3022027 | G34: 1727176.94
A35: 3021100 | B35: 1900 | C35: Original3021100pppost-lac | D35: 1900 | F35: 3022028 | G35: 1332919.75
A36: 3021100 | B36: 1165833.33 | C36: Original3021100PRURY11BASE | D36: 1165833.33 | F36: 3022029 | G36: 2634239.29
A37: 3021100 | B37: 751442 | C37: Original3021100PRUTOPUP | D37: 751442 | F37: 3022030 | G37: 539703.6
A38: 3021100 | B38: 3360 | C38: Original3021100STMTTOPUPSEC | D38: 3360 | F38: 3022031 | G38: 1304234.94
A39: 3021100 | B39: 510 | C39: Original3021100UIFSM | D39: 510 | F39: 3022032 | G39: 2511641.33
A40: 3021102 | B40: 4472.5 | C40: Original3021102DFC | D40: 4472.5 | F40: 3022036 | G40: 2264423.5
A41: 3021102 | B41: 306306 | C41: Original3021102HOSPITAL | D41: 306306 | F41: 3022037 | G41: 1739566.41
A42: 3021102 | B42: 1200 | C42: Original3021102NCTL | D42: 1200 | F42: 3022038 | G42: 2239307.24
A43: 3021102 | B43: - | C43: Original3021102PEGRANT | D43: 0 | F43: 3022041 | G43: 874586.83
A44: 3021102 | B44: 935 | C44: Original3021102PPFSMSEC | D44: 935 | F44: 3022042 | G44: 1589425.83
A45: 3021102 | B45: 100000 | C45: Original3021102PRURY11BASE | D45: 100000 | F45: 3022043 | G45: 2010609.33
A46: 3021102 | B46: 2010 | C46: Original3021102PRUTOPUP | D46: 2010 | F46: 3022044 | G46: 1875367.59
A47: 3021102 | B47: - | C47: Original3021102UIFSM | D47: 0 | F47: 3022045 | G47: 1468155.77
A48: 3022001 | B48: 5424.25 | C48: Original3022001DFC | D48: 5424.25 | F48: 3022047 | G48: 2549863.47
A49: 3022001 | B49: 72411.76 | C49: Original3022001HOURS | D49: 72411.76 | F49: 3022048 | G49: 1084241.47
A50: 3022001 | B50: 1895.61 | C50: Original3022001IDACI | D50: 1895.61 | F50: 3022049 | G50: 843390.81
A51: 3022001 | B51: 122000 | C51: Original3022001LUMP SUM | D51: 122000 | F51: 3022050 | G51: 437946.25
A52: 3022001 | B52: - | C52: Original3022001MFG | D52: 0 | F52: 3022052 | G52: 3007851.42
A53: 3022001 | B53: 13959 | C53: Original3022001NNDR | D53: 13959 | F53: 3022054 | G53: 1101731.26
A54: 3022001 | B54: 3564.58 | C54: Original3022001PEGRANT | D54: 3564.58 | F54: 3022055 | G54: 1473491.62
A55: 3022001 | B55: 5280 | C55: Original3022001PPFSMPRI | D55: 5280 | F55: 3022056 | G55: 0
A56: 3022001 | B56: 609720.83 | C56: Original3022001Pri AWPU | D56: 609720.83 | F56: 3022057 | G56: 3243131.36
A57: 3022001 | B57: 699.04 | C57: Original3022001Pri EAL 2 | D57: 699.04 | F57: 3022060 | G57: 2610100.19
A58: 3022001 | B58: 7510.39 | C58: Original3022001Pri FSM6 | D58: 7510.39 | F58: 3022067 | G58: 1369861.93
A59: 3022001 | B59: - | C59: Original3022001Pri IDACI A | D59: 0 | F59: 3022070 | G59: 1410967.76
A60: 3022001 | B60: - | C60: Original3022001Pri IDACI B | D60: 0 | F60: 3022071 | G60: 1649826.93
A61: 3022001 | B61: - | C61: Original3022001Pri IDACI C | D61: 0 | F61: 3022072 | G61: 1966161.67
A62: 3022001 | B62: - | C62: Original3022001Pri MOB | D62: 0 | F62: 3022073 | G62: 3252520.69
A63: 3022001 | B63: 20253.83 | C63: Original3022001STMTTOPUPPRI | D63: 20253.83 | F63: 3022076 | G63: 2423256.84
A64: 3022001 | B64: 35835.43 | C64: Original3022001UIFSM | D64: 35835.43 | F64: 3022077 | G64: 5830282.27
A65: 3022002 | B65: - | C65: Original3022002blank | D65: 0 | F65: 3022078 | G65: 1320283.66
A66: 3022002 | B66: 9802.75 | C66: Original3022002DFC | D66: 9802.75 | F66: 3022079 | G66: 2025542.32
A67: 3022002 | B67: 156914.67 | C67: Original3022002HOURS | D67: 156914.67 | F67: 3022999 | G67: 0
A68: 3022002 | B68: 12592.88 | C68: Original3022002IDACI | D68: 12592.88 | F68: 3023300 | G68: 1182662.38
A69: 3022002 | B69: 122000 | C69: Original3022002LUMP SUM | D69: 122000 | F69: 3023302 | G69: 1025196.02
A70: 3022002 | B70: - | C70: Original3022002MFG | D70: 0 | F70: 3023304 | G70: 1305431.23
A71: 3022002 | B71: -1368.05 | C71: Original3022002NDPDEBS | D71: -1368.05 | F71: 3023305 | G71: 671710.78
A72: 3022002 | B72: -754.47 | C72: Original3022002NDPDESupply | D72: -754.47 | F72: 3023307 | G72: 1093994.79
A73: 3022002 | B73: -2758.85 | C73: Original3022002NDPDEUPEG | D73: -2758.85 | F73: 3023309 | G73: 1063609.59
A74: 3022002 | B74: 27216 | C74: Original3022002NNDR | D74: 27216 | F74: 3023311 | G74: 1979380.69
A75: 3022002 | B75: 4214.58 | C75: Original3022002PEGRANT | D75: 4214.58 | F75: 3023312 | G75: 1028935.86
A76: 3022002 | B76: 403920 | C76: Original3022002PPFSMPRI | D76: 403920 | F76: 3023313 | G76: 1123000.82
A77: 3022002 | B77: 1900 | C77: Original3022002pppost-lac | D77: 1900 | F77: 3023314 | G77: 1001734.63
A78: 3022002 | B78: 1511553.38 | C78: Original3022002Pri AWPU | D78: 1511553.38 | F78: 3023315 | G78: 972683.05
A79: 3022002 | B79: 66743.95 | C79: Original3022002Pri EAL 2 | D79: 66743.95 | F79: 3023316 | G79: 920894.45
A80: 3022002 | B80: 411245.26 | C80: Original3022002Pri FSM6 | D80: 411245.26 | F80: 3023317 | G80: 1301375.46
A81: 3022002 | B81: - | C81: Original3022002Pri IDACI A | D81: 0 | F81: 3023500 | G81: 1043842.76
A82: 3022002 | B82: 34449.36 | C82: Original3022002Pri IDACI B | D82: 34449.36 | F82: 3023501 | G82: 1185896.22
A83: 3022002 | B83: 45006.11 | C83: Original3022002Pri IDACI C | D83: 45006.11 | F83: 3023502 | G83: 1698686.4
A84: 3022002 | B84: - | C84: Original3022002Pri MOB | D84: 0 | F84: 3023504 | G84: 2224494.63
A85: 3022002 | B85: 92402.67 | C85: Original3022002STMTTOPUPPRI | D85: 92402.67 | F85: 3023506 | G85: 1519950.6
A86: 3022002 | B86: 34086.86 | C86: Original3022002UIFSM | D86: 34086.86 | F86: 3023507 | G86: 1074629.08
A87: 3022003 | B87: 8826.48 | C87: Original3022003DFC | D87: 8826.48 | F87: 3023508 | G87: 0
A88: 3022003 | B88: 133541.1 | C88: Original3022003HOURS | D88: 133541.1 | F88: 3023509 | G88: 2379708.66
A89: 3022003 | B89: 6561.69 | C89: Original3022003IDACI | D89: 6561.69 | F89: 3023510 | G89: 1777973.85
A90: 3022003 | B90: 122000 | C90: Original3022003LUMP SUM | D90: 122000 | F90: 3023511 | G90: 2297315.71
A91: 3022003 | B91: -2040.74 | C91: Original3022003MFG | D91: -2040.74 | F91: 3023512 | G91: 1843449.82
A92: 3022003 | B92: -1173.9 | C92: Original3022003NDPDEBS | D92: -1173.9 | F92: 3023513 | G92: 1857903.26
A93: 3022003 | B93: -647.4 | C93: Original3022003NDPDESupply | D93: -647.4 | F93: 3023514 | G93: 1073248.57
A94: 3022003 | B94: -1894.28 | C94: Original3022003NDPDEUPEG | D94: -1894.28 | F94: 3023515 | G94: 987489.39
A95: 3022003 | B95: 22016.25 | C95: Original3022003NNDR | D95: 22016.25 | F95: 3023516 | G95: 1064687.69
A96: 3022003 | B96: 7545.52 | C96: Original3022003NURSERYEX | D96: 7545.52 | F96: 3023518 | G96: 2662031.18
A97: 3022003 | B97: - | C97: Original3022003NURSERYTOPUP | D97: 0 | F97: 3023519 | G97: 4123793.99
A98: 3022003 | B98: 4058.33 | C98: Original3022003PEGRANT | D98: 4058.33 | F98: 3023520 | G98: 1701465.68
A99: 3022003 | B99: 273240 | C99: Original3022003PPFSMPRI | D99: 273240 | F99: 3023521 | G99: 5435041.44
A100: 3022003 | B100: 1297042.5 | C100: Original3022003Pri AWPU | D100: 1297042.5 | F100: 3023522 | G100: 2435859.03
A101: 3022003 | B101: 77743.88 | C101: Original3022003Pri EAL 2 | D101: 77743.88 | F101: 3023523 | G101: 3270008.7
A102: 3022003 | B102: 282368.55 | C102: Original3022003Pri FSM6 | D102: 282368.55 | F102: 3023524 | G102: 1087431.35
A103: 3022003 | B103: - | C103: Original3022003Pri IDACI A | D103: 0 | F103: 3024000 | G103: 3269002.86
A104: 3022003 | B104: 10581.4 | C104: Original3022003Pri IDACI B | D104: 10581.4 | F104: 3024001 | G104: 4185110.77
A105: 3022003 | B105: 20396.9 | C105: Original3022003Pri IDACI C | D105: 20396.9 | F105: 3024003 | G105: 5252042.54
A106: 3022003 | B106: 12687 | C106: Original3022003Pri MOB | D106: 12687 | F106: 3024004 | G106: 1315372.04
A107: 3022003 | B107: 52943.33 | C107: Original3022003STMTTOPUPPRI | D107: 52943.33 | F107: 3024010 | G107: 3460748.3
A108: 3022003 | B108: 35398.29 | C108: Original3022003UIFSM | D108: 35398.29 | F108: 3024012 | G108: 5119072.66
A109: 3022004 | B109: 4877.5 | C109: Original3022004DFC | D109: 4877.5 | F109: 3024208 | G109: 5243395.95
A110: 3022004 | B110: - | C110: Original3022004HOURS | D110: 0 | F110: 3024210 | G110: 5553317.33
A111: 3022004 | B111: - | C111: Original3022004IDACI | D111: 0 | F111: 3024211 | G111: 3911335.8
A112: 3022004 | B112: 122000 | C112: Original3022004LUMP SUM | D112: 122000 | F112: 3024212 | G112: 6531349.26
A113: 3022004 | B113: 12104.19 | C113: Original3022004MFG | D113: 12104.19 | F113: 3024215 | G113: 6683119.24
A114: 3022004 | B114: 6759.2 | C114: Original3022004NNDR | D114: 6759.2 | F114: 3024752 | G114: 2630969.37
A115: 3022004 | B115: 3495.83 | C115: Original3022004PEGRANT | D115: 3495.83 | F115: 3025200 | G115: 1934915.78
A116: 3022004 | B116: 10560 | C116: Original3022004PPFSMPRI | D116: 10560 | F116: 3025201 | G116: 1902240.47
A117: 3022004 | B117: 503851.13 | C117: Original3022004Pri AWPU | D117: 503851.13 | F117: 3025400 | G117: 7662728.09
A118: 3022004 | B118: 16213.41 | C118: Original3022004Pri EAL 2 | D118: 16213.41 | F118: 3025401 | G118: 4708788.38
A119: 3022004 | B119: 16431.95 | C119: Original3022004Pri FSM6 | D119: 16431.95 | F119: 3025402 | G119: 7204596.15
A120: 3022004 | B120: - | C120: Original3022004Pri IDACI A | D120: 0 | F120: 3025404 | G120: 4055139.68
A121: 3022004 | B121: 2374.25 | C121: Original3022004Pri IDACI B | D121: 2374.25 | F121: 3025405 | G121: 6309392.05
A122: 3022004 | B122: 994.93 | C122: Original3022004Pri IDACI C | D122: 994.93 | F122: 3025406 | G122: 6545200
A123: 3022004 | B123: 286.88 | C123: Original3022004Pri MOB | D123: 286.88 | F123: 3025407 | G123: 6483692.94
A124: 3022004 | B124: 21769.5 | C124: Original3022004STMTTOPUPPRI | D124: 21769.5 | F124: 3025408 | G124: 3664043.75
A125: 3022004 | B125: 31028.57 | C125: Original3022004UIFSM | D125: 31028.57 | F125: 3025409 | G125: 4797073.05
A126: 3022007 | B126: 8050 | C126: Original3022007DFC | D126: 8050 | F126: 3025427 | G126: 7763032.93
A127: 3022007 | B127: - | C127: Original3022007HOURS | D127: 0 | F127: 3025948 | G127: 1036904.54
A128: 3022007 | B128: - | C128: Original3022007IDACI | D128: 0 | F128: 3025949 | G128: 1597444.51
A129: 3022007 | B129: 122000 | C129: Original3022007LUMP SUM | D129: 122000 | F129: 3025950 | G129: 841666.67
A130: 3022007 | B130: -27637.62 | C130: Original3022007MFG | D130: -27637.62 | F130: 3026085 | G130: 0
A131: 3022007 | B131: -1071.56 | C131: Original3022007NDPDEBS | D131: -1071.56 | F131: 3026112 | G131: 0
A132: 3022007 | B132: -590.96 | C132: Original3022007NDPDESupply | D132: -590.96 | F132: 3026905 | G132: 7750433.62
A133: 3022007 | B133: -767.09 | C133: Original3022007NDPDEUPEG | D133: -767.09 | F133: 3026906 | G133: 5875078.31
A134: 3022007 | B134: 16027 | C134: Original3022007NNDR | D134: 16027 | F134: 3027000 | G134: 3677334
A135: 3022007 | B135: 4081.25 | C135: Original3022007PEGRANT | D135: 4081.25 | F135: 3027005 | G135: 2268270.62
A136: 3022007 | B136: 106920 | C136: Original3022007PPFSMPRI | D136: 106920 | F136: 3027009 | G136: 3054088.88
A137: 3022007 | B137: 7600 | C137: Original3022007pppost-lac | D137: 7600 | F137: 3027010 | G137: 2437650
A138: 3022007 | B138: 1183967 | C138: Original3022007Pri AWPU | D138: 1183967 | F138: Grand Total | G138: 307929090.2
A139: 3022007 | B139: 10070 | C139: Original3022007Pri EAL 2 | D139: 10070
A140: 3022007 | B140: 114344.78 | C140: Original3022007Pri FSM6 | D140: 114344.78 | F140: Grand Total | G140: 311082398.7
A141: 3022007 | B141: - | C141: Original3022007Pri IDACI A | D141: 0
A142: 3022007 | B142: 6335.59 | C142: Original3022007Pri IDACI B | D142: 6335.59
A143: 3022007 | B143: 7079.77 | C143: Original3022007Pri IDACI C | D143: 7079.77
A144: 3022007 | B144: - | C144: Original3022007Pri MOB | D144: 0
A145: 3022007 | B145: 85737 | C145: Original3022007STMTTOPUPPRI | D145: 85737
A146: 3022007 | B146: - | C146: Original3022007UIFSM | D146: 0
A147: 3022008 | B147: 7388.5 | C147: Original3022008DFC | D147: 7388.5
A148: 3022008 | B148: 133195.45 | C148: Original3022008HOURS | D148: 133195.45
A149: 3022008 | B149: 4233.45 | C149: Original3022008IDACI | D149: 4233.45
A150: 3022008 | B150: 122000 | C150: Original3022008LUMP SUM | D150: 122000
A151: 3022008 | B151: -7615.42 | C151: Original3022008MFG | D151: -7615.42
A152: 3022008 | B152: -812.7 | C152: Original3022008NDPDEBS | D152: -812.7
A153: 3022008 | B153: -448.2 | C153: Original3022008NDPDESupply | D153: -448.2
A154: 3022008 | B154: -362.9 | C154: Original3022008NDPDEUPEG | D154: -362.9
A155: 3022008 | B155: 16027 | C155: Original3022008NNDR | D155: 16027
A156: 3022008 | B156: 1638.28 | C156: Original3022008NURSERYEX | D156: 1638.28
A157: 3022008 | B157: 3708.33 | C157: Original3022008PEGRANT | D157: 3708.33
A158: 3022008 | B158: 50160 | C158: Original3022008PPFSMPRI | D158: 50160
A159: 3022008 | B159: 897952.5 | C159: Original3022008Pri AWPU | D159: 897952.5
A160: 3022008 | B160: 74730 | C160: Original3022008Pri EAL 2 | D160: 74730
A161: 3022008 | B161: 54095.28 | C161: Original3022008Pri FSM6 | D161: 54095.28
A162: 3022008 | B162: - | C162: Original3022008Pri IDACI A | D162: 0
A163: 3022008 | B163: - | C163: Original3022008Pri IDACI B | D163: 0
A164: 3022008 | B164: 1779.78 | C164: Original3022008Pri IDACI C | D164: 1779.78
A165: 3022008 | B165: - | C165: Original3022008Pri MOB | D165: 0
A166: 3022008 | B166: 92121.25 | C166: Original3022008STMTTOPUPPRI | D166: 92121.25
A167: 3022008 | B167: 100292.57 | C167: Original3022008UIFSM | D167: 100292.57
A168: 3022009 | B168: 7901.5 | C168: Original3022009DFC | D168: 7901.5
A169: 3022009 | B169: 48000 | C169: Original3022009EXPANDPRI | D169: 48000
A170: 3022009 | B170: 109376.52 | C170: Original3022009HOURS | D170: 109376.52
A171: 3022009 | B171: 6864.86 | C171: Original3022009IDACI | D171: 6864.86
A172: 3022009 | B172: 122000 | C172: Original3022009LUMP SUM | D172: 122000
A173: 3022009 | B173: - | C173: Original3022009MFG | D173: 0
A174: 3022009 | B174: 3927.28 | C174: Original3022009NCTL | D174: 3927.28
A175: 3022009 | B175: -1176.91 | C175: Original3022009NDPDEBS | D175: -1176.91
A176: 3022009 | B176: -649.06 | C176: Original3022009NDPDESupply | D176: -649.06
A177: 3022009 | B177: -1029.72 | C177: Original3022009NDPDEUPEG | D177: -1029.72
A178: 3022009 | B178: 36448.5 | C178: Original3022009NNDR | D178: 36448.5
A179: 3022009 | B179: 3954.17 | C179: Original3022009PEGRANT | D179: 3954.17
A180: 3022009 | B180: 130680 | C180: Original3022009PPFSMPRI | D180: 130680
A181: 3022009 | B181: 1300368.25 | C181: Original3022009Pri AWPU | D181: 1300368.25
A182: 3022009 | B182: 30677.55 | C182: Original3022009Pri EAL 2 | D182: 30677.55
A183: 3022009 | B183: 153494.66 | C183: Original3022009Pri FSM6 | D183: 153494.66
A184: 3022009 | B184: - | C184: Original3022009Pri IDACI A | D184: 0
A185: 3022009 | B185: 139312.6 | C185: Original3022009Pri IDACI B | D185: 139312.6
A186: 3022009 | B186: 2653.57 | C186: Original3022009Pri IDACI C | D186: 2653.57
A187: 3022009 | B187: - | C187: Original3022009Pri MOB | D187: 0
A188: 3022009 | B188: 29186.33 | C188: Original3022009STMTTOPUPPRI | D188: 29186.33
A189: 3022009 | B189: 59652 | C189: Original3022009UIFSM | D189: 59652
A190: 3022010 | B190: 130000 | C190: Original3022010ARPRY11BASE | D190: 130000
A191: 3022010 | B191: 245607.92 | C191: Original3022010ARPTOPUP | D191: 245607.92
A192: 3022010 | B192: 7892.5 | C192: Original3022010DFC | D192: 7892.5
A193: 3022010 | B193: 38000 | C193: Original3022010expandprihalf | D193: 38000
A194: 3022010 | B194: 168615.86 | C194: Original3022010HOURS | D194: 168615.86
A195: 3022010 | B195: 13134.13 | C195: Original3022010IDACI | D195: 13134.13
A196: 3022010 | B196: 122000 | C196: Original3022010LUMP SUM | D196: 122000
A197: 3022010 | B197: 48491.74 | C197: Original3022010MFG | D197: 48491.74
A198: 3022010 | B198: -906.01 | C198: Original3022010NDPDEBS | D198: -906.01
A199: 3022010 | B199: -499.66 | C199: Original3022010NDPDESupply | D199: -499.66
A200: 3022010 | B200: -1377.96 | C200: Original3022010NDPDEUPEG | D200: -1377.96
A201: 3022010 | B201: 19802.95 | C201: Original3022010NNDR | D201: 19802.95
... 2244 more rows

Sheet Home - BEYA (hidden)
A1: =CELL("filename",C1) -> T:\School Funding\Cycle 10 - 2018-19\May Adjustments\[2018-19 MayReport v3.0 @ 30.05.18 WIP.xlsm]Home - BEYA
A2: 1 | B2: 2 | C2: 3 | D2: 4 | E2: 5 | F2: 6 | H2: 7 | I2: 8 | J2: 9 | K2: 10 | L2: 11 | M2: 12 | N2: 13 | O2: 14 | P2: 15 | Q2: 16 | S2: 17 | T2: 18 | U2: 19 | V2: 20 | W2: 21 | X2: 22 | Y2: 23 | Z2: 24 | AA2: 25 | AB2: 26 | AC2: 27 | AD2: 28 | AE2: 29 | AF2: 31 | AG2: 32 | AI2: 34 | AJ2: 35 | AK2: 36 | AL2: 37 | AM2: 38 | AN2: 39 | AO2: 40 | AP2: 41 | AQ2: 42 | AR2: 43 | AS2: 44 | AT2: 45 | AU2: 46 | AV2: 47 | AW2: 48 | AX2: 49 | AY2: 50 | AZ2: 51 | BA2: 52 | BB2: 53 | BC2: 54 | BD2: 55 | BE2: 56 | BF2: 57
A3: OLDLAESTAB: | B3: =VLOOKUP(DFENO,$A$165:$H$300,8,0) ->  | I3: ERROR CHECK | J3: TOTAL | K3: 17/18 Original | L3: 16/17 Final | M3: spare | N3: spare | O3: spare | P3: spare | Q3: Original | R3: Apr | S3: May | T3: Jun | U3: Jul | V3: Aug | W3: Sep | X3: Oct | Y3: Nov | Z3: Dec | AA3: Jan | AB3: Feb | AC3: Mar | AD3: Total
A4: Total Errors: | B4: =$J$7 -> 0 | I4: CurrentSheetTotal | J4: blank | K4: =K33 -> 1046152.12 | L4: =L33 -> 0 | Q4: =Q33 -> 1123304.28 | R4: =R33 -> 0 | S4: =S33 -> 28989.46 | T4: 0 | U4: 0 | V4: 0 | W4: 0 | X4: 0 | Y4: 0 | Z4: 0 | AA4: 0 | AB4: 0 | AC4: 0 | AD4: 1152293.74
I5: TRANS | J5: blank | K5: =SUM('Home - Brookhill Nursery'!K5+'Home - Hampden Way Nursery'!K5+'Home-St Margarets Nursery'!K5) -> 1046152.12 | L5: =SUMIF('EOY1718'!A:A,DFENO,'EOY1718'!D:D) -> 0 | Q5: =SUM('Home - Brookhill Nursery'!Q5+'Home - Hampden Way Nursery'!Q5+'Home-St Margarets Nursery'!Q5) -> 1123304.28 | R5: =SUM('Home - Brookhill Nursery'!R5+'Home - Hampden Way Nursery'!R5+'Home-St Margarets Nursery'!R5) -> 0 | S5: =SUM('Home - Brookhill Nursery'!S5+'Home - Hampden Way Nursery'!S5+'Home-St Margarets Nursery'!S5) -> 28989.46 | T5: =SUM('Home - Brookhill Nursery'!T5+'Home - Hampden Way Nursery'!T5+'Home-St Margarets Nursery'!T5) -> 0 | U5: =SUM('Home - Brookhill Nursery'!U5+'Home - Hampden Way Nursery'!U5+'Home-St Margarets Nursery'!U5) -> 0 | V5: =SUM('Home - Brookhill Nursery'!V5+'Home - Hampden Way Nursery'!V5+'Home-St Margarets Nursery'!V5) -> 0 | W5: =SUM('Home - Brookhill Nursery'!W5+'Home - Hampden Way Nursery'!W5+'Home-St Margarets Nursery'!W5) -> 0 | X5: =SUM('Home - Brookhill Nursery'!X5+'Home - Hampden Way Nursery'!X5+'Home-St Margarets Nursery'!X5) -> 0 | Y5: =SUM('Home - Brookhill Nursery'!Y5+'Home - Hampden Way Nursery'!Y5+'Home-St Margarets Nursery'!Y5) -> 0 | Z5: =SUM('Home - Brookhill Nursery'!Z5+'Home - Hampden Way Nursery'!Z5+'Home-St Margarets Nursery'!Z5) -> 0 | AA5: =SUM('Home - Brookhill Nursery'!AA5+'Home - Hampden Way Nursery'!AA5+'Home-St Margarets Nursery'!AA5) -> 0 | AB5: =SUM('Home - Brookhill Nursery'!AB5+'Home - Hampden Way Nursery'!AB5+'Home-St Margarets Nursery'!AB5) -> 0 | AC5: =SUM('Home - Brookhill Nursery'!AC5+'Home - Hampden Way Nursery'!AC5+'Home-St Margarets Nursery'!AC5) -> 0 | AD5: =SUM(Q5:AC5) -> 1152293.74
I6: Subsheet | J6: blank | K6: =K4 -> 1046152.12 | L6: =L4 -> 0 | Q6: =Q4 -> 1123304.28 | R6: =R4 -> 0 | S6: =S4 -> 28989.46 | T6: 0 | U6: 0 | V6: 0 | W6: 0 | X6: 0 | Y6: 0 | Z6: 0 | AA6: 0 | AB6: 0 | AC6: 0 | AD6: 1152293.74
I7: =IF(J7>0,"Errors","No Errors") -> No Errors | J7: =SUM(K7:AD7) -> 0 | K7: =IF(ROUND(SUM(K4:K6)/3,0)=ROUND(K4,0),0,1) -> 0 | M7: 0 | N7: 0 | O7: 0 | P7: 0 | Q7: 0 | S7: 0 | T7: 0 | U7: 0 | V7: 0 | W7: 0 | X7: 0 | Y7: 0 | Z7: 0 | AA7: 0 | AB7: 0 | AC7: 0 | AD7: 0
I8: Difference | J8: =ROUND(SUM(K8:AD8),1) -> 0 | K8: =K5-K4 -> 0 | M8: =M5-M4 -> 0 | N8: 0 | O8: 0 | P8: 0 | Q8: 0 | S8: 0 | T8: 0 | U8: 0 | V8: 0 | W8: 0 | X8: 0 | Y8: 0 | Z8: 0 | AA8: 0 | AB8: 0 | AC8: 0 | AD8: 0
K12: =$J$7 -> 0 | M12: Barnet School Funding Allocation April 2018-March 2019 - April Adjustments
M14: 2018-04-26 | N14: Released | O14: Home | AC14: =HYPERLINK("#Choose!d10","Choose another school") -> Choose another school | AD14: =HYPERLINK("#News!f4","Check News") -> Check News
M15: =NOW() -> 2018-06-01T10:54:12.400 | N15: Printed
M16: Version 2.0
M17: For queries please contact | O17: =AD33 -> 1152293.74
M18: schoolfunding@barnet.gov.uk
AC19: =IF(AH19=0,"",AG19) ->  | AD19: =IF(AH28=0,"",AG28) -> 
B20: Sector | C20: Option | AC20: =IF(AH20=0,"",AG20) ->  | AD20: =IF(AH30=0,"",AG30) -> 
B21: Nursery | C21: B | K21: =IF(Choose!D6="Please choose a school","Please go to the Choose tab",Choose!D6) -> Please go to the Choose tab | S21: DfENo | T21: =VLOOKUP(K21,$B$165:$F$438,5,0) ->  | W21: Sector | X21: =VLOOKUP(DFENO,Schools!$B:$R,3,0) ->  | AC21: =AD33 -> 1152293.74
B22: CC | C22: B | S22: Vendor# | T22: =VLOOKUP(DFENO,Schools!$B:$R,11,0) ->  | W22: Phase | X22: =VLOOKUP(DFENO,Schools!$B:$Z,20,0) -> 
B23: Phase | C23: E | S23: Cost Centre | T23: =IF(VLOOKUP(DFENO,Schools!$B:$R,12,0)="Academy","None",VLOOKUP(DFENO,Schools!$B:$R,12,0)) ->  | W23: Type | X23: =VLOOKUP(DFENO,Schools!$B:$R,17,0) -> 
B24: Primary | C24: C | S24: Pay Option | T24: =IF(VLOOKUP(DFENO,Schools!$B:$R,16,0)="Academy","EFA",VLOOKUP(DFENO,Schools!$B:$R,16,0)) ->  | W24: 6th Form | X24: =VLOOKUP(DFENO,Schools!$B:$S,18,0) -> 
B25: Secondary | C25: D | S25: ARP | T25: =VLOOKUP(DFENO,Schools!$B:$Z,21,0) ->  | W25: Nursery | X25: =VLOOKUP(DFENO,Schools!$B:$T,19,0) -> 
B26: All through | C26: E
B27: ARP | C27: G
B28: Special | C28: F
B29: PRU | C29: H | K29: 2017/18 Funding | Q29: 2018/19 Funding
K30: 2017/18 | L30: =K30 -> 2017/18 | M30: CFR | Q30: Apr 18 - Mar 19 | R30: Adjustment | S30: Adjustment | T30: Adjustment | U30: Adjustment | V30: Adjustment | W30: Adjustment | X30: Adjustment | Y30: =X30 -> Adjustment | Z30: =Y30 -> Adjustment | AA30: =Z30 -> Adjustment | AB30: =AA30 -> Adjustment | AC30: Adjustment
A31: Area | B31: Nursery | C31: Primary | D31: Secondary | E31: Allthrough | F31: Special | G31: ARP | H31: PRU | I31: This School | K31: Original | L31: EOY | M31: Code | N31: Funding Element | Q31: Original | R31: Apr | S31: May | T31: Jun | U31: Jul | V31: Aug | W31: Sep | X31: Oct | Y31: Nov | Z31: Dec | AA31: Jan | AB31: Feb | AC31: Mar | AD31: TOTAL
K32: =IF(DFENO=3022999,"NB Includes primary school","") -> 
K33: =K68+K80+K93+K114+K127+K141+K161+K151 -> 1046152.12 | L33: =L68+L80+L93+L114+L127+L141+L161+L151 -> 0 | N33: ="Total funding for "&K21 -> Total funding for Please go to the Choose tab | P33: Status | Q33: =Q68+Q80+Q93+Q114+Q127+Q141+Q161+Q151 -> 1123304.28 | R33: 0 | S33: 28989.46 | T33: 0 | U33: 0 | V33: 0 | W33: 0 | X33: 0 | Y33: 0 | Z33: 0 | AA33: 0 | AB33: 0 | AC33: 0 | AD33: 1152293.74
L34: To be hidden
A35: Area | B35: Early Years | C35: Budget Shares | D35: Budget Shares | E35: Budget Shares | F35: High Needs | G35: High Needs | H35: High Needs | I35: =INDIRECT(VLOOKUP($X$21,$B$21:$C$29,2,0)&ROW()) ->  | N35: =I35 ->  | O35: =IF($N35="Not used","","For more detail please go to the "&VLOOKUP($N35,$J$168:$K$185,2,0)&" tab") -> 
A36: =VLOOKUP(I36,Rates!A:L,2,0) ->  | B36: HOURS | C36: Pri AWPU | D36: Sec AWPU | E36: Pri AWPU | F36: SPECIALNURBASE | G36: ARPRY11BASE | H36: PRURY11BASE | I36: =INDIRECT(VLOOKUP($X$21,$B$21:$C$29,2,0)&ROW()) ->  | K36: =SUM('Home - Brookhill Nursery'!K36+'Home - Hampden Way Nursery'!K36+'Home-St Margarets Nursery'!K36) -> 913390.99 | L36: =SUMIF('EOY1718'!E:E,DFENO&'Home - BEYA'!I36,'EOY1718'!D:D) -> 0 | M36: =VLOOKUP(I36,Rates!A:L,8,0) ->  | N36: =IF(ISERROR(VLOOKUP(I36,Rates!A:L,3,0)),"",VLOOKUP(I36,Rates!A:L,3,0)) ->  | P36: =VLOOKUP(I36,Rates!A:AO,41,0) ->  | Q36: =SUM('Home - Brookhill Nursery'!Q36+'Home - Hampden Way Nursery'!Q36+'Home-St Margarets Nursery'!Q36) -> 1041579.14 | R36: =SUM('Home - Brookhill Nursery'!R36+'Home - Hampden Way Nursery'!R36+'Home-St Margarets Nursery'!R36) -> 0 | S36: =SUM('Home - Brookhill Nursery'!S36+'Home - Hampden Way Nursery'!S36+'Home-St Margarets Nursery'!S36) -> 0 | T36: =SUM('Home - Brookhill Nursery'!T36+'Home - Hampden Way Nursery'!T36+'Home-St Margarets Nursery'!T36) -> 0 | U36: =SUM('Home - Brookhill Nursery'!U36+'Home - Hampden Way Nursery'!U36+'Home-St Margarets Nursery'!U36) -> 0 | V36: =SUM('Home - Brookhill Nursery'!V36+'Home - Hampden Way Nursery'!V36+'Home-St Margarets Nursery'!V36) -> 0 | W36: =SUM('Home - Brookhill Nursery'!W36+'Home - Hampden Way Nursery'!W36+'Home-St Margarets Nursery'!W36) -> 0 | X36: =SUM('Home - Brookhill Nursery'!X36+'Home - Hampden Way Nursery'!X36+'Home-St Margarets Nursery'!X36) -> 0 | Y36: =SUM('Home - Brookhill Nursery'!Y36+'Home - Hampden Way Nursery'!Y36+'Home-St Margarets Nursery'!Y36) -> 0 | Z36: =SUM('Home - Brookhill Nursery'!Z36+'Home - Hampden Way Nursery'!Z36+'Home-St Margarets Nursery'!Z36) -> 0 | AA36: =SUM('Home - Brookhill Nursery'!AA36+'Home - Hampden Way Nursery'!AA36+'Home-St Margarets Nursery'!AA36) -> 0 | AB36: =SUM('Home - Brookhill Nursery'!AB36+'Home - Hampden Way Nursery'!AB36+'Home-St Margarets Nursery'!AB36) -> 0 | AC36: =SUM('Home - Brookhill Nursery'!AC36+'Home - Hampden Way Nursery'!AC36+'Home-St Margarets Nursery'!AC36) -> 0 | AD36: =SUM(Q36:AC36) -> 1041579.14 | AG36: =IF(ISERROR(VLOOKUP(I36,Rates!$A:$AP,42,0)),"",VLOOKUP(I36,Rates!$A:$AP,42,0)) -> 
A37: =VLOOKUP(I37,Rates!A:L,2,0) ->  | B37: BASIC | C37: Pri FSM | D37: Sec AWPU KS3 | E37: Sec AWPU | F37: SPECIALRY11BASE | G37: ARPTOPUP | H37: HOSPITAL | K37: =SUM('Home - Brookhill Nursery'!K37+'Home - Hampden Way Nursery'!K37+'Home-St Margarets Nursery'!K37) -> 0 | L37: =SUMIF('EOY1718'!E:E,DFENO&'Home - BEYA'!I37,'EOY1718'!D:D) -> 0 | M37: =VLOOKUP(I37,Rates!A:L,8,0) ->  | N37: =IF(ISERROR(VLOOKUP(I37,Rates!A:L,3,0)),"",VLOOKUP(I37,Rates!A:L,3,0)) ->  | P37: =VLOOKUP(I37,Rates!A:AO,41,0) ->  | Q37: =SUM('Home - Brookhill Nursery'!Q37+'Home - Hampden Way Nursery'!Q37+'Home-St Margarets Nursery'!Q37) -> 0 | R37: =SUM('Home - Brookhill Nursery'!R37+'Home - Hampden Way Nursery'!R37+'Home-St Margarets Nursery'!R37) -> 0 | S37: =SUM('Home - Brookhill Nursery'!S37+'Home - Hampden Way Nursery'!S37+'Home-St Margarets Nursery'!S37) -> 0 | T37: =SUM('Home - Brookhill Nursery'!T37+'Home - Hampden Way Nursery'!T37+'Home-St Margarets Nursery'!T37) -> 0 | U37: =SUM('Home - Brookhill Nursery'!U37+'Home - Hampden Way Nursery'!U37+'Home-St Margarets Nursery'!U37) -> 0 | V37: =SUM('Home - Brookhill Nursery'!V37+'Home - Hampden Way Nursery'!V37+'Home-St Margarets Nursery'!V37) -> 0 | W37: =SUM('Home - Brookhill Nursery'!W37+'Home - Hampden Way Nursery'!W37+'Home-St Margarets Nursery'!W37) -> 0 | X37: =SUM('Home - Brookhill Nursery'!X37+'Home - Hampden Way Nursery'!X37+'Home-St Margarets Nursery'!X37) -> 0 | Y37: =SUM('Home - Brookhill Nursery'!Y37+'Home - Hampden Way Nursery'!Y37+'Home-St Margarets Nursery'!Y37) -> 0 | Z37: =SUM('Home - Brookhill Nursery'!Z37+'Home - Hampden Way Nursery'!Z37+'Home-St Margarets Nursery'!Z37) -> 0 | AA37: =SUM('Home - Brookhill Nursery'!AA37+'Home - Hampden Way Nursery'!AA37+'Home-St Margarets Nursery'!AA37) -> 0 | AB37: =SUM('Home - Brookhill Nursery'!AB37+'Home - Hampden Way Nursery'!AB37+'Home-St Margarets Nursery'!AB37) -> 0 | AC37: =SUM('Home - Brookhill Nursery'!AC37+'Home - Hampden Way Nursery'!AC37+'Home-St Margarets Nursery'!AC37) -> 0 | AD37: =SUM(Q37:AC37) -> 0 | AG37: =IF(ISERROR(VLOOKUP(I37,Rates!$A:$AP,42,0)),"",VLOOKUP(I37,Rates!$A:$AP,42,0)) -> 
A38: =VLOOKUP(I38,Rates!A:L,2,0) ->  | B38: FLEX | C38: Pri FSM6 | D38: Sec AWPU KS4 | E38: Sec AWPU KS3 | F38: SPECIALP16BASE | G38: ARPGuaranteed | H38: STMTPY | K38: =SUM('Home - Brookhill Nursery'!K38+'Home - Hampden Way Nursery'!K38+'Home-St Margarets Nursery'!K38) -> 0 | L38: =SUMIF('EOY1718'!E:E,DFENO&'Home - BEYA'!I38,'EOY1718'!D:D) -> 0 | M38: =VLOOKUP(I38,Rates!A:L,8,0) ->  | N38: =IF(ISERROR(VLOOKUP(I38,Rates!A:L,3,0)),"",VLOOKUP(I38,Rates!A:L,3,0)) ->  | P38: =VLOOKUP(I38,Rates!A:AO,41,0) ->  | Q38: =SUM('Home - Brookhill Nursery'!Q38+'Home - Hampden Way Nursery'!Q38+'Home-St Margarets Nursery'!Q38) -> 0 | R38: =SUM('Home - Brookhill Nursery'!R38+'Home - Hampden Way Nursery'!R38+'Home-St Margarets Nursery'!R38) -> 0 | S38: =SUM('Home - Brookhill Nursery'!S38+'Home - Hampden Way Nursery'!S38+'Home-St Margarets Nursery'!S38) -> 0 | T38: =SUM('Home - Brookhill Nursery'!T38+'Home - Hampden Way Nursery'!T38+'Home-St Margarets Nursery'!T38) -> 0 | U38: =SUM('Home - Brookhill Nursery'!U38+'Home - Hampden Way Nursery'!U38+'Home-St Margarets Nursery'!U38) -> 0 | V38: =SUM('Home - Brookhill Nursery'!V38+'Home - Hampden Way Nursery'!V38+'Home-St Margarets Nursery'!V38) -> 0 | W38: =SUM('Home - Brookhill Nursery'!W38+'Home - Hampden Way Nursery'!W38+'Home-St Margarets Nursery'!W38) -> 0 | X38: =SUM('Home - Brookhill Nursery'!X38+'Home - Hampden Way Nursery'!X38+'Home-St Margarets Nursery'!X38) -> 0 | Y38: =SUM('Home - Brookhill Nursery'!Y38+'Home - Hampden Way Nursery'!Y38+'Home-St Margarets Nursery'!Y38) -> 0 | Z38: =SUM('Home - Brookhill Nursery'!Z38+'Home - Hampden Way Nursery'!Z38+'Home-St Margarets Nursery'!Z38) -> 0 | AA38: =SUM('Home - Brookhill Nursery'!AA38+'Home - Hampden Way Nursery'!AA38+'Home-St Margarets Nursery'!AA38) -> 0 | AB38: =SUM('Home - Brookhill Nursery'!AB38+'Home - Hampden Way Nursery'!AB38+'Home-St Margarets Nursery'!AB38) -> 0 | AC38: =SUM('Home - Brookhill Nursery'!AC38+'Home - Hampden Way Nursery'!AC38+'Home-St Margarets Nursery'!AC38) -> 0 | AD38: 0 | AG38: =IF(ISERROR(VLOOKUP(I38,Rates!$A:$AP,42,0)),"",VLOOKUP(I38,Rates!$A:$AP,42,0)) -> 
A39: =VLOOKUP(I39,Rates!A:L,2,0) ->  | B39: IDACI | C39: Pri IDACI A | D39: Sec FSM | E39: Sec AWPU KS4 | F39: NURSPECTOPUP | G39: blank | H39: STMTTOPUPSEC | K39: =SUM('Home - Brookhill Nursery'!K39+'Home - Hampden Way Nursery'!K39+'Home-St Margarets Nursery'!K39) -> 46129.18 | L39: =SUMIF('EOY1718'!E:E,DFENO&'Home - BEYA'!I39,'EOY1718'!D:D) -> 0 | M39: =VLOOKUP(I39,Rates!A:L,8,0) ->  | N39: =IF(ISERROR(VLOOKUP(I39,Rates!A:L,3,0)),"",VLOOKUP(I39,Rates!A:L,3,0)) ->  | P39: =VLOOKUP(I39,Rates!A:AO,41,0) ->  | Q39: =SUM('Home - Brookhill Nursery'!Q39+'Home - Hampden Way Nursery'!Q39+'Home-St Margarets Nursery'!Q39) -> 56722.63 | R39: =SUM('Home - Brookhill Nursery'!R39+'Home - Hampden Way Nursery'!R39+'Home-St Margarets Nursery'!R39) -> 0 | S39: =SUM('Home - Brookhill Nursery'!S39+'Home - Hampden Way Nursery'!S39+'Home-St Margarets Nursery'!S39) -> 0 | T39: =SUM('Home - Brookhill Nursery'!T39+'Home - Hampden Way Nursery'!T39+'Home-St Margarets Nursery'!T39) -> 0 | U39: =SUM('Home - Brookhill Nursery'!U39+'Home - Hampden Way Nursery'!U39+'Home-St Margarets Nursery'!U39) -> 0 | V39: =SUM('Home - Brookhill Nursery'!V39+'Home - Hampden Way Nursery'!V39+'Home-St Margarets Nursery'!V39) -> 0 | W39: =SUM('Home - Brookhill Nursery'!W39+'Home - Hampden Way Nursery'!W39+'Home-St Margarets Nursery'!W39) -> 0 | X39: =SUM('Home - Brookhill Nursery'!X39+'Home - Hampden Way Nursery'!X39+'Home-St Margarets Nursery'!X39) -> 0 | Y39: =SUM('Home - Brookhill Nursery'!Y39+'Home - Hampden Way Nursery'!Y39+'Home-St Margarets Nursery'!Y39) -> 0 | Z39: =SUM('Home - Brookhill Nursery'!Z39+'Home - Hampden Way Nursery'!Z39+'Home-St Margarets Nursery'!Z39) -> 0 | AA39: =SUM('Home - Brookhill Nursery'!AA39+'Home - Hampden Way Nursery'!AA39+'Home-St Margarets Nursery'!AA39) -> 0 | AB39: =SUM('Home - Brookhill Nursery'!AB39+'Home - Hampden Way Nursery'!AB39+'Home-St Margarets Nursery'!AB39) -> 0 | AC39: =SUM('Home - Brookhill Nursery'!AC39+'Home - Hampden Way Nursery'!AC39+'Home-St Margarets Nursery'!AC39) -> 0 | AD39: 56722.63 | AG39: =IF(ISERROR(VLOOKUP(I39,Rates!$A:$AP,42,0)),"",VLOOKUP(I39,Rates!$A:$AP,42,0)) -> 
A40: =VLOOKUP(I40,Rates!A:L,2,0) ->  | B40: EYPP | C40: Pri IDACI B | D40: Sec FSM6 | E40: Pri FSM | F40: SPECIALTOPUP | G40: blank | H40: EXCLUSIONS | K40: =SUM('Home - Brookhill Nursery'!K40+'Home - Hampden Way Nursery'!K40+'Home-St Margarets Nursery'!K40) -> 0 | L40: =SUMIF('EOY1718'!E:E,DFENO&'Home - BEYA'!I40,'EOY1718'!D:D) -> 0 | M40: =VLOOKUP(I40,Rates!A:L,8,0) ->  | N40: =IF(ISERROR(VLOOKUP(I40,Rates!A:L,3,0)),"",VLOOKUP(I40,Rates!A:L,3,0)) ->  | P40: =VLOOKUP(I40,Rates!A:AO,41,0) ->  | Q40: =SUM('Home - Brookhill Nursery'!Q40+'Home - Hampden Way Nursery'!Q40+'Home-St Margarets Nursery'!Q40) -> 0 | R40: =SUM('Home - Brookhill Nursery'!R40+'Home - Hampden Way Nursery'!R40+'Home-St Margarets Nursery'!R40) -> 0 | S40: =SUM('Home - Brookhill Nursery'!S40+'Home - Hampden Way Nursery'!S40+'Home-St Margarets Nursery'!S40) -> 0 | T40: =SUM('Home - Brookhill Nursery'!T40+'Home - Hampden Way Nursery'!T40+'Home-St Margarets Nursery'!T40) -> 0 | U40: =SUM('Home - Brookhill Nursery'!U40+'Home - Hampden Way Nursery'!U40+'Home-St Margarets Nursery'!U40) -> 0 | V40: =SUM('Home - Brookhill Nursery'!V40+'Home - Hampden Way Nursery'!V40+'Home-St Margarets Nursery'!V40) -> 0 | W40: =SUM('Home - Brookhill Nursery'!W40+'Home - Hampden Way Nursery'!W40+'Home-St Margarets Nursery'!W40) -> 0 | X40: =SUM('Home - Brookhill Nursery'!X40+'Home - Hampden Way Nursery'!X40+'Home-St Margarets Nursery'!X40) -> 0 | Y40: =SUM('Home - Brookhill Nursery'!Y40+'Home - Hampden Way Nursery'!Y40+'Home-St Margarets Nursery'!Y40) -> 0 | Z40: =SUM('Home - Brookhill Nursery'!Z40+'Home - Hampden Way Nursery'!Z40+'Home-St Margarets Nursery'!Z40) -> 0 | AA40: =SUM('Home - Brookhill Nursery'!AA40+'Home - Hampden Way Nursery'!AA40+'Home-St Margarets Nursery'!AA40) -> 0 | AB40: =SUM('Home - Brookhill Nursery'!AB40+'Home - Hampden Way Nursery'!AB40+'Home-St Margarets Nursery'!AB40) -> 0 | AC40: =SUM('Home - Brookhill Nursery'!AC40+'Home - Hampden Way Nursery'!AC40+'Home-St Margarets Nursery'!AC40) -> 0 | AD40: 0 | AG40: =IF(ISERROR(VLOOKUP(I40,Rates!$A:$AP,42,0)),"",VLOOKUP(I40,Rates!$A:$AP,42,0)) -> 
A41: =VLOOKUP(I41,Rates!A:L,2,0) ->  | B41: ADJ | C41: Pri IDACI C | D41: Sec IDACI A | E41: Sec FSM | F41: POST16SPECTOPUP | G41: blank | H41: PRUASSESSBASE | K41: =SUM('Home - Brookhill Nursery'!K41+'Home - Hampden Way Nursery'!K41+'Home-St Margarets Nursery'!K41) -> 0 | L41: =SUMIF('EOY1718'!E:E,DFENO&'Home - BEYA'!I41,'EOY1718'!D:D) -> 0 | M41: =VLOOKUP(I41,Rates!A:L,8,0) ->  | N41: =IF(ISERROR(VLOOKUP(I41,Rates!A:L,3,0)),"",VLOOKUP(I41,Rates!A:L,3,0)) ->  | P41: =VLOOKUP(I41,Rates!A:AO,41,0) ->  | Q41: =SUM('Home - Brookhill Nursery'!Q41+'Home - Hampden Way Nursery'!Q41+'Home-St Margarets Nursery'!Q41) -> 0 | R41: =SUM('Home - Brookhill Nursery'!R41+'Home - Hampden Way Nursery'!R41+'Home-St Margarets Nursery'!R41) -> 0 | S41: =SUM('Home - Brookhill Nursery'!S41+'Home - Hampden Way Nursery'!S41+'Home-St Margarets Nursery'!S41) -> 0 | T41: =SUM('Home - Brookhill Nursery'!T41+'Home - Hampden Way Nursery'!T41+'Home-St Margarets Nursery'!T41) -> 0 | U41: =SUM('Home - Brookhill Nursery'!U41+'Home - Hampden Way Nursery'!U41+'Home-St Margarets Nursery'!U41) -> 0 | V41: =SUM('Home - Brookhill Nursery'!V41+'Home - Hampden Way Nursery'!V41+'Home-St Margarets Nursery'!V41) -> 0 | W41: =SUM('Home - Brookhill Nursery'!W41+'Home - Hampden Way Nursery'!W41+'Home-St Margarets Nursery'!W41) -> 0 | X41: =SUM('Home - Brookhill Nursery'!X41+'Home - Hampden Way Nursery'!X41+'Home-St Margarets Nursery'!X41) -> 0 | Y41: =SUM('Home - Brookhill Nursery'!Y41+'Home - Hampden Way Nursery'!Y41+'Home-St Margarets Nursery'!Y41) -> 0 | Z41: =SUM('Home - Brookhill Nursery'!Z41+'Home - Hampden Way Nursery'!Z41+'Home-St Margarets Nursery'!Z41) -> 0 | AA41: =SUM('Home - Brookhill Nursery'!AA41+'Home - Hampden Way Nursery'!AA41+'Home-St Margarets Nursery'!AA41) -> 0 | AB41: =SUM('Home - Brookhill Nursery'!AB41+'Home - Hampden Way Nursery'!AB41+'Home-St Margarets Nursery'!AB41) -> 0 | AC41: =SUM('Home - Brookhill Nursery'!AC41+'Home - Hampden Way Nursery'!AC41+'Home-St Margarets Nursery'!AC41) -> 0 | AD41: 0 | AG41: =IF(ISERROR(VLOOKUP(I41,Rates!$A:$AP,42,0)),"",VLOOKUP(I41,Rates!$A:$AP,42,0)) -> 
A42: =VLOOKUP(I42,Rates!A:L,2,0) ->  | B42: NTRANSIT | C42: Pri IDACI D | D42: Sec IDACI B | E42: Pri FSM6 | F42: SPECPY | G42: blank | H42: blank | K42: =SUM('Home - Brookhill Nursery'!K42+'Home - Hampden Way Nursery'!K42+'Home-St Margarets Nursery'!K42) -> 0 | L42: =SUMIF('EOY1718'!E:E,DFENO&'Home - BEYA'!I42,'EOY1718'!D:D) -> 0 | M42: =VLOOKUP(I42,Rates!A:L,8,0) ->  | N42: =IF(ISERROR(VLOOKUP(I42,Rates!A:L,3,0)),"",VLOOKUP(I42,Rates!A:L,3,0)) ->  | O42: =HYPERLINK(VLOOKUP(N35,$J$168:$M$185,4,0),IF(N35="Not Used","",N35)) ->  | P42: =VLOOKUP(I42,Rates!A:AO,41,0) ->  | Q42: =SUM('Home - Brookhill Nursery'!Q42+'Home - Hampden Way Nursery'!Q42+'Home-St Margarets Nursery'!Q42) -> 0 | R42: =SUM('Home - Brookhill Nursery'!R42+'Home - Hampden Way Nursery'!R42+'Home-St Margarets Nursery'!R42) -> 0 | S42: =SUM('Home - Brookhill Nursery'!S42+'Home - Hampden Way Nursery'!S42+'Home-St Margarets Nursery'!S42) -> 0 | T42: =SUM('Home - Brookhill Nursery'!T42+'Home - Hampden Way Nursery'!T42+'Home-St Margarets Nursery'!T42) -> 0 | U42: =SUM('Home - Brookhill Nursery'!U42+'Home - Hampden Way Nursery'!U42+'Home-St Margarets Nursery'!U42) -> 0 | V42: =SUM('Home - Brookhill Nursery'!V42+'Home - Hampden Way Nursery'!V42+'Home-St Margarets Nursery'!V42) -> 0 | W42: =SUM('Home - Brookhill Nursery'!W42+'Home - Hampden Way Nursery'!W42+'Home-St Margarets Nursery'!W42) -> 0 | X42: =SUM('Home - Brookhill Nursery'!X42+'Home - Hampden Way Nursery'!X42+'Home-St Margarets Nursery'!X42) -> 0 | Y42: =SUM('Home - Brookhill Nursery'!Y42+'Home - Hampden Way Nursery'!Y42+'Home-St Margarets Nursery'!Y42) -> 0 | Z42: =SUM('Home - Brookhill Nursery'!Z42+'Home - Hampden Way Nursery'!Z42+'Home-St Margarets Nursery'!Z42) -> 0 | AA42: =SUM('Home - Brookhill Nursery'!AA42+'Home - Hampden Way Nursery'!AA42+'Home-St Margarets Nursery'!AA42) -> 0 | AB42: =SUM('Home - Brookhill Nursery'!AB42+'Home - Hampden Way Nursery'!AB42+'Home-St Margarets Nursery'!AB42) -> 0 | AC42: =SUM('Home - Brookhill Nursery'!AC42+'Home - Hampden Way Nursery'!AC42+'Home-St Margarets Nursery'!AC42) -> 0 | AD42: 0 | AG42: =IF(ISERROR(VLOOKUP(I42,Rates!$A:$AP,42,0)),"",VLOOKUP(I42,Rates!$A:$AP,42,0)) -> 
A43: =VLOOKUP(I43,Rates!A:L,2,0) ->  | B43: NNEWDEL | C43: Pri IDACI E | D43: Sec IDACI C | E43: Sec FSM6 | F43: blank | G43: blank | H43: blank | K43: =SUM('Home - Brookhill Nursery'!K43+'Home - Hampden Way Nursery'!K43+'Home-St Margarets Nursery'!K43) -> 0 | L43: =SUMIF('EOY1718'!E:E,DFENO&'Home - BEYA'!I43,'EOY1718'!D:D) -> 0 | M43: =VLOOKUP(I43,Rates!A:L,8,0) ->  | N43: =IF(ISERROR(VLOOKUP(I43,Rates!A:L,3,0)),"",VLOOKUP(I43,Rates!A:L,3,0)) ->  | P43: =VLOOKUP(I43,Rates!A:AO,41,0) ->  | Q43: =SUM('Home - Brookhill Nursery'!Q43+'Home - Hampden Way Nursery'!Q43+'Home-St Margarets Nursery'!Q43) -> 0 | R43: =SUM('Home - Brookhill Nursery'!R43+'Home - Hampden Way Nursery'!R43+'Home-St Margarets Nursery'!R43) -> 0 | S43: =SUM('Home - Brookhill Nursery'!S43+'Home - Hampden Way Nursery'!S43+'Home-St Margarets Nursery'!S43) -> 0 | T43: =SUM('Home - Brookhill Nursery'!T43+'Home - Hampden Way Nursery'!T43+'Home-St Margarets Nursery'!T43) -> 0 | U43: =SUM('Home - Brookhill Nursery'!U43+'Home - Hampden Way Nursery'!U43+'Home-St Margarets Nursery'!U43) -> 0 | V43: =SUM('Home - Brookhill Nursery'!V43+'Home - Hampden Way Nursery'!V43+'Home-St Margarets Nursery'!V43) -> 0 | W43: =SUM('Home - Brookhill Nursery'!W43+'Home - Hampden Way Nursery'!W43+'Home-St Margarets Nursery'!W43) -> 0 | X43: =SUM('Home - Brookhill Nursery'!X43+'Home - Hampden Way Nursery'!X43+'Home-St Margarets Nursery'!X43) -> 0 | Y43: =SUM('Home - Brookhill Nursery'!Y43+'Home - Hampden Way Nursery'!Y43+'Home-St Margarets Nursery'!Y43) -> 0 | Z43: =SUM('Home - Brookhill Nursery'!Z43+'Home - Hampden Way Nursery'!Z43+'Home-St Margarets Nursery'!Z43) -> 0 | AA43: =SUM('Home - Brookhill Nursery'!AA43+'Home - Hampden Way Nursery'!AA43+'Home-St Margarets Nursery'!AA43) -> 0 | AB43: =SUM('Home - Brookhill Nursery'!AB43+'Home - Hampden Way Nursery'!AB43+'Home-St Margarets Nursery'!AB43) -> 0 | AC43: =SUM('Home - Brookhill Nursery'!AC43+'Home - Hampden Way Nursery'!AC43+'Home-St Margarets Nursery'!AC43) -> 0 | AD43: 0 | AG43: =IF(ISERROR(VLOOKUP(I43,Rates!$A:$AP,42,0)),"",VLOOKUP(I43,Rates!$A:$AP,42,0)) -> 
A44: =VLOOKUP(I44,Rates!A:L,2,0) ->  | B44: MNS Supp | C44: Pri IDACI F | D44: Sec IDACI D | E44: Pri IDACI A | F44: blank | G44: blank | H44: blank | K44: =SUM('Home - Brookhill Nursery'!K44+'Home - Hampden Way Nursery'!K44+'Home-St Margarets Nursery'!K44) -> 53001.41 | L44: =SUMIF('EOY1718'!E:E,DFENO&'Home - BEYA'!I44,'EOY1718'!D:D) -> 0 | M44: =VLOOKUP(I44,Rates!A:L,8,0) ->  | N44: =IF(ISERROR(VLOOKUP(I44,Rates!A:L,3,0)),"",VLOOKUP(I44,Rates!A:L,3,0)) ->  | P44: =VLOOKUP(I44,Rates!A:AO,41,0) ->  | Q44: =SUM('Home - Brookhill Nursery'!Q44+'Home - Hampden Way Nursery'!Q44+'Home-St Margarets Nursery'!Q44) -> 0 | R44: =SUM('Home - Brookhill Nursery'!R44+'Home - Hampden Way Nursery'!R44+'Home-St Margarets Nursery'!R44) -> 0 | S44: =SUM('Home - Brookhill Nursery'!S44+'Home - Hampden Way Nursery'!S44+'Home-St Margarets Nursery'!S44) -> 0 | T44: =SUM('Home - Brookhill Nursery'!T44+'Home - Hampden Way Nursery'!T44+'Home-St Margarets Nursery'!T44) -> 0 | U44: =SUM('Home - Brookhill Nursery'!U44+'Home - Hampden Way Nursery'!U44+'Home-St Margarets Nursery'!U44) -> 0 | V44: =SUM('Home - Brookhill Nursery'!V44+'Home - Hampden Way Nursery'!V44+'Home-St Margarets Nursery'!V44) -> 0 | W44: =SUM('Home - Brookhill Nursery'!W44+'Home - Hampden Way Nursery'!W44+'Home-St Margarets Nursery'!W44) -> 0 | X44: =SUM('Home - Brookhill Nursery'!X44+'Home - Hampden Way Nursery'!X44+'Home-St Margarets Nursery'!X44) -> 0 | Y44: =SUM('Home - Brookhill Nursery'!Y44+'Home - Hampden Way Nursery'!Y44+'Home-St Margarets Nursery'!Y44) -> 0 | Z44: =SUM('Home - Brookhill Nursery'!Z44+'Home - Hampden Way Nursery'!Z44+'Home-St Margarets Nursery'!Z44) -> 0 | AA44: =SUM('Home - Brookhill Nursery'!AA44+'Home - Hampden Way Nursery'!AA44+'Home-St Margarets Nursery'!AA44) -> 0 | AB44: =SUM('Home - Brookhill Nursery'!AB44+'Home - Hampden Way Nursery'!AB44+'Home-St Margarets Nursery'!AB44) -> 0 | AC44: =SUM('Home - Brookhill Nursery'!AC44+'Home - Hampden Way Nursery'!AC44+'Home-St Margarets Nursery'!AC44) -> 0 | AD44: 0 | AG44: =IF(ISERROR(VLOOKUP(I44,Rates!$A:$AP,42,0)),"",VLOOKUP(I44,Rates!$A:$AP,42,0)) -> 
A45: =VLOOKUP(I45,Rates!A:L,2,0) ->  | B45: blank | C45: Pri EAL 2 | D45: Sec IDACI E | E45: Pri IDACI B | F45: blank | G45: blank | H45: blank | K45: =SUM('Home - Brookhill Nursery'!K45+'Home - Hampden Way Nursery'!K45+'Home-St Margarets Nursery'!K45) -> 0 | L45: =SUMIF('EOY1718'!E:E,DFENO&'Home - BEYA'!I45,'EOY1718'!D:D) -> 0 | M45: =VLOOKUP(I45,Rates!A:L,8,0) ->  | N45: =IF(ISERROR(VLOOKUP(I45,Rates!A:L,3,0)),"",VLOOKUP(I45,Rates!A:L,3,0)) ->  | P45: =VLOOKUP(I45,Rates!A:AO,41,0) ->  | Q45: =SUM('Home - Brookhill Nursery'!Q45+'Home - Hampden Way Nursery'!Q45+'Home-St Margarets Nursery'!Q45) -> 0 | R45: =SUM('Home - Brookhill Nursery'!R45+'Home - Hampden Way Nursery'!R45+'Home-St Margarets Nursery'!R45) -> 0 | S45: =SUM('Home - Brookhill Nursery'!S45+'Home - Hampden Way Nursery'!S45+'Home-St Margarets Nursery'!S45) -> 0 | T45: =SUM('Home - Brookhill Nursery'!T45+'Home - Hampden Way Nursery'!T45+'Home-St Margarets Nursery'!T45) -> 0 | U45: =SUM('Home - Brookhill Nursery'!U45+'Home - Hampden Way Nursery'!U45+'Home-St Margarets Nursery'!U45) -> 0 | V45: =SUM('Home - Brookhill Nursery'!V45+'Home - Hampden Way Nursery'!V45+'Home-St Margarets Nursery'!V45) -> 0 | W45: =SUM('Home - Brookhill Nursery'!W45+'Home - Hampden Way Nursery'!W45+'Home-St Margarets Nursery'!W45) -> 0 | X45: =SUM('Home - Brookhill Nursery'!X45+'Home - Hampden Way Nursery'!X45+'Home-St Margarets Nursery'!X45) -> 0 | Y45: =SUM('Home - Brookhill Nursery'!Y45+'Home - Hampden Way Nursery'!Y45+'Home-St Margarets Nursery'!Y45) -> 0 | Z45: =SUM('Home - Brookhill Nursery'!Z45+'Home - Hampden Way Nursery'!Z45+'Home-St Margarets Nursery'!Z45) -> 0 | AA45: =SUM('Home - Brookhill Nursery'!AA45+'Home - Hampden Way Nursery'!AA45+'Home-St Margarets Nursery'!AA45) -> 0 | AB45: =SUM('Home - Brookhill Nursery'!AB45+'Home - Hampden Way Nursery'!AB45+'Home-St Margarets Nursery'!AB45) -> 0 | AC45: =SUM('Home - Brookhill Nursery'!AC45+'Home - Hampden Way Nursery'!AC45+'Home-St Margarets Nursery'!AC45) -> 0 | AD45: 0 | AG45: =IF(ISERROR(VLOOKUP(I45,Rates!$A:$AP,42,0)),"",VLOOKUP(I45,Rates!$A:$AP,42,0)) -> 
A46: =VLOOKUP(I46,Rates!A:L,2,0) ->  | B46: blank | C46: Pri MOB | D46: Sec IDACI F | E46: Pri IDACI C | F46: blank | G46: blank | H46: blank | K46: =SUM('Home - Brookhill Nursery'!K46+'Home - Hampden Way Nursery'!K46+'Home-St Margarets Nursery'!K46) -> 0 | L46: =SUMIF('EOY1718'!E:E,DFENO&'Home - BEYA'!I46,'EOY1718'!D:D) -> 0 | M46: =VLOOKUP(I46,Rates!A:L,8,0) ->  | N46: =IF(ISERROR(VLOOKUP(I46,Rates!A:L,3,0)),"",VLOOKUP(I46,Rates!A:L,3,0)) ->  | P46: =VLOOKUP(I46,Rates!A:AO,41,0) ->  | Q46: =SUM('Home - Brookhill Nursery'!Q46+'Home - Hampden Way Nursery'!Q46+'Home-St Margarets Nursery'!Q46) -> 0 | R46: =SUM('Home - Brookhill Nursery'!R46+'Home - Hampden Way Nursery'!R46+'Home-St Margarets Nursery'!R46) -> 0 | S46: =SUM('Home - Brookhill Nursery'!S46+'Home - Hampden Way Nursery'!S46+'Home-St Margarets Nursery'!S46) -> 0 | T46: =SUM('Home - Brookhill Nursery'!T46+'Home - Hampden Way Nursery'!T46+'Home-St Margarets Nursery'!T46) -> 0 | U46: =SUM('Home - Brookhill Nursery'!U46+'Home - Hampden Way Nursery'!U46+'Home-St Margarets Nursery'!U46) -> 0 | V46: =SUM('Home - Brookhill Nursery'!V46+'Home - Hampden Way Nursery'!V46+'Home-St Margarets Nursery'!V46) -> 0 | W46: =SUM('Home - Brookhill Nursery'!W46+'Home - Hampden Way Nursery'!W46+'Home-St Margarets Nursery'!W46) -> 0 | X46: =SUM('Home - Brookhill Nursery'!X46+'Home - Hampden Way Nursery'!X46+'Home-St Margarets Nursery'!X46) -> 0 | Y46: =SUM('Home - Brookhill Nursery'!Y46+'Home - Hampden Way Nursery'!Y46+'Home-St Margarets Nursery'!Y46) -> 0 | Z46: =SUM('Home - Brookhill Nursery'!Z46+'Home - Hampden Way Nursery'!Z46+'Home-St Margarets Nursery'!Z46) -> 0 | AA46: =SUM('Home - Brookhill Nursery'!AA46+'Home - Hampden Way Nursery'!AA46+'Home-St Margarets Nursery'!AA46) -> 0 | AB46: =SUM('Home - Brookhill Nursery'!AB46+'Home - Hampden Way Nursery'!AB46+'Home-St Margarets Nursery'!AB46) -> 0 | AC46: =SUM('Home - Brookhill Nursery'!AC46+'Home - Hampden Way Nursery'!AC46+'Home-St Margarets Nursery'!AC46) -> 0 | AD46: 0 | AG46: =IF(ISERROR(VLOOKUP(I46,Rates!$A:$AP,42,0)),"",VLOOKUP(I46,Rates!$A:$AP,42,0)) -> 
